Workbook

Sheet Forside
A3: Beslutningsstøtteværktøj til valg af efter- og mellemafgrøder i økologisk jordbrug
A6: Beslutningsstøtteværktøjet kan for nuværende ikke håndtere de frivlillige efterafgrøder med støtte som bliver en del af landbrugspakkens implementering fra 2017, idet det endelige regelsæt ikke kendes ved værktøjets færdiggørelse.
A8: Gå til arket "Efterafgrøde beslutningsstøtte" for at starte beregneren
A15: Udviklingen af dette værktøj er støttet af:
A26: Værktøjet er i 2015 udviklet i regi af GUDP projektet OPTIplant, og er i 2017 omarbejdet til brug i økologisk landbrug med støtte fra den Europæiske Landbrugsfond for Udvikling af Landdistrikterne.

Sheet Efterafgrøde beslutningsstøtte
A1: =Version!A1 -> Version 1.12, 21. november 2021
A2: Beslutningsstøtteværktøj til valg af efter- og mellemafgrøder i korn
E3: =Beslutningstræ!HA40 -> Seneste lovlige såtidspunkt | F3: =Beslutningstræ!HB40 -> Egnet til udsåning efter tidlig høst (10. august) | G3: =Beslutningstræ!HC40 -> Kvælstoffikserende | H3: =Beslutningstræ!HD40 -> Stor kvælstof-eftervirkning | I3: =Beslutningstræ!HE40 -> Bruttoomkostninger | J3: =Beslutningstræ!HF40 -> Nettoomkostninger | K3: =Beslutningstræ!HG40 -> Er afgrøden robust mod ukrudtsmidler? | L3: =Beslutningstræ!HH40 -> Afgrøden opformere kålbrok | M3: =Beslutningstræ!HI40 -> Der findes sorter, der er sanerende for roecystenematoder | N3: =Beslutningstræ!HJ40 -> Vinterfast | O3: =Beslutningstræ!HK40 -> Egen udsæd kan anvendes | P3: =Beslutningstræ!HL40 -> Hurtig og dyb rodvækst på lerjord | Q3: =Beslutningstræ!IH40 -> Vejledning
A5: Obligatoriske spørgsmål
A6: Skal afgrøden kunne fungere som:
A7: Pligtig efterafgrøde
A9: Hvilken afgrøde skal efterafgrøden sås i?
A10: Vårsæd
A12: Hvornår skal afgrøden etableres?
A13: Efter høst af primærafgrøde
A15: Jordtype på arealet
A16: Ler
C17: =IF('Norm lig basisnorm'!D57=FALSE,"Bemærk at der anvendes egne priser og/eller merudbytter i beregningerne",IF('Norm lig basisnorm'!D57,"","FEJL")) -> Bemærk at der anvendes egne priser og/eller merudbytter i beregningerne
A18: N.B. Der sås altid vårsæd efter efterafgrøden - dvs. værktøjet kan ikke håndtere mellemafgrøder
A19: Vårsæd
A20: =IF(OR(A7="Vælg funktion",A7="Frivillig efterafgrøde"),"","Vær opmærksom på, at gældende love og regler angående pligtige efter- og mellemafgrøder og MFO afgrøder er komplicerede og ændres jævnligt. Du skal selv kontrollere, at de efterafgrøder, du sår, overholder gældende regler.") -> Vær opmærksom på, at gældende love og regler angående pligtige efter- og mellemafgrøder og MFO afgrøder er komplicerede og ændres jævnligt. Du skal selv kontrollere, at de efterafgrøder, du sår, overholder gældende regler. | D20: =IF(OR(A7="Kun MFO afgrøde",A7="Pligtig efterafgrøde og MFO afgrøde"),"Husk at MFO afgrøder altid skal sås i blanding med mindst en anden art, med udtagelse af græsser der kan sås som udlæg i renbestand inden 31. maj","") -> 
A22: Udvælgelseskriterier. | D22: =Beslutningstræ!GZ80 -> Efterafgrøde
A23: Økonomi | D23: =(Beslutningstræ!GZ81) -> Vintervikke/vinterrug | E23: =(Beslutningstræ!HA81) -> 20. august | F23: =(Beslutningstræ!HB81) -> Meget god | G23: =(Beslutningstræ!HC81) -> Ja | H23: =(Beslutningstræ!HD81) -> Stor | I23: =(Beslutningstræ!HE81) -> -969 | J23: =(Beslutningstræ!HF81) -> -529 | K23: =(Beslutningstræ!HG81) -> Mod de fleste | L23: =(Beslutningstræ!HH81) -> Aldrig | M23: =(Beslutningstræ!HI81) -> Nej | N23: =(Beslutningstræ!HJ81) -> Meget god | O23: =(Beslutningstræ!HK81) -> Nej | P23: =(Beslutningstræ!HK81) -> Nej | Q23: =IF(F23="","",IF(A$7<>"Pligtig mellemafgrøde",HYPERLINK("https://dyrk-plant.dlbr.dk/Web/(S(ikevr3oqnx5oe2t5cyfyknyq))/forms/Main.aspx?page=Vejledning&cropID=226","Efterafgrøder"),HYPERLINK("https://dyrk-plant.dlbr.dk/Web/(S(0x3ftyiaahcpttq0ljebuany))/forms/Main.aspx?page=Vejledning&cropID=238","Mellemafgrøder"))) -> Efterafgrøder
A24: Etableringsomkostninger (lav pris) | B24: Ikke vigtigt | D24: =(Beslutningstræ!GZ82) -> Olieræddike og vintervikke | E24: =(Beslutningstræ!HA82) -> 20. august | F24: =(Beslutningstræ!HB82) -> Meget god | G24: =(Beslutningstræ!HC82) -> Ja | H24: =(Beslutningstræ!HD82) -> Stor | I24: =(Beslutningstræ!HE82) -> -828 | J24: =(Beslutningstræ!HF82) -> 52 | K24: =(Beslutningstræ!HG82) -> Mod de fleste | L24: =(Beslutningstræ!HH82) -> I mindre grad | M24: =(Beslutningstræ!HI82) -> Nej | N24: =(Beslutningstræ!HJ82) -> Udvintrer | O24: =(Beslutningstræ!HK82) -> Nej | P24: =(Beslutningstræ!HK82) -> Nej | Q24: =IF(F24="","",IF(A$7<>"Pligtig mellemafgrøde",HYPERLINK("https://dyrk-plant.dlbr.dk/Web/(S(ikevr3oqnx5oe2t5cyfyknyq))/forms/Main.aspx?page=Vejledning&cropID=226","Efterafgrøder"),HYPERLINK("https://dyrk-plant.dlbr.dk/Web/(S(0x3ftyiaahcpttq0ljebuany))/forms/Main.aspx?page=Vejledning&cropID=238","Mellemafgrøder"))) -> Efterafgrøder
D25: =(Beslutningstræ!GZ83) -> Kløvergræs (blanding) | E25: =(Beslutningstræ!HA83) -> 1. august | F25: =(Beslutningstræ!HB83) -> Meget god | G25: =(Beslutningstræ!HC83) -> Ja | H25: =(Beslutningstræ!HD83) -> Stor | I25: =(Beslutningstræ!HE83) -> -2145 | J25: =(Beslutningstræ!HF83) -> - | K25: =(Beslutningstræ!HG83) -> Mod visse | L25: =(Beslutningstræ!HH83) -> Aldrig | M25: =(Beslutningstræ!HI83) -> Nej | N25: =(Beslutningstræ!HJ83) -> Meget god | O25: =(Beslutningstræ!HK83) -> Nej | P25: =(Beslutningstræ!HK83) -> Nej | Q25: Efterafgrøder
D26: =(Beslutningstræ!GZ84) -> Vårbyg /Vikke /Gul Sennep | E26: =(Beslutningstræ!HA84) -> 20. august | F26: =(Beslutningstræ!HB84) -> Meget god | G26: =(Beslutningstræ!HC84) -> Ja | H26: =(Beslutningstræ!HD84) -> Over middel | I26: =(Beslutningstræ!HE84) -> -789 | J26: =(Beslutningstræ!HF84) -> -348.5 | K26: =(Beslutningstræ!HG84) -> Nej | L26: =(Beslutningstræ!HH84) -> Aldrig | M26: =(Beslutningstræ!HI84) -> Nej | N26: =(Beslutningstræ!HJ84) -> Dårlig | O26: =(Beslutningstræ!HK84) -> Nej | P26: =(Beslutningstræ!HK84) -> Nej | Q26: Efterafgrøder
A27: Sædskiftesygdomme | B27: Ikke vigtigt | D27: =(Beslutningstræ!GZ85) -> Olieræddike | E27: =(Beslutningstræ!HA85) -> 20. august | F27: =(Beslutningstræ!HB85) -> Meget god | G27: =(Beslutningstræ!HC85) -> Nej | H27: =(Beslutningstræ!HD85) -> Over middel | I27: =(Beslutningstræ!HE85) -> -649 | J27: =(Beslutningstræ!HF85) -> 231 | K27: =(Beslutningstræ!HG85) -> Mod de fleste | L27: =(Beslutningstræ!HH85) -> I mindre grad | M27: =(Beslutningstræ!HI85) -> Mange | N27: =(Beslutningstræ!HJ85) -> Udvintrer | O27: =(Beslutningstræ!HK85) -> Nej | P27: =(Beslutningstræ!HK85) -> Nej | Q27: Efterafgrøder
A28: Afgrøden må ikke opformere kålbrok | B28: Ikke vigtigt | D28: =(Beslutningstræ!GZ86) -> Gul sennep | E28: =(Beslutningstræ!HA86) -> 20. august | F28: =(Beslutningstræ!HB86) -> Meget god | G28: =(Beslutningstræ!HC86) -> Nej | H28: =(Beslutningstræ!HD86) -> Over middel | I28: =(Beslutningstræ!HE86) -> -503 | J28: =(Beslutningstræ!HF86) -> 377 | K28: =(Beslutningstræ!HG86) -> Mod de fleste | L28: =(Beslutningstræ!HH86) -> Altid | M28: =(Beslutningstræ!HI86) -> Mange | N28: =(Beslutningstræ!HJ86) -> Udvintrer | O28: =(Beslutningstræ!HK86) -> Nej | P28: =(Beslutningstræ!HK86) -> Nej | Q28: Efterafgrøder
A29: Der findes sorter, der er sanerende for roecystenematoder | B29: Ikke vigtigt | D29: =(Beslutningstræ!GZ87) -> Foderradise (Strukturator) | E29: =(Beslutningstræ!HA87) -> 20. august | F29: =(Beslutningstræ!HB87) -> Meget god | G29: =(Beslutningstræ!HC87) -> Nej | H29: =(Beslutningstræ!HD87) -> Over middel | I29: =(Beslutningstræ!HE87) -> -913 | J29: =(Beslutningstræ!HF87) -> -33 | K29: =(Beslutningstræ!HG87) -> Mod de fleste | L29: =(Beslutningstræ!HH87) -> I mindre grad | M29: =(Beslutningstræ!HI87) -> Nej | N29: =(Beslutningstræ!HJ87) -> Udvintrer | O29: =(Beslutningstræ!HK87) -> Nej | P29: =(Beslutningstræ!HK87) -> Nej | Q29: Efterafgrøder
D30: =(Beslutningstræ!GZ88) -> Honningurt | E30: =(Beslutningstræ!HA88) -> 20. august | F30: =(Beslutningstræ!HB88) -> Meget god | G30: =(Beslutningstræ!HC88) -> Nej | H30: =(Beslutningstræ!HD88) -> Over middel | I30: =(Beslutningstræ!HE88) -> -2302 | J30: =(Beslutningstræ!HF88) -> -2082 | K30: =(Beslutningstræ!HG88) -> Mod de fleste | L30: =(Beslutningstræ!HH88) -> Aldrig | M30: =(Beslutningstræ!HI88) -> Nej | N30: =(Beslutningstræ!HJ88) -> Udvintrer | O30: =(Beslutningstræ!HK88) -> Nej | P30: =(Beslutningstræ!HK88) -> Nej | Q30: Efterafgrøder
A31: Vinterfasthed og rodvækst og udsæd | D31: =(Beslutningstræ!GZ89) -> Vinterrug | E31: =(Beslutningstræ!HA89) -> 20. august | F31: =(Beslutningstræ!HB89) -> Meget god | G31: =(Beslutningstræ!HC89) -> Nej | H31: =(Beslutningstræ!HD89) -> Middel | I31: =(Beslutningstræ!HE89) -> -849 | J31: =(Beslutningstræ!HF89) -> -409 | K31: =(Beslutningstræ!HG89) -> Mod de fleste | L31: =(Beslutningstræ!HH89) -> Aldrig | M31: =(Beslutningstræ!HI89) -> Nej | N31: =(Beslutningstræ!HJ89) -> Meget god | O31: =(Beslutningstræ!HK89) -> Ja | P31: =(Beslutningstræ!HK89) -> Ja | Q31: Efterafgrøder
A32: Vinterfast | B32: Ikke vigtigt | D32: =(Beslutningstræ!GZ90) -> Havre | E32: =(Beslutningstræ!HA90) -> 20. august | F32: =(Beslutningstræ!HB90) -> Meget god | G32: =(Beslutningstræ!HC90) -> Nej | H32: =(Beslutningstræ!HD90) -> Middel | I32: =(Beslutningstræ!HE90) -> -877 | J32: =(Beslutningstræ!HF90) -> -657 | K32: =(Beslutningstræ!HG90) -> Mod de fleste | L32: =(Beslutningstræ!HH90) -> Aldrig | M32: =(Beslutningstræ!HI90) -> Nej | N32: =(Beslutningstræ!HJ90) -> Dårlig | O32: =(Beslutningstræ!HK90) -> Ja | P32: =(Beslutningstræ!HK90) -> Ja | Q32: Efterafgrøder
A33: Egen udsæd kan anvendes | B33: Ikke vigtigt | D33: =(Beslutningstræ!GZ91) -> Vårbyg | E33: =(Beslutningstræ!HA91) -> 20. august | F33: =(Beslutningstræ!HB91) -> Meget god | G33: =(Beslutningstræ!HC91) -> Nej | H33: =(Beslutningstræ!HD91) -> Middel | I33: =(Beslutningstræ!HE91) -> -877 | J33: =(Beslutningstræ!HF91) -> -657 | K33: =(Beslutningstræ!HG91) -> Mod de fleste | L33: =(Beslutningstræ!HH91) -> Aldrig | M33: =(Beslutningstræ!HI91) -> Nej | N33: =(Beslutningstræ!HJ91) -> Dårlig | O33: =(Beslutningstræ!HK91) -> Ja | P33: =(Beslutningstræ!HK91) -> Ja | Q33: Efterafgrøder
A34: Hurtig og dyb rodvækst på lerjord | B34: Ikke vigtigt | D34: =(Beslutningstræ!GZ92) -> Vinterrybs | E34: =(Beslutningstræ!HA92) -> 20. august | F34: =(Beslutningstræ!HB92) -> Meget god | G34: =(Beslutningstræ!HC92) -> Nej | H34: =(Beslutningstræ!HD92) -> Middel | I34: =(Beslutningstræ!HE92) -> -1513 | J34: =(Beslutningstræ!HF92) -> -633 | K34: =(Beslutningstræ!HG92) -> Nej | L34: =(Beslutningstræ!HH92) -> Aldrig | M34: =(Beslutningstræ!HI92) -> Nej | N34: =(Beslutningstræ!HJ92) -> Meget god | O34: =(Beslutningstræ!HK92) -> Ja | P34: =(Beslutningstræ!HK92) -> Ja | Q34: Efterafgrøder
D35: =(Beslutningstræ!GZ93) -> Hvidkløver/alm. rajgræs | E35: =(Beslutningstræ!HA93) -> 1. august | F35: =(Beslutningstræ!HB93) -> God | G35: =(Beslutningstræ!HC93) -> Ja | H35: =(Beslutningstræ!HD93) -> Stor | I35: =(Beslutningstræ!HE93) -> -185 | J35: =(Beslutningstræ!HF93) -> - | K35: =(Beslutningstræ!HG93) -> Mod visse | L35: =(Beslutningstræ!HH93) -> Aldrig | M35: =(Beslutningstræ!HI93) -> Nej | N35: =(Beslutningstræ!HJ93) -> Meget god | O35: =(Beslutningstræ!HK93) -> Nej | P35: =(Beslutningstræ!HK93) -> Nej | Q35: Efterafgrøder
A36: Egenskaber mht. kvælstof | D36: =(Beslutningstræ!GZ94) -> Vinterraps , linie | E36: =(Beslutningstræ!HA94) -> 20. august | F36: =(Beslutningstræ!HB94) -> God | G36: =(Beslutningstræ!HC94) -> Nej | H36: =(Beslutningstræ!HD94) -> Over middel | I36: =(Beslutningstræ!HE94) -> -1136 | J36: =(Beslutningstræ!HF94) -> -476 | K36: =(Beslutningstræ!HG94) -> Mod de fleste | L36: =(Beslutningstræ!HH94) -> Altid | M36: =(Beslutningstræ!HI94) -> Nej | N36: =(Beslutningstræ!HJ94) -> Meget god | O36: =(Beslutningstræ!HK94) -> Ja | P36: =(Beslutningstræ!HK94) -> Ja | Q36: Efterafgrøder
A37: Kvælstoffikserende | B37: Vigtigt | D37: =(Beslutningstræ!GZ95) -> Alm. rajgræs, dipl. | E37: =(Beslutningstræ!HA95) -> 1.august | F37: =(Beslutningstræ!HB95) -> God | G37: =(Beslutningstræ!HC95) -> Nej | H37: =(Beslutningstræ!HD95) -> Middel | I37: =(Beslutningstræ!HE95) -> -185 | J37: =(Beslutningstræ!HF95) -> - | K37: =(Beslutningstræ!HG95) -> Mod mange | L37: =(Beslutningstræ!HH95) -> Aldrig | M37: =(Beslutningstræ!HI95) -> Nej | N37: =(Beslutningstræ!HJ95) -> Meget god | O37: =(Beslutningstræ!HK95) -> Nej | P37: =(Beslutningstræ!HK95) -> Nej | Q37: Efterafgrøder
A38: Stor kvælstof eftervirkning | B38: Vigtigt | D38: =(Beslutningstræ!GZ96) -> Rødkløver/strandsvingel | E38: =(Beslutningstræ!HA96) -> 1. august | F38: =(Beslutningstræ!HB96) -> Brugbar | G38: =(Beslutningstræ!HC96) -> Ja | H38: =(Beslutningstræ!HD96) -> Stor | I38: =(Beslutningstræ!HE96) -> -1355 | J38: =(Beslutningstræ!HF96) -> - | K38: =(Beslutningstræ!HG96) -> Mod visse | L38: =(Beslutningstræ!HH96) -> Aldrig | M38: =(Beslutningstræ!HI96) -> Nej | N38: =(Beslutningstræ!HJ96) -> Meget god | O38: =(Beslutningstræ!HK96) -> Nej | P38: =(Beslutningstræ!HK96) -> Nej | Q38: Efterafgrøder
D39: =(Beslutningstræ!GZ97) -> Triticale/Gul Sennep | E39: =(Beslutningstræ!HA97) -> 1. august | F39: =(Beslutningstræ!HB97) -> Brugbar | G39: =(Beslutningstræ!HC97) -> Nej | H39: =(Beslutningstræ!HD97) -> Middel | I39: =(Beslutningstræ!HE97) -> -647 | J39: =(Beslutningstræ!HF97) -> - | K39: =(Beslutningstræ!HG97) -> Nej | L39: =(Beslutningstræ!HH97) -> Aldrig | M39: =(Beslutningstræ!HI97) -> Nej | N39: =(Beslutningstræ!HJ97) -> Udvintrer | O39: =(Beslutningstræ!HK97) -> Nej | P39: =(Beslutningstræ!HK97) -> Nej | Q39: Efterafgrøder
D40: =(Beslutningstræ!GZ98) ->  | E40: =(Beslutningstræ!HA98) ->  | F40: =(Beslutningstræ!HB98) ->  | G40: =(Beslutningstræ!HC98) ->  | H40: =(Beslutningstræ!HD98) ->  | I40: =(Beslutningstræ!HE98) ->  | J40: =(Beslutningstræ!HF98) ->  | K40: =(Beslutningstræ!HG98) ->  | L40: =(Beslutningstræ!HH98) ->  | M40: =(Beslutningstræ!HI98) ->  | N40: =(Beslutningstræ!HJ98) ->  | O40: =(Beslutningstræ!HK98) ->  | P40: =(Beslutningstræ!HK98) -> 
A41: SEGES P/S | D41: =(Beslutningstræ!GZ99) ->  | E41: =(Beslutningstræ!HA99) ->  | F41: =(Beslutningstræ!HB99) ->  | G41: =(Beslutningstræ!HC99) ->  | H41: =(Beslutningstræ!HD99) ->  | I41: =(Beslutningstræ!HE99) ->  | J41: =(Beslutningstræ!HF99) ->  | K41: =(Beslutningstræ!HG99) ->  | L41: =(Beslutningstræ!HH99) ->  | M41: =(Beslutningstræ!HI99) ->  | N41: =(Beslutningstræ!HJ99) ->  | O41: =(Beslutningstræ!HK99) ->  | P41: =(Beslutningstræ!HK99) -> 
A42: Udviklet af: | D42: =(Beslutningstræ!GZ100) ->  | E42: =(Beslutningstræ!HA100) ->  | F42: =(Beslutningstræ!HB100) ->  | G42: =(Beslutningstræ!HC100) ->  | H42: =(Beslutningstræ!HD100) ->  | I42: =(Beslutningstræ!HE100) ->  | J42: =(Beslutningstræ!HF100) ->  | K42: =(Beslutningstræ!HG100) ->  | L42: =(Beslutningstræ!HH100) ->  | M42: =(Beslutningstræ!HI100) ->  | N42: =(Beslutningstræ!HJ100) ->  | O42: =(Beslutningstræ!HK100) ->  | P42: =(Beslutningstræ!HK100) -> 
A43: Kristoffer Piil | D43: =(Beslutningstræ!GZ101) ->  | E43: =(Beslutningstræ!HA101) ->  | F43: =(Beslutningstræ!HB101) ->  | G43: =(Beslutningstræ!HC101) ->  | H43: =(Beslutningstræ!HD101) ->  | I43: =(Beslutningstræ!HE101) ->  | J43: =(Beslutningstræ!HF101) ->  | K43: =(Beslutningstræ!HG101) ->  | L43: =(Beslutningstræ!HH101) ->  | M43: =(Beslutningstræ!HI101) ->  | N43: =(Beslutningstræ!HJ101) ->  | O43: =(Beslutningstræ!HK101) ->  | P43: =(Beslutningstræ!HK101) -> 
A44: Frank Oudshoorn
A45: Casper Laursen | F45: =IF(Beslutningstræ!HA63="xx","",Beslutningstræ!HA63) ->  | G45: =IF(Beslutningstræ!HB63="xx","",Beslutningstræ!HB63) ->  | H45: =IF(Beslutningstræ!HC63="xx","",Beslutningstræ!HC63) ->  | I45: =IF(Beslutningstræ!HD63="xx","",Beslutningstræ!HD63) ->  | J45: =IF(Beslutningstræ!HE63="xx","",Beslutningstræ!HE63) ->  | K45: =IF(Beslutningstræ!HF63="xx","",Beslutningstræ!HF63) ->  | L45: =IF(Beslutningstræ!HG63="xx","",Beslutningstræ!HG63) ->  | M45: =IF(Beslutningstræ!HH63="xx","",Beslutningstræ!HH63) ->  | N45: =IF(Beslutningstræ!HI63="xx","",Beslutningstræ!HI63) ->  | O45: =IF(Beslutningstræ!HJ63="xx","",Beslutningstræ!HJ63) ->  | P45: =IF(Beslutningstræ!HK63="xx","",Beslutningstræ!HK63) -> 
A46: Hans S. Østergaard | F46: =IF(Beslutningstræ!HA64="xx","",Beslutningstræ!HA64) ->  | G46: =IF(Beslutningstræ!HB64="xx","",Beslutningstræ!HB64) ->  | H46: =IF(Beslutningstræ!HC64="xx","",Beslutningstræ!HC64) ->  | I46: =IF(Beslutningstræ!HD64="xx","",Beslutningstræ!HD64) ->  | J46: =IF(Beslutningstræ!HE64="xx","",Beslutningstræ!HE64) ->  | K46: =IF(Beslutningstræ!HF64="xx","",Beslutningstræ!HF64) ->  | L46: =IF(Beslutningstræ!HG64="xx","",Beslutningstræ!HG64) ->  | M46: =IF(Beslutningstræ!HH64="xx","",Beslutningstræ!HH64) ->  | N46: =IF(Beslutningstræ!HI64="xx","",Beslutningstræ!HI64) ->  | O46: =IF(Beslutningstræ!HJ64="xx","",Beslutningstræ!HJ64) ->  | P46: =IF(Beslutningstræ!HK64="xx","",Beslutningstræ!HK64) -> 
A47: Erik Maegaard | F47: =IF(Beslutningstræ!HA65="xx","",Beslutningstræ!HA65) ->  | G47: =IF(Beslutningstræ!HB65="xx","",Beslutningstræ!HB65) ->  | H47: =IF(Beslutningstræ!HC65="xx","",Beslutningstræ!HC65) ->  | I47: =IF(Beslutningstræ!HD65="xx","",Beslutningstræ!HD65) ->  | J47: =IF(Beslutningstræ!HE65="xx","",Beslutningstræ!HE65) ->  | K47: =IF(Beslutningstræ!HF65="xx","",Beslutningstræ!HF65) ->  | L47: =IF(Beslutningstræ!HG65="xx","",Beslutningstræ!HG65) ->  | M47: =IF(Beslutningstræ!HH65="xx","",Beslutningstræ!HH65) ->  | N47: =IF(Beslutningstræ!HI65="xx","",Beslutningstræ!HI65) ->  | O47: =IF(Beslutningstræ!HJ65="xx","",Beslutningstræ!HJ65) ->  | P47: =IF(Beslutningstræ!HK65="xx","",Beslutningstræ!HK65) -> 
F48: =IF(Beslutningstræ!HA66="xx","",Beslutningstræ!HA66) ->  | G48: =IF(Beslutningstræ!HB66="xx","",Beslutningstræ!HB66) ->  | H48: =IF(Beslutningstræ!HC66="xx","",Beslutningstræ!HC66) ->  | I48: =IF(Beslutningstræ!HD66="xx","",Beslutningstræ!HD66) ->  | J48: =IF(Beslutningstræ!HE66="xx","",Beslutningstræ!HE66) ->  | K48: =IF(Beslutningstræ!HF66="xx","",Beslutningstræ!HF66) ->  | L48: =IF(Beslutningstræ!HG66="xx","",Beslutningstræ!HG66) ->  | M48: =IF(Beslutningstræ!HH66="xx","",Beslutningstræ!HH66) ->  | N48: =IF(Beslutningstræ!HI66="xx","",Beslutningstræ!HI66) ->  | O48: =IF(Beslutningstræ!HJ66="xx","",Beslutningstræ!HJ66) ->  | P48: =IF(Beslutningstræ!HK66="xx","",Beslutningstræ!HK66) -> 
A49: Udviklingen af dette værktøj er støttet af: | F49: =IF(Beslutningstræ!HA67="xx","",Beslutningstræ!HA67) ->  | G49: =IF(Beslutningstræ!HB67="xx","",Beslutningstræ!HB67) ->  | H49: =IF(Beslutningstræ!HC67="xx","",Beslutningstræ!HC67) ->  | I49: =IF(Beslutningstræ!HD67="xx","",Beslutningstræ!HD67) ->  | J49: =IF(Beslutningstræ!HE67="xx","",Beslutningstræ!HE67) ->  | K49: =IF(Beslutningstræ!HF67="xx","",Beslutningstræ!HF67) ->  | L49: =IF(Beslutningstræ!HG67="xx","",Beslutningstræ!HG67) ->  | M49: =IF(Beslutningstræ!HH67="xx","",Beslutningstræ!HH67) ->  | N49: =IF(Beslutningstræ!HI67="xx","",Beslutningstræ!HI67) ->  | O49: =IF(Beslutningstræ!HJ67="xx","",Beslutningstræ!HJ67) ->  | P49: =IF(Beslutningstræ!HK67="xx","",Beslutningstræ!HK67) -> 
F50: =IF(Beslutningstræ!HA68="xx","",Beslutningstræ!HA68) ->  | G50: =IF(Beslutningstræ!HB68="xx","",Beslutningstræ!HB68) ->  | H50: =IF(Beslutningstræ!HC68="xx","",Beslutningstræ!HC68) ->  | I50: =IF(Beslutningstræ!HD68="xx","",Beslutningstræ!HD68) ->  | J50: =IF(Beslutningstræ!HE68="xx","",Beslutningstræ!HE68) ->  | K50: =IF(Beslutningstræ!HF68="xx","",Beslutningstræ!HF68) ->  | L50: =IF(Beslutningstræ!HG68="xx","",Beslutningstræ!HG68) ->  | M50: =IF(Beslutningstræ!HH68="xx","",Beslutningstræ!HH68) ->  | N50: =IF(Beslutningstræ!HI68="xx","",Beslutningstræ!HI68) ->  | O50: =IF(Beslutningstræ!HJ68="xx","",Beslutningstræ!HJ68) ->  | P50: =IF(Beslutningstræ!HK68="xx","",Beslutningstræ!HK68) -> 
F51: =IF(Beslutningstræ!HA69="xx","",Beslutningstræ!HA69) ->  | G51: =IF(Beslutningstræ!HB69="xx","",Beslutningstræ!HB69) ->  | H51: =IF(Beslutningstræ!HC69="xx","",Beslutningstræ!HC69) ->  | I51: =IF(Beslutningstræ!HD69="xx","",Beslutningstræ!HD69) ->  | J51: =IF(Beslutningstræ!HE69="xx","",Beslutningstræ!HE69) ->  | K51: =IF(Beslutningstræ!HF69="xx","",Beslutningstræ!HF69) ->  | L51: =IF(Beslutningstræ!HG69="xx","",Beslutningstræ!HG69) ->  | M51: =IF(Beslutningstræ!HH69="xx","",Beslutningstræ!HH69) ->  | N51: =IF(Beslutningstræ!HI69="xx","",Beslutningstræ!HI69) ->  | O51: =IF(Beslutningstræ!HJ69="xx","",Beslutningstræ!HJ69) ->  | P51: =IF(Beslutningstræ!HK69="xx","",Beslutningstræ!HK69) -> 

Sheet Navne på afgrøder
A1: Såning sommer eller efter høst | B1: Såning med primærafgrøde
A2: Alm. rajgræs, dipl. | B2: Alm. rajgræs, dipl. Udlæg
A3: Blanding uden bælgsæd overvintrene | B3: Blanding uden bælgsæd overvintrene
A4: Vårbyg /Vikke /Gul Sennep | B4: Vårbyg /Vikke /Gul Sennep
A5: Rajgræs /cikorie /hvidkløver | B5: Rajgræs /cikorie /hvidkløver
A6: Rødkløver | B6: Rødkløver
A7: Vinterrug/fodervikke/olieræddike | B7: Vinterrug/fodervikke/olieræddike
A8: Triticale/Gul Sennep | B8: Triticale/Gul Sennep
A9: Frøgræs, udtjent | B9: Frøgræs, udtjent
A10: Gul sennep | B10: Gul sennep
A11: Olieræddike | B11: Olieræddike
A12: Blanding med bælsæd udvintrene | B12: Blanding med bælsæd udvintrene
A13: Vinterraps , linie | B13: Vinterraps , linie
A14: Foderradise (Strukturator) | B14: Foderradise (Strukturator)
A15: Havre | B15: Havre
A16: Boghvede | B16: Boghvede
A17: Vinterrybs | B17: Vinterrybs
A18: Gul Lupin | B18: Gul Lupin
A19: Vårbyg | B19: Vårbyg
A20: vårbyg/fodervikke | B20: vårbyg/fodervikke
A21: Vinterrug | B21: Vinterrug
A22: Olierædikke/gul sennep | B22: Olierædikke/gul sennep
A23: Blanding med bælsæd overvintrene | B23: Blanding med bælsæd overvintrene
A24: Blanding uden bælgsæd udvintrene | B24: Blanding uden bælgsæd udvintrene
A25: Cikorie | B25: Cikorie
A26: Honningurt | B26: Honningurt
A27: Fodervikke | B27: Fodervikke
A28: Vintervikke | B28: Vintervikke
A29: Alexandrinekløver | B29: Alexandrinekløver
A30: Hvidkløver | B30: Hvidkløver
A31: Olieræddike og vintervikke | B31: Olieræddike og vintervikke
A32: Hvidkløver/alm. rajgræs | B32: Hvidkløver/alm. Rajgræs Udlæg
A33: Rødkløver/strandsvingel | B33: Rødkløver/strandsvingel
A34: Vintervikke/vinterrug | B34: Vintervikke/vinterrug
A35: Kløvergræs (blanding) | B35: Kløvergræs (blanding) Udlæg

Sheet Beslutningstræ (hidden)
GW2: Afgrøde | GY2: Rækkefølgevægtning | GZ2: 10
GQ3: 1= no ties | GT3: 5 | GW3: Tidspunkt | GY3: Vægt af udsåningstidspunkt | GZ3: 3
C4: 1. Vintersæd | D4: 1. Tidligt udlæg | GN4: nr. | GO4: defa | GP4: sys | GQ4: Check for ties | GR4: Break ties | GS4: plads | GT4: vægt
C5: 2. Vårsæd | D5: 2. Før høst | GM5: Pris | GN5: 1 | GO5: 21 | GP5: =GZ5+GO5/10 -> 2.1 | GQ5: =COUNTIF(GP$5:GP$26,GP5) -> 1 | GR5: =IF(GQ5>1,GP5+GO5/1000,GP5) -> 2.1 | GS5: =_xlfn.RANK.EQ(GR5,$GR$5:$GR$37,0) -> 5 | GT5: =GP5^$GT$3 -> 40.84101 | GW5: Pris | GX5: ='Efterafgrøde beslutningsstøtte'!B24 -> Ikke vigtigt | GY5: =VLOOKUP(GX5,Standard_karakterer,2,FALSE) -> 0 | GZ5: =GY5 -> 0
C6: 3. Majs | D6: 3. Efter høst | AY6: Middelværdier | DR6: Midelværdi kvadrat | GM6: Pligtig efterafgrøde | GN6: 2 | GO6: 12 | GP6: 1.2 | GQ6: =COUNTIF(GP$5:GP$26,GP6) -> 1 | GR6: =IF(GQ6>1,GP6+GO6/1000,GP6) -> 1.2 | GS6: =IF(_xlfn.RANK.EQ(GR6,$GR$5:$GR$37,0)>GS$5,(_xlfn.RANK.EQ(GR6,$GR$5:$GR$37,0)+1),(_xlfn.RANK.EQ(GR6,$GR$5:$GR$37,0))) -> 13 | GT6: =GP6^$GT$3 -> 2.48832 | GW6: Pligtig efterafgrøde | GX6: =IF('Efterafgrøde beslutningsstøtte'!A$7=GW6,"Ja","Nej") -> Ja | GY6: =IF(GX6="Ja",0,0) -> 0 | GZ6: =GY6 -> 0
C7: 2. Vårsæd | AY7: =AVERAGE(AY41:AY74) -> -983.6176471 | AZ7: =AVERAGE(AZ41:AZ74) -> 1 | BA7: 0.1176470588 | BB7: 0.5882352941 | BC7: 0.2941176471 | BD7: 1 | BE7: 1 | BF7: 1 | BG7: 0 | BH7: 0.7647058824 | BI7: 1.058823529 | BJ7: 2.588235294 | BK7: 0.3529411765 | BL7: 1.941176471 | BM7: 1.294117647 | BN7: 2.058823529 | BO7: 2.470588235 | BP7: 0.3529411765 | BQ7: =AVERAGE(BQ41:BQ74) -> 1.588235294 | BR7: =AVERAGE(BQ41:BQ74) -> 1.588235294 | BS7: =AVERAGE(BR41:BR74) -> 0.2941176471 | BT7: =AVERAGE(BS41:BS74) -> 18.11764706 | DR7: =AVERAGE(DR41:DR74) -> 1283299.603 | DS7: =AVERAGE(DS41:DS74) -> 1 | DT7: =AVERAGE(DT41:DT74) -> 0.1176470588 | DU7: 0.5882352941 | DV7: 0.2941176471 | DW7: 1 | DX7: 1 | DY7: 1 | DZ7: 0 | EA7: 2.176470588 | EB7: 2.470588235 | EC7: 7.176470588 | ED7: 0.3529411765 | EE7: 4.411764706 | EF7: 3.294117647 | EG7: 5.705882353 | EH7: 7.058823529 | EI7: 1.058823529 | EJ7: =AVERAGE(#REF!) ->  | EK7: =AVERAGE(EJ41:EJ74) -> 4.411764706 | EL7: =AVERAGE(EK41:EK74) -> 0.8235294118 | EM7: =AVERAGE(EL41:EL74) -> 440.2352941 | GM7: Pligtig mellemafgrøde | GN7: 3 | GO7: 11 | GP7: 1.1 | GQ7: 1 | GR7: 1.1 | GS7: =IF(_xlfn.RANK.EQ(GR7,$GR$5:$GR$37,0)>GS$5,(_xlfn.RANK.EQ(GR7,$GR$5:$GR$37,0)+1),(_xlfn.RANK.EQ(GR7,$GR$5:$GR$37,0))) -> 14 | GT7: =GP7^$GT$3 -> 1.61051 | GW7: Pligtig mellemafgrøde | GX7: =IF('Efterafgrøde beslutningsstøtte'!A$7=GW7,"Ja","Nej") -> Nej | GY7: =IF(GX7="Ja",0,0) -> 0 | GZ7: 0
DR8: =IF(((DR7-AY7^2)^0.5)=0,10^-9,(DR7-AY7^2)^0.5) -> 561.9572291 | DS8: 1e-09 | DT8: 0.3221897397 | DU8: 0.4921529568 | DV8: 0.4556450996 | DW8: 1e-09 | DX8: 1e-09 | DY8: 1e-09 | DZ8: 1e-09 | EA8: 1.261624152 | EB8: 1.161671627 | EC8: 0.6910200073 | ED8: 0.477884612 | EE8: 0.8022459822 | EF8: 1.272547509 | EG8: 1.211250605 | EH8: 0.9772498662 | EI8: 0.9665692191 | EK8: 1.374508405 | EL8: 0.8585011482 | EM8: 10.58235131 | GM8: MFO-efterafgrøde i blanding2) | GN8: 4 | GO8: 10 | GP8: 1 | GQ8: 1 | GR8: 1 | GS8: 15 | GT8: 1 | GW8: MFO-efterafgrøde i blanding2) | GX8: =IF(OR('Efterafgrøde beslutningsstøtte'!A$7="Kun MFO afgrøde",'Efterafgrøde beslutningsstøtte'!A$7="Pligtig efterafgrøde og MFO afgrøde"),"Ja","Nej") -> Nej | GY8: 0 | GZ8: 0
DR9: Standard afvigelse | GM9: MFO-udlæg | GN9: 5 | GO9: 9 | GP9: 0.9 | GQ9: 1 | GR9: 0.9 | GS9: 16 | GT9: 0.59049 | GW9: MFO-udlæg3) | GX9: =IF(OR('Efterafgrøde beslutningsstøtte'!A$7="Kun MFO afgrøde",'Efterafgrøde beslutningsstøtte'!A$7="Pligtig efterafgrøde og MFO afgrøde"),"Ja","Nej") -> Nej | GY9: 0 | GZ9: 0
GM10: Miljø-efterafgrøder | GN10: 6 | GO10: 8 | GP10: 0.8 | GQ10: 1 | GR10: 0.8 | GS10: 17 | GT10: 0.32768 | GW10: Miljø-efterafgrøder | GX10: =IF('Efterafgrøde beslutningsstøtte'!A$7=GW10,"Ja","Nej") -> Nej | GY10: 0 | GZ10: 0
FA11: vgt | FB11: =TRANSPOSE(GT5:GT37) -> 40.84101 | FC11: 2.48832 | FD11: 1.61051 | FE11: 1 | FF11: 0.59049 | FG11: 0.32768 | FH11: 0.16807 | FI11: 0.07776 | FJ11: 0.03125 | FK11: 0.01024 | FL11: 0.00243 | FM11: 400746.4243 | FN11: 454.35424 | FO11: 391.35393 | FP11: 7.59375 | FQ11: 32 | FR11: 24.76099 | FS11: 18.89568 | FT11: 14.19857 | FU11: 10.48576 | FV11: 1e-05 | FW11: 0 | FX11: 0 | FY11: 391298735.4 | FZ11: 0 | GA11: 0 | GB11: 0 | GC11: 0 | GD11: 0 | GE11: 0 | GF11: 0 | GG11: 0 | GH11: 0 | GM11: Frivillig efterafgrøde | GN11: 7 | GO11: 7 | GP11: 0.7 | GQ11: 1 | GR11: 0.7 | GS11: 18 | GT11: 0.16807 | GW11: Frivillig efterafgrøde | GX11: =IF('Efterafgrøde beslutningsstøtte'!A$7=GW11,"Ja","Nej") -> Nej | GY11: 0 | GZ11: 0 | HA11: 1 | HB11: 2 | HC11: 3 | HD11: 4 | HE11: 5 | HF11: 6 | HG11: 7 | HH11: 8 | HI11: 9 | HJ11: 10 | HK11: 11 | HL11: 12 | HM11: 13 | HN11: 14 | HO11: 15 | HP11: 16 | HQ11: 17 | HR11: 18 | HS11: 19 | HT11: 20 | HU11: 21 | HV11: 22 | HW11: 23 | HX11: 24 | HY11: 25 | HZ11: 26 | IA11: 27 | IB11: 28 | IC11: 29 | ID11: 30 | IE11: 31 | IF11: 32 | IG11: 33
GM12: Grønne marker (2,3 DE-brug) | GN12: 8 | GO12: 6 | GP12: 0.6 | GQ12: 1 | GR12: 0.6 | GS12: 19 | GT12: 0.07776 | GW12: Grønne marker (2,3 DE-brug) | GX12: =IF('Efterafgrøde beslutningsstøtte'!A$7=GW12,"Ja","Nej") -> Nej | GY12: 0 | GZ12: 0 | HA12: =MATCH(HA$11,$GS$5:$GS$37,0) -> 24 | HB12: =MATCH(HB$11,$GS$5:$GS$37,0) -> 12 | HC12: =MATCH(HC$11,$GS$5:$GS$37,0) -> 13 | HD12: =MATCH(HD$11,$GS$5:$GS$37,0) -> 14 | HE12: =MATCH(HE$11,$GS$5:$GS$37,0) -> 1 | HF12: =MATCH(HF$11,$GS$5:$GS$37,0) -> 33 | HG12: =MATCH(HG$11,$GS$5:$GS$37,0) -> 16 | HH12: =MATCH(HH$11,$GS$5:$GS$37,0) -> 17 | HI12: 18 | HJ12: 19 | HK12: =MATCH(HK$11,$GS$5:$GS$37,0) -> 20 | HL12: =MATCH(HL$11,$GS$5:$GS$37,0) -> 15 | HM12: 2 | HN12: 3 | HO12: 4 | HP12: 5 | HQ12: 6 | HR12: 7 | HS12: 8 | HT12: 9 | HU12: 10 | HV12: 11 | HW12: =MATCH(HW$11,$GS$5:$GS$37,0) -> 21
B13: Udfyldes af Hans! | GM13: Egnet til udlæg efterår i vinterkorn | GN13: 9 | GO13: 5 | GP13: =IF(GX13="Ja",GZ$2+GZ13+GO13/10,GZ13+GO13/10) -> 0.5 | GQ13: 1 | GR13: =IF(GQ13>1,GP13+GO13/1000,GP13) -> 0.5 | GS13: 20 | GT13: 0.03125 | GW13: Egnet til udlæg efterår i vinterkorn | GX13: =IF(Karaktermatrice!C22=1,"Ja","Nej") -> Nej | GY13: =IF(GX13="Ja",GZ$3,0) -> 0 | GZ13: 0
GM14: Egnet til udlæg forår | GN14: 10 | GO14: 4 | GP14: =IF(GX14="Ja",GZ$2+GZ14+GO14/10,GZ14+GO14/10) -> 0.4 | GQ14: 1 | GR14: 0.4 | GS14: 21 | GT14: 0.01024 | GW14: Egnet til udlæg forår | GX14: =IF(Karaktermatrice!C23=1,"Ja","Nej") -> Nej | GY14: =IF(GX14="Ja",GZ$3,0) -> 0 | GZ14: =GY14 -> 0
GM15: Egnet til udsåning ved sidste radrensning | GN15: 11 | GO15: 3 | GP15: =IF(GX15="Ja",GZ$2+GZ15+GO15/10,GZ15+GO15/10) -> 0.3 | GQ15: 1 | GR15: 0.3 | GS15: 22 | GT15: 0.00243 | GW15: Egnet til udsåning ved sidste radrensning | GX15: =IF(Karaktermatrice!C24=1,"Ja","Nej") -> Nej | GY15: =IF(GX15="Ja",GZ$3,0) -> 0 | GZ15: 0
GM16: Egnet til udsåning efter tidlig høst (10. august) | GN16: 12 | GO16: 2 | GP16: =IF(GX16="Ja",GZ$2+GZ16+GO16/10,GZ16+GO16/10) -> 13.2 | GQ16: 1 | GR16: 13.2 | GS16: 2 | GT16: 400746.4243 | GW16: Egnet til udsåning efter tidlig høst (10. august) | GX16: =IF(Karaktermatrice!C25=1,"Ja","Nej") -> Ja | GY16: =IF(GX16="Ja",GZ$3,0) -> 3 | GZ16: 3
GM17: Kvælstoffikserende | GN17: 13 | GO17: 14 | GP17: =GZ17+GO17/10 -> 3.4 | GQ17: 1 | GR17: 3.4 | GS17: 3 | GT17: 454.35424 | GW17: Kvælstoffikserende | GX17: ='Efterafgrøde beslutningsstøtte'!B37 -> Vigtigt | GY17: =VLOOKUP(GX17,Standard_karakterer,2,FALSE) -> 2 | GZ17: 2
GM18: Stor kvælstof-eftervirkning | GN18: 14 | GO18: 13 | GP18: 3.3 | GQ18: 1 | GR18: 3.3 | GS18: 4 | GT18: 391.35393 | GW18: Stor kvælstof-eftervirkning | GX18: ='Efterafgrøde beslutningsstøtte'!B38 -> Vigtigt | GY18: 2 | GZ18: 2
GM19: Hurtig og dyb rodvækst på lerjord | GN19: 15 | GO19: 15 | GP19: 1.5 | GQ19: 1 | GR19: 1.5 | GS19: 12 | GT19: 7.59375 | GW19: Hurtig og dyb rodvækst på lerjord | GX19: ='Efterafgrøde beslutningsstøtte'!B34 -> Ikke vigtigt | GY19: 0 | GZ19: 0
GM20: Er afgrøden robust mod ukrudtsmidler? | GN20: 16 | GO20: 20 | GP20: 2 | GQ20: 1 | GR20: 2 | GS20: 7 | GT20: 32 | GW20: Er afgrøden robust mod ukrudtsmidler? | GX20: ='Efterafgrøde beslutningsstøtte'!B27 -> Ikke vigtigt | GY20: =VLOOKUP(GX20,Standard_karakterer,2,FALSE) -> 0 | GZ20: 0
GM21: Der findes sorter, der ikke opformerer kålbrok | GN21: 17 | GO21: 19 | GP21: 1.9 | GQ21: 1 | GR21: 1.9 | GS21: 8 | GT21: 24.76099 | GW21: Der findes sorter, der ikke opformerer kålbrok | GX21: ='Efterafgrøde beslutningsstøtte'!B28 -> Ikke vigtigt | GY21: =VLOOKUP(GX21,Kålbrok_karaktere,2,FALSE) -> 0 | GZ21: 0
GM22: Der findes sorter, der er sanerende for roecystenematoder | GN22: 18 | GO22: 18 | GP22: 1.8 | GQ22: =COUNTIF(GP$5:GP$26,GP22) -> 1 | GR22: =IF(GQ22>1,GP22+GO22/1000,GP22) -> 1.8 | GS22: 9 | GT22: 18.89568 | GW22: Der findes sorter, der er sanerende for roecystenematoder | GX22: ='Efterafgrøde beslutningsstøtte'!B29 -> Ikke vigtigt | GY22: 0 | GZ22: 0
GM23: Vinterfast | GN23: 19 | GO23: 17 | GP23: 1.7 | GQ23: 1 | GR23: =IF(GQ23>1,GP23+GO23/1000,GP23) -> 1.7 | GS23: 10 | GT23: 14.19857 | GW23: Tom plads | GX23: ='Efterafgrøde beslutningsstøtte'!B32 -> Ikke vigtigt | GY23: =VLOOKUP(GX23,Standard_karakterer,2,FALSE) -> 0 | GZ23: =GY23 -> 0
GM24: Egen udsæd kan anvendes | GN24: 20 | GO24: 16 | GP24: 1.6 | GQ24: 1 | GR24: =IF(GQ24>1,GP24+GO24/1000,GP24) -> 1.6 | GS24: 11 | GT24: =GP24^$GT$3 -> 10.48576 | GW24: Vinterfast | GX24: ='Efterafgrøde beslutningsstøtte'!B33 -> Ikke vigtigt | GY24: =VLOOKUP(GX24,Udsædskarakterer,2,FALSE) -> 0 | GZ24: =GY24 -> 0
GM25: Tiebreak | GN25: 21 | GO25: 1 | GP25: 0.1 | GQ25: 1 | GR25: =IF(GQ25>1,GP25+GO25/1000,GP25) -> 0.1 | GS25: 23 | GT25: 1e-05 | GW25: Egen udsæd kan anvendes4) | GX25: Hovdespørgsmål | GY25: 0 | GZ25: =GY25 -> 0
GM26: Kommentare ang. Ukrudt | GN26: 22 | GW26: Tiebreak | GX26: Hovdespørgsmål | GY26: 0 | GZ26: =GY26 -> 0
GN27: 23 | GX27: Hovdespørgsmål | GY27: 0 | GZ27: 0
GM28: Seneste såtidspunkt | GN28: 24 | GO28: 23 | GP28: =GZ28+GO28/10 -> 52.3 | GQ28: =COUNTIF(GP$5:GP$26,GP28) -> 0 | GR28: =IF(GQ28>1,GP28+GO28/1000,GP28) -> 52.3 | GS28: =IF(_xlfn.RANK.EQ(GR28,$GR$5:$GR$37,0)>GS$5,(_xlfn.RANK.EQ(GR28,$GR$5:$GR$37,0)+1),(_xlfn.RANK.EQ(GR28,$GR$5:$GR$37,0))) -> 1 | GT28: =GP28^$GT$3 -> 391298735.4 | GW28: Seneste såtidspunkt | GX28: Oplysning | GY28: 50 | GZ28: 50
GN29: 25 | GX29: Hovdespørgsmål | GY29: 0 | GZ29: 0
GN30: 26 | GX30: Hovdespørgsmål | GY30: 0 | GZ30: 0
GN31: 27 | GX31: Hovdespørgsmål | GY31: 0 | GZ31: 0
F32: 8 | G32: 9 | H32: 10 | I32: 11 | J32: 12 | K32: 13 | L32: 14 | M32: 15 | N32: 16 | O32: 17 | P32: 18 | Q32: 19 | R32: 20 | S32: 21 | T32: 22 | U32: 23 | V32: 24 | W32: 25 | Y32: 27 | Z32: 28 | AA32: 29 | AB32: 30 | AC32: 31 | AD32: 7 | AK32: 35 | GN32: 28 | GX32: Hovdespørgsmål | GY32: 0 | GZ32: 0
F33: Pris | G33: Pligtig efterafgrøde | H33: Pligtig mellemafgrøde | I33: MFO-efterafgrøde i blanding2) | J33: MFO-udlæg3) | K33: Miljø-efterafgrøder | L33: Frivillig efterafgrøde | M33: Grønne marker (2,3 DE-brug) | N33: Egnet til udlæg efterår i vinterkorn | O33: Egnet til udlæg forår | P33: Egnet til udsåning 2-3 uger før høst | Q33: Egnet til udsåning efter tidlig høst (10. august) | R33: Kvælstoffikserende | S33: Stor kvælstof-eftervirkning | T33: Hurtig og dyb rodvækst på lerjord | U33: Er afgrøden robust mod ukrudtsmidler? | V33: Der findes sorter, der ikke opformerer kålbrok | W33: Der findes sorter, der er sanerende for roecystenematoder | Y33: Vinterfast | Z33: Egen udsæd kan anvendes4) | AA33: Tiebreak | AB33: Kommentare ang. ukrudt | AC33: Nettoomkostninger | AD33: Seneste såtidspunkt Pligtige efterafgrøder og MFO | AK33: Nettoomkostninger | GN33: 29 | GX33: Hovdespørgsmål | GY33: 0 | GZ33: 0
F34: =F33=F40 -> FALSE | G34: TRUE | H34: TRUE | I34: TRUE | J34: =J33=J40 -> FALSE | K34: TRUE | L34: TRUE | M34: TRUE | N34: TRUE | O34: TRUE | P34: FALSE | Q34: TRUE | R34: TRUE | S34: TRUE | T34: TRUE | U34: TRUE | V34: FALSE | W34: TRUE | Y34: =Y33=Y40 -> TRUE | Z34: FALSE | AA34: =AA33=AA40 -> TRUE | AB34: =AB33=AB40 -> FALSE | AC34: =AC33=AC40 -> FALSE | AD34: FALSE | AK34: =AK33=AK40 -> FALSE | GN34: 30 | GX34: Hovdespørgsmål | GY34: 0 | GZ34: 0
GN35: 31 | GX35: Hovdespørgsmål | GY35: 0 | GZ35: 0
FC36: Pil kriterie afgrøder ud | GN36: 32 | GX36: Hovdespørgsmål | GY36: 0 | GZ36: 0
AB37: Plads til fremtidige karaktere | FC37: Lav en måde at breake ties | GN37: 33 | GO37: Etableringsomkostninger (ikke prioriteret efter) | GS37: =GS5+1 -> 6 | GX37: Hovdespørgsmål | GY37: 0 | GZ37: 0
F38: 8 | G38: 9 | H38: 10 | I38: 11 | J38: 12 | K38: 13 | L38: 14 | M38: 15 | N38: 16 | O38: 17 | P38: 18 | Q38: 19 | R38: 20 | S38: 21 | T38: 22 | U38: 23 | V38: 24 | W38: 25 | X38: 26 | Y38: 27 | Z38: 28 | AA38: 29 | AB38: 30 | AC38: 31 | AD38: 7 | AL38: 31 | DR38: Kvadrat
F39: 1 | G39: 2 | H39: 3 | I39: 4 | J39: 5 | K39: 6 | L39: 7 | M39: 8 | N39: 9 | O39: 10 | P39: 11 | Q39: 12 | R39: 13 | S39: 14 | T39: 15 | U39: 16 | V39: 17 | W39: 18 | X39: 19 | Y39: 20 | Z39: 21 | AA39: 22 | AB39: 23 | AC39: 24 | AD39: 25 | AE39: 26 | AF39: 27 | AG39: 28 | AH39: 29 | AI39: 30 | AJ39: 31 | AK39: 32 | AL39: 33 | AM39: 34 | AN39: 35 | AO39: 36 | AP39: 37 | AQ39: 38 | AR39: 39 | AS39: 40 | AY39: 1 | AZ39: 2 | BA39: 3 | BB39: 4 | BC39: 5 | BD39: 6 | BE39: 7 | BF39: 8 | BG39: 9 | BH39: 10 | BI39: 11 | BJ39: 12 | BK39: 13 | BL39: 14 | BM39: 15 | BN39: 16 | BO39: 17 | BP39: 18 | BQ39: 19 | BR39: 20 | BS39: 21 | BT39: 22 | BU39: 23 | BV39: 24 | BW39: 25 | BX39: 26 | BY39: 27 | BZ39: 28 | CA39: 29 | CB39: 30 | CC39: 31 | CD39: 32 | CE39: 33 | CH39: =AY39 -> 1 | CI39: =AZ39 -> 2 | CJ39: 3 | CK39: 4 | CL39: 5 | CM39: 6 | CN39: 7 | CO39: 8 | CP39: 9 | CQ39: 10 | CR39: 11 | CS39: 12 | CT39: 13 | CU39: 14 | CV39: 15 | CW39: 16 | CX39: 17 | CY39: 18 | CZ39: 19 | DA39: 20 | DB39: 21 | DC39: 22 | DD39: 23 | DE39: 24 | DF39: 25 | DG39: 26 | DH39: 27 | DI39: 28 | DJ39: 29 | DK39: =CB39 -> 30 | DL39: =CC39 -> 31 | DM39: =CD39 -> 32 | DN39: =CE39 -> 33 | DR39: 1 | DS39: 2 | DT39: 3 | DU39: 4 | DV39: 5 | DW39: 6 | DX39: 7 | DY39: 8 | DZ39: 9 | EA39: 10 | EB39: 11 | EC39: 12 | ED39: 13 | EE39: 14 | EF39: 15 | EG39: 16 | EH39: 17 | EI39: 18 | EJ39: 19 | EK39: 20 | EL39: 21 | EM39: 22 | EN39: 23 | EO39: 24 | EP39: 25 | EQ39: 26 | ER39: 27 | ES39: 28 | ET39: 29 | EU39: 30 | EV39: 31 | EW39: 32 | EX39: 33 | FB39: 1 | FC39: 2 | FD39: 3 | FE39: 4 | FF39: 5 | FG39: 6 | FH39: 7 | FI39: 8 | FJ39: 9 | FK39: 10 | FL39: 11 | FM39: 12 | FN39: 13 | FO39: 14 | FP39: 15 | FQ39: 16 | FR39: 17 | FS39: 18 | FT39: 19 | FU39: 20 | FV39: 21 | FW39: 22 | FX39: 23 | FY39: 24 | FZ39: 25 | GA39: 26 | GB39: 27 | GC39: 28 | GD39: 29 | GE39: 30 | GF39: 31 | GG39: 32 | GH39: 33 | GI39: Scoreberegning | HA39: =INDEX($AY39:$DP39,HA$12) -> 24 | IG39: =INDEX($AY39:$DP39,HB$12) -> 12
A40: Index | B40: Efterafgrøde | C40: Afgrøde | D40: Tidspunkt | E40: Link | F40: Bruttoomkostninger | G40: Pligtig efterafgrøde | H40: Pligtig mellemafgrøde | I40: MFO-efterafgrøde i blanding2) | J40: MFO-udlæg | K40: Miljø-efterafgrøder | L40: Frivillig efterafgrøde | M40: Grønne marker (2,3 DE-brug) | N40: Egnet til udlæg efterår i vinterkorn | O40: Egnet til udlæg forår | P40: Egnet til udsåning ved sidste radrensning | Q40: Egnet til udsåning efter tidlig høst (10. august) | R40: Kvælstoffikserende | S40: Stor kvælstof-eftervirkning | T40: Hurtig og dyb rodvækst på lerjord | U40: Er afgrøden robust mod ukrudtsmidler? | V40: Afgrøden opformere kålbrok | W40: Der findes sorter, der er sanerende for roecystenematoder | X40: Tom plads | Y40: Vinterfast | Z40: Egen udsæd kan anvendes | AA40: Tiebreak | AB40: Kommentare til ukrudt | AD40: Seneste lovlige såtidspunkt | AL40: Nettoomkostninger | AY40: =F40 -> Bruttoomkostninger | AZ40: Pligtig efterafgrøde | BA40: Pligtig mellemafgrøde | BB40: MFO-efterafgrøde i blanding2) | BC40: MFO-udlæg | BD40: Miljø-efterafgrøder | BE40: Frivillig efterafgrøde | BF40: Grønne marker (2,3 DE-brug) | BG40: Egnet til udlæg efterår i vinterkorn | BH40: Egnet til udlæg forår | BI40: Egnet til udsåning ved sidste radrensning | BJ40: Egnet til udsåning efter tidlig høst (10. august) | BK40: Kvælstoffikserende | BL40: Stor kvælstof-eftervirkning | BM40: Hurtig og dyb rodvækst på lerjord | BN40: Er afgrøden robust mod ukrudtsmidler? | BO40: Afgrøden opformere kålbrok | BP40: =W40 -> Der findes sorter, der er sanerende for roecystenematoder | BQ40: =Y40 -> Vinterfast | BR40: =Z40 -> Egen udsæd kan anvendes | BS40: Tiebreak | BT40: Kommentare ang. Ukrudt | BV40: =AD40 -> Seneste lovlige såtidspunkt | CE40: Nettoomkostninger | CH40: =AY40 -> Bruttoomkostninger | CI40: Pligtig efterafgrøde | CJ40: Pligtig mellemafgrøde | CK40: MFO-efterafgrøde i blanding2) | CL40: MFO-udlæg | CM40: Miljø-efterafgrøder | CN40: Frivillig efterafgrøde | CO40: Grønne marker (2,3 DE-brug) | CP40: Egnet til udlæg efterår i vinterkorn | CQ40: Egnet til udlæg forår | CR40: Egnet til udsåning ved sidste radrensning | CS40: Egnet til udsåning efter tidlig høst (10. august) | CT40: Kvælstoffikserende | CU40: Stor kvælstof-eftervirkning | CV40: Hurtig og dyb rodvækst på lerjord | CW40: Er afgrøden robust mod ukrudtsmidler? | CX40: Afgrøden opformere kålbrok | CY40: Der findes sorter, der er sanerende for roecystenematoder | CZ40: Vinterfast | DA40: Egen udsæd kan anvendes | DB40: Tiebreak | DC40: Kommentare ang. Ukrudt | DD40: 0 | DE40: =AD40 -> Seneste lovlige såtidspunkt | DN40: Nettoomkostninger | DR40: =AY40 -> Bruttoomkostninger | DS40: =AZ40 -> Pligtig efterafgrøde | DT40: Pligtig mellemafgrøde | DU40: MFO-efterafgrøde i blanding2) | DV40: MFO-udlæg | DW40: Miljø-efterafgrøder | DX40: Frivillig efterafgrøde | DY40: Grønne marker (2,3 DE-brug) | DZ40: Egnet til udlæg efterår i vinterkorn | EA40: Egnet til udlæg forår | EB40: Egnet til udsåning ved sidste radrensning | EC40: Egnet til udsåning efter tidlig høst (10. august) | ED40: Kvælstoffikserende | EE40: Stor kvælstof-eftervirkning | EF40: Hurtig og dyb rodvækst på lerjord | EG40: Er afgrøden robust mod ukrudtsmidler? | EH40: Afgrøden opformere kålbrok | EI40: Der findes sorter, der er sanerende for roecystenematoder | EJ40: Vinterfast | EK40: Egen udsæd kan anvendes | EL40: =BS40 -> Tiebreak | FB40: =DR40 -> Bruttoomkostninger | FC40: =DS40 -> Pligtig efterafgrøde | FD40: Pligtig mellemafgrøde | FE40: MFO-efterafgrøde i blanding2) | FF40: MFO-udlæg | FG40: Miljø-efterafgrøder | FH40: Frivillig efterafgrøde | FI40: Grønne marker (2,3 DE-brug) | FJ40: Egnet til udlæg efterår i vinterkorn | FK40: Egnet til udlæg forår | FL40: Egnet til udsåning ved sidste radrensning | FM40: Egnet til udsåning efter tidlig høst (10. august) | FN40: Kvælstoffikserende | FO40: Stor kvælstof-eftervirkning | FP40: Hurtig og dyb rodvækst på lerjord | FQ40: Er afgrøden robust mod ukrudtsmidler? | FR40: Afgrøden opformere kålbrok | FS40: Der findes sorter, der er sanerende for roecystenematoder | FT40: =EJ40 -> Vinterfast | FU40: =EK40 -> Egen udsæd kan anvendes | FV40: =EL40 -> Tiebreak | FW40: 0 | FX40: =EN40 -> 0 | FY40: 0 | FZ40: 0 | GA40: 0 | GB40: 0 | GC40: 0 | GD40: 0 | GE40: 0 | GF40: 0 | GG40: 0 | GH40: 0 | GI40: Sumprodukt vægt og Zscore | GJ40: Score | GK40: Tiebreak | GL40: Score corected for ties | GM40: Placering | GS40: Check for ties and all places | GT40: Place | GV40: Plads | GZ40: Efterafgrøde | HA40: =INDEX($AY40:$CE40,HA$12) -> Seneste lovlige såtidspunkt | HB40: Egnet til udsåning efter tidlig høst (10. august) | HC40: Kvælstoffikserende | HD40: Stor kvælstof-eftervirkning | HE40: Bruttoomkostninger | HF40: Nettoomkostninger | HG40: Er afgrøden robust mod ukrudtsmidler? | HH40: =INDEX($AY40:$CE40,HH$12) -> Afgrøden opformere kålbrok | HI40: Der findes sorter, der er sanerende for roecystenematoder | HJ40: Vinterfast | HK40: Egen udsæd kan anvendes | HL40: Hurtig og dyb rodvækst på lerjord | HM40: Pligtig efterafgrøde | HN40: Pligtig mellemafgrøde | HO40: MFO-efterafgrøde i blanding2) | HP40: MFO-udlæg | HQ40: Miljø-efterafgrøder | HR40: Frivillig efterafgrøde | HS40: Grønne marker (2,3 DE-brug) | HT40: Egnet til udlæg efterår i vinterkorn | HU40: Egnet til udlæg forår | HW40: Seneste såtidspunkt | IH40: Vejledning | II40: Kommentare ang ukrudt
A41: 1 | B41: Alm. rajgræs, dipl. | E41: =IF('Efterafgrøde beslutningsstøtte'!A$7<>"Pligtig mellemafgrøde",HYPERLINK("https://dyrk-plant.dlbr.dk/Web/(S(ikevr3oqnx5oe2t5cyfyknyq))/forms/Main.aspx?page=Vejledning&cropID=226","Efterafgrøder"),HYPERLINK("https://dyrk-plant.dlbr.dk/Web/(S(0x3ftyiaahcpttq0ljebuany))/forms/Main.aspx?page=Vejledning&cropID=238","Mellemafgrøder")) -> Efterafgrøder | F41: =VLOOKUP($A41,Karaktermatrice,F$38,FALSE) -> -185 | G41: =VLOOKUP($A41,Karaktermatrice,G$38,FALSE) -> 1 | H41: =VLOOKUP($A41,Karaktermatrice,H$38,FALSE) -> 0 | I41: 1 | J41: 1 | K41: =VLOOKUP($A41,Karaktermatrice,K$38,FALSE) -> 1 | L41: =VLOOKUP($A41,Karaktermatrice,L$38,FALSE) -> 1 | M41: 1 | N41: =VLOOKUP($A41,Karaktermatrice,N$38,FALSE) -> 0 | O41: 3 | P41: =VLOOKUP($A41,Karaktermatrice,P$38,FALSE) -> 3 | Q41: 2 | R41: 0 | S41: 1 | T41: 0 | U41: 2 | V41: 3 | W41: =VLOOKUP($A41,Karaktermatrice,W$38,FALSE) -> 0 | X41: 0 | Y41: 3 | Z41: 0 | AA41: 1 | AB41: 0 | AD41: =VLOOKUP($A41,Karaktermatrice,AD$38,FALSE) -> 1.august | AL41: =VLOOKUP($A41,Karaktermatrice,AL$38,FALSE) -> - | AY41: =F41 -> -185 | AZ41: =G41 -> 1 | BA41: 0 | BB41: 1 | BC41: 1 | BD41: 1 | BE41: 1 | BF41: 1 | BG41: 0 | BH41: 3 | BI41: 3 | BJ41: 2 | BK41: 0 | BL41: 1 | BM41: 0 | BN41: 2 | BO41: 3 | BP41: 0 | BQ41: =Y41 -> 3 | BR41: =Z41 -> 0 | BS41: 1 | BT41: =AB41 -> 0 | BV41: =AD41 -> 1.august | CE41: =AL41 -> - | CH41: =IF(AY41="xx","xx",ROUND(AY41,0)) -> -185 | CI41: =IF(AZ41=0,"Nej",IF(AZ41=1,"Ja","xx")) -> Ja | CJ41: Nej | CK41: Ja | CL41: Ja | CM41: Ja | CN41: Ja | CO41: Ja | CP41: =IF(BG41=0,"Nej",IF(BG41=1,"Brugbar",IF(BG41=2,"God",IF(BG41=3,"Meget god","xx")))) -> Nej | CQ41: =IF(BH41=0,"Nej",IF(BH41=1,"Brugbar",IF(BH41=2,"God",IF(BH41=3,"Meget god","xx")))) -> Meget god | CR41: =IF(BI41=0,"Nej",IF(BI41=1,"Brugbar",IF(BI41=2,"God",IF(BI41=3,"Meget god","xx")))) -> Meget god | CS41: =IF(BJ41=0,"Nej",IF(BJ41=1,"Brugbar",IF(BJ41=2,"God",IF(BJ41=3,"Meget god","xx")))) -> God | CT41: =IF(BK41=0,"Nej",IF(BK41=1,"Ja","xx")) -> Nej | CU41: =IF(BL41=0,"Lille",IF(BL41=1,"Middel",IF(BL41=2,"Over middel",IF(BL41=3,"Stor","xx")))) -> Middel | CV41: =IF(BM41=0,"Nej",IF(BM41=1,"Rimelig",IF(BM41=2,"God",IF(BM41=3,"Meget god","xx")))) -> Nej | CW41: =IF(BN41=0,"Nej",IF(BN41=1,"Mod visse",IF(BN41=2,"Mod mange",IF(BN41=3,"Mod de fleste","xx")))) -> Mod mange | CX41: =IF(BO41=0,"Altid",IF(BO41=1,"I nogen grad",IF(BO41=2,"I mindre grad",IF(BO41=3,"Aldrig","xx")))) -> Aldrig | CY41: =IF(BP41=0,"Nej",IF(BP41=1,"Få",IF(BP41=2,"Nogle",IF(BP41=3,"Mange","xx")))) -> Nej | CZ41: =IF(BQ41=0,"Udvintrer",IF(BQ41=1,"Dårlig",IF(BQ41=2,"God",IF(BQ41=3,"Meget god","xx")))) -> Meget god | DA41: =IF(BR41=0,"Nej",IF(BR41=1,"Ja","xx")) -> Nej | DC41: =BT41 -> 0 | DE41: =BV41 -> 1.august | DN41: =CE41 -> - | DR41: =IF(AY41<>"xx",AY41^2,"xx") -> 34225 | DS41: =IF(AZ41<>"xx",AZ41^2,"xx") -> 1 | DT41: =IF(BA41<>"xx",BA41^2,"xx") -> 0 | DU41: =IF(BB41<>"xx",BB41^2,"xx") -> 1 | DV41: =IF(BC41<>"xx",BC41^2,"xx") -> 1 | DW41: =IF(BD41<>"xx",BD41^2,"xx") -> 1 | DX41: =IF(BE41<>"xx",BE41^2,"xx") -> 1 | DY41: =IF(BF41<>"xx",BF41^2,"xx") -> 1 | DZ41: =IF(BG41<>"xx",BG41^2,"xx") -> 0 | EA41: =IF(BH41<>"xx",BH41^2,"xx") -> 9 | EB41: =IF(BI41<>"xx",BI41^2,"xx") -> 9 | EC41: =IF(BJ41<>"xx",BJ41^2,"xx") -> 4 | ED41: =IF(BK41<>"xx",BK41^2,"xx") -> 0 | EE41: =IF(BL41<>"xx",BL41^2,"xx") -> 1 | EF41: =IF(BM41<>"xx",BM41^2,"xx") -> 0 | EG41: =IF(BN41<>"xx",BN41^2,"xx") -> 4 | EH41: =IF(BO41<>"xx",BO41^2,"xx") -> 9 | EI41: =IF(BP41<>"xx",BP41^2,"xx") -> 0 | EJ41: =IF(BQ41<>"xx",BQ41^2,"xx") -> 9 | EK41: =IF(BQ41<>"xx",BQ41^2,"xx") -> 9 | EL41: =IF(BS41<>"xx",BS41^2,"xx") -> 1 | FB41: =IF(DR41="xx","xx",(AY41-AY$7)/DR$8) -> 1.421135997 | FC41: =IF(DS41="xx","xx",(AZ41-AZ$7)/DS$8) -> 0 | FD41: =IF(DT41="xx","xx",(BA41-BA$7)/DT$8) -> -0.3651483717 | FE41: =IF(DU41="xx","xx",(BB41-BB$7)/DU$8) -> 0.8366600265 | FF41: =IF(DV41="xx","xx",(BC41-BC$7)/DV$8) -> 1.549193338 | FG41: =IF(DW41="xx","xx",(BD41-BD$7)/DW$8) -> 0 | FH41: =IF(DX41="xx","xx",(BE41-BE$7)/DX$8) -> 0 | FI41: =IF(DY41="xx","xx",(BF41-BF$7)/DY$8) -> 0 | FJ41: =IF(DZ41="xx","xx",(BG41-BG$7)/DZ$8) -> 0 | FK41: =IF(EA41="xx","xx",(BH41-BH$7)/EA$8) -> 1.771759136 | FL41: =IF(EB41="xx","xx",(BI41-BI$7)/EB$8) -> 1.671019956 | FM41: =IF(EC41="xx","xx",(BJ41-BJ$7)/EC$8) -> -0.8512565308 | FN41: =IF(ED41="xx","xx",(BK41-BK$7)/ED$8) -> -0.7385489459 | FO41: =IF(EE41="xx","xx",(BL41-BL$7)/EE$8) -> -1.17317692 | FP41: =IF(EF41="xx","xx",(BM41-BM$7)/EF$8) -> -1.01695036 | FQ41: =IF(EG41="xx","xx",(BN41-BN$7)/EG$8) -> -0.04856429312 | FR41: =IF(EH41="xx","xx",(BO41-BO$7)/EH$8) -> 0.5417363389 | FS41: =IF(EI41="xx","xx",(BP41-BP$7)/EI$8) -> -0.3651483717 | FT41: =IF(EJ41="xx","xx",(BQ41-BR$7)/EK$8) -> 1.027105182 | FU41: =IF(EK41="xx","xx",(BQ41-BS$7)/EL$8) -> 3.151868065 | FV41: =IF(EL41="xx","xx",(BS41-BT$7)/EM$8) -> -1.617565564 | GI41: =SUMPRODUCT($FB$11:$FV$11,FB41:FV41) -> -341828.6041 | GJ41: =IF(FB41="xx","xx",GI41) -> -341828.6041 | GK41: =IF(GJ41="xx","xx",IF(COUNTIF($GJ$41:$GJ$74,GJ41)>1,RANK(AL41,AL$41:AL$70,1)/1000,0)) -> 0 | GL41: =IF(OR(GJ41="xx",GK41="xx"),"xx",GK41+GJ41) -> -341828.6041 | GM41: =IF(GL41="xx",99,RANK(GL41,$GL$41:$GL$112)) -> 15 | GS41: =COUNTIF($GM$41:$GM$112,GV41) -> 1 | GT41: =IF(GS41>0,MATCH(GV41,$GM$41:$GM$112,0),"xx") -> 33 | GV41: 1 | GZ41: =IF($GS41=0,"xx",INDEX($B$41:$B$112,$GT41)) -> Vintervikke/vinterrug | HA41: =IF($GS41=0,"xx",INDEX($CH$41:$DN$112,$GT41,HA$12)) -> 20. august | HB41: =IF($GS41=0,"xx",INDEX($CH$41:$DN$112,$GT41,HB$12)) -> Meget god | HC41: =IF($GS41=0,"xx",INDEX($CH$41:$DN$112,$GT41,HC$12)) -> Ja | HD41: =IF($GS41=0,"xx",INDEX($CH$41:$DN$112,$GT41,HD$12)) -> Stor | HE41: -969 | HF41: -529 | HG41: Mod de fleste | HH41: Aldrig | HI41: Nej | HJ41: Meget god | HK41: Nej | HL41: Nej | HM41: Ja | HN41: Nej | HO41: Nej | HP41: Ja | HQ41: Ja | HR41: Ja | HS41: Ja | HT41: Nej | HU41: =IF($GS41=0,"xx",INDEX($CH$41:$DN$112,$GT41,HU$12)) -> Nej | HW41: =IF($GS41=0,"xx",INDEX($CH$41:$DN$112,$GT41,HW$12)) -> 0 | IH41: =IF($GS41=0,"xx",INDEX($E$41:$E$127,$GT41)) -> Efterafgrøder
A42: 2 | B42: Blanding uden bælgsæd overvintrene | E42: =IF('Efterafgrøde beslutningsstøtte'!A$7<>"Pligtig mellemafgrøde",HYPERLINK("https://dyrk-plant.dlbr.dk/Web/(S(ikevr3oqnx5oe2t5cyfyknyq))/forms/Main.aspx?page=Vejledning&cropID=226","Efterafgrøder"),HYPERLINK("https://dyrk-plant.dlbr.dk/Web/(S(0x3ftyiaahcpttq0ljebuany))/forms/Main.aspx?page=Vejledning&cropID=238","Mellemafgrøder")) -> Efterafgrøder | F42: xx | G42: xx | H42: xx | I42: xx | J42: xx | K42: xx | L42: xx | M42: xx | N42: xx | O42: xx | P42: xx | Q42: xx | R42: xx | S42: xx | T42: xx | U42: xx | V42: xx | W42: xx | X42: xx | Y42: xx | Z42: xx | AA42: xx | AB42: xx | AD42: xx | AL42: xx | AY42: xx | AZ42: xx | BA42: xx | BB42: xx | BC42: xx | BD42: xx | BE42: xx | BF42: xx | BG42: xx | BH42: xx | BI42: xx | BJ42: xx | BK42: xx | BL42: xx | BM42: xx | BN42: xx | BO42: xx | BP42: xx | BQ42: =Y42 -> xx | BR42: xx | BS42: xx | BT42: xx | BV42: xx | CE42: =AL42 -> xx | CH42: =IF(AY42="xx","xx",ROUND(AY42,0)) -> xx | CI42: =IF(AZ42=0,"Nej",IF(AZ42=1,"Ja","xx")) -> xx | CJ42: =IF(BA42=0,"Nej",IF(BA42=1,"Ja","xx")) -> xx | CK42: =IF(BB42=0,"Nej",IF(BB42=1,"Ja","xx")) -> xx | CL42: =IF(BC42=0,"Nej",IF(BC42=1,"Ja","xx")) -> xx | CM42: =IF(BD42=0,"Nej",IF(BD42=1,"Ja","xx")) -> xx | CN42: =IF(BE42=0,"Nej",IF(BE42=1,"Ja","xx")) -> xx | CO42: =IF(BF42=0,"Nej",IF(BF42=1,"Ja","xx")) -> xx | CP42: =IF(BG42=0,"Nej",IF(BG42=1,"Brugbar",IF(BG42=2,"God",IF(BG42=3,"Meget god","xx")))) -> xx | CQ42: =IF(BH42=0,"Nej",IF(BH42=1,"Brugbar",IF(BH42=2,"God",IF(BH42=3,"Meget god","xx")))) -> xx | CR42: =IF(BI42=0,"Nej",IF(BI42=1,"Brugbar",IF(BI42=2,"God",IF(BI42=3,"Meget god","xx")))) -> xx | CS42: =IF(BJ42=0,"Nej",IF(BJ42=1,"Brugbar",IF(BJ42=2,"God",IF(BJ42=3,"Meget god","xx")))) -> xx | CT42: =IF(BK42=0,"Nej",IF(BK42=1,"Ja","xx")) -> xx | CU42: =IF(BL42=0,"Lille",IF(BL42=1,"Middel",IF(BL42=2,"Over middel",IF(BL42=3,"Stor","xx")))) -> xx | CV42: =IF(BM42=0,"Nej",IF(BM42=1,"Rimelig",IF(BM42=2,"God",IF(BM42=3,"Meget god","xx")))) -> xx | CW42: =IF(BN42=0,"Nej",IF(BN42=1,"Mod visse",IF(BN42=2,"Mod mange",IF(BN42=3,"Mod de fleste","xx")))) -> xx | CX42: =IF(BO42=0,"Altid",IF(BO42=1,"I nogen grad",IF(BO42=2,"I mindre grad",IF(BO42=3,"Aldrig","xx")))) -> xx | CY42: =IF(BP42=0,"Nej",IF(BP42=1,"Få",IF(BP42=2,"Nogle",IF(BP42=3,"Mange","xx")))) -> xx | CZ42: =IF(BQ42=0,"Udvintrer",IF(BQ42=1,"Dårlig",IF(BQ42=2,"God",IF(BQ42=3,"Meget god","xx")))) -> xx | DA42: =IF(BR42=0,"Nej",IF(BR42=1,"Ja","xx")) -> xx | DC42: =BT42 -> xx | DE42: xx | DN42: =CE42 -> xx | DR42: xx | DS42: xx | DT42: xx | DU42: xx | DV42: xx | DW42: xx | DX42: xx | DY42: xx | DZ42: xx | EA42: xx | EB42: xx | EC42: xx | ED42: xx | EE42: xx | EF42: xx | EG42: xx | EH42: xx | EI42: xx | EJ42: =IF(BQ42<>"xx",BQ42^2,"xx") -> xx | EK42: =IF(BR42<>"xx",BR42^2,"xx") -> xx | EL42: =IF(BS42<>"xx",BS42^2,"xx") -> xx | FB42: xx | FC42: xx | FD42: xx | FE42: xx | FF42: xx | FG42: xx | FH42: xx | FI42: xx | FJ42: xx | FK42: xx | FL42: xx | FM42: xx | FN42: xx | FO42: xx | FP42: xx | FQ42: xx | FR42: xx | FS42: =IF(EI42="xx","xx",(BP42-BP$7)/EI$8) -> xx | FT42: =IF(EJ42="xx","xx",(BQ42-BR$7)/EK$8) -> xx | FU42: =IF(EK42="xx","xx",(BR42-BS$7)/EL$8) -> xx | FV42: xx | GI42: =SUMPRODUCT($FB$11:$FV$11,FB42:FV42) -> 0 | GJ42: =IF(FB42="xx","xx",GI42) -> xx | GK42: xx | GL42: =IF(OR(GJ42="xx",GK42="xx"),"xx",GK42+GJ42) -> xx | GM42: =IF(GL42="xx",99,RANK(GL42,$GL$41:$GL$112)) -> 99 | GS42: =COUNTIF($GM$41:$GM$112,GV42) -> 1 | GT42: =IF(GS42>0,MATCH(GV42,$GM$41:$GM$112,0),"xx") -> 30 | GV42: 2 | GZ42: Olieræddike og vintervikke | HA42: =IF($GS42=0,"xx",INDEX($CH$41:$DN$112,$GT42,HA$12)) -> 20. august | HB42: Meget god | HC42: Ja | HD42: Stor | HE42: -828 | HF42: 52 | HG42: Mod de fleste | HH42: I mindre grad | HI42: Nej | HJ42: Udvintrer | HK42: Nej | HL42: Meget god | HM42: Ja | HN42: Nej | HO42: Nej | HP42: Nej | HQ42: Ja | HR42: Ja | HS42: Ja | HT42: Nej | HU42: Nej | HW42: =IF($GS42=0,"xx",INDEX($CH$41:$DN$112,$GT42,HW$12)) -> 0 | IH42: Efterafgrøder
A43: 3 | B43: Vårbyg /Vikke /Gul Sennep | E43: =IF('Efterafgrøde beslutningsstøtte'!A$7<>"Pligtig mellemafgrøde",HYPERLINK("https://dyrk-plant.dlbr.dk/Web/(S(ikevr3oqnx5oe2t5cyfyknyq))/forms/Main.aspx?page=Vejledning&cropID=226","Efterafgrøder"),HYPERLINK("https://dyrk-plant.dlbr.dk/Web/(S(0x3ftyiaahcpttq0ljebuany))/forms/Main.aspx?page=Vejledning&cropID=238","Mellemafgrøder")) -> Efterafgrøder | F43: =VLOOKUP($A43,Karaktermatrice,F$38,FALSE) -> -788.5 | G43: 1 | H43: 0 | I43: 0 | J43: 0 | K43: 1 | L43: 1 | M43: 1 | N43: 0 | O43: 0 | P43: 0 | Q43: 3 | R43: 1 | S43: 2 | T43: 1 | U43: 0 | V43: 3 | W43: 0 | X43: 0 | Y43: 1 | Z43: 0 | AA43: 3 | AB43: 0 | AD43: 20. august | AL43: -348.5 | AY43: -788.5 | AZ43: 1 | BA43: 0 | BB43: 0 | BC43: 0 | BD43: 1 | BE43: 1 | BF43: 1 | BG43: 0 | BH43: 0 | BI43: 0 | BJ43: 3 | BK43: 1 | BL43: 2 | BM43: 1 | BN43: 0 | BO43: 3 | BP43: 0 | BQ43: 1 | BR43: 0 | BS43: 3 | BT43: 0 | BV43: 20. august | CE43: -348.5 | CH43: -789 | CI43: Ja | CJ43: Nej | CK43: Nej | CL43: Nej | CM43: Ja | CN43: Ja | CO43: Ja | CP43: Nej | CQ43: Nej | CR43: Nej | CS43: Meget god | CT43: Ja | CU43: Over middel | CV43: Rimelig | CW43: Nej | CX43: Aldrig | CY43: Nej | CZ43: Dårlig | DA43: Nej | DC43: 0 | DE43: 20. august | DN43: -348.5 | DR43: 621732.25 | DS43: 1 | DT43: 0 | DU43: 0 | DV43: 0 | DW43: 1 | DX43: 1 | DY43: 1 | DZ43: 0 | EA43: 0 | EB43: 0 | EC43: 9 | ED43: 1 | EE43: 4 | EF43: 1 | EG43: 0 | EH43: 9 | EI43: 0 | EJ43: 1 | EK43: 0 | EL43: 9 | FB43: 0.3472108498 | FC43: 0 | FD43: -0.3651483717 | FE43: -1.195228609 | FF43: -0.6454972244 | FG43: 0 | FH43: 0 | FI43: 0 | FJ43: 0 | FK43: -0.6061281254 | FL43: -0.9114654304 | FM43: 0.5958795715 | FN43: 1.354006401 | FO43: 0.07332355751 | FP43: -0.2311250818 | FQ43: -1.699750259 | FR43: 0.5417363389 | FS43: -0.3651483717 | FT43: -0.4279604925 | FU43: -0.3425943549 | FV43: -1.428571649 | GI43: 239393.2075 | GJ43: 239393.2075 | GK43: 0 | GL43: 239393.2075 | GM43: 4 | GS43: =COUNTIF($GM$41:$GM$112,GV43) -> 1 | GT43: =IF(GS43>0,MATCH(GV43,$GM$41:$GM$112,0),"xx") -> 34 | GV43: 3 | GZ43: Kløvergræs (blanding) | HA43: 1. august | HB43: Meget god | HC43: Ja | HD43: Stor | HE43: -2145 | HF43: - | HG43: Mod visse | HH43: Aldrig | HI43: Nej | HJ43: Meget god | HK43: Nej | HL43: Nej | HM43: Ja | HN43: Nej | HO43: Nej | HP43: Ja | HQ43: Ja | HR43: Ja | HS43: Ja | HT43: Nej | HU43: Meget god | HW43: 0 | IH43: Efterafgrøder
A44: 4 | B44: Rajgræs /cikorie /hvidkløver | E44: =IF('Efterafgrøde beslutningsstøtte'!A$7<>"Pligtig mellemafgrøde",HYPERLINK("https://dyrk-plant.dlbr.dk/Web/(S(ikevr3oqnx5oe2t5cyfyknyq))/forms/Main.aspx?page=Vejledning&cropID=226","Efterafgrøder"),HYPERLINK("https://dyrk-plant.dlbr.dk/Web/(S(0x3ftyiaahcpttq0ljebuany))/forms/Main.aspx?page=Vejledning&cropID=238","Mellemafgrøder")) -> Efterafgrøder | F44: =VLOOKUP($A44,Karaktermatrice,F$38,FALSE) -> xx | G44: xx | H44: xx | I44: xx | J44: xx | K44: xx | L44: xx | M44: xx | N44: xx | O44: xx | P44: xx | Q44: xx | R44: xx | S44: xx | T44: xx | U44: xx | V44: xx | W44: xx | X44: xx | Y44: xx | Z44: xx | AA44: xx | AB44: xx | AD44: xx | AL44: xx | AY44: xx | AZ44: xx | BA44: xx | BB44: xx | BC44: xx | BD44: xx | BE44: xx | BF44: xx | BG44: xx | BH44: xx | BI44: xx | BJ44: xx | BK44: xx | BL44: xx | BM44: xx | BN44: xx | BO44: xx | BP44: xx | BQ44: xx | BR44: xx | BS44: xx | BT44: xx | BV44: xx | CE44: xx | CH44: xx | CI44: xx | CJ44: xx | CK44: xx | CL44: xx | CM44: xx | CN44: xx | CO44: xx | CP44: xx | CQ44: xx | CR44: xx | CS44: xx | CT44: xx | CU44: xx | CV44: xx | CW44: xx | CX44: xx | CY44: xx | CZ44: xx | DA44: xx | DC44: xx | DE44: xx | DN44: xx | DR44: xx | DS44: xx | DT44: xx | DU44: xx | DV44: xx | DW44: xx | DX44: xx | DY44: xx | DZ44: xx | EA44: xx | EB44: xx | EC44: xx | ED44: xx | EE44: xx | EF44: xx | EG44: xx | EH44: xx | EI44: xx | EJ44: xx | EK44: xx | EL44: xx | FB44: xx | FC44: xx | FD44: xx | FE44: xx | FF44: xx | FG44: xx | FH44: xx | FI44: xx | FJ44: xx | FK44: xx | FL44: xx | FM44: xx | FN44: xx | FO44: xx | FP44: xx | FQ44: xx | FR44: xx | FS44: xx | FT44: xx | FU44: xx | FV44: xx | GI44: 0 | GJ44: xx | GK44: xx | GL44: xx | GM44: 99 | GS44: =COUNTIF($GM$41:$GM$112,GV44) -> 1 | GT44: =IF(GS44>0,MATCH(GV44,$GM$41:$GM$112,0),"xx") -> 3 | GV44: 4 | GZ44: Vårbyg /Vikke /Gul Sennep | HA44: 20. august | HB44: Meget god | HC44: Ja | HD44: Over middel | HE44: -789 | HF44: -348.5 | HG44: Nej | HH44: Aldrig | HI44: Nej | HJ44: Dårlig | HK44: Nej | HL44: Rimelig | HM44: Ja | HN44: Nej | HO44: Nej | HP44: Nej | HQ44: Ja | HR44: Ja | HS44: Ja | HT44: Nej | HU44: Nej | HW44: 0 | IH44: Efterafgrøder
A45: 5 | B45: Rødkløver | E45: =IF('Efterafgrøde beslutningsstøtte'!A$7<>"Pligtig mellemafgrøde",HYPERLINK("https://dyrk-plant.dlbr.dk/Web/(S(ikevr3oqnx5oe2t5cyfyknyq))/forms/Main.aspx?page=Vejledning&cropID=226","Efterafgrøder"),HYPERLINK("https://dyrk-plant.dlbr.dk/Web/(S(0x3ftyiaahcpttq0ljebuany))/forms/Main.aspx?page=Vejledning&cropID=238","Mellemafgrøder")) -> Efterafgrøder | F45: =VLOOKUP($A45,Karaktermatrice,F$38,FALSE) -> xx | G45: xx | H45: xx | I45: xx | J45: xx | K45: xx | L45: xx | M45: xx | N45: xx | O45: xx | P45: xx | Q45: xx | R45: xx | S45: xx | T45: xx | U45: xx | V45: xx | W45: xx | X45: xx | Y45: xx | Z45: xx | AA45: xx | AB45: xx | AD45: xx | AL45: xx | AY45: xx | AZ45: xx | BA45: xx | BB45: xx | BC45: xx | BD45: xx | BE45: xx | BF45: xx | BG45: xx | BH45: xx | BI45: xx | BJ45: xx | BK45: xx | BL45: xx | BM45: xx | BN45: xx | BO45: xx | BP45: xx | BQ45: xx | BR45: xx | BS45: xx | BT45: xx | BV45: xx | CE45: xx | CH45: xx | CI45: xx | CJ45: xx | CK45: xx | CL45: xx | CM45: xx | CN45: xx | CO45: xx | CP45: xx | CQ45: xx | CR45: xx | CS45: xx | CT45: xx | CU45: xx | CV45: xx | CW45: xx | CX45: xx | CY45: xx | CZ45: xx | DA45: xx | DC45: xx | DE45: xx | DN45: xx | DR45: xx | DS45: xx | DT45: xx | DU45: xx | DV45: xx | DW45: xx | DX45: xx | DY45: xx | DZ45: xx | EA45: xx | EB45: xx | EC45: xx | ED45: xx | EE45: xx | EF45: xx | EG45: xx | EH45: xx | EI45: xx | EJ45: xx | EK45: xx | EL45: xx | FB45: xx | FC45: xx | FD45: xx | FE45: xx | FF45: xx | FG45: xx | FH45: xx | FI45: xx | FJ45: xx | FK45: xx | FL45: xx | FM45: xx | FN45: xx | FO45: xx | FP45: xx | FQ45: xx | FR45: xx | FS45: xx | FT45: xx | FU45: xx | FV45: xx | GI45: 0 | GJ45: xx | GK45: xx | GL45: xx | GM45: 99 | GS45: 1 | GT45: 10 | GV45: 5 | GZ45: Olieræddike | HA45: 20. august | HB45: Meget god | HC45: Nej | HD45: Over middel | HE45: -649 | HF45: 231 | HG45: Mod de fleste | HH45: I mindre grad | HI45: Mange | HJ45: Udvintrer | HK45: Nej | HL45: Meget god | HM45: Ja | HN45: Ja | HO45: Ja | HP45: Nej | HQ45: Ja | HR45: Ja | HS45: Ja | HT45: Nej | HU45: Nej | HW45: 0 | IH45: Efterafgrøder
A46: 6 | B46: Vinterrug/fodervikke/olieræddike | E46: =IF('Efterafgrøde beslutningsstøtte'!A$7<>"Pligtig mellemafgrøde",HYPERLINK("https://dyrk-plant.dlbr.dk/Web/(S(ikevr3oqnx5oe2t5cyfyknyq))/forms/Main.aspx?page=Vejledning&cropID=226","Efterafgrøder"),HYPERLINK("https://dyrk-plant.dlbr.dk/Web/(S(0x3ftyiaahcpttq0ljebuany))/forms/Main.aspx?page=Vejledning&cropID=238","Mellemafgrøder")) -> Efterafgrøder | F46: xx | G46: xx | H46: xx | I46: xx | J46: xx | K46: xx | L46: xx | M46: xx | N46: xx | O46: xx | P46: xx | Q46: xx | R46: xx | S46: xx | T46: xx | U46: xx | V46: xx | W46: xx | X46: xx | Y46: xx | Z46: xx | AA46: xx | AB46: xx | AD46: xx | AL46: xx | AY46: xx | AZ46: xx | BA46: xx | BB46: xx | BC46: xx | BD46: xx | BE46: xx | BF46: xx | BG46: xx | BH46: xx | BI46: xx | BJ46: xx | BK46: xx | BL46: xx | BM46: xx | BN46: xx | BO46: xx | BP46: xx | BQ46: xx | BR46: xx | BS46: xx | BT46: xx | BV46: xx | CE46: xx | CH46: xx | CI46: xx | CJ46: xx | CK46: xx | CL46: xx | CM46: xx | CN46: xx | CO46: xx | CP46: xx | CQ46: xx | CR46: xx | CS46: xx | CT46: xx | CU46: xx | CV46: xx | CW46: xx | CX46: xx | CY46: xx | CZ46: xx | DA46: xx | DC46: xx | DE46: xx | DN46: xx | DR46: xx | DS46: xx | DT46: xx | DU46: xx | DV46: xx | DW46: xx | DX46: xx | DY46: xx | DZ46: xx | EA46: xx | EB46: xx | EC46: xx | ED46: xx | EE46: xx | EF46: xx | EG46: xx | EH46: xx | EI46: xx | EJ46: xx | EK46: xx | EL46: xx | FB46: xx | FC46: xx | FD46: xx | FE46: xx | FF46: xx | FG46: xx | FH46: xx | FI46: xx | FJ46: xx | FK46: xx | FL46: xx | FM46: xx | FN46: xx | FO46: xx | FP46: xx | FQ46: xx | FR46: xx | FS46: xx | FT46: xx | FU46: xx | FV46: xx | GI46: 0 | GJ46: xx | GK46: xx | GL46: xx | GM46: 99 | GS46: 1 | GT46: 9 | GV46: 6 | GZ46: Gul sennep | HA46: 20. august | HB46: Meget god | HC46: Nej | HD46: Over middel | HE46: -503 | HF46: 377 | HG46: Mod de fleste | HH46: Altid | HI46: Mange | HJ46: Udvintrer | HK46: =IF($GS46=0,"xx",INDEX($CH$41:$DN$112,$GT46,HK$12)) -> Nej | HL46: God | HM46: Ja | HN46: Ja | HO46: Ja | HP46: Nej | HQ46: Ja | HR46: Ja | HS46: Ja | HT46: Nej | HU46: Nej | HW46: 0 | IH46: Efterafgrøder
A47: 7 | B47: Triticale/Gul Sennep | E47: =IF('Efterafgrøde beslutningsstøtte'!A$7<>"Pligtig mellemafgrøde",HYPERLINK("https://dyrk-plant.dlbr.dk/Web/(S(ikevr3oqnx5oe2t5cyfyknyq))/forms/Main.aspx?page=Vejledning&cropID=226","Efterafgrøder"),HYPERLINK("https://dyrk-plant.dlbr.dk/Web/(S(0x3ftyiaahcpttq0ljebuany))/forms/Main.aspx?page=Vejledning&cropID=238","Mellemafgrøder")) -> Efterafgrøder | F47: -647 | G47: 1 | H47: 0 | I47: 0 | J47: 0 | K47: 1 | L47: 1 | M47: 1 | N47: 0 | O47: 3 | P47: 1 | Q47: 1 | R47: 0 | S47: 1 | T47: 0 | U47: 0 | V47: 3 | W47: 0 | X47: 0 | Y47: 0 | Z47: 0 | AA47: 7 | AB47: 0 | AD47: 1. august | AL47: - | AY47: -647 | AZ47: 1 | BA47: 0 | BB47: 0 | BC47: 0 | BD47: 1 | BE47: 1 | BF47: 1 | BG47: 0 | BH47: 3 | BI47: 1 | BJ47: 1 | BK47: 0 | BL47: 1 | BM47: 0 | BN47: 0 | BO47: 3 | BP47: 0 | BQ47: 0 | BR47: 0 | BS47: 7 | BT47: 0 | BV47: 1. august | CE47: - | CH47: -647 | CI47: Ja | CJ47: Nej | CK47: Nej | CL47: Nej | CM47: Ja | CN47: Ja | CO47: Ja | CP47: Nej | CQ47: Meget god | CR47: Brugbar | CS47: Brugbar | CT47: Nej | CU47: Middel | CV47: Nej | CW47: Nej | CX47: Aldrig | CY47: Nej | CZ47: Udvintrer | DA47: Nej | DC47: 0 | DE47: 1. august | DN47: - | DR47: 418609 | DS47: 1 | DT47: 0 | DU47: 0 | DV47: 0 | DW47: 1 | DX47: 1 | DY47: 1 | DZ47: 0 | EA47: 9 | EB47: 1 | EC47: 1 | ED47: 0 | EE47: 1 | EF47: 0 | EG47: 0 | EH47: 9 | EI47: 0 | EJ47: 0 | EK47: 0 | EL47: 49 | FB47: 0.5990093723 | FC47: 0 | FD47: -0.3651483717 | FE47: -1.195228609 | FF47: -0.6454972244 | FG47: 0 | FH47: 0 | FI47: 0 | FJ47: 0 | FK47: 1.771759136 | FL47: -0.05063696835 | FM47: -2.298392633 | FN47: -0.7385489459 | FO47: -1.17317692 | FP47: -1.01695036 | FQ47: -1.699750259 | FR47: 0.5417363389 | FS47: -0.3651483717 | FT47: -1.15549333 | FU47: -0.3425943549 | FV47: -1.05058382 | GI47: -921920.6009 | GJ47: -921920.6009 | GK47: 0 | GL47: -921920.6009 | GM47: 17 | GS47: 1 | GT47: 13 | GV47: 7 | GZ47: Foderradise (Strukturator) | HA47: 20. august | HB47: Meget god | HC47: Nej | HD47: Over middel | HE47: -913 | HF47: -33 | HG47: Mod de fleste | HH47: I mindre grad | HI47: Nej | HJ47: Udvintrer | HK47: =IF($GS47=0,"xx",INDEX($CH$41:$DN$112,$GT47,HK$12)) -> Nej | HL47: Meget god | HM47: Ja | HN47: Nej | HO47: Ja | HP47: Nej | HQ47: Ja | HR47: Ja | HS47: Ja | HT47: Nej | HU47: Nej | HW47: 0 | IH47: Efterafgrøder
A48: 8 | B48: Frøgræs, udtjent | E48: =IF('Efterafgrøde beslutningsstøtte'!A$7<>"Pligtig mellemafgrøde",HYPERLINK("https://dyrk-plant.dlbr.dk/Web/(S(ikevr3oqnx5oe2t5cyfyknyq))/forms/Main.aspx?page=Vejledning&cropID=226","Efterafgrøder"),HYPERLINK("https://dyrk-plant.dlbr.dk/Web/(S(0x3ftyiaahcpttq0ljebuany))/forms/Main.aspx?page=Vejledning&cropID=238","Mellemafgrøder")) -> Efterafgrøder | F48: xx | G48: xx | H48: xx | I48: xx | J48: xx | K48: xx | L48: xx | M48: xx | N48: xx | O48: xx | P48: xx | Q48: xx | R48: xx | S48: xx | T48: xx | U48: xx | V48: xx | W48: xx | X48: xx | Y48: xx | Z48: xx | AA48: xx | AB48: xx | AD48: xx | AL48: xx | AY48: xx | AZ48: xx | BA48: xx | BB48: xx | BC48: xx | BD48: xx | BE48: xx | BF48: xx | BG48: xx | BH48: xx | BI48: xx | BJ48: xx | BK48: xx | BL48: xx | BM48: xx | BN48: xx | BO48: xx | BP48: xx | BQ48: xx | BR48: xx | BS48: xx | BT48: xx | BV48: xx | CE48: xx | CH48: xx | CI48: xx | CJ48: xx | CK48: xx | CL48: xx | CM48: xx | CN48: xx | CO48: xx | CP48: xx | CQ48: xx | CR48: xx | CS48: xx | CT48: xx | CU48: xx | CV48: xx | CW48: xx | CX48: xx | CY48: xx | CZ48: xx | DA48: xx | DC48: xx | DE48: xx | DN48: xx | DR48: xx | DS48: xx | DT48: xx | DU48: xx | DV48: xx | DW48: xx | DX48: xx | DY48: xx | DZ48: xx | EA48: xx | EB48: xx | EC48: xx | ED48: xx | EE48: xx | EF48: xx | EG48: xx | EH48: xx | EI48: xx | EJ48: xx | EK48: xx | EL48: xx | FB48: xx | FC48: xx | FD48: xx | FE48: xx | FF48: xx | FG48: xx | FH48: xx | FI48: xx | FJ48: xx | FK48: xx | FL48: xx | FM48: xx | FN48: xx | FO48: xx | FP48: xx | FQ48: xx | FR48: xx | FS48: xx | FT48: xx | FU48: xx | FV48: xx | GI48: 0 | GJ48: xx | GK48: xx | GL48: xx | GM48: 99 | GS48: 1 | GT48: 25 | GV48: 8 | GZ48: Honningurt | HA48: 20. august | HB48: Meget god | HC48: Nej | HD48: Over middel | HE48: -2302 | HF48: -2082 | HG48: Mod de fleste | HH48: Aldrig | HI48: Nej | HJ48: Udvintrer | HK48: Nej | HL48: Meget god | HM48: Ja | HN48: Nej | HO48: Ja | HP48: Nej | HQ48: Ja | HR48: Ja | HS48: Ja | HT48: Nej | HU48: Nej | HW48: 0 | IH48: Efterafgrøder
A49: 9 | B49: Gul sennep | E49: =IF('Efterafgrøde beslutningsstøtte'!A$7<>"Pligtig mellemafgrøde",HYPERLINK("https://dyrk-plant.dlbr.dk/Web/(S(ikevr3oqnx5oe2t5cyfyknyq))/forms/Main.aspx?page=Vejledning&cropID=226","Efterafgrøder"),HYPERLINK("https://dyrk-plant.dlbr.dk/Web/(S(0x3ftyiaahcpttq0ljebuany))/forms/Main.aspx?page=Vejledning&cropID=238","Mellemafgrøder")) -> Efterafgrøder | F49: -503 | G49: 1 | H49: 1 | I49: 1 | J49: 0 | K49: 1 | L49: 1 | M49: 1 | N49: 0 | O49: 0 | P49: 0 | Q49: 3 | R49: 0 | S49: 2 | T49: 2 | U49: 3 | V49: 0 | W49: 3 | X49: 0 | Y49: 0 | Z49: 0 | AA49: 9 | AB49: 0 | AD49: 20. august | AL49: 377 | AY49: -503 | AZ49: 1 | BA49: 1 | BB49: 1 | BC49: 0 | BD49: 1 | BE49: 1 | BF49: 1 | BG49: 0 | BH49: 0 | BI49: 0 | BJ49: 3 | BK49: 0 | BL49: 2 | BM49: 2 | BN49: 3 | BO49: 0 | BP49: 3 | BQ49: 0 | BR49: 0 | BS49: 9 | BT49: 0 | BV49: 20. august | CE49: 377 | CH49: -503 | CI49: Ja | CJ49: Ja | CK49: Ja | CL49: Nej | CM49: Ja | CN49: Ja | CO49: Ja | CP49: Nej | CQ49: Nej | CR49: Nej | CS49: Meget god | CT49: Nej | CU49: Over middel | CV49: God | CW49: Mod de fleste | CX49: Altid | CY49: Mange | CZ49: Udvintrer | DA49: Nej | DC49: 0 | DE49: 20. august | DN49: 377 | DR49: =IF(AY49<>"xx",AY49^2,"xx") -> 253009 | DS49: 1 | DT49: 1 | DU49: 1 | DV49: 0 | DW49: =IF(BD49<>"xx",BD49^2,"xx") -> 1 | DX49: 1 | DY49: 1 | DZ49: 0 | EA49: 0 | EB49: 0 | EC49: 9 | ED49: 0 | EE49: 4 | EF49: 4 | EG49: 9 | EH49: 0 | EI49: 9 | EJ49: 0 | EK49: 0 | EL49: 81 | FB49: =IF(DR49="xx","xx",(AY49-AY$7)/DR$8) -> 0.855256632 | FC49: 0 | FD49: 2.738612788 | FE49: 0.8366600265 | FF49: -0.6454972244 | FG49: 0 | FH49: 0 | FI49: 0 | FJ49: 0 | FK49: -0.6061281254 | FL49: -0.9114654304 | FM49: 0.5958795715 | FN49: -0.7385489459 | FO49: 0.07332355751 | FP49: 0.5547001962 | FQ49: 0.7770286899 | FR49: -2.528102915 | FS49: 2.738612788 | FT49: -1.15549333 | FU49: -0.3425943549 | FV49: -0.8615899052 | GI49: 238527.7555 | GJ49: 238527.7555 | GK49: 0 | GL49: 238527.7555 | GM49: 6 | GS49: 1 | GT49: 20 | GV49: 9 | GZ49: Vinterrug | HA49: 20. august | HB49: Meget god | HC49: Nej | HD49: Middel | HE49: -849 | HF49: -409 | HG49: Mod de fleste | HH49: Aldrig | HI49: Nej | HJ49: Meget god | HK49: Ja | HL49: Rimelig | HM49: Ja | HN49: Nej | HO49: Ja | HP49: Nej | HQ49: Ja | HR49: Ja | HS49: Ja | HT49: Nej | HU49: Nej | HW49: 0 | IH49: Efterafgrøder
A50: 10 | B50: Olieræddike | E50: =IF('Efterafgrøde beslutningsstøtte'!A$7<>"Pligtig mellemafgrøde",HYPERLINK("https://dyrk-plant.dlbr.dk/Web/(S(ikevr3oqnx5oe2t5cyfyknyq))/forms/Main.aspx?page=Vejledning&cropID=226","Efterafgrøder"),HYPERLINK("https://dyrk-plant.dlbr.dk/Web/(S(0x3ftyiaahcpttq0ljebuany))/forms/Main.aspx?page=Vejledning&cropID=238","Mellemafgrøder")) -> Efterafgrøder | F50: -649 | G50: 1 | H50: 1 | I50: 1 | J50: 0 | K50: 1 | L50: 1 | M50: 1 | N50: 0 | O50: 0 | P50: 0 | Q50: 3 | R50: 0 | S50: 2 | T50: 3 | U50: 3 | V50: 2 | W50: 3 | X50: 0 | Y50: 0 | Z50: 0 | AA50: 10 | AB50: 0 | AD50: 20. august | AL50: 231 | AY50: -649 | AZ50: 1 | BA50: 1 | BB50: 1 | BC50: 0 | BD50: 1 | BE50: 1 | BF50: 1 | BG50: 0 | BH50: 0 | BI50: 0 | BJ50: 3 | BK50: 0 | BL50: 2 | BM50: 3 | BN50: 3 | BO50: 2 | BP50: 3 | BQ50: 0 | BR50: 0 | BS50: 10 | BT50: 0 | BV50: 20. august | CE50: 231 | CH50: -649 | CI50: Ja | CJ50: Ja | CK50: Ja | CL50: Nej | CM50: Ja | CN50: Ja | CO50: Ja | CP50: Nej | CQ50: Nej | CR50: Nej | CS50: Meget god | CT50: Nej | CU50: Over middel | CV50: Meget god | CW50: Mod de fleste | CX50: I mindre grad | CY50: Mange | CZ50: Udvintrer | DA50: Nej | DC50: 0 | DE50: 20. august | DN50: 231 | DR50: 421201 | DS50: 1 | DT50: 1 | DU50: 1 | DV50: 0 | DW50: 1 | DX50: 1 | DY50: 1 | DZ50: 0 | EA50: 0 | EB50: 0 | EC50: 9 | ED50: 0 | EE50: 4 | EF50: 9 | EG50: 9 | EH50: 4 | EI50: 9 | EJ50: 0 | EK50: 0 | EL50: 100 | FB50: 0.5954503826 | FC50: 0 | FD50: 2.738612788 | FE50: 0.8366600265 | FF50: -0.6454972244 | FG50: 0 | FH50: 0 | FI50: 0 | FJ50: 0 | FK50: -0.6061281254 | FL50: -0.9114654304 | FM50: 0.5958795715 | FN50: -0.7385489459 | FO50: 0.07332355751 | FP50: 1.340525474 | FQ50: 0.7770286899 | FR50: -0.4815434123 | FS50: 2.738612788 | FT50: -1.15549333 | FU50: -0.3425943549 | FV50: -0.7670929479 | GI50: 238573.7869 | GJ50: 238573.7869 | GK50: 0 | GL50: 238573.7869 | GM50: 5 | GS50: 1 | GT50: 14 | GV50: 10 | GZ50: Havre | HA50: 20. august | HB50: Meget god | HC50: Nej | HD50: Middel | HE50: -877 | HF50: -657 | HG50: Mod de fleste | HH50: Aldrig | HI50: Nej | HJ50: Dårlig | HK50: Ja | HL50: Rimelig | HM50: Ja | HN50: Nej | HO50: Ja | HP50: Nej | HQ50: Ja | HR50: Ja | HS50: Ja | HT50: Nej | HU50: Nej | HW50: 0 | IH50: Efterafgrøder
A51: 11 | B51: Blanding med bælgsæd udvintrene | E51: =IF('Efterafgrøde beslutningsstøtte'!A$7<>"Pligtig mellemafgrøde",HYPERLINK("https://dyrk-plant.dlbr.dk/Web/(S(ikevr3oqnx5oe2t5cyfyknyq))/forms/Main.aspx?page=Vejledning&cropID=226","Efterafgrøder"),HYPERLINK("https://dyrk-plant.dlbr.dk/Web/(S(0x3ftyiaahcpttq0ljebuany))/forms/Main.aspx?page=Vejledning&cropID=238","Mellemafgrøder")) -> Efterafgrøder | F51: =VLOOKUP($A51,Karaktermatrice,F$38,FALSE) -> xx | G51: xx | H51: xx | I51: xx | J51: xx | K51: xx | L51: xx | M51: xx | N51: xx | O51: xx | P51: =VLOOKUP($A51,Karaktermatrice,P$38,FALSE) -> xx | Q51: xx | R51: xx | S51: xx | T51: xx | U51: xx | V51: xx | W51: xx | X51: xx | Y51: xx | Z51: xx | AA51: xx | AB51: xx | AD51: xx | AL51: xx | AY51: xx | AZ51: xx | BA51: xx | BB51: xx | BC51: xx | BD51: xx | BE51: xx | BF51: xx | BG51: xx | BH51: xx | BI51: xx | BJ51: xx | BK51: xx | BL51: xx | BM51: xx | BN51: xx | BO51: xx | BP51: xx | BQ51: xx | BR51: xx | BS51: xx | BT51: xx | BV51: xx | CE51: xx | CH51: xx | CI51: xx | CJ51: xx | CK51: xx | CL51: xx | CM51: xx | CN51: xx | CO51: xx | CP51: xx | CQ51: xx | CR51: xx | CS51: xx | CT51: xx | CU51: xx | CV51: xx | CW51: xx | CX51: xx | CY51: xx | CZ51: xx | DA51: xx | DC51: xx | DE51: xx | DN51: xx | DR51: xx | DS51: xx | DT51: xx | DU51: xx | DV51: xx | DW51: xx | DX51: xx | DY51: xx | DZ51: xx | EA51: xx | EB51: xx | EC51: xx | ED51: xx | EE51: xx | EF51: xx | EG51: xx | EH51: xx | EI51: xx | EJ51: xx | EK51: xx | EL51: xx | FB51: xx | FC51: xx | FD51: xx | FE51: xx | FF51: xx | FG51: xx | FH51: xx | FI51: xx | FJ51: xx | FK51: xx | FL51: xx | FM51: xx | FN51: xx | FO51: xx | FP51: xx | FQ51: xx | FR51: xx | FS51: xx | FT51: xx | FU51: xx | FV51: xx | GI51: 0 | GJ51: xx | GK51: xx | GL51: xx | GM51: 99 | GS51: 1 | GT51: 18 | GV51: 11 | GZ51: Vårbyg | HA51: 20. august | HB51: Meget god | HC51: Nej | HD51: Middel | HE51: -877 | HF51: -657 | HG51: Mod de fleste | HH51: Aldrig | HI51: Nej | HJ51: Dårlig | HK51: Ja | HL51: Nej | HM51: Ja | HN51: Nej | HO51: Ja | HP51: Nej | HQ51: Ja | HR51: Ja | HS51: Ja | HT51: Nej | HU51: Nej | HW51: 0 | IH51: Efterafgrøder
A52: 12 | B52: Vinterraps , linie | E52: =IF('Efterafgrøde beslutningsstøtte'!A$7<>"Pligtig mellemafgrøde",HYPERLINK("https://dyrk-plant.dlbr.dk/Web/(S(ikevr3oqnx5oe2t5cyfyknyq))/forms/Main.aspx?page=Vejledning&cropID=226","Efterafgrøder"),HYPERLINK("https://dyrk-plant.dlbr.dk/Web/(S(0x3ftyiaahcpttq0ljebuany))/forms/Main.aspx?page=Vejledning&cropID=238","Mellemafgrøder")) -> Efterafgrøder | F52: -1136 | G52: 1 | H52: 0 | I52: 1 | J52: 0 | K52: 1 | L52: 1 | M52: 1 | N52: 0 | O52: 0 | P52: 1 | Q52: 2 | R52: 0 | S52: 2 | T52: 3 | U52: 3 | V52: 0 | W52: 0 | X52: 0 | Y52: 3 | Z52: 1 | AA52: 12 | AB52: 0 | AD52: 20. august | AL52: -476 | AY52: -1136 | AZ52: 1 | BA52: 0 | BB52: 1 | BC52: 0 | BD52: 1 | BE52: 1 | BF52: 1 | BG52: 0 | BH52: 0 | BI52: 1 | BJ52: 2 | BK52: 0 | BL52: 2 | BM52: 3 | BN52: 3 | BO52: 0 | BP52: 0 | BQ52: 3 | BR52: 1 | BS52: 12 | BT52: 0 | BV52: 20. august | CE52: -476 | CH52: -1136 | CI52: Ja | CJ52: Nej | CK52: Ja | CL52: Nej | CM52: Ja | CN52: Ja | CO52: Ja | CP52: Nej | CQ52: Nej | CR52: Brugbar | CS52: God | CT52: Nej | CU52: Over middel | CV52: Meget god | CW52: Mod de fleste | CX52: Altid | CY52: Nej | CZ52: Meget god | DA52: Ja | DC52: 0 | DE52: 20. august | DN52: -476 | DR52: 1290496 | DS52: 1 | DT52: 0 | DU52: 1 | DV52: 0 | DW52: 1 | DX52: 1 | DY52: 1 | DZ52: 0 | EA52: 0 | EB52: 1 | EC52: 4 | ED52: 0 | EE52: 4 | EF52: 9 | EG52: 9 | EH52: 0 | EI52: 0 | EJ52: 9 | EK52: 1 | EL52: 144 | FB52: -0.2711636136 | FC52: 0 | FD52: -0.3651483717 | FE52: 0.8366600265 | FF52: -0.6454972244 | FG52: 0 | FH52: 0 | FI52: 0 | FJ52: 0 | FK52: -0.6061281254 | FL52: -0.05063696835 | FM52: -0.8512565308 | FN52: -0.7385489459 | FO52: 0.07332355751 | FP52: 1.340525474 | FQ52: 0.7770286899 | FR52: -2.528102915 | FS52: -0.3651483717 | FT52: 1.027105182 | FU52: 0.8222264518 | FV52: -0.5780990332 | GI52: -341467.3402 | GJ52: -341467.3402 | GK52: 0 | GL52: -341467.3402 | GM52: 14 | GS52: 1 | GT52: 16 | GV52: 12 | GZ52: Vinterrybs | HA52: 20. august | HB52: Meget god | HC52: Nej | HD52: Middel | HE52: -1513 | HF52: -633 | HG52: Nej | HH52: Aldrig | HI52: Nej | HJ52: Meget god | HK52: Ja | HL52: God | HM52: Ja | HN52: Nej | HO52: Ja | HP52: Nej | HQ52: Ja | HR52: Ja | HS52: Ja | HT52: Nej | HU52: Nej | HW52: 0 | IH52: Efterafgrøder
A53: 13 | B53: Foderradise (Strukturator) | E53: =IF('Efterafgrøde beslutningsstøtte'!A$7<>"Pligtig mellemafgrøde",HYPERLINK("https://dyrk-plant.dlbr.dk/Web/(S(ikevr3oqnx5oe2t5cyfyknyq))/forms/Main.aspx?page=Vejledning&cropID=226","Efterafgrøder"),HYPERLINK("https://dyrk-plant.dlbr.dk/Web/(S(0x3ftyiaahcpttq0ljebuany))/forms/Main.aspx?page=Vejledning&cropID=238","Mellemafgrøder")) -> Efterafgrøder | F53: -913 | G53: 1 | H53: 0 | I53: 1 | J53: 0 | K53: 1 | L53: 1 | M53: 1 | N53: 0 | O53: 0 | P53: 1 | Q53: 3 | R53: 0 | S53: 2 | T53: 3 | U53: 3 | V53: 2 | W53: 0 | X53: 0 | Y53: 0 | Z53: 0 | AA53: 13 | AB53: 0 | AD53: 20. august | AL53: -33 | AY53: -913 | AZ53: 1 | BA53: 0 | BB53: 1 | BC53: =J53 -> 0 | BD53: 1 | BE53: 1 | BF53: 1 | BG53: 0 | BH53: 0 | BI53: 1 | BJ53: 3 | BK53: 0 | BL53: 2 | BM53: 3 | BN53: 3 | BO53: 2 | BP53: 0 | BQ53: 0 | BR53: 0 | BS53: 13 | BT53: 0 | BV53: 20. august | CE53: -33 | CH53: -913 | CI53: Ja | CJ53: Nej | CK53: Ja | CL53: Nej | CM53: Ja | CN53: Ja | CO53: Ja | CP53: Nej | CQ53: Nej | CR53: Brugbar | CS53: Meget god | CT53: Nej | CU53: Over middel | CV53: Meget god | CW53: Mod de fleste | CX53: I mindre grad | CY53: Nej | CZ53: Udvintrer | DA53: Nej | DC53: 0 | DE53: 20. august | DN53: -33 | DR53: 833569 | DS53: 1 | DT53: 0 | DU53: 1 | DV53: 0 | DW53: 1 | DX53: 1 | DY53: 1 | DZ53: 0 | EA53: 0 | EB53: 1 | EC53: 9 | ED53: 0 | EE53: 4 | EF53: 9 | EG53: 9 | EH53: 4 | EI53: 0 | EJ53: 0 | EK53: 0 | EL53: 169 | FB53: 0.1256637399 | FC53: 0 | FD53: -0.3651483717 | FE53: 0.8366600265 | FF53: -0.6454972244 | FG53: 0 | FH53: 0 | FI53: 0 | FJ53: 0 | FK53: -0.6061281254 | FL53: -0.05063696835 | FM53: 0.5958795715 | FN53: -0.7385489459 | FO53: 0.07332355751 | FP53: 1.340525474 | FQ53: 0.7770286899 | FR53: -0.4815434123 | FS53: -0.3651483717 | FT53: -1.15549333 | FU53: -0.3425943549 | FV53: -0.4836020758 | GI53: 238490.9562 | GJ53: 238490.9562 | GK53: 0 | GL53: 238490.9562 | GM53: 7 | GS53: 1 | GT53: 31 | GV53: 13 | GZ53: Hvidkløver/alm. rajgræs | HA53: 1. august | HB53: God | HC53: Ja | HD53: Stor | HE53: =IF($GS53=0,"xx",INDEX($CH$41:$DN$112,$GT53,HE$12)) -> -185 | HF53: - | HG53: Mod visse | HH53: Aldrig | HI53: Nej | HJ53: Meget god | HK53: Nej | HL53: Nej | HM53: Ja | HN53: Nej | HO53: Nej | HP53: Ja | HQ53: Ja | HR53: Ja | HS53: Ja | HT53: Nej | HU53: =IF($GS53=0,"xx",INDEX($CH$41:$DN$112,$GT53,HU$12)) -> Meget god | HW53: 0 | IH53: Efterafgrøder
A54: 14 | B54: Havre | E54: =IF('Efterafgrøde beslutningsstøtte'!A$7<>"Pligtig mellemafgrøde",HYPERLINK("https://dyrk-plant.dlbr.dk/Web/(S(ikevr3oqnx5oe2t5cyfyknyq))/forms/Main.aspx?page=Vejledning&cropID=226","Efterafgrøder"),HYPERLINK("https://dyrk-plant.dlbr.dk/Web/(S(0x3ftyiaahcpttq0ljebuany))/forms/Main.aspx?page=Vejledning&cropID=238","Mellemafgrøder")) -> Efterafgrøder | F54: -877 | G54: 1 | H54: 0 | I54: 1 | J54: 0 | K54: 1 | L54: 1 | M54: 1 | N54: 0 | O54: 0 | P54: 1 | Q54: 3 | R54: 0 | S54: 1 | T54: 1 | U54: 3 | V54: 3 | W54: 0 | X54: 0 | Y54: 1 | Z54: 1 | AA54: 14 | AB54: 0 | AD54: 20. august | AL54: -657 | AY54: -877 | AZ54: =G54 -> 1 | BA54: 0 | BB54: 1 | BC54: 0 | BD54: 1 | BE54: 1 | BF54: 1 | BG54: 0 | BH54: 0 | BI54: 1 | BJ54: 3 | BK54: 0 | BL54: 1 | BM54: 1 | BN54: 3 | BO54: 3 | BP54: 0 | BQ54: 1 | BR54: 1 | BS54: 14 | BT54: 0 | BV54: 20. august | CE54: -657 | CH54: -877 | CI54: Ja | CJ54: Nej | CK54: Ja | CL54: Nej | CM54: Ja | CN54: Ja | CO54: Ja | CP54: Nej | CQ54: Nej | CR54: Brugbar | CS54: Meget god | CT54: Nej | CU54: Middel | CV54: Rimelig | CW54: Mod de fleste | CX54: Aldrig | CY54: Nej | CZ54: Dårlig | DA54: Ja | DC54: 0 | DE54: 20. august | DN54: -657 | DR54: 769129 | DS54: 1 | DT54: 0 | DU54: 1 | DV54: 0 | DW54: 1 | DX54: 1 | DY54: 1 | DZ54: 0 | EA54: 0 | EB54: 1 | EC54: 9 | ED54: 0 | EE54: 1 | EF54: 1 | EG54: 9 | EH54: 9 | EI54: 0 | EJ54: 1 | EK54: 1 | EL54: 196 | FB54: 0.1897255548 | FC54: 0 | FD54: -0.3651483717 | FE54: 0.8366600265 | FF54: -0.6454972244 | FG54: 0 | FH54: 0 | FI54: 0 | FJ54: 0 | FK54: -0.6061281254 | FL54: -0.05063696835 | FM54: 0.5958795715 | FN54: -0.7385489459 | FO54: -1.17317692 | FP54: -0.2311250818 | FQ54: 0.7770286899 | FR54: 0.5417363389 | FS54: -0.3651483717 | FT54: -0.4279604925 | FU54: 0.8222264518 | FV54: -0.3891051185 | GI54: 238041.6963 | GJ54: 238041.6963 | GK54: 0 | GL54: 238041.6963 | GM54: 10 | GS54: 1 | GT54: 12 | GV54: 14 | GZ54: Vinterraps , linie | HA54: 20. august | HB54: God | HC54: Nej | HD54: Over middel | HE54: -1136 | HF54: -476 | HG54: Mod de fleste | HH54: Altid | HI54: Nej | HJ54: Meget god | HK54: Ja | HL54: Meget god | HM54: Ja | HN54: Nej | HO54: Ja | HP54: Nej | HQ54: =IF($GS54=0,"xx",INDEX($CH$41:$DN$112,$GT54,HQ$12)) -> Ja | HR54: Ja | HS54: Ja | HT54: Nej | HU54: Nej | HW54: 0 | IH54: Efterafgrøder
A55: 15 | B55: Boghvede | E55: =IF('Efterafgrøde beslutningsstøtte'!A$7<>"Pligtig mellemafgrøde",HYPERLINK("https://dyrk-plant.dlbr.dk/Web/(S(ikevr3oqnx5oe2t5cyfyknyq))/forms/Main.aspx?page=Vejledning&cropID=226","Efterafgrøder"),HYPERLINK("https://dyrk-plant.dlbr.dk/Web/(S(0x3ftyiaahcpttq0ljebuany))/forms/Main.aspx?page=Vejledning&cropID=238","Mellemafgrøder")) -> Efterafgrøder | F55: xx | G55: xx | H55: xx | I55: xx | J55: xx | K55: xx | L55: xx | M55: xx | N55: xx | O55: xx | P55: xx | Q55: xx | R55: xx | S55: xx | T55: xx | U55: xx | V55: xx | W55: xx | X55: xx | Y55: xx | Z55: xx | AA55: xx | AB55: xx | AD55: xx | AL55: xx | AY55: xx | AZ55: xx | BA55: xx | BB55: xx | BC55: xx | BD55: xx | BE55: xx | BF55: xx | BG55: xx | BH55: xx | BI55: xx | BJ55: xx | BK55: xx | BL55: xx | BM55: xx | BN55: xx | BO55: xx | BP55: xx | BQ55: xx | BR55: xx | BS55: xx | BT55: xx | BV55: xx | CE55: xx | CH55: xx | CI55: xx | CJ55: xx | CK55: xx | CL55: xx | CM55: xx | CN55: xx | CO55: xx | CP55: xx | CQ55: xx | CR55: xx | CS55: xx | CT55: xx | CU55: xx | CV55: xx | CW55: xx | CX55: xx | CY55: xx | CZ55: xx | DA55: xx | DC55: xx | DE55: xx | DN55: xx | DR55: xx | DS55: xx | DT55: xx | DU55: xx | DV55: xx | DW55: xx | DX55: xx | DY55: xx | DZ55: xx | EA55: xx | EB55: xx | EC55: xx | ED55: xx | EE55: xx | EF55: xx | EG55: xx | EH55: xx | EI55: xx | EJ55: xx | EK55: xx | EL55: xx | FB55: xx | FC55: xx | FD55: xx | FE55: xx | FF55: xx | FG55: xx | FH55: xx | FI55: xx | FJ55: xx | FK55: xx | FL55: xx | FM55: xx | FN55: xx | FO55: xx | FP55: xx | FQ55: xx | FR55: xx | FS55: xx | FT55: xx | FU55: xx | FV55: xx | GI55: 0 | GJ55: xx | GK55: xx | GL55: =IF(OR(GJ55="xx",GK55="xx"),"xx",GK55+GJ55) -> xx | GM55: 99 | GS55: 1 | GT55: 1 | GV55: 15 | GZ55: Alm. rajgræs, dipl. | HA55: 1.august | HB55: God | HC55: Nej | HD55: Middel | HE55: -185 | HF55: - | HG55: Mod mange | HH55: Aldrig | HI55: Nej | HJ55: Meget god | HK55: Nej | HL55: Nej | HM55: Ja | HN55: Nej | HO55: Ja | HP55: Ja | HQ55: Ja | HR55: Ja | HS55: Ja | HT55: Nej | HU55: Meget god | HW55: 0 | IH55: Efterafgrøder
A56: 16 | B56: Vinterrybs | E56: =IF('Efterafgrøde beslutningsstøtte'!A$7<>"Pligtig mellemafgrøde",HYPERLINK("https://dyrk-plant.dlbr.dk/Web/(S(ikevr3oqnx5oe2t5cyfyknyq))/forms/Main.aspx?page=Vejledning&cropID=226","Efterafgrøder"),HYPERLINK("https://dyrk-plant.dlbr.dk/Web/(S(0x3ftyiaahcpttq0ljebuany))/forms/Main.aspx?page=Vejledning&cropID=238","Mellemafgrøder")) -> Efterafgrøder | F56: -1513 | G56: 1 | H56: 0 | I56: 1 | J56: 0 | K56: 1 | L56: 1 | M56: 1 | N56: 0 | O56: 0 | P56: 1 | Q56: 3 | R56: 0 | S56: 1 | T56: 2 | U56: 0 | V56: 3 | W56: 0 | X56: 0 | Y56: 3 | Z56: 1 | AA56: 16 | AB56: 0 | AD56: 20. august | AL56: -633 | AY56: -1513 | AZ56: 1 | BA56: 0 | BB56: 1 | BC56: 0 | BD56: 1 | BE56: 1 | BF56: 1 | BG56: 0 | BH56: 0 | BI56: 1 | BJ56: 3 | BK56: 0 | BL56: 1 | BM56: 2 | BN56: 0 | BO56: 3 | BP56: 0 | BQ56: 3 | BR56: 1 | BS56: 16 | BT56: 0 | BV56: 20. august | CE56: -633 | CH56: -1513 | CI56: Ja | CJ56: Nej | CK56: Ja | CL56: Nej | CM56: Ja | CN56: Ja | CO56: Ja | CP56: Nej | CQ56: Nej | CR56: Brugbar | CS56: Meget god | CT56: Nej | CU56: Middel | CV56: God | CW56: Nej | CX56: Aldrig | CY56: Nej | CZ56: Meget god | DA56: Ja | DC56: 0 | DE56: 20. august | DN56: -633 | DR56: 2289169 | DS56: 1 | DT56: 0 | DU56: 1 | DV56: 0 | DW56: 1 | DX56: 1 | DY56: 1 | DZ56: 0 | EA56: 0 | EB56: 1 | EC56: 9 | ED56: 0 | EE56: 1 | EF56: 4 | EG56: 0 | EH56: 9 | EI56: 0 | EJ56: 9 | EK56: 1 | EL56: 256 | FB56: -0.9420331754 | FC56: 0 | FD56: -0.3651483717 | FE56: 0.8366600265 | FF56: -0.6454972244 | FG56: 0 | FH56: 0 | FI56: 0 | FJ56: 0 | FK56: -0.6061281254 | FL56: -0.05063696835 | FM56: 0.5958795715 | FN56: -0.7385489459 | FO56: -1.17317692 | FP56: 0.5547001962 | FQ56: -1.699750259 | FR56: 0.5417363389 | FS56: -0.3651483717 | FT56: 1.027105182 | FU56: 0.8222264518 | FV56: -0.2001112038 | GI56: 237942.8444 | GJ56: 237942.8444 | GK56: 0 | GL56: 237942.8444 | GM56: 12 | GS56: 1 | GT56: 32 | GV56: 16 | GZ56: Rødkløver/strandsvingel | HA56: 1. august | HB56: Brugbar | HC56: Ja | HD56: Stor | HE56: -1355 | HF56: - | HG56: Mod visse | HH56: Aldrig | HI56: Nej | HJ56: Meget god | HK56: Nej | HL56: Nej | HM56: Ja | HN56: Nej | HO56: Nej | HP56: Ja | HQ56: Ja | HR56: Ja | HS56: Ja | HT56: Nej | HU56: Brugbar | HW56: 0 | IH56: Efterafgrøder
A57: 17 | B57: Gul Lupin | E57: =IF('Efterafgrøde beslutningsstøtte'!A$7<>"Pligtig mellemafgrøde",HYPERLINK("https://dyrk-plant.dlbr.dk/Web/(S(ikevr3oqnx5oe2t5cyfyknyq))/forms/Main.aspx?page=Vejledning&cropID=226","Efterafgrøder"),HYPERLINK("https://dyrk-plant.dlbr.dk/Web/(S(0x3ftyiaahcpttq0ljebuany))/forms/Main.aspx?page=Vejledning&cropID=238","Mellemafgrøder")) -> Efterafgrøder | F57: xx | G57: xx | H57: xx | I57: xx | J57: xx | K57: xx | L57: xx | M57: xx | N57: xx | O57: xx | P57: xx | Q57: xx | R57: xx | S57: xx | T57: xx | U57: xx | V57: xx | W57: xx | X57: xx | Y57: xx | Z57: xx | AA57: xx | AB57: xx | AD57: xx | AL57: xx | AY57: xx | AZ57: xx | BA57: xx | BB57: xx | BC57: xx | BD57: xx | BE57: xx | BF57: xx | BG57: xx | BH57: xx | BI57: xx | BJ57: xx | BK57: xx | BL57: xx | BM57: xx | BN57: xx | BO57: xx | BP57: xx | BQ57: xx | BR57: =Z57 -> xx | BS57: =AA57 -> xx | BT57: =AB57 -> xx | BV57: xx | CE57: xx | CH57: xx | CI57: xx | CJ57: xx | CK57: xx | CL57: xx | CM57: xx | CN57: xx | CO57: xx | CP57: xx | CQ57: xx | CR57: xx | CS57: xx | CT57: xx | CU57: xx | CV57: xx | CW57: xx | CX57: xx | CY57: xx | CZ57: xx | DA57: xx | DC57: xx | DE57: xx | DN57: xx | DR57: xx | DS57: xx | DT57: xx | DU57: xx | DV57: xx | DW57: xx | DX57: xx | DY57: xx | DZ57: xx | EA57: xx | EB57: xx | EC57: xx | ED57: xx | EE57: xx | EF57: xx | EG57: xx | EH57: xx | EI57: xx | EJ57: xx | EK57: xx | EL57: xx | FB57: xx | FC57: xx | FD57: xx | FE57: xx | FF57: xx | FG57: xx | FH57: xx | FI57: xx | FJ57: xx | FK57: xx | FL57: xx | FM57: xx | FN57: xx | FO57: xx | FP57: xx | FQ57: xx | FR57: xx | FS57: xx | FT57: xx | FU57: xx | FV57: xx | GI57: 0 | GJ57: xx | GK57: xx | GL57: xx | GM57: 99 | GS57: =COUNTIF($GM$41:$GM$112,GV57) -> 1 | GT57: 7 | GV57: 17 | GZ57: Triticale/Gul Sennep | HA57: 1. august | HB57: Brugbar | HC57: Nej | HD57: Middel | HE57: -647 | HF57: - | HG57: Nej | HH57: Aldrig | HI57: Nej | HJ57: Udvintrer | HK57: Nej | HL57: Nej | HM57: Ja | HN57: Nej | HO57: Nej | HP57: Nej | HQ57: Ja | HR57: Ja | HS57: Ja | HT57: Nej | HU57: Meget god | HW57: 0 | IH57: Efterafgrøder
A58: 18 | B58: Vårbyg | E58: =IF('Efterafgrøde beslutningsstøtte'!A$7<>"Pligtig mellemafgrøde",HYPERLINK("https://dyrk-plant.dlbr.dk/Web/(S(ikevr3oqnx5oe2t5cyfyknyq))/forms/Main.aspx?page=Vejledning&cropID=226","Efterafgrøder"),HYPERLINK("https://dyrk-plant.dlbr.dk/Web/(S(0x3ftyiaahcpttq0ljebuany))/forms/Main.aspx?page=Vejledning&cropID=238","Mellemafgrøder")) -> Efterafgrøder | F58: -877 | G58: 1 | H58: 0 | I58: 1 | J58: 0 | K58: 1 | L58: 1 | M58: 1 | N58: 0 | O58: 0 | P58: 0 | Q58: 3 | R58: 0 | S58: 1 | T58: 0 | U58: 3 | V58: 3 | W58: 0 | X58: 0 | Y58: 1 | Z58: 1 | AA58: 18 | AB58: 0 | AD58: 20. august | AL58: -657 | AY58: -877 | AZ58: 1 | BA58: 0 | BB58: 1 | BC58: 0 | BD58: 1 | BE58: 1 | BF58: 1 | BG58: 0 | BH58: 0 | BI58: 0 | BJ58: 3 | BK58: 0 | BL58: 1 | BM58: 0 | BN58: 3 | BO58: 3 | BP58: 0 | BQ58: 1 | BR58: 1 | BS58: 18 | BT58: 0 | BV58: 20. august | CE58: -657 | CH58: -877 | CI58: Ja | CJ58: Nej | CK58: Ja | CL58: Nej | CM58: Ja | CN58: Ja | CO58: Ja | CP58: Nej | CQ58: Nej | CR58: Nej | CS58: Meget god | CT58: Nej | CU58: Middel | CV58: Nej | CW58: Mod de fleste | CX58: Aldrig | CY58: Nej | CZ58: Dårlig | DA58: Ja | DC58: 0 | DE58: 20. august | DN58: -657 | DR58: 769129 | DS58: 1 | DT58: 0 | DU58: 1 | DV58: 0 | DW58: 1 | DX58: 1 | DY58: 1 | DZ58: 0 | EA58: 0 | EB58: 0 | EC58: 9 | ED58: 0 | EE58: 1 | EF58: 0 | EG58: 9 | EH58: 9 | EI58: 0 | EJ58: 1 | EK58: 1 | EL58: 324 | FB58: 0.1897255548 | FC58: 0 | FD58: -0.3651483717 | FE58: 0.8366600265 | FF58: -0.6454972244 | FG58: 0 | FH58: 0 | FI58: 0 | FJ58: 0 | FK58: -0.6061281254 | FL58: -0.9114654304 | FM58: 0.5958795715 | FN58: -0.7385489459 | FO58: -1.17317692 | FP58: -1.01695036 | FQ58: 0.7770286899 | FR58: 0.5417363389 | FS58: -0.3651483717 | FT58: -0.4279604925 | FU58: 0.8222264518 | FV58: -0.0111172891 | GI58: 238035.7269 | GJ58: 238035.7269 | GK58: 0 | GL58: 238035.7269 | GM58: 11 | GS58: 0 | GT58: xx | GV58: 18 | GZ58: xx | HA58: xx | HB58: xx | HC58: xx | HD58: xx | HE58: xx | HF58: xx | HG58: xx | HH58: xx | HI58: xx | HJ58: xx | HK58: xx | HL58: xx | HM58: xx | HN58: xx | HO58: xx | HP58: xx | HQ58: xx | HR58: xx | HS58: xx | HT58: xx | HU58: xx | HW58: xx | IH58: xx
A59: 19 | B59: vårbyg/fodervikke | E59: =IF('Efterafgrøde beslutningsstøtte'!A$7<>"Pligtig mellemafgrøde",HYPERLINK("https://dyrk-plant.dlbr.dk/Web/(S(ikevr3oqnx5oe2t5cyfyknyq))/forms/Main.aspx?page=Vejledning&cropID=226","Efterafgrøder"),HYPERLINK("https://dyrk-plant.dlbr.dk/Web/(S(0x3ftyiaahcpttq0ljebuany))/forms/Main.aspx?page=Vejledning&cropID=238","Mellemafgrøder")) -> Efterafgrøder | F59: xx | G59: xx | H59: xx | I59: xx | J59: xx | K59: xx | L59: xx | M59: xx | N59: xx | O59: xx | P59: xx | Q59: xx | R59: xx | S59: xx | T59: xx | U59: xx | V59: xx | W59: xx | X59: xx | Y59: xx | Z59: xx | AA59: xx | AB59: xx | AD59: xx | AL59: xx | AY59: xx | AZ59: xx | BA59: xx | BB59: xx | BC59: xx | BD59: xx | BE59: xx | BF59: xx | BG59: xx | BH59: xx | BI59: xx | BJ59: xx | BK59: xx | BL59: xx | BM59: xx | BN59: xx | BO59: xx | BP59: xx | BQ59: xx | BR59: xx | BS59: xx | BT59: xx | BV59: xx | CE59: xx | CH59: xx | CI59: xx | CJ59: xx | CK59: xx | CL59: xx | CM59: xx | CN59: xx | CO59: xx | CP59: xx | CQ59: xx | CR59: xx | CS59: xx | CT59: xx | CU59: xx | CV59: xx | CW59: xx | CX59: xx | CY59: xx | CZ59: xx | DA59: xx | DC59: xx | DE59: xx | DN59: xx | DR59: xx | DS59: xx | DT59: xx | DU59: xx | DV59: xx | DW59: xx | DX59: xx | DY59: xx | DZ59: xx | EA59: xx | EB59: xx | EC59: xx | ED59: xx | EE59: xx | EF59: xx | EG59: xx | EH59: xx | EI59: xx | EJ59: xx | EK59: xx | EL59: xx | FB59: xx | FC59: xx | FD59: xx | FE59: xx | FF59: xx | FG59: xx | FH59: xx | FI59: xx | FJ59: xx | FK59: xx | FL59: xx | FM59: xx | FN59: xx | FO59: xx | FP59: xx | FQ59: xx | FR59: xx | FS59: xx | FT59: xx | FU59: xx | FV59: xx | GI59: 0 | GJ59: xx | GK59: xx | GL59: xx | GM59: 99 | GS59: 0 | GT59: xx | GV59: 19 | GZ59: xx | HA59: xx | HB59: xx | HC59: xx | HD59: xx | HE59: xx | HF59: xx | HG59: xx | HH59: xx | HI59: xx | HJ59: xx | HK59: xx | HL59: xx | HM59: xx | HN59: xx | HO59: xx | HP59: xx | HQ59: xx | HR59: xx | HS59: xx | HT59: xx | HU59: xx | HW59: xx | IH59: xx
A60: 20 | B60: Vinterrug | E60: =IF('Efterafgrøde beslutningsstøtte'!A$7<>"Pligtig mellemafgrøde",HYPERLINK("https://dyrk-plant.dlbr.dk/Web/(S(ikevr3oqnx5oe2t5cyfyknyq))/forms/Main.aspx?page=Vejledning&cropID=226","Efterafgrøder"),HYPERLINK("https://dyrk-plant.dlbr.dk/Web/(S(0x3ftyiaahcpttq0ljebuany))/forms/Main.aspx?page=Vejledning&cropID=238","Mellemafgrøder")) -> Efterafgrøder | F60: -849 | G60: 1 | H60: 0 | I60: 1 | J60: 0 | K60: 1 | L60: 1 | M60: 1 | N60: 0 | O60: 0 | P60: 1 | Q60: 3 | R60: 0 | S60: 1 | T60: 1 | U60: 3 | V60: 3 | W60: 0 | X60: 0 | Y60: 3 | Z60: 1 | AA60: 20 | AB60: 0 | AD60: 20. august | AL60: -409 | AY60: -849 | AZ60: 1 | BA60: 0 | BB60: 1 | BC60: 0 | BD60: 1 | BE60: 1 | BF60: 1 | BG60: 0 | BH60: 0 | BI60: 1 | BJ60: 3 | BK60: 0 | BL60: 1 | BM60: 1 | BN60: 3 | BO60: 3 | BP60: 0 | BQ60: 3 | BR60: 1 | BS60: 20 | BT60: 0 | BV60: 20. august | CE60: -409 | CH60: -849 | CI60: Ja | CJ60: Nej | CK60: Ja | CL60: Nej | CM60: Ja | CN60: Ja | CO60: Ja | CP60: Nej | CQ60: Nej | CR60: Brugbar | CS60: Meget god | CT60: Nej | CU60: Middel | CV60: Rimelig | CW60: Mod de fleste | CX60: Aldrig | CY60: Nej | CZ60: Meget god | DA60: Ja | DC60: 0 | DE60: 20. august | DN60: -409 | DR60: 720801 | DS60: 1 | DT60: 0 | DU60: 1 | DV60: 0 | DW60: 1 | DX60: 1 | DY60: 1 | DZ60: 0 | EA60: 0 | EB60: 1 | EC60: 9 | ED60: 0 | EE60: 1 | EF60: 1 | EG60: 9 | EH60: 9 | EI60: 0 | EJ60: 9 | EK60: 1 | EL60: 400 | FB60: 0.2395514108 | FC60: 0 | FD60: -0.3651483717 | FE60: 0.8366600265 | FF60: -0.6454972244 | FG60: 0 | FH60: 0 | FI60: 0 | FJ60: 0 | FK60: -0.6061281254 | FL60: -0.05063696835 | FM60: 0.5958795715 | FN60: -0.7385489459 | FO60: -1.17317692 | FP60: -0.2311250818 | FQ60: 0.7770286899 | FR60: 0.5417363389 | FS60: -0.3651483717 | FT60: 1.027105182 | FU60: 0.8222264518 | FV60: 0.1778766256 | GI60: 238064.3911 | GJ60: 238064.3911 | GK60: 0 | GL60: 238064.3911 | GM60: 9 | GS60: 0 | GT60: =IF(GS60>0,MATCH(GV60,$GM$41:$GM$112,0),"xx") -> xx | GV60: 20 | GZ60: xx | HA60: xx | HB60: xx | HC60: xx | HD60: xx | HE60: xx | HF60: xx | HG60: xx | HH60: xx | HI60: xx | HJ60: xx | HK60: xx | HL60: xx | HM60: xx | HN60: xx | HO60: xx | HP60: xx | HQ60: xx | HR60: xx | HS60: xx | HT60: xx | HU60: xx | HW60: xx | IH60: xx
A61: 21 | B61: Olierædikke/gul sennep | E61: =IF('Efterafgrøde beslutningsstøtte'!A$7<>"Pligtig mellemafgrøde",HYPERLINK("https://dyrk-plant.dlbr.dk/Web/(S(ikevr3oqnx5oe2t5cyfyknyq))/forms/Main.aspx?page=Vejledning&cropID=226","Efterafgrøder"),HYPERLINK("https://dyrk-plant.dlbr.dk/Web/(S(0x3ftyiaahcpttq0ljebuany))/forms/Main.aspx?page=Vejledning&cropID=238","Mellemafgrøder")) -> Efterafgrøder | F61: =VLOOKUP($A61,Karaktermatrice,F$38,FALSE) -> xx | G61: xx | H61: xx | I61: xx | J61: xx | K61: xx | L61: xx | M61: xx | N61: xx | O61: xx | P61: =VLOOKUP($A61,Karaktermatrice,P$38,FALSE) -> xx | Q61: xx | R61: xx | S61: xx | T61: xx | U61: xx | V61: xx | W61: xx | X61: xx | Y61: xx | Z61: xx | AA61: xx | AB61: xx | AD61: xx | AL61: xx | AY61: xx | AZ61: xx | BA61: xx | BB61: xx | BC61: xx | BD61: xx | BE61: xx | BF61: xx | BG61: xx | BH61: xx | BI61: xx | BJ61: xx | BK61: xx | BL61: xx | BM61: xx | BN61: xx | BO61: xx | BP61: xx | BQ61: xx | BR61: xx | BS61: xx | BT61: xx | BV61: xx | CE61: xx | CH61: xx | CI61: xx | CJ61: xx | CK61: xx | CL61: xx | CM61: xx | CN61: xx | CO61: xx | CP61: xx | CQ61: xx | CR61: xx | CS61: xx | CT61: xx | CU61: xx | CV61: xx | CW61: xx | CX61: xx | CY61: xx | CZ61: xx | DA61: xx | DC61: xx | DE61: xx | DN61: xx | DR61: xx | DS61: xx | DT61: xx | DU61: xx | DV61: xx | DW61: xx | DX61: xx | DY61: xx | DZ61: xx | EA61: xx | EB61: xx | EC61: xx | ED61: xx | EE61: xx | EF61: xx | EG61: xx | EH61: xx | EI61: xx | EJ61: xx | EK61: xx | EL61: xx | FB61: xx | FC61: xx | FD61: xx | FE61: xx | FF61: xx | FG61: xx | FH61: xx | FI61: xx | FJ61: xx | FK61: xx | FL61: xx | FM61: xx | FN61: xx | FO61: xx | FP61: xx | FQ61: xx | FR61: xx | FS61: xx | FT61: xx | FU61: xx | FV61: xx | GI61: 0 | GJ61: xx | GK61: xx | GL61: xx | GM61: 99 | GS61: 0 | GT61: xx | GV61: 21 | GZ61: xx | HA61: xx | HB61: xx | HC61: xx | HD61: xx | HE61: xx | HF61: xx | HG61: xx | HH61: xx | HI61: xx | HJ61: xx | HK61: xx | HL61: xx | HM61: xx | HN61: xx | HO61: xx | HP61: xx | HQ61: xx | HR61: xx | HS61: xx | HT61: xx | HU61: xx | HW61: xx | IH61: xx
A62: 22 | B62: Blanding med bælgsæd overvintrene | E62: =IF('Efterafgrøde beslutningsstøtte'!A$7<>"Pligtig mellemafgrøde",HYPERLINK("https://dyrk-plant.dlbr.dk/Web/(S(ikevr3oqnx5oe2t5cyfyknyq))/forms/Main.aspx?page=Vejledning&cropID=226","Efterafgrøder"),HYPERLINK("https://dyrk-plant.dlbr.dk/Web/(S(0x3ftyiaahcpttq0ljebuany))/forms/Main.aspx?page=Vejledning&cropID=238","Mellemafgrøder")) -> Efterafgrøder | F62: xx | G62: xx | H62: xx | I62: xx | J62: xx | K62: xx | L62: xx | M62: xx | N62: xx | O62: xx | P62: xx | Q62: xx | R62: xx | S62: xx | T62: xx | U62: xx | V62: xx | W62: xx | X62: xx | Y62: xx | Z62: xx | AA62: xx | AB62: xx | AD62: xx | AL62: xx | AY62: xx | AZ62: xx | BA62: xx | BB62: xx | BC62: xx | BD62: xx | BE62: xx | BF62: xx | BG62: xx | BH62: xx | BI62: xx | BJ62: xx | BK62: xx | BL62: xx | BM62: xx | BN62: xx | BO62: xx | BP62: xx | BQ62: xx | BR62: xx | BS62: xx | BT62: xx | BV62: xx | CE62: xx | CH62: xx | CI62: xx | CJ62: xx | CK62: xx | CL62: xx | CM62: xx | CN62: xx | CO62: xx | CP62: xx | CQ62: xx | CR62: xx | CS62: xx | CT62: xx | CU62: xx | CV62: xx | CW62: xx | CX62: xx | CY62: xx | CZ62: xx | DA62: xx | DC62: xx | DE62: xx | DN62: xx | DR62: xx | DS62: xx | DT62: xx | DU62: xx | DV62: xx | DW62: xx | DX62: xx | DY62: xx | DZ62: xx | EA62: xx | EB62: xx | EC62: xx | ED62: xx | EE62: xx | EF62: xx | EG62: xx | EH62: xx | EI62: xx | EJ62: xx | EK62: xx | EL62: xx | FB62: xx | FC62: xx | FD62: xx | FE62: xx | FF62: xx | FG62: xx | FH62: xx | FI62: xx | FJ62: xx | FK62: xx | FL62: xx | FM62: xx | FN62: xx | FO62: xx | FP62: xx | FQ62: xx | FR62: xx | FS62: xx | FT62: xx | FU62: xx | FV62: xx | GI62: 0 | GJ62: xx | GK62: xx | GL62: xx | GM62: 99 | GS62: 0 | GT62: xx | GV62: 22 | GZ62: xx | HA62: xx | HB62: xx | HC62: xx | HD62: xx | HE62: xx | HF62: xx | HG62: xx | HH62: xx | HI62: xx | HJ62: xx | HK62: xx | HL62: xx | HM62: xx | HN62: xx | HO62: xx | HP62: xx | HQ62: xx | HR62: xx | HS62: xx | HT62: xx | HU62: xx | HW62: xx | IH62: xx
A63: 23 | B63: Blanding uden bælgsæd udvintrene | E63: =IF('Efterafgrøde beslutningsstøtte'!A$7<>"Pligtig mellemafgrøde",HYPERLINK("https://dyrk-plant.dlbr.dk/Web/(S(ikevr3oqnx5oe2t5cyfyknyq))/forms/Main.aspx?page=Vejledning&cropID=226","Efterafgrøder"),HYPERLINK("https://dyrk-plant.dlbr.dk/Web/(S(0x3ftyiaahcpttq0ljebuany))/forms/Main.aspx?page=Vejledning&cropID=238","Mellemafgrøder")) -> Efterafgrøder | F63: xx | G63: xx | H63: xx | I63: xx | J63: xx | K63: xx | L63: xx | M63: xx | N63: xx | O63: xx | P63: xx | Q63: xx | R63: xx | S63: xx | T63: xx | U63: xx | V63: xx | W63: xx | X63: xx | Y63: xx | Z63: xx | AA63: xx | AB63: xx | AD63: xx | AL63: xx | AY63: xx | AZ63: xx | BA63: xx | BB63: xx | BC63: xx | BD63: xx | BE63: xx | BF63: xx | BG63: xx | BH63: xx | BI63: xx | BJ63: xx | BK63: xx | BL63: xx | BM63: xx | BN63: xx | BO63: xx | BP63: xx | BQ63: xx | BR63: xx | BS63: xx | BT63: xx | BV63: xx | CE63: xx | CH63: xx | CI63: xx | CJ63: xx | CK63: xx | CL63: xx | CM63: xx | CN63: xx | CO63: xx | CP63: xx | CQ63: xx | CR63: xx | CS63: xx | CT63: xx | CU63: xx | CV63: xx | CW63: xx | CX63: xx | CY63: xx | CZ63: xx | DA63: xx | DC63: xx | DE63: xx | DN63: xx | DR63: xx | DS63: xx | DT63: xx | DU63: xx | DV63: xx | DW63: xx | DX63: xx | DY63: xx | DZ63: xx | EA63: xx | EB63: xx | EC63: xx | ED63: xx | EE63: xx | EF63: xx | EG63: xx | EH63: xx | EI63: xx | EJ63: xx | EK63: xx | EL63: xx | FB63: xx | FC63: xx | FD63: xx | FE63: xx | FF63: xx | FG63: xx | FH63: xx | FI63: xx | FJ63: xx | FK63: xx | FL63: xx | FM63: xx | FN63: xx | FO63: xx | FP63: xx | FQ63: xx | FR63: xx | FS63: xx | FT63: xx | FU63: xx | FV63: xx | GI63: 0 | GJ63: xx | GK63: xx | GL63: xx | GM63: 99 | GS63: 0 | GT63: xx | GV63: 23 | GZ63: xx | HA63: xx | HB63: xx | HC63: xx | HD63: xx | HE63: xx | HF63: xx | HG63: xx | HH63: xx | HI63: xx | HJ63: xx | HK63: xx | HL63: xx | HM63: xx | HN63: xx | HO63: xx | HP63: xx | HQ63: xx | HR63: xx | HS63: xx | HT63: xx | HU63: xx | HW63: xx | IH63: xx
A64: 24 | B64: Cikorie | E64: =IF('Efterafgrøde beslutningsstøtte'!A$7<>"Pligtig mellemafgrøde",HYPERLINK("https://dyrk-plant.dlbr.dk/Web/(S(ikevr3oqnx5oe2t5cyfyknyq))/forms/Main.aspx?page=Vejledning&cropID=226","Efterafgrøder"),HYPERLINK("https://dyrk-plant.dlbr.dk/Web/(S(0x3ftyiaahcpttq0ljebuany))/forms/Main.aspx?page=Vejledning&cropID=238","Mellemafgrøder")) -> Efterafgrøder | F64: xx | G64: xx | H64: xx | I64: xx | J64: xx | K64: xx | L64: xx | M64: xx | N64: xx | O64: xx | P64: xx | Q64: xx | R64: xx | S64: xx | T64: xx | U64: xx | V64: xx | W64: xx | X64: xx | Y64: xx | Z64: xx | AA64: xx | AB64: xx | AD64: xx | AL64: xx | AY64: xx | AZ64: xx | BA64: xx | BB64: xx | BC64: xx | BD64: xx | BE64: xx | BF64: xx | BG64: xx | BH64: xx | BI64: xx | BJ64: xx | BK64: xx | BL64: xx | BM64: xx | BN64: xx | BO64: xx | BP64: xx | BQ64: xx | BR64: xx | BS64: xx | BT64: xx | BV64: xx | CE64: xx | CH64: xx | CI64: xx | CJ64: xx | CK64: xx | CL64: xx | CM64: xx | CN64: xx | CO64: xx | CP64: xx | CQ64: xx | CR64: xx | CS64: xx | CT64: xx | CU64: xx | CV64: xx | CW64: xx | CX64: xx | CY64: xx | CZ64: xx | DA64: xx | DC64: xx | DE64: xx | DN64: xx | DR64: xx | DS64: xx | DT64: xx | DU64: xx | DV64: xx | DW64: xx | DX64: xx | DY64: xx | DZ64: xx | EA64: xx | EB64: xx | EC64: xx | ED64: xx | EE64: xx | EF64: xx | EG64: xx | EH64: xx | EI64: xx | EJ64: xx | EK64: xx | EL64: xx | FB64: xx | FC64: xx | FD64: xx | FE64: xx | FF64: xx | FG64: xx | FH64: xx | FI64: xx | FJ64: xx | FK64: xx | FL64: xx | FM64: xx | FN64: xx | FO64: xx | FP64: xx | FQ64: xx | FR64: xx | FS64: xx | FT64: xx | FU64: xx | FV64: xx | GI64: 0 | GJ64: xx | GK64: xx | GL64: xx | GM64: 99 | GS64: 0 | GT64: xx | GV64: 24 | GZ64: xx | HA64: xx | HB64: xx | HC64: xx | HD64: xx | HE64: xx | HF64: xx | HG64: xx | HH64: xx | HI64: xx | HJ64: xx | HK64: xx | HL64: xx | HM64: xx | HN64: xx | HO64: xx | HP64: xx | HQ64: xx | HR64: xx | HS64: xx | HT64: xx | HU64: xx | HW64: xx | IH64: xx
A65: 25 | B65: Honningurt | E65: =IF('Efterafgrøde beslutningsstøtte'!A$7<>"Pligtig mellemafgrøde",HYPERLINK("https://dyrk-plant.dlbr.dk/Web/(S(ikevr3oqnx5oe2t5cyfyknyq))/forms/Main.aspx?page=Vejledning&cropID=226","Efterafgrøder"),HYPERLINK("https://dyrk-plant.dlbr.dk/Web/(S(0x3ftyiaahcpttq0ljebuany))/forms/Main.aspx?page=Vejledning&cropID=238","Mellemafgrøder")) -> Efterafgrøder | F65: -2302 | G65: 1 | H65: 0 | I65: 1 | J65: 0 | K65: 1 | L65: 1 | M65: 1 | N65: 0 | O65: 0 | P65: 0 | Q65: 3 | R65: 0 | S65: 2 | T65: 3 | U65: 3 | V65: 3 | W65: 0 | X65: 0 | Y65: 0 | Z65: 0 | AA65: 25 | AB65: 0 | AD65: 20. august | AL65: -2082 | AY65: -2302 | AZ65: 1 | BA65: 0 | BB65: 1 | BC65: 0 | BD65: 1 | BE65: 1 | BF65: 1 | BG65: 0 | BH65: 0 | BI65: 0 | BJ65: 3 | BK65: 0 | BL65: 2 | BM65: 3 | BN65: 3 | BO65: 3 | BP65: 0 | BQ65: 0 | BR65: 0 | BS65: 25 | BT65: 0 | BV65: 20. august | CE65: -2082 | CH65: -2302 | CI65: Ja | CJ65: Nej | CK65: Ja | CL65: Nej | CM65: Ja | CN65: Ja | CO65: Ja | CP65: Nej | CQ65: Nej | CR65: Nej | CS65: Meget god | CT65: Nej | CU65: Over middel | CV65: Meget god | CW65: Mod de fleste | CX65: Aldrig | CY65: Nej | CZ65: Udvintrer | DA65: Nej | DC65: 0 | DE65: 20. august | DN65: -2082 | DR65: 5299204 | DS65: 1 | DT65: 0 | DU65: 1 | DV65: 0 | DW65: 1 | DX65: 1 | DY65: 1 | DZ65: 0 | EA65: 0 | EB65: 0 | EC65: 9 | ED65: 0 | EE65: 4 | EF65: 9 | EG65: 9 | EH65: 9 | EI65: 0 | EJ65: 0 | EK65: 0 | EL65: 625 | FB65: -2.346054619 | FC65: 0 | FD65: -0.3651483717 | FE65: 0.8366600265 | FF65: -0.6454972244 | FG65: 0 | FH65: 0 | FI65: 0 | FJ65: 0 | FK65: -0.6061281254 | FL65: -0.9114654304 | FM65: 0.5958795715 | FN65: -0.7385489459 | FO65: 0.07332355751 | FP65: 1.340525474 | FQ65: 0.7770286899 | FR65: 0.5417363389 | FS65: -0.3651483717 | FT65: -1.15549333 | FU65: -0.3425943549 | FV65: 0.6503614123 | GI65: 238415.344 | GJ65: 238415.344 | GK65: 0 | GL65: 238415.344 | GM65: 8 | GS65: 0 | GT65: xx | GV65: 25 | GZ65: xx | HA65: xx | HB65: xx | HC65: xx | HD65: xx | HE65: xx | HF65: xx | HG65: xx | HH65: xx | HI65: xx | HJ65: xx | HK65: xx | HL65: xx | HM65: xx | HN65: xx | HO65: xx | HP65: xx | HQ65: xx | HR65: xx | HS65: xx | HT65: xx | HU65: xx | HW65: xx | IH65: xx
A66: 26 | B66: Fodervikke | E66: =IF('Efterafgrøde beslutningsstøtte'!A$7<>"Pligtig mellemafgrøde",HYPERLINK("https://dyrk-plant.dlbr.dk/Web/(S(ikevr3oqnx5oe2t5cyfyknyq))/forms/Main.aspx?page=Vejledning&cropID=226","Efterafgrøder"),HYPERLINK("https://dyrk-plant.dlbr.dk/Web/(S(0x3ftyiaahcpttq0ljebuany))/forms/Main.aspx?page=Vejledning&cropID=238","Mellemafgrøder")) -> Efterafgrøder | F66: xx | G66: xx | H66: xx | I66: xx | J66: xx | K66: xx | L66: xx | M66: xx | N66: xx | O66: xx | P66: xx | Q66: xx | R66: xx | S66: xx | T66: xx | U66: xx | V66: xx | W66: xx | X66: xx | Y66: xx | Z66: xx | AA66: xx | AB66: xx | AD66: xx | AL66: xx | AY66: xx | AZ66: xx | BA66: xx | BB66: xx | BC66: xx | BD66: xx | BE66: xx | BF66: xx | BG66: xx | BH66: xx | BI66: xx | BJ66: xx | BK66: xx | BL66: xx | BM66: xx | BN66: xx | BO66: xx | BP66: xx | BQ66: xx | BR66: xx | BS66: xx | BT66: xx | BV66: xx | CE66: xx | CH66: xx | CI66: xx | CJ66: xx | CK66: xx | CL66: xx | CM66: xx | CN66: xx | CO66: xx | CP66: xx | CQ66: xx | CR66: xx | CS66: xx | CT66: xx | CU66: xx | CV66: xx | CW66: xx | CX66: xx | CY66: xx | CZ66: xx | DA66: xx | DC66: xx | DE66: xx | DN66: xx | DR66: xx | DS66: xx | DT66: xx | DU66: xx | DV66: xx | DW66: xx | DX66: xx | DY66: xx | DZ66: xx | EA66: xx | EB66: xx | EC66: xx | ED66: xx | EE66: xx | EF66: xx | EG66: xx | EH66: xx | EI66: xx | EJ66: xx | EK66: xx | EL66: xx | FB66: xx | FC66: xx | FD66: xx | FE66: xx | FF66: xx | FG66: xx | FH66: xx | FI66: xx | FJ66: xx | FK66: xx | FL66: xx | FM66: xx | FN66: xx | FO66: xx | FP66: xx | FQ66: xx | FR66: xx | FS66: xx | FT66: xx | FU66: xx | FV66: xx | GI66: 0 | GJ66: xx | GK66: xx | GL66: xx | GM66: 99 | GS66: 0 | GT66: xx | GV66: 26 | GZ66: xx | HA66: xx | HB66: xx | HC66: xx | HD66: xx | HE66: xx | HF66: xx | HG66: xx | HH66: xx | HI66: xx | HJ66: xx | HK66: xx | HL66: xx | HM66: xx | HN66: xx | HO66: xx | HP66: xx | HQ66: xx | HR66: xx | HS66: xx | HT66: xx | HU66: xx | HW66: xx | IH66: xx
A67: 27 | B67: Vintervikke | E67: =IF('Efterafgrøde beslutningsstøtte'!A$7<>"Pligtig mellemafgrøde",HYPERLINK("https://dyrk-plant.dlbr.dk/Web/(S(ikevr3oqnx5oe2t5cyfyknyq))/forms/Main.aspx?page=Vejledning&cropID=226","Efterafgrøder"),HYPERLINK("https://dyrk-plant.dlbr.dk/Web/(S(0x3ftyiaahcpttq0ljebuany))/forms/Main.aspx?page=Vejledning&cropID=238","Mellemafgrøder")) -> Efterafgrøder | F67: xx | G67: xx | H67: xx | I67: xx | J67: xx | K67: xx | L67: xx | M67: xx | N67: xx | O67: xx | P67: xx | Q67: xx | R67: xx | S67: xx | T67: xx | U67: xx | V67: xx | W67: xx | X67: xx | Y67: xx | Z67: xx | AA67: xx | AB67: xx | AD67: xx | AL67: xx | AY67: xx | AZ67: xx | BA67: xx | BB67: xx | BC67: xx | BD67: xx | BE67: xx | BF67: =M67 -> xx | BG67: xx | BH67: xx | BI67: xx | BJ67: xx | BK67: xx | BL67: xx | BM67: xx | BN67: xx | BO67: xx | BP67: xx | BQ67: xx | BR67: xx | BS67: xx | BT67: xx | BV67: xx | CE67: xx | CH67: xx | CI67: xx | CJ67: xx | CK67: xx | CL67: xx | CM67: xx | CN67: xx | CO67: xx | CP67: xx | CQ67: xx | CR67: xx | CS67: xx | CT67: xx | CU67: xx | CV67: xx | CW67: xx | CX67: xx | CY67: xx | CZ67: xx | DA67: xx | DC67: xx | DE67: xx | DN67: xx | DR67: xx | DS67: xx | DT67: xx | DU67: xx | DV67: xx | DW67: xx | DX67: xx | DY67: xx | DZ67: xx | EA67: xx | EB67: xx | EC67: xx | ED67: xx | EE67: xx | EF67: xx | EG67: xx | EH67: xx | EI67: xx | EJ67: xx | EK67: xx | EL67: xx | FB67: xx | FC67: xx | FD67: xx | FE67: xx | FF67: xx | FG67: xx | FH67: xx | FI67: xx | FJ67: xx | FK67: xx | FL67: xx | FM67: xx | FN67: xx | FO67: xx | FP67: xx | FQ67: xx | FR67: xx | FS67: xx | FT67: xx | FU67: xx | FV67: xx | GI67: 0 | GJ67: xx | GK67: xx | GL67: xx | GM67: 99 | GS67: 0 | GT67: xx | GV67: 27 | GZ67: xx | HA67: xx | HB67: xx | HC67: xx | HD67: xx | HE67: xx | HF67: xx | HG67: xx | HH67: xx | HI67: xx | HJ67: xx | HK67: xx | HL67: xx | HM67: xx | HN67: xx | HO67: xx | HP67: xx | HQ67: xx | HR67: xx | HS67: xx | HT67: xx | HU67: xx | HW67: xx | IH67: xx
A68: 28 | B68: Alexandrinekløver | E68: =IF('Efterafgrøde beslutningsstøtte'!A$7<>"Pligtig mellemafgrøde",HYPERLINK("https://dyrk-plant.dlbr.dk/Web/(S(ikevr3oqnx5oe2t5cyfyknyq))/forms/Main.aspx?page=Vejledning&cropID=226","Efterafgrøder"),HYPERLINK("https://dyrk-plant.dlbr.dk/Web/(S(0x3ftyiaahcpttq0ljebuany))/forms/Main.aspx?page=Vejledning&cropID=238","Mellemafgrøder")) -> Efterafgrøder | F68: xx | G68: xx | H68: xx | I68: xx | J68: xx | K68: xx | L68: xx | M68: xx | N68: xx | O68: xx | P68: xx | Q68: xx | R68: xx | S68: xx | T68: xx | U68: xx | V68: xx | W68: xx | X68: xx | Y68: xx | Z68: xx | AA68: xx | AB68: xx | AD68: xx | AL68: xx | AY68: xx | AZ68: xx | BA68: xx | BB68: xx | BC68: =J68 -> xx | BD68: xx | BE68: xx | BF68: xx | BG68: xx | BH68: xx | BI68: xx | BJ68: xx | BK68: xx | BL68: xx | BM68: xx | BN68: xx | BO68: xx | BP68: xx | BQ68: xx | BR68: xx | BS68: xx | BT68: xx | BV68: xx | CE68: xx | CH68: xx | CI68: xx | CJ68: xx | CK68: xx | CL68: xx | CM68: xx | CN68: xx | CO68: xx | CP68: xx | CQ68: xx | CR68: xx | CS68: xx | CT68: xx | CU68: xx | CV68: xx | CW68: xx | CX68: xx | CY68: xx | CZ68: xx | DA68: xx | DC68: xx | DE68: xx | DN68: xx | DR68: xx | DS68: xx | DT68: xx | DU68: xx | DV68: xx | DW68: xx | DX68: xx | DY68: xx | DZ68: xx | EA68: xx | EB68: xx | EC68: xx | ED68: xx | EE68: xx | EF68: xx | EG68: xx | EH68: xx | EI68: xx | EJ68: xx | EK68: xx | EL68: xx | FB68: xx | FC68: xx | FD68: xx | FE68: xx | FF68: xx | FG68: xx | FH68: xx | FI68: xx | FJ68: xx | FK68: xx | FL68: xx | FM68: xx | FN68: xx | FO68: xx | FP68: xx | FQ68: xx | FR68: xx | FS68: xx | FT68: xx | FU68: xx | FV68: xx | GI68: 0 | GJ68: xx | GK68: xx | GL68: xx | GM68: 99 | GS68: 0 | GT68: xx | GV68: 28 | GZ68: xx | HA68: xx | HB68: xx | HC68: xx | HD68: xx | HE68: xx | HF68: xx | HG68: xx | HH68: xx | HI68: xx | HJ68: xx | HK68: xx | HL68: xx | HM68: xx | HN68: xx | HO68: xx | HP68: xx | HQ68: xx | HR68: xx | HS68: xx | HT68: xx | HU68: xx | HW68: xx | IH68: xx
A69: 29 | B69: Hvidkløver | E69: =IF('Efterafgrøde beslutningsstøtte'!A$7<>"Pligtig mellemafgrøde",HYPERLINK("https://dyrk-plant.dlbr.dk/Web/(S(ikevr3oqnx5oe2t5cyfyknyq))/forms/Main.aspx?page=Vejledning&cropID=226","Efterafgrøder"),HYPERLINK("https://dyrk-plant.dlbr.dk/Web/(S(0x3ftyiaahcpttq0ljebuany))/forms/Main.aspx?page=Vejledning&cropID=238","Mellemafgrøder")) -> Efterafgrøder | F69: xx | G69: xx | H69: xx | I69: xx | J69: xx | K69: xx | L69: xx | M69: xx | N69: xx | O69: xx | P69: xx | Q69: xx | R69: xx | S69: xx | T69: xx | U69: xx | V69: xx | W69: xx | X69: xx | Y69: xx | Z69: xx | AA69: xx | AB69: xx | AD69: xx | AL69: xx | AY69: xx | AZ69: xx | BA69: xx | BB69: xx | BC69: xx | BD69: xx | BE69: xx | BF69: xx | BG69: xx | BH69: xx | BI69: xx | BJ69: xx | BK69: xx | BL69: xx | BM69: xx | BN69: xx | BO69: xx | BP69: xx | BQ69: xx | BR69: xx | BS69: xx | BT69: xx | BV69: xx | CE69: xx | CH69: xx | CI69: xx | CJ69: xx | CK69: xx | CL69: xx | CM69: xx | CN69: xx | CO69: xx | CP69: xx | CQ69: xx | CR69: xx | CS69: xx | CT69: xx | CU69: xx | CV69: xx | CW69: xx | CX69: xx | CY69: xx | CZ69: xx | DA69: xx | DC69: xx | DE69: xx | DN69: xx | DR69: xx | DS69: xx | DT69: xx | DU69: xx | DV69: xx | DW69: xx | DX69: xx | DY69: xx | DZ69: xx | EA69: xx | EB69: xx | EC69: xx | ED69: xx | EE69: xx | EF69: xx | EG69: xx | EH69: xx | EI69: xx | EJ69: xx | EK69: xx | EL69: xx | FB69: xx | FC69: xx | FD69: xx | FE69: xx | FF69: xx | FG69: xx | FH69: xx | FI69: xx | FJ69: xx | FK69: xx | FL69: xx | FM69: xx | FN69: xx | FO69: xx | FP69: xx | FQ69: xx | FR69: xx | FS69: xx | FT69: xx | FU69: xx | FV69: xx | GI69: 0 | GJ69: xx | GK69: xx | GL69: xx | GM69: 99 | GS69: 0 | GT69: xx | GV69: 29 | GZ69: xx | HA69: xx | HB69: xx | HC69: xx | HD69: =IF($GS69=0,"xx",INDEX($CH$41:$DN$112,$GT69,HD$12)) -> xx | HE69: xx | HF69: xx | HG69: xx | HH69: xx | HI69: xx | HJ69: xx | HK69: xx | HL69: xx | HM69: xx | HN69: xx | HO69: xx | HP69: xx | HQ69: xx | HR69: xx | HS69: xx | HT69: xx | HU69: xx | HW69: xx | IH69: xx
A70: 30 | B70: Olieræddike og vintervikke | E70: =IF('Efterafgrøde beslutningsstøtte'!A$7<>"Pligtig mellemafgrøde",HYPERLINK("https://dyrk-plant.dlbr.dk/Web/(S(ikevr3oqnx5oe2t5cyfyknyq))/forms/Main.aspx?page=Vejledning&cropID=226","Efterafgrøder"),HYPERLINK("https://dyrk-plant.dlbr.dk/Web/(S(0x3ftyiaahcpttq0ljebuany))/forms/Main.aspx?page=Vejledning&cropID=238","Mellemafgrøder")) -> Efterafgrøder | F70: -828 | G70: 1 | H70: 0 | I70: 0 | J70: 0 | K70: 1 | L70: 1 | M70: 1 | N70: 0 | O70: 0 | P70: 0 | Q70: 3 | R70: 1 | S70: 3 | T70: 3 | U70: 3 | V70: 2 | W70: 0 | X70: 0 | Y70: 0 | Z70: 0 | AA70: 30 | AB70: 0 | AD70: 20. august | AL70: 52 | AY70: =F70 -> -828 | AZ70: 1 | BA70: 0 | BB70: 0 | BC70: 0 | BD70: 1 | BE70: 1 | BF70: 1 | BG70: 0 | BH70: 0 | BI70: 0 | BJ70: 3 | BK70: 1 | BL70: 3 | BM70: 3 | BN70: 3 | BO70: 2 | BP70: 0 | BQ70: 0 | BR70: 0 | BS70: 30 | BT70: 0 | BV70: 20. august | CE70: 52 | CH70: -828 | CI70: Ja | CJ70: Nej | CK70: Nej | CL70: Nej | CM70: Ja | CN70: Ja | CO70: Ja | CP70: Nej | CQ70: Nej | CR70: Nej | CS70: Meget god | CT70: Ja | CU70: Stor | CV70: Meget god | CW70: Mod de fleste | CX70: I mindre grad | CY70: Nej | CZ70: Udvintrer | DA70: Nej | DC70: 0 | DE70: 20. august | DN70: 52 | DR70: 685584 | DS70: 1 | DT70: 0 | DU70: 0 | DV70: 0 | DW70: 1 | DX70: 1 | DY70: 1 | DZ70: 0 | EA70: 0 | EB70: 0 | EC70: 9 | ED70: 1 | EE70: 9 | EF70: 9 | EG70: 9 | EH70: 4 | EI70: 0 | EJ70: 0 | EK70: 0 | EL70: 900 | FB70: 0.2769208029 | FC70: 0 | FD70: -0.3651483717 | FE70: -1.195228609 | FF70: -0.6454972244 | FG70: 0 | FH70: 0 | FI70: 0 | FJ70: 0 | FK70: -0.6061281254 | FL70: -0.9114654304 | FM70: 0.5958795715 | FN70: 1.354006401 | FO70: 1.319824035 | FP70: 1.340525474 | FQ70: 0.7770286899 | FR70: -0.4815434123 | FS70: -0.3651483717 | FT70: -1.15549333 | FU70: -0.3425943549 | FV70: 1.122846199 | GI70: 239933.6839 | GJ70: =IF(FB70="xx","xx",GI70) -> 239933.6839 | GK70: 0 | GL70: 239933.6839 | GM70: 2 | GS70: =COUNTIF($GM$41:$GM$112,GV70) -> 0 | GT70: =IF(GS70>0,MATCH(GV70,$GM$41:$GM$112,0),"xx") -> xx | GV70: 30
A71: 31 | B71: Hvidkløver/alm. rajgræs | E71: =IF('Efterafgrøde beslutningsstøtte'!A$7<>"Pligtig mellemafgrøde",HYPERLINK("https://dyrk-plant.dlbr.dk/Web/(S(ikevr3oqnx5oe2t5cyfyknyq))/forms/Main.aspx?page=Vejledning&cropID=226","Efterafgrøder"),HYPERLINK("https://dyrk-plant.dlbr.dk/Web/(S(0x3ftyiaahcpttq0ljebuany))/forms/Main.aspx?page=Vejledning&cropID=238","Mellemafgrøder")) -> Efterafgrøder | F71: -185 | G71: 1 | H71: 0 | I71: 0 | J71: 1 | K71: 1 | L71: 1 | M71: 1 | N71: 0 | O71: 3 | P71: 3 | Q71: 2 | R71: 1 | S71: 3 | T71: 0 | U71: 1 | V71: 3 | W71: 0 | X71: 0 | Y71: 3 | Z71: 0 | AA71: 31 | AB71: 0 | AD71: 1. august | AL71: - | AY71: -185 | AZ71: 1 | BA71: 0 | BB71: 0 | BC71: 1 | BD71: 1 | BE71: 1 | BF71: 1 | BG71: 0 | BH71: 3 | BI71: 3 | BJ71: 2 | BK71: 1 | BL71: 3 | BM71: 0 | BN71: 1 | BO71: 3 | BP71: 0 | BQ71: 3 | BR71: 0 | BS71: 31 | BT71: 0 | BV71: 1. august | CE71: - | CH71: -185 | CI71: Ja | CJ71: Nej | CK71: Nej | CL71: Ja | CM71: Ja | CN71: Ja | CO71: Ja | CP71: Nej | CQ71: Meget god | CR71: Meget god | CS71: God | CT71: Ja | CU71: Stor | CV71: Nej | CW71: Mod visse | CX71: Aldrig | CY71: Nej | CZ71: Meget god | DA71: Nej | DC71: 0 | DE71: 1. august | DN71: - | DR71: 34225 | DS71: 1 | DT71: 0 | DU71: 0 | DV71: 1 | DW71: 1 | DX71: 1 | DY71: 1 | DZ71: 0 | EA71: 9 | EB71: 9 | EC71: 4 | ED71: 1 | EE71: 9 | EF71: 0 | EG71: 1 | EH71: 9 | EI71: 0 | EJ71: 9 | EK71: 0 | EL71: 961 | FB71: 1.421135997 | FC71: 0 | FD71: -0.3651483717 | FE71: -1.195228609 | FF71: 1.549193338 | FG71: 0 | FH71: 0 | FI71: 0 | FJ71: 0 | FK71: 1.771759136 | FL71: 1.671019956 | FM71: -0.8512565308 | FN71: 1.354006401 | FO71: 1.319824035 | FP71: -1.01695036 | FQ71: -0.8741572761 | FR71: 0.5417363389 | FS71: -0.3651483717 | FT71: 1.027105182 | FU71: -0.3425943549 | FV71: 1.217343156 | GI71: -339967.2899 | GJ71: =IF(FB71="xx","xx",GI71) -> -339967.2899 | GK71: 0 | GL71: -339967.2899 | GM71: 13 | GS71: =COUNTIF($GM$41:$GM$112,GV71) -> 0 | GT71: =IF(GS71>0,MATCH(GV71,$GM$41:$GM$112,0),"xx") -> xx | GV71: 31
A72: 32 | B72: Rødkløver/strandsvingel | E72: =IF('Efterafgrøde beslutningsstøtte'!A$7<>"Pligtig mellemafgrøde",HYPERLINK("https://dyrk-plant.dlbr.dk/Web/(S(ikevr3oqnx5oe2t5cyfyknyq))/forms/Main.aspx?page=Vejledning&cropID=226","Efterafgrøder"),HYPERLINK("https://dyrk-plant.dlbr.dk/Web/(S(0x3ftyiaahcpttq0ljebuany))/forms/Main.aspx?page=Vejledning&cropID=238","Mellemafgrøder")) -> Efterafgrøder | F72: -1355 | G72: 1 | H72: 0 | I72: 0 | J72: 1 | K72: 1 | L72: 1 | M72: 1 | N72: 0 | O72: 1 | P72: 3 | Q72: 1 | R72: 1 | S72: 3 | T72: 0 | U72: 1 | V72: 3 | W72: 0 | X72: 0 | Y72: 3 | Z72: 0 | AA72: 32 | AB72: 0 | AD72: 1. august | AL72: - | AY72: -1355 | AZ72: 1 | BA72: 0 | BB72: 0 | BC72: 1 | BD72: 1 | BE72: 1 | BF72: 1 | BG72: 0 | BH72: 1 | BI72: 3 | BJ72: 1 | BK72: 1 | BL72: 3 | BM72: 0 | BN72: 1 | BO72: 3 | BP72: 0 | BQ72: 3 | BR72: 0 | BS72: 32 | BT72: 0 | BV72: 1. august | CE72: - | CH72: -1355 | CI72: Ja | CJ72: Nej | CK72: Nej | CL72: Ja | CM72: Ja | CN72: Ja | CO72: Ja | CP72: Nej | CQ72: Brugbar | CR72: Meget god | CS72: Brugbar | CT72: Ja | CU72: Stor | CV72: Nej | CW72: Mod visse | CX72: Aldrig | CY72: Nej | CZ72: Meget god | DA72: Nej | DC72: 0 | DE72: 1. august | DN72: - | DR72: 1836025 | DS72: 1 | DT72: 0 | DU72: 0 | DV72: 1 | DW72: 1 | DX72: 1 | DY72: 1 | DZ72: 0 | EA72: 1 | EB72: 9 | EC72: 1 | ED72: 1 | EE72: 9 | EF72: 0 | EG72: 1 | EH72: 9 | EI72: 0 | EJ72: 9 | EK72: 0 | EL72: 1024 | FB72: -0.6608729877 | FC72: 0 | FD72: -0.3651483717 | FE72: -1.195228609 | FF72: 1.549193338 | FG72: 0 | FH72: 0 | FI72: 0 | FJ72: 0 | FK72: 0.1865009616 | FL72: 1.671019956 | FM72: -2.298392633 | FN72: 1.354006401 | FO72: 1.319824035 | FP72: -1.01695036 | FQ72: -0.8741572761 | FR72: 0.5417363389 | FS72: -0.3651483717 | FT72: 1.027105182 | FU72: -0.3425943549 | FV72: 1.311840114 | GI72: -919986.956 | GJ72: =IF(FB72="xx","xx",GI72) -> -919986.956 | GK72: 0 | GL72: -919986.956 | GM72: 16 | GS72: =COUNTIF($GM$41:$GM$112,GV72) -> 0 | GT72: =IF(GS72>0,MATCH(GV72,$GM$41:$GM$112,0),"xx") -> xx | GV72: 32
A73: 33 | B73: Vintervikke/vinterrug | E73: =IF('Efterafgrøde beslutningsstøtte'!A$7<>"Pligtig mellemafgrøde",HYPERLINK("https://dyrk-plant.dlbr.dk/Web/(S(ikevr3oqnx5oe2t5cyfyknyq))/forms/Main.aspx?page=Vejledning&cropID=226","Efterafgrøder"),HYPERLINK("https://dyrk-plant.dlbr.dk/Web/(S(0x3ftyiaahcpttq0ljebuany))/forms/Main.aspx?page=Vejledning&cropID=238","Mellemafgrøder")) -> Efterafgrøder | F73: -969 | G73: 1 | H73: 0 | I73: 0 | J73: 1 | K73: 1 | L73: 1 | M73: 1 | N73: 0 | O73: 0 | P73: 0 | Q73: 3 | R73: 1 | S73: 3 | T73: 0 | U73: 3 | V73: 3 | W73: 0 | X73: 0 | Y73: 3 | Z73: 0 | AA73: 33 | AB73: 0 | AD73: 20. august | AL73: -529 | AY73: -969 | AZ73: 1 | BA73: 0 | BB73: 0 | BC73: 1 | BD73: 1 | BE73: 1 | BF73: 1 | BG73: 0 | BH73: 0 | BI73: 0 | BJ73: 3 | BK73: 1 | BL73: 3 | BM73: 0 | BN73: 3 | BO73: 3 | BP73: 0 | BQ73: 3 | BR73: 0 | BS73: 33 | BT73: 0 | BV73: 20. august | CE73: -529 | CH73: -969 | CI73: Ja | CJ73: Nej | CK73: Nej | CL73: Ja | CM73: Ja | CN73: Ja | CO73: Ja | CP73: Nej | CQ73: Nej | CR73: Nej | CS73: Meget god | CT73: Ja | CU73: Stor | CV73: Nej | CW73: Mod de fleste | CX73: Aldrig | CY73: Nej | CZ73: Meget god | DA73: Nej | DC73: 0 | DE73: 20. august | DN73: -529 | DR73: 938961 | DS73: 1 | DT73: 0 | DU73: 0 | DV73: 1 | DW73: 1 | DX73: 1 | DY73: 1 | DZ73: 0 | EA73: 0 | EB73: 0 | EC73: 9 | ED73: 1 | EE73: 9 | EF73: 0 | EG73: 9 | EH73: 9 | EI73: 0 | EJ73: 9 | EK73: 0 | EL73: 1089 | FB73: 0.02601202779 | FC73: 0 | FD73: -0.3651483717 | FE73: -1.195228609 | FF73: 1.549193338 | FG73: 0 | FH73: 0 | FI73: 0 | FJ73: 0 | FK73: -0.6061281254 | FL73: -0.9114654304 | FM73: 0.5958795715 | FN73: 1.354006401 | FO73: 1.319824035 | FP73: -1.01695036 | FQ73: 0.7770286899 | FR73: 0.5417363389 | FS73: -0.3651483717 | FT73: 1.027105182 | FU73: -0.3425943549 | FV73: 1.406337071 | GI73: 239963.1576 | GJ73: =IF(FB73="xx","xx",GI73) -> 239963.1576 | GK73: 0 | GL73: 239963.1576 | GM73: 1 | GS73: =COUNTIF($GM$41:$GM$112,GV73) -> 0 | GT73: =IF(GS73>0,MATCH(GV73,$GM$41:$GM$112,0),"xx") -> xx | GV73: 33
A74: 34 | B74: Kløvergræs (blanding) | E74: =IF('Efterafgrøde beslutningsstøtte'!A$7<>"Pligtig mellemafgrøde",HYPERLINK("https://dyrk-plant.dlbr.dk/Web/(S(ikevr3oqnx5oe2t5cyfyknyq))/forms/Main.aspx?page=Vejledning&cropID=226","Efterafgrøder"),HYPERLINK("https://dyrk-plant.dlbr.dk/Web/(S(0x3ftyiaahcpttq0ljebuany))/forms/Main.aspx?page=Vejledning&cropID=238","Mellemafgrøder")) -> Efterafgrøder | F74: -2145 | G74: 1 | H74: 0 | I74: 0 | J74: 1 | K74: 1 | L74: 1 | M74: 1 | N74: 0 | O74: 3 | P74: 3 | Q74: 3 | R74: 1 | S74: 3 | T74: 0 | U74: 1 | V74: 3 | W74: 0 | X74: 0 | Y74: 3 | Z74: 0 | AA74: 34 | AB74: =VLOOKUP($A74,Karaktermatrice,AB$38,FALSE) -> 0 | AD74: =VLOOKUP($A74,Karaktermatrice,AD$38,FALSE) -> 1. august | AL74: - | AY74: -2145 | AZ74: 1 | BA74: 0 | BB74: 0 | BC74: 1 | BD74: 1 | BE74: 1 | BF74: 1 | BG74: 0 | BH74: 3 | BI74: 3 | BJ74: 3 | BK74: 1 | BL74: 3 | BM74: 0 | BN74: 1 | BO74: 3 | BP74: 0 | BQ74: 3 | BR74: 0 | BS74: 34 | BT74: 0 | BV74: 1. august | CE74: - | CH74: -2145 | CI74: Ja | CJ74: Nej | CK74: Nej | CL74: Ja | CM74: Ja | CN74: Ja | CO74: Ja | CP74: Nej | CQ74: Meget god | CR74: Meget god | CS74: Meget god | CT74: Ja | CU74: Stor | CV74: Nej | CW74: Mod visse | CX74: Aldrig | CY74: Nej | CZ74: Meget god | DA74: Nej | DC74: =BT74 -> 0 | DE74: =BV74 -> 1. august | DN74: - | DR74: 4601025 | DS74: 1 | DT74: 0 | DU74: 0 | DV74: 1 | DW74: 1 | DX74: 1 | DY74: 1 | DZ74: 0 | EA74: 9 | EB74: 9 | EC74: 9 | ED74: 1 | EE74: 9 | EF74: 0 | EG74: 1 | EH74: 9 | EI74: 0 | EJ74: 9 | EK74: 0 | EL74: 1156 | FB74: -2.066673926 | FC74: 0 | FD74: -0.3651483717 | FE74: -1.195228609 | FF74: 1.549193338 | FG74: 0 | FH74: 0 | FI74: 0 | FJ74: 0 | FK74: 1.771759136 | FL74: 1.671019956 | FM74: 0.5958795715 | FN74: 1.354006401 | FO74: 1.319824035 | FP74: -1.01695036 | FQ74: -0.8741572761 | FR74: 0.5417363389 | FS74: -0.3651483717 | FT74: 1.027105182 | FU74: -0.3425943549 | FV74: 1.500834028 | GI74: 239824.8829 | GJ74: =IF(FB74="xx","xx",GI74) -> 239824.8829 | GK74: 0 | GL74: 239824.8829 | GM74: 3 | GS74: =COUNTIF($GM$41:$GM$112,GV74) -> 0 | GT74: =IF(GS74>0,MATCH(GV74,$GM$41:$GM$112,0),"xx") -> xx | GV74: 34
GY79: Frontend output
GZ80: =GZ40 -> Efterafgrøde | HA80: Seneste lovlige såtidspunkt | HB80: Egnet til udsåning efter tidlig høst (10. august) | HC80: Kvælstoffikserende | HD80: Stor kvælstof-eftervirkning | HE80: Bruttoomkostninger | HF80: Nettoomkostninger | HG80: Er afgrøden robust mod ukrudtsmidler? | HH80: Afgrøden opformere kålbrok | HI80: Der findes sorter, der er sanerende for roecystenematoder | HJ80: Vinterfast | HK80: Egen udsæd kan anvendes | HL80: Hurtig og dyb rodvækst på lerjord | HM80: Pligtig efterafgrøde | HN80: Pligtig mellemafgrøde | HO80: MFO-efterafgrøde i blanding2) | HP80: MFO-udlæg | HQ80: Miljø-efterafgrøder | HR80: Frivillig efterafgrøde | HS80: Grønne marker (2,3 DE-brug) | HT80: Egnet til udlæg efterår i vinterkorn | HU80: Egnet til udlæg forår | IH80: =IF(IH40="xx","",IH40) -> Vejledning
GZ81: =IF(GZ41="xx","",GZ41) -> Vintervikke/vinterrug | HA81: =IF(HA41="xx","",HA41) -> 20. august | HB81: Meget god | HC81: Ja | HD81: Stor | HE81: -969 | HF81: -529 | HG81: Mod de fleste | HH81: Aldrig | HI81: Nej | HJ81: Meget god | HK81: Nej | HL81: Nej | HM81: Ja | HN81: Nej | HO81: Nej | HP81: Ja | HQ81: Ja | HR81: Ja | HS81: Ja | HT81: Nej | HU81: Nej | IH81: =IF(IH41="xx","",IH41) -> Efterafgrøder
GZ82: =IF(GZ42="xx","",GZ42) -> Olieræddike og vintervikke | HA82: 20. august | HB82: Meget god | HC82: Ja | HD82: Stor | HE82: -828 | HF82: 52 | HG82: Mod de fleste | HH82: I mindre grad | HI82: Nej | HJ82: Udvintrer | HK82: Nej | HL82: Meget god | HM82: Ja | HN82: Nej | HO82: Nej | HP82: Nej | HQ82: Ja | HR82: Ja | HS82: Ja | HT82: Nej | HU82: Nej | IH82: =IF(IH42="xx","",IH42) -> Efterafgrøder
GZ83: =IF(GZ43="xx","",GZ43) -> Kløvergræs (blanding) | HA83: 1. august | HB83: Meget god | HC83: Ja | HD83: Stor | HE83: -2145 | HF83: - | HG83: Mod visse | HH83: Aldrig | HI83: Nej | HJ83: Meget god | HK83: Nej | HL83: Nej | HM83: Ja | HN83: Nej | HO83: Nej | HP83: Ja | HQ83: Ja | HR83: Ja | HS83: Ja | HT83: Nej | HU83: Meget god | IH83: Efterafgrøder
GZ84: =IF(GZ44="xx","",GZ44) -> Vårbyg /Vikke /Gul Sennep | HA84: 20. august | HB84: Meget god | HC84: Ja | HD84: Over middel | HE84: -789 | HF84: -348.5 | HG84: Nej | HH84: Aldrig | HI84: Nej | HJ84: Dårlig | HK84: Nej | HL84: Rimelig | HM84: Ja | HN84: Nej | HO84: Nej | HP84: Nej | HQ84: Ja | HR84: Ja | HS84: Ja | HT84: Nej | HU84: Nej | IH84: Efterafgrøder
GZ85: =IF(GZ45="xx","",GZ45) -> Olieræddike | HA85: 20. august | HB85: Meget god | HC85: Nej | HD85: Over middel | HE85: -649 | HF85: 231 | HG85: Mod de fleste | HH85: I mindre grad | HI85: Mange | HJ85: Udvintrer | HK85: Nej | HL85: Meget god | HM85: Ja | HN85: Ja | HO85: Ja | HP85: Nej | HQ85: Ja | HR85: Ja | HS85: Ja | HT85: Nej | HU85: Nej | IH85: Efterafgrøder
GZ86: =IF(GZ46="xx","",GZ46) -> Gul sennep | HA86: 20. august | HB86: Meget god | HC86: Nej | HD86: Over middel | HE86: -503 | HF86: 377 | HG86: Mod de fleste | HH86: Altid | HI86: Mange | HJ86: Udvintrer | HK86: Nej | HL86: God | HM86: Ja | HN86: Ja | HO86: Ja | HP86: Nej | HQ86: Ja | HR86: Ja | HS86: Ja | HT86: Nej | HU86: Nej | IH86: Efterafgrøder
GZ87: =IF(GZ47="xx","",GZ47) -> Foderradise (Strukturator) | HA87: 20. august | HB87: Meget god | HC87: Nej | HD87: Over middel | HE87: -913 | HF87: -33 | HG87: Mod de fleste | HH87: I mindre grad | HI87: Nej | HJ87: Udvintrer | HK87: =IF(HK47="xx","",HK47) -> Nej | HL87: Meget god | HM87: Ja | HN87: Nej | HO87: Ja | HP87: Nej | HQ87: Ja | HR87: Ja | HS87: Ja | HT87: Nej | HU87: Nej | IH87: Efterafgrøder
GZ88: =IF(GZ48="xx","",GZ48) -> Honningurt | HA88: 20. august | HB88: Meget god | HC88: Nej | HD88: Over middel | HE88: -2302 | HF88: -2082 | HG88: Mod de fleste | HH88: Aldrig | HI88: Nej | HJ88: Udvintrer | HK88: Nej | HL88: Meget god | HM88: Ja | HN88: Nej | HO88: Ja | HP88: Nej | HQ88: Ja | HR88: Ja | HS88: Ja | HT88: Nej | HU88: Nej | IH88: Efterafgrøder
GZ89: =IF(GZ49="xx","",GZ49) -> Vinterrug | HA89: 20. august | HB89: Meget god | HC89: Nej | HD89: Middel | HE89: -849 | HF89: -409 | HG89: Mod de fleste | HH89: Aldrig | HI89: Nej | HJ89: Meget god | HK89: Ja | HL89: Rimelig | HM89: Ja | HN89: Nej | HO89: Ja | HP89: Nej | HQ89: Ja | HR89: Ja | HS89: Ja | HT89: Nej | HU89: Nej | IH89: Efterafgrøder
GZ90: =IF(GZ50="xx","",GZ50) -> Havre | HA90: 20. august | HB90: Meget god | HC90: Nej | HD90: Middel | HE90: -877 | HF90: -657 | HG90: Mod de fleste | HH90: Aldrig | HI90: Nej | HJ90: Dårlig | HK90: Ja | HL90: Rimelig | HM90: Ja | HN90: Nej | HO90: Ja | HP90: Nej | HQ90: Ja | HR90: Ja | HS90: Ja | HT90: Nej | HU90: Nej | IH90: Efterafgrøder
GZ91: =IF(GZ51="xx","",GZ51) -> Vårbyg | HA91: 20. august | HB91: Meget god | HC91: Nej | HD91: Middel | HE91: -877 | HF91: -657 | HG91: Mod de fleste | HH91: Aldrig | HI91: Nej | HJ91: Dårlig | HK91: Ja | HL91: =IF(HL51="xx","",HL51) -> Nej | HM91: Ja | HN91: Nej | HO91: Ja | HP91: Nej | HQ91: Ja | HR91: Ja | HS91: Ja | HT91: Nej | HU91: Nej | IH91: Efterafgrøder
GZ92: =IF(GZ52="xx","",GZ52) -> Vinterrybs | HA92: 20. august | HB92: Meget god | HC92: Nej | HD92: Middel | HE92: -1513 | HF92: -633 | HG92: Nej | HH92: Aldrig | HI92: Nej | HJ92: Meget god | HK92: Ja | HL92: God | HM92: Ja | HN92: Nej | HO92: Ja | HP92: Nej | HQ92: Ja | HR92: Ja | HS92: Ja | HT92: Nej | HU92: Nej | IH92: Efterafgrøder
GZ93: =IF(GZ53="xx","",GZ53) -> Hvidkløver/alm. rajgræs | HA93: 1. august | HB93: God | HC93: Ja | HD93: Stor | HE93: -185 | HF93: - | HG93: Mod visse | HH93: Aldrig | HI93: Nej | HJ93: Meget god | HK93: Nej | HL93: Nej | HM93: Ja | HN93: Nej | HO93: Nej | HP93: Ja | HQ93: Ja | HR93: Ja | HS93: Ja | HT93: Nej | HU93: Meget god | IH93: Efterafgrøder
GZ94: =IF(GZ54="xx","",GZ54) -> Vinterraps , linie | HA94: 20. august | HB94: God | HC94: Nej | HD94: Over middel | HE94: -1136 | HF94: -476 | HG94: Mod de fleste | HH94: Altid | HI94: Nej | HJ94: Meget god | HK94: Ja | HL94: Meget god | HM94: Ja | HN94: Nej | HO94: Ja | HP94: Nej | HQ94: Ja | HR94: Ja | HS94: Ja | HT94: Nej | HU94: Nej | IH94: Efterafgrøder
GZ95: =IF(GZ55="xx","",GZ55) -> Alm. rajgræs, dipl. | HA95: 1.august | HB95: God | HC95: Nej | HD95: Middel | HE95: -185 | HF95: - | HG95: Mod mange | HH95: Aldrig | HI95: Nej | HJ95: Meget god | HK95: Nej | HL95: Nej | HM95: Ja | HN95: Nej | HO95: Ja | HP95: Ja | HQ95: Ja | HR95: Ja | HS95: Ja | HT95: Nej | HU95: Meget god | IH95: Efterafgrøder
GZ96: =IF(GZ56="xx","",GZ56) -> Rødkløver/strandsvingel | HA96: 1. august | HB96: Brugbar | HC96: Ja | HD96: Stor | HE96: -1355 | HF96: - | HG96: Mod visse | HH96: Aldrig | HI96: Nej | HJ96: Meget god | HK96: Nej | HL96: Nej | HM96: Ja | HN96: Nej | HO96: Nej | HP96: Ja | HQ96: Ja | HR96: Ja | HS96: Ja | HT96: Nej | HU96: Brugbar | IH96: Efterafgrøder
GZ97: =IF(GZ57="xx","",GZ57) -> Triticale/Gul Sennep | HA97: 1. august | HB97: Brugbar | HC97: Nej | HD97: Middel | HE97: -647 | HF97: - | HG97: Nej | HH97: Aldrig | HI97: Nej | HJ97: Udvintrer | HK97: Nej | HL97: Nej | HM97: Ja | HN97: Nej | HO97: Nej | HP97: Nej | HQ97: Ja | HR97: Ja | HS97: Ja | HT97: Nej | HU97: Meget god | IH97: Efterafgrøder
GZ98: =IF(GZ58="xx","",GZ58) -> 
GZ99: =IF(GZ59="xx","",GZ59) -> 
GZ100: =IF(GZ60="xx","",GZ60) -> 
GZ101: =IF(GZ61="xx","",GZ61) -> 
GZ102: =IF(GZ62="xx","",GZ62) -> 
GZ103: =IF(GZ63="xx","",GZ63) -> 
GZ104: =IF(GZ64="xx","",GZ64) -> 
GZ105: =IF(GZ65="xx","",GZ65) -> 
GZ106: =IF(GZ66="xx","",GZ66) -> 
GZ107: =IF(GZ67="xx","",GZ67) -> 
GZ108: =IF(GZ68="xx","",GZ68) -> 
GZ109: =IF(GZ69="xx","",GZ69) -> 
GZ121: =IF(GZ81="xx","",GZ81) -> Vintervikke/vinterrug | HA121: 20. august | HB121: Meget god | HC121: Ja | HD121: Stor | HE121: -969 | HF121: -529 | HG121: Mod de fleste | HH121: Aldrig | HI121: Nej | HJ121: Meget god | HK121: Nej | HL121: Nej | HM121: Ja | HN121: Nej | HO121: Nej | HP121: Ja | HQ121: Ja | HR121: Ja | HS121: Ja | HT121: Nej | HU121: Nej | IH121: Efterafgrøder
GZ122: =IF(GZ82="xx","",GZ82) -> Olieræddike og vintervikke | HA122: 20. august | HB122: Meget god | HC122: Ja | HD122: Stor | HE122: -828 | HF122: 52 | HG122: Mod de fleste | HH122: I mindre grad | HI122: Nej | HJ122: Udvintrer | HK122: Nej | HL122: Meget god | HM122: Ja | HN122: Nej | HO122: Nej | HP122: Nej | HQ122: Ja | HR122: Ja | HS122: Ja | HT122: Nej | HU122: Nej | IH122: Efterafgrøder
GZ123: =IF(GZ83="xx","",GZ83) -> Kløvergræs (blanding) | HA123: 1. august | HB123: Meget god | HC123: Ja | HD123: Stor | HE123: -2145 | HF123: - | HG123: Mod visse | HH123: Aldrig | HI123: Nej | HJ123: Meget god | HK123: Nej | HL123: Nej | HM123: Ja | HN123: Nej | HO123: Nej | HP123: Ja | HQ123: Ja | HR123: Ja | HS123: Ja | HT123: Nej | HU123: Meget god | IH123: Efterafgrøder
GZ124: =IF(GZ84="xx","",GZ84) -> Vårbyg /Vikke /Gul Sennep | HA124: 20. august | HB124: Meget god | HC124: Ja | HD124: Over middel | HE124: -789 | HF124: -348.5 | HG124: Nej | HH124: Aldrig | HI124: Nej | HJ124: Dårlig | HK124: Nej | HL124: Rimelig | HM124: Ja | HN124: Nej | HO124: Nej | HP124: Nej | HQ124: Ja | HR124: Ja | HS124: Ja | HT124: Nej | HU124: Nej | IH124: Efterafgrøder
GZ125: =IF(GZ85="xx","",GZ85) -> Olieræddike | HA125: 20. august | HB125: Meget god | HC125: Nej | HD125: Over middel | HE125: -649 | HF125: 231 | HG125: Mod de fleste | HH125: I mindre grad | HI125: Mange | HJ125: Udvintrer | HK125: Nej | HL125: Meget god | HM125: Ja | HN125: Ja | HO125: Ja | HP125: Nej | HQ125: Ja | HR125: Ja | HS125: Ja | HT125: Nej | HU125: Nej | IH125: Efterafgrøder
GZ126: =IF(GZ86="xx","",GZ86) -> Gul sennep | HA126: 20. august | HB126: Meget god | HC126: Nej | HD126: Over middel | HE126: -503 | HF126: 377 | HG126: Mod de fleste | HH126: Altid | HI126: Mange | HJ126: Udvintrer | HK126: Nej | HL126: God | HM126: Ja | HN126: Ja | HO126: Ja | HP126: Nej | HQ126: Ja | HR126: Ja | HS126: Ja | HT126: Nej | HU126: Nej | IH126: Efterafgrøder
GZ127: =IF(GZ87="xx","",GZ87) -> Foderradise (Strukturator) | HA127: 20. august | HB127: Meget god | HC127: Nej | HD127: Over middel | HE127: -913 | HF127: -33 | HG127: Mod de fleste | HH127: I mindre grad | HI127: Nej | HJ127: Udvintrer | HK127: Nej | HL127: Meget god | HM127: Ja | HN127: Nej | HO127: Ja | HP127: Nej | HQ127: Ja | HR127: Ja | HS127: Ja | HT127: Nej | HU127: Nej | IH127: Efterafgrøder
GZ128: =IF(GZ88="xx","",GZ88) -> Honningurt | HA128: 20. august | HB128: Meget god | HC128: Nej | HD128: Over middel | HE128: -2302 | HF128: -2082 | HG128: Mod de fleste | HH128: Aldrig | HI128: Nej | HJ128: Udvintrer | HK128: Nej | HL128: Meget god | HM128: Ja | HN128: Nej | HO128: Ja | HP128: Nej | HQ128: Ja | HR128: Ja | HS128: Ja | HT128: Nej | HU128: Nej | IH128: Efterafgrøder

Sheet Karaktermatrice
G1: 1 | H1: 2 | I1: 3 | J1: 4 | K1: 5 | L1: 6 | M1: 7 | N1: 8 | O1: 9 | P1: 10 | Q1: 11 | R1: 12 | S1: 13 | T1: 14 | U1: 15 | V1: 16 | W1: 17 | X1: 18 | Y1: 19 | Z1: 20 | AA1: 21 | AB1: 22 | AC1: 23 | AD1: 24 | AE1: 25
A2: Basis valg | F2: Efterafgrøde | G2: Index | H2: Efterafgrøde - karakter | I2: Mellemafgrøde - karakter | J2: MFO i blanding - karakter | K2: MFO udlæg - karakter | L2: Egnet til udlæg efterår i vinterkorn | M2: Egnet til udlæg forår | N2: Egnet til udsåning ved sidste radrensning | O2: Egnet til udsåning efter tidlig høst (10. august) | P2: Efterafgrøde | Q2: Mellemafgrøde | R2: MFO i blanding | S2: MFO i udlæg | T2: MFO total | U2: Opformere ikke kålbrok | V2: Egen udsæd lovlig? | W2: Default | X2: Sys | Y2: Plads | Z2: Ok ifht. Kålbrok (Hvis det er valgt at der ikke må opformeres kålbrok vises kun afgrøde hvor der findes ok sorter) | AA2: Ok ifht egen udsæd(hvis det er valg at det skal kunne anvendes?) | AB2: Kan etableres på valgt tidspunkt | AC2: Er godkendt afgrøde | AD2: Med? | AE2: Index | AF2: Efterafgrøde
A3: Lovkrav | B3: Valg i frontend | C3: Konsekvens | D3: Styring af såtidspunkt | F3: Alm. rajgræs, dipl. | G3: 1 | H3: =Grundkarakterer!N8 -> 1 | I3: =Grundkarakterer!O8 -> 0 | J3: =Grundkarakterer!P8 -> 1 | K3: =Grundkarakterer!Q8 -> 1 | L3: =Grundkarakterer!U8 -> 0 | M3: =Grundkarakterer!V8 -> 3 | N3: =Grundkarakterer!W8 -> 3 | O3: =Grundkarakterer!X8 -> 2 | P3: =IF(OR($C$4=1,$C$5=1),Grundkarakterer!N8,0) -> 1 | Q3: =IF(C$7=1,Grundkarakterer!O8,0) -> 0 | R3: =IF(OR(C$5=1,C$6=1),Grundkarakterer!P8,0) -> 0 | S3: =IF(OR(C$5=1,C$6=1),Grundkarakterer!Q8,0) -> 0 | T3: =SUM(R3:S3) -> 0 | U3: =Grundkarakterer!AC8 -> 3 | V3: =Grundkarakterer!AG8 -> 0 | W3: 34 | X3: =W3/($G$36+1)+P3+Q3+T3 -> 1.971428571 | Y3: =_xlfn.RANK.EQ(X3,X$3:X$36,0) -> 1 | Z3: =IF(AND(U3<3,C$27=1),"Nej","Ja") -> Ja | AA3: =IF(AND(V3=0,C$28=1),"Nej","Ja") -> Ja | AB3: =IF(C$22=1,IF(L3>0,"Ja","Nej"),IF(C$23=1,IF(M3>0,"Ja","Nej"),IF(C$24=1,IF(N3>0,"Ja","Nej"),IF(C$25=1,IF(O3>0,"Ja","Nej"))))) -> Ja | AC3: =IF( $C$9=0,"Ja",IF(X3>=$C$9,"Ja","Nej")) -> Ja | AD3: =IF(AND(AB3="Ja",AC3="Ja",Z3="Ja",AA3="Ja"),"Ja","Nej") -> Ja | AE3: 1 | AF3: Alm. rajgræs, dipl.
A4: Pligtig efterafgrøde | B4: =IF('Efterafgrøde beslutningsstøtte'!A$7="Vælg funktion","xx",IF('Efterafgrøde beslutningsstøtte'!A$7=Karaktermatrice!A4,1,0)) -> 1 | C4: =IF(B4="xx","xx",B4) -> 1 | D4: =IF(B4=1,1,0) -> 1 | F4: Blanding uden bælgsæd overvintrene | G4: 2 | H4: =Grundkarakterer!N9 -> 0 | I4: =Grundkarakterer!O9 -> 0 | J4: =Grundkarakterer!P9 -> 0 | K4: =Grundkarakterer!Q9 -> 1 | L4: =Grundkarakterer!U9 -> 0 | M4: =Grundkarakterer!V9 -> 0 | N4: =Grundkarakterer!W9 -> 2 | O4: =Grundkarakterer!X9 -> 2 | P4: =IF(OR($C$4=1,$C$5=1),Grundkarakterer!N9,0) -> 0 | Q4: =IF(C$7=1,Grundkarakterer!O9,0) -> 0 | R4: =IF(OR(C$5=1,C$6=1),Grundkarakterer!P9,0) -> 0 | S4: =IF(OR(C$5=1,C$6=1),Grundkarakterer!Q9,0) -> 0 | T4: =SUM(R4:S4) -> 0 | U4: =Grundkarakterer!AC9 -> 3 | V4: =Grundkarakterer!AG9 -> 0 | W4: 33 | X4: =W4/($G$36+1)+P4+Q4+T4 -> 0.9428571429 | Y4: 21 | Z4: =IF(AND(U4<3,C$27=1),"Nej","Ja") -> Ja | AA4: Ja | AB4: Ja | AC4: =IF( $C$9=0,"Ja",IF(X4>=$C$9,"Ja","Nej")) -> Nej | AD4: Nej | AE4: 2 | AF4: Ital. rajgræs, dipl.
A5: Pligtig efterafgrøde og MFO afgrøde | B5: =IF('Efterafgrøde beslutningsstøtte'!A$7="Vælg funktion","xx",IF('Efterafgrøde beslutningsstøtte'!A$7=Karaktermatrice!A5,1,0)) -> 0 | C5: =IF(B5="xx","xx",B5) -> 0 | D5: =IF(B5=1,2,0) -> 0 | F5: Vårbyg /Vikke /Gul Sennep | G5: 3 | H5: =Grundkarakterer!N10 -> 1 | I5: =Grundkarakterer!O10 -> 0 | J5: =Grundkarakterer!P10 -> 0 | K5: =Grundkarakterer!Q10 -> 0 | L5: =Grundkarakterer!U10 -> 0 | M5: =Grundkarakterer!V10 -> 0 | N5: =Grundkarakterer!W10 -> 0 | O5: =Grundkarakterer!X10 -> 3 | P5: =IF(OR($C$4=1,$C$5=1),Grundkarakterer!N10,0) -> 1 | Q5: =IF(C$7=1,Grundkarakterer!O10,0) -> 0 | R5: =IF(OR(C$5=1,C$6=1),Grundkarakterer!P10,0) -> 0 | S5: =IF(OR(C$5=1,C$6=1),Grundkarakterer!Q10,0) -> 0 | T5: 0 | U5: =Grundkarakterer!AC10 -> 3 | V5: =Grundkarakterer!AG10 -> 0 | W5: 32 | X5: 1.914285714 | Y5: 2 | Z5: Ja | AA5: Ja | AB5: Ja | AC5: Ja | AD5: Ja | AE5: 3 | AF5: Westerwoldisk rajgræs
A6: Kun MFO afgrøde | B6: =IF('Efterafgrøde beslutningsstøtte'!A$7="Vælg funktion","xx",IF('Efterafgrøde beslutningsstøtte'!A$7=Karaktermatrice!A6,1,0)) -> 0 | C6: =IF(B6="xx","xx",B6) -> 0 | D6: =IF(B6=1,3,0) -> 0 | F6: Rajgræs /cikorie /hvidkløver | G6: 4 | H6: =Grundkarakterer!N11 -> 0 | I6: =Grundkarakterer!O11 -> 0 | J6: =Grundkarakterer!P11 -> 0 | K6: =Grundkarakterer!Q11 -> 1 | L6: =Grundkarakterer!U11 -> 1 | M6: =Grundkarakterer!V11 -> 3 | N6: =Grundkarakterer!W11 -> 2 | O6: =Grundkarakterer!X11 -> 0 | P6: =IF(OR($C$4=1,$C$5=1),Grundkarakterer!N11,0) -> 0 | Q6: =IF(C$7=1,Grundkarakterer!O11,0) -> 0 | R6: =IF(OR(C$5=1,C$6=1),Grundkarakterer!P11,0) -> 0 | S6: =IF(OR(C$5=1,C$6=1),Grundkarakterer!Q11,0) -> 0 | T6: 0 | U6: =Grundkarakterer!AC11 -> 3 | V6: =Grundkarakterer!AG11 -> 0 | W6: 31 | X6: 0.8857142857 | Y6: 22 | Z6: Ja | AA6: Ja | AB6: Nej | AC6: Nej | AD6: Nej | AE6: 4 | AF6: Strandsvingel
A7: Pligtig mellemafgrøde | B7: =IF('Efterafgrøde beslutningsstøtte'!A$7="Vælg funktion","xx",IF('Efterafgrøde beslutningsstøtte'!A$7=Karaktermatrice!A7,1,0)) -> 0 | C7: =IF(B7="xx","xx",B7) -> 0 | D7: =IF(B7=1,4,0) -> 0 | F7: Rødkløver | G7: 5 | H7: =Grundkarakterer!N12 -> 0 | I7: =Grundkarakterer!O12 -> 0 | J7: =Grundkarakterer!P12 -> 0 | K7: =Grundkarakterer!Q12 -> 1 | L7: =Grundkarakterer!U12 -> 1 | M7: =Grundkarakterer!V12 -> 3 | N7: =Grundkarakterer!W12 -> 2 | O7: =Grundkarakterer!X12 -> 0 | P7: =IF(OR($C$4=1,$C$5=1),Grundkarakterer!N12,0) -> 0 | Q7: =IF(C$7=1,Grundkarakterer!O12,0) -> 0 | R7: =IF(OR(C$5=1,C$6=1),Grundkarakterer!P12,0) -> 0 | S7: =IF(OR(C$5=1,C$6=1),Grundkarakterer!Q12,0) -> 0 | T7: 0 | U7: =Grundkarakterer!AC12 -> 3 | V7: =Grundkarakterer!AG12 -> 0 | W7: 30 | X7: 0.8571428571 | Y7: 23 | Z7: Ja | AA7: Ja | AB7: Nej | AC7: Nej | AD7: Nej | AE7: 5 | AF7: Rødsvingel
A8: Frivillig efterafgrøde (ingen statslig ordning) | B8: =IF('Efterafgrøde beslutningsstøtte'!A$7="Vælg funktion","xx",IF('Efterafgrøde beslutningsstøtte'!A$7=Karaktermatrice!A8,1,0)) -> 0 | C8: =IF(B8="xx","xx",IF(B8=1,0,0)) -> 0 | D8: =IF(B8=1,5,0) -> 0 | F8: Vinterrug/fodervikke/olieræddike | G8: 6 | H8: =Grundkarakterer!N13 -> 0 | I8: =Grundkarakterer!O13 -> 0 | J8: =Grundkarakterer!P13 -> 0 | K8: =Grundkarakterer!Q13 -> 0 | L8: =Grundkarakterer!U13 -> 0 | M8: =Grundkarakterer!V13 -> 2 | N8: =Grundkarakterer!W13 -> 2 | O8: =Grundkarakterer!X13 -> 0 | P8: =IF(OR($C$4=1,$C$5=1),Grundkarakterer!N13,0) -> 0 | Q8: =IF(C$7=1,Grundkarakterer!O13,0) -> 0 | R8: =IF(OR(C$5=1,C$6=1),Grundkarakterer!P13,0) -> 0 | S8: =IF(OR(C$5=1,C$6=1),Grundkarakterer!Q13,0) -> 0 | T8: 0 | U8: =Grundkarakterer!AC13 -> 3 | V8: =Grundkarakterer!AG13 -> 0 | W8: 29 | X8: 0.8285714286 | Y8: 24 | Z8: Ja | AA8: Ja | AB8: Nej | AC8: Nej | AD8: Nej | AE8: 6 | AF8: Engrapgræs
A9: SUM | C9: =IF(AND(C4="xx",C5="xx",C6="xx",C7="xx",C8="xx"),"xx",IF(C5=1,SUM(C4:C8)+1,SUM(C4:C8))) -> 1 | D9: =SUM(D4:D8) -> 1 | F9: Triticale/Gul Sennep | G9: 7 | H9: =Grundkarakterer!N14 -> 1 | I9: =Grundkarakterer!O14 -> 0 | J9: =Grundkarakterer!P14 -> 0 | K9: =Grundkarakterer!Q14 -> 0 | L9: =Grundkarakterer!U14 -> 0 | M9: =Grundkarakterer!V14 -> 3 | N9: =Grundkarakterer!W14 -> 1 | O9: =Grundkarakterer!X14 -> 1 | P9: =IF(OR($C$4=1,$C$5=1),Grundkarakterer!N14,0) -> 1 | Q9: =IF(C$7=1,Grundkarakterer!O14,0) -> 0 | R9: =IF(OR(C$5=1,C$6=1),Grundkarakterer!P14,0) -> 0 | S9: =IF(OR(C$5=1,C$6=1),Grundkarakterer!Q14,0) -> 0 | T9: 0 | U9: =Grundkarakterer!AC14 -> 3 | V9: =Grundkarakterer!AG14 -> 0 | W9: 28 | X9: 1.8 | Y9: 3 | Z9: Ja | AA9: Ja | AB9: Ja | AC9: Ja | AD9: =IF(AND(AB9="Ja",AC9="Ja",Z9="Ja",AA9="Ja"),"Ja","Nej") -> Ja | AE9: 7 | AF9: Hundegræs
F10: Frøgræs, udtjent | G10: 8 | H10: =Grundkarakterer!N15 -> 1 | I10: =Grundkarakterer!O15 -> 1 | J10: =Grundkarakterer!P15 -> 0 | K10: =Grundkarakterer!Q15 -> 0 | L10: =Grundkarakterer!U15 -> 0 | M10: =Grundkarakterer!V15 -> 0 | N10: =Grundkarakterer!W15 -> 0 | O10: =Grundkarakterer!X15 -> 0 | P10: =IF(OR($C$4=1,$C$5=1),Grundkarakterer!N15,0) -> 1 | Q10: =IF(C$7=1,Grundkarakterer!O15,0) -> 0 | R10: =IF(OR(C$5=1,C$6=1),Grundkarakterer!P15,0) -> 0 | S10: =IF(OR(C$5=1,C$6=1),Grundkarakterer!Q15,0) -> 0 | T10: 0 | U10: =Grundkarakterer!AC15 -> 3 | V10: =Grundkarakterer!AG15 -> 0 | W10: 27 | X10: 1.771428571 | Y10: 4 | Z10: Ja | AA10: Ja | AB10: Nej | AC10: =IF( $C$9=0,"Ja",IF(X10>=$C$9,"Ja","Nej")) -> Ja | AD10: Nej | AE10: 8 | AF10: Frøgræs, udtjent
F11: Gul sennep | G11: 9 | H11: =Grundkarakterer!N16 -> 1 | I11: =Grundkarakterer!O16 -> 1 | J11: =Grundkarakterer!P16 -> 1 | K11: =Grundkarakterer!Q16 -> 0 | L11: =Grundkarakterer!U16 -> 0 | M11: =Grundkarakterer!V16 -> 0 | N11: =Grundkarakterer!W16 -> 0 | O11: =Grundkarakterer!X16 -> 3 | P11: =IF(OR($C$4=1,$C$5=1),Grundkarakterer!N16,0) -> 1 | Q11: =IF(C$7=1,Grundkarakterer!O16,0) -> 0 | R11: =IF(OR(C$5=1,C$6=1),Grundkarakterer!P16,0) -> 0 | S11: =IF(OR(C$5=1,C$6=1),Grundkarakterer!Q16,0) -> 0 | T11: 0 | U11: =Grundkarakterer!AC16 -> 0 | V11: =Grundkarakterer!AG16 -> 0 | W11: 26 | X11: 1.742857143 | Y11: 5 | Z11: Ja | AA11: Ja | AB11: Ja | AC11: Ja | AD11: Ja | AE11: 9 | AF11: Gul sennep
A12: Etablering | F12: Olieræddike | G12: 10 | H12: =Grundkarakterer!N17 -> 1 | I12: =Grundkarakterer!O17 -> 1 | J12: =Grundkarakterer!P17 -> 1 | K12: =Grundkarakterer!Q17 -> 0 | L12: =Grundkarakterer!U17 -> 0 | M12: =Grundkarakterer!V17 -> 0 | N12: =Grundkarakterer!W17 -> 0 | O12: =Grundkarakterer!X17 -> 3 | P12: =IF(OR($C$4=1,$C$5=1),Grundkarakterer!N17,0) -> 1 | Q12: =IF(C$7=1,Grundkarakterer!O17,0) -> 0 | R12: =IF(OR(C$5=1,C$6=1),Grundkarakterer!P17,0) -> 0 | S12: =IF(OR(C$5=1,C$6=1),Grundkarakterer!Q17,0) -> 0 | T12: 0 | U12: =Grundkarakterer!AC17 -> 2 | V12: =Grundkarakterer!AG17 -> 0 | W12: 25 | X12: 1.714285714 | Y12: 6 | Z12: Ja | AA12: Ja | AB12: Ja | AC12: Ja | AD12: Ja | AE12: 10 | AF12: Olieræddike
B13: Valg i frontend | C13: Konsekvens | D13: Styring af såtidspunkt | F13: Blanding med bælgsæd udvintrene | G13: 11 | H13: =Grundkarakterer!N18 -> 0 | I13: =Grundkarakterer!O18 -> 0 | J13: =Grundkarakterer!P18 -> 0 | K13: =Grundkarakterer!Q18 -> 1 | L13: =Grundkarakterer!U18 -> 0 | M13: =Grundkarakterer!V18 -> 0 | N13: =Grundkarakterer!W18 -> 1 | O13: =Grundkarakterer!X18 -> 2 | P13: =IF(OR($C$4=1,$C$5=1),Grundkarakterer!N18,0) -> 0 | Q13: =IF(C$7=1,Grundkarakterer!O18,0) -> 0 | R13: =IF(OR(C$5=1,C$6=1),Grundkarakterer!P18,0) -> 0 | S13: =IF(OR(C$5=1,C$6=1),Grundkarakterer!Q18,0) -> 0 | T13: 0 | U13: =Grundkarakterer!AC18 -> 0 | V13: =Grundkarakterer!AG18 -> 0 | W13: 24 | X13: 0.6857142857 | Y13: 25 | Z13: Ja | AA13: Ja | AB13: Ja | AC13: Nej | AD13: Nej | AE13: 11 | AF13: Vinterraps, hybrid
A14: Afgrøde type | B14: ='Efterafgrøde beslutningsstøtte'!A10 -> Vårsæd | C14: =IF(B14="Vårsæd",1,IF(B14="Vintersæd",0,"xx")) -> 1 | E14: Vårsæd =1 | F14: Vinterraps , linie | G14: 12 | H14: =Grundkarakterer!N19 -> 1 | I14: =Grundkarakterer!O19 -> 0 | J14: =Grundkarakterer!P19 -> 1 | K14: =Grundkarakterer!Q19 -> 0 | L14: =Grundkarakterer!U19 -> 0 | M14: =Grundkarakterer!V19 -> 0 | N14: =Grundkarakterer!W19 -> 1 | O14: =Grundkarakterer!X19 -> 2 | P14: =IF(OR($C$4=1,$C$5=1),Grundkarakterer!N19,0) -> 1 | Q14: =IF(C$7=1,Grundkarakterer!O19,0) -> 0 | R14: =IF(OR(C$5=1,C$6=1),Grundkarakterer!P19,0) -> 0 | S14: =IF(OR(C$5=1,C$6=1),Grundkarakterer!Q19,0) -> 0 | T14: 0 | U14: =Grundkarakterer!AC19 -> 0 | V14: =Grundkarakterer!AG19 -> 1 | W14: 23 | X14: 1.657142857 | Y14: 7 | Z14: Ja | AA14: Ja | AB14: Ja | AC14: Ja | AD14: Ja | AE14: 12 | AF14: Vinterraps , linie
F15: Foderradise (Strukturator) | G15: 13 | H15: =Grundkarakterer!N20 -> 1 | I15: =Grundkarakterer!O20 -> 0 | J15: =Grundkarakterer!P20 -> 1 | K15: =Grundkarakterer!Q20 -> 0 | L15: =Grundkarakterer!U20 -> 0 | M15: =Grundkarakterer!V20 -> 0 | N15: =Grundkarakterer!W20 -> 1 | O15: =Grundkarakterer!X20 -> 3 | P15: =IF(OR($C$4=1,$C$5=1),Grundkarakterer!N20,0) -> 1 | Q15: =IF(C$7=1,Grundkarakterer!O20,0) -> 0 | R15: =IF(OR(C$5=1,C$6=1),Grundkarakterer!P20,0) -> 0 | S15: =IF(OR(C$5=1,C$6=1),Grundkarakterer!Q20,0) -> 0 | T15: 0 | U15: =Grundkarakterer!AC20 -> 2 | V15: =Grundkarakterer!AG20 -> 0 | W15: 22 | X15: 1.628571429 | Y15: 8 | Z15: Ja | AA15: Ja | AB15: Ja | AC15: Ja | AD15: Ja | AE15: 13 | AF15: Foderradise (Strukturator)
A16: Etableringstidspunkt | F16: Havre | G16: 14 | H16: =Grundkarakterer!N21 -> 1 | I16: =Grundkarakterer!O21 -> 0 | J16: =Grundkarakterer!P21 -> 1 | K16: =Grundkarakterer!Q21 -> 0 | L16: =Grundkarakterer!U21 -> 0 | M16: =Grundkarakterer!V21 -> 0 | N16: =Grundkarakterer!W21 -> 1 | O16: =Grundkarakterer!X21 -> 3 | P16: =IF(OR($C$4=1,$C$5=1),Grundkarakterer!N21,0) -> 1 | Q16: =IF(C$7=1,Grundkarakterer!O21,0) -> 0 | R16: =IF(OR(C$5=1,C$6=1),Grundkarakterer!P21,0) -> 0 | S16: =IF(OR(C$5=1,C$6=1),Grundkarakterer!Q21,0) -> 0 | T16: 0 | U16: =Grundkarakterer!AC21 -> 3 | V16: =Grundkarakterer!AG21 -> 1 | W16: 21 | X16: 1.6 | Y16: 9 | Z16: Ja | AA16: Ja | AB16: Ja | AC16: Ja | AD16: Ja | AE16: 14 | AF16: Havre
A17: Ved såning af primærafgrøde | B17: =IF('Efterafgrøde beslutningsstøtte'!A$13=Karaktermatrice!A17,1,0) -> 0 | C17: =B17 -> 0 | D17: =IF(B17=1,1,0) -> 0 | F17: Boghvede | G17: 15 | H17: =Grundkarakterer!N22 -> 0 | I17: =Grundkarakterer!O22 -> 0 | J17: =Grundkarakterer!P22 -> 0 | K17: =Grundkarakterer!Q22 -> 0 | L17: =Grundkarakterer!U22 -> 0 | M17: =Grundkarakterer!V22 -> 0 | N17: =Grundkarakterer!W22 -> 0 | O17: =Grundkarakterer!X22 -> 0 | P17: =IF(OR($C$4=1,$C$5=1),Grundkarakterer!N22,0) -> 0 | Q17: =IF(C$7=1,Grundkarakterer!O22,0) -> 0 | R17: =IF(OR(C$5=1,C$6=1),Grundkarakterer!P22,0) -> 0 | S17: =IF(OR(C$5=1,C$6=1),Grundkarakterer!Q22,0) -> 0 | T17: 0 | U17: =Grundkarakterer!AC22 -> 0 | V17: =Grundkarakterer!AG22 -> 0 | W17: 20 | X17: 0.5714285714 | Y17: 26 | Z17: Ja | AA17: Ja | AB17: Nej | AC17: Nej | AD17: Nej | AE17: 15 | AF17: Tom
A18: Egnet til udsåning ved sidste radrensning | B18: =IF('Efterafgrøde beslutningsstøtte'!A$13=Karaktermatrice!A18,1,0) -> 0 | C18: =B18 -> 0 | D18: =IF(B18=1,2,0) -> 0 | F18: Vinterrybs | G18: 16 | H18: =Grundkarakterer!N23 -> 1 | I18: =Grundkarakterer!O23 -> 0 | J18: =Grundkarakterer!P23 -> 1 | K18: =Grundkarakterer!Q23 -> 0 | L18: =Grundkarakterer!U23 -> 0 | M18: =Grundkarakterer!V23 -> 0 | N18: =Grundkarakterer!W23 -> 1 | O18: =Grundkarakterer!X23 -> 3 | P18: =IF(OR($C$4=1,$C$5=1),Grundkarakterer!N23,0) -> 1 | Q18: =IF(C$7=1,Grundkarakterer!O23,0) -> 0 | R18: =IF(OR(C$5=1,C$6=1),Grundkarakterer!P23,0) -> 0 | S18: =IF(OR(C$5=1,C$6=1),Grundkarakterer!Q23,0) -> 0 | T18: 0 | U18: =Grundkarakterer!AC23 -> 3 | V18: =Grundkarakterer!AG23 -> 1 | W18: 19 | X18: 1.542857143 | Y18: 10 | Z18: Ja | AA18: Ja | AB18: Ja | AC18: Ja | AD18: Ja | AE18: 16 | AF18: Stauderug
A19: Efter høst af primærafgrøde | B19: =IF('Efterafgrøde beslutningsstøtte'!A$13=Karaktermatrice!A19,1,0) -> 1 | C19: =B19 -> 1 | D19: =IF(B19=1,2,0) -> 2 | F19: Gul Lupin | G19: 17 | H19: =Grundkarakterer!N24 -> 0 | I19: =Grundkarakterer!O24 -> 0 | J19: =Grundkarakterer!P24 -> 0 | K19: =Grundkarakterer!Q24 -> 0 | L19: =Grundkarakterer!U24 -> 0 | M19: =Grundkarakterer!V24 -> 0 | N19: =Grundkarakterer!W24 -> 0 | O19: =Grundkarakterer!X24 -> 0 | P19: =IF(OR($C$4=1,$C$5=1),Grundkarakterer!N24,0) -> 0 | Q19: =IF(C$7=1,Grundkarakterer!O24,0) -> 0 | R19: =IF(OR(C$5=1,C$6=1),Grundkarakterer!P24,0) -> 0 | S19: =IF(OR(C$5=1,C$6=1),Grundkarakterer!Q24,0) -> 0 | T19: 0 | U19: =Grundkarakterer!AC24 -> 0 | V19: =Grundkarakterer!AG24 -> 0 | W19: 18 | X19: 0.5142857143 | Y19: 27 | Z19: Ja | AA19: Ja | AB19: Nej | AC19: Nej | AD19: Nej | AE19: 17 | AF19: Tom
D20: =SUM(D17:D19) -> 2 | F20: Vårbyg | G20: 18 | H20: =Grundkarakterer!N25 -> 1 | I20: =Grundkarakterer!O25 -> 0 | J20: =Grundkarakterer!P25 -> 1 | K20: =Grundkarakterer!Q25 -> 0 | L20: =Grundkarakterer!U25 -> 0 | M20: =Grundkarakterer!V25 -> 0 | N20: =Grundkarakterer!W25 -> 0 | O20: =Grundkarakterer!X25 -> 3 | P20: =IF(OR($C$4=1,$C$5=1),Grundkarakterer!N25,0) -> 1 | Q20: =IF(C$7=1,Grundkarakterer!O25,0) -> 0 | R20: =IF(OR(C$5=1,C$6=1),Grundkarakterer!P25,0) -> 0 | S20: =IF(OR(C$5=1,C$6=1),Grundkarakterer!Q25,0) -> 0 | T20: 0 | U20: =Grundkarakterer!AC25 -> 3 | V20: =Grundkarakterer!AG25 -> 1 | W20: 17 | X20: 1.485714286 | Y20: 11 | Z20: Ja | AA20: Ja | AB20: Ja | AC20: Ja | AD20: Ja | AE20: 18 | AF20: Vårbyg
F21: vårbyg/fodervikke | G21: 19 | H21: =Grundkarakterer!N26 -> 0 | I21: =Grundkarakterer!O26 -> 0 | J21: =Grundkarakterer!P26 -> 0 | K21: =Grundkarakterer!Q26 -> 0 | L21: =Grundkarakterer!U26 -> 0 | M21: =Grundkarakterer!V26 -> 0 | N21: =Grundkarakterer!W26 -> 0 | O21: =Grundkarakterer!X26 -> 0 | P21: =IF(OR($C$4=1,$C$5=1),Grundkarakterer!N26,0) -> 0 | Q21: =IF(C$7=1,Grundkarakterer!O26,0) -> 0 | R21: =IF(OR(C$5=1,C$6=1),Grundkarakterer!P26,0) -> 0 | S21: =IF(OR(C$5=1,C$6=1),Grundkarakterer!Q26,0) -> 0 | T21: 0 | U21: =Grundkarakterer!AC26 -> 0 | V21: =Grundkarakterer!AG26 -> 1 | W21: 16 | X21: 0.4571428571 | Y21: 28 | Z21: Ja | AA21: Ja | AB21: Nej | AC21: Nej | AD21: Nej | AE21: 19 | AF21: Tom
A22: Egnet til udlæg efterår i vinterkorn | C22: =IF(C14="xx","xx",IF(AND(C14=0,C17=1),1,0)) -> 0 | F22: Vinterrug | G22: 20 | H22: =Grundkarakterer!N27 -> 1 | I22: =Grundkarakterer!O27 -> 0 | J22: =Grundkarakterer!P27 -> 1 | K22: =Grundkarakterer!Q27 -> 0 | L22: =Grundkarakterer!U27 -> 0 | M22: =Grundkarakterer!V27 -> 0 | N22: =Grundkarakterer!W27 -> 1 | O22: =Grundkarakterer!X27 -> 3 | P22: =IF(OR($C$4=1,$C$5=1),Grundkarakterer!N27,0) -> 1 | Q22: =IF(C$7=1,Grundkarakterer!O27,0) -> 0 | R22: =IF(OR(C$5=1,C$6=1),Grundkarakterer!P27,0) -> 0 | S22: =IF(OR(C$5=1,C$6=1),Grundkarakterer!Q27,0) -> 0 | T22: 0 | U22: =Grundkarakterer!AC27 -> 3 | V22: =Grundkarakterer!AG27 -> 1 | W22: 15 | X22: 1.428571429 | Y22: 12 | Z22: Ja | AA22: Ja | AB22: Ja | AC22: Ja | AD22: Ja | AE22: 20 | AF22: Vinterrug (population)
A23: Egnet til udlæg forår | C23: =IF(C14="xx","xx",IF(AND(C14=1,C17=1),1,IF(OR(C18=1,C19=1),0,0))) -> 0 | F23: Olierædikke/gul sennep | G23: 21 | H23: =Grundkarakterer!N28 -> 1 | I23: =Grundkarakterer!O28 -> 0 | J23: =Grundkarakterer!P28 -> 1 | K23: =Grundkarakterer!Q28 -> 0 | L23: =Grundkarakterer!U28 -> 0 | M23: =Grundkarakterer!V28 -> 0 | N23: =Grundkarakterer!W28 -> 0 | O23: =Grundkarakterer!X28 -> 0 | P23: =IF(OR($C$4=1,$C$5=1),Grundkarakterer!N28,0) -> 1 | Q23: =IF(C$7=1,Grundkarakterer!O28,0) -> 0 | R23: =IF(OR(C$5=1,C$6=1),Grundkarakterer!P28,0) -> 0 | S23: =IF(OR(C$5=1,C$6=1),Grundkarakterer!Q28,0) -> 0 | T23: 0 | U23: =Grundkarakterer!AC28 -> 0 | V23: =Grundkarakterer!AG28 -> 0 | W23: 14 | X23: 1.4 | Y23: 13 | Z23: Ja | AA23: Ja | AB23: Nej | AC23: Ja | AD23: Nej | AE23: 21 | AF23: Tom
A24: Egnet til udsåning ved sidste radrensning | C24: =IF(C14="xx","xx",IF(C18=1,1,0)) -> 0 | F24: Blanding med bælgsæd overvintrene | G24: 22 | H24: =Grundkarakterer!N29 -> 0 | I24: =Grundkarakterer!O29 -> 0 | J24: =Grundkarakterer!P29 -> 0 | K24: =Grundkarakterer!Q29 -> 1 | L24: =Grundkarakterer!U29 -> 0 | M24: =Grundkarakterer!V29 -> 0 | N24: =Grundkarakterer!W29 -> 1 | O24: =Grundkarakterer!X29 -> 2 | P24: =IF(OR($C$4=1,$C$5=1),Grundkarakterer!N29,0) -> 0 | Q24: =IF(C$7=1,Grundkarakterer!O29,0) -> 0 | R24: =IF(OR(C$5=1,C$6=1),Grundkarakterer!P29,0) -> 0 | S24: =IF(OR(C$5=1,C$6=1),Grundkarakterer!Q29,0) -> 0 | T24: 0 | U24: =Grundkarakterer!AC29 -> 3 | V24: =Grundkarakterer!AG29 -> 0 | W24: 13 | X24: 0.3714285714 | Y24: 29 | Z24: Ja | AA24: Ja | AB24: Ja | AC24: Nej | AD24: Nej | AE24: 22 | AF24: Vinterrug (hybrid og syntetisk)
A25: Efter høst af primærafgrøde | C25: =IF(C14="xx","xx",IF(C19=1,1,0)) -> 1 | F25: Blanding uden bælgsæd udvintrene | G25: 23 | H25: =Grundkarakterer!N30 -> 0 | I25: =Grundkarakterer!O30 -> 0 | J25: =Grundkarakterer!P30 -> 0 | K25: =Grundkarakterer!Q30 -> 1 | L25: =Grundkarakterer!U30 -> 0 | M25: =Grundkarakterer!V30 -> 0 | N25: =Grundkarakterer!W30 -> 0 | O25: =Grundkarakterer!X30 -> 1 | P25: =IF(OR($C$4=1,$C$5=1),Grundkarakterer!N30,0) -> 0 | Q25: =IF(C$7=1,Grundkarakterer!O30,0) -> 0 | R25: =IF(OR(C$5=1,C$6=1),Grundkarakterer!P30,0) -> 0 | S25: =IF(OR(C$5=1,C$6=1),Grundkarakterer!Q30,0) -> 0 | T25: 0 | U25: =Grundkarakterer!AC30 -> 3 | V25: =Grundkarakterer!AG30 -> 0 | W25: 12 | X25: 0.3428571429 | Y25: 30 | Z25: Ja | AA25: Ja | AB25: Ja | AC25: Nej | AD25: Nej | AE25: 23 | AF25: Tom
F26: Cikorie | G26: 24 | H26: =Grundkarakterer!N31 -> 1 | I26: =Grundkarakterer!O31 -> 0 | J26: =Grundkarakterer!P31 -> 1 | K26: =Grundkarakterer!Q31 -> 1 | L26: =Grundkarakterer!U31 -> 0 | M26: =Grundkarakterer!V31 -> 3 | N26: =Grundkarakterer!W31 -> 2 | O26: =Grundkarakterer!X31 -> 0 | P26: =IF(OR($C$4=1,$C$5=1),Grundkarakterer!N31,0) -> 1 | Q26: =IF(C$7=1,Grundkarakterer!O31,0) -> 0 | R26: =IF(OR(C$5=1,C$6=1),Grundkarakterer!P31,0) -> 0 | S26: =IF(OR(C$5=1,C$6=1),Grundkarakterer!Q31,0) -> 0 | T26: 0 | U26: =Grundkarakterer!AC31 -> 3 | V26: =Grundkarakterer!AG31 -> 0 | W26: 11 | X26: 1.314285714 | Y26: 14 | Z26: Ja | AA26: Ja | AB26: Nej | AC26: Ja | AD26: Nej | AE26: 24 | AF26: Cikorie
A27: Kålbrok | B27: ='Efterafgrøde beslutningsstøtte'!B28 -> Ikke vigtigt | C27: =IF(OR(B27="Ikke vigtigt",B27="Foretrækkes"),0,IF(B27="Der må ikke opformeres kålbrok",1,"Fejl")) -> 0 | D27: 1= må ikke forekomme | F27: Honningurt | G27: 25 | H27: =Grundkarakterer!N32 -> 1 | I27: =Grundkarakterer!O32 -> 0 | J27: =Grundkarakterer!P32 -> 1 | K27: =Grundkarakterer!Q32 -> 0 | L27: =Grundkarakterer!U32 -> 0 | M27: =Grundkarakterer!V32 -> 0 | N27: =Grundkarakterer!W32 -> 0 | O27: =Grundkarakterer!X32 -> 3 | P27: =IF(OR($C$4=1,$C$5=1),Grundkarakterer!N32,0) -> 1 | Q27: =IF(C$7=1,Grundkarakterer!O32,0) -> 0 | R27: =IF(OR(C$5=1,C$6=1),Grundkarakterer!P32,0) -> 0 | S27: =IF(OR(C$5=1,C$6=1),Grundkarakterer!Q32,0) -> 0 | T27: 0 | U27: =Grundkarakterer!AC32 -> 3 | V27: =Grundkarakterer!AG32 -> 0 | W27: 10 | X27: =W27/($G$36+1)+P27+Q27+T27 -> 1.285714286 | Y27: 15 | Z27: Ja | AA27: Ja | AB27: Ja | AC27: =IF( $C$9=0,"Ja",IF(X27>=$C$9,"Ja","Nej")) -> Ja | AD27: Ja | AE27: 25 | AF27: Honningurt
A28: Egen udsæd | B28: ='Efterafgrøde beslutningsstøtte'!B33 -> Ikke vigtigt | C28: =IF(B28="Egen udsæd skal anvendes ",1,0) -> 0 | D28: 1 = Egen udsæd skal kunne anvendes | F28: Fodervikke | G28: 26 | H28: =Grundkarakterer!N33 -> 0 | I28: =Grundkarakterer!O33 -> 0 | J28: =Grundkarakterer!P33 -> 0 | K28: =Grundkarakterer!Q33 -> 1 | L28: =Grundkarakterer!U33 -> 0 | M28: =Grundkarakterer!V33 -> 0 | N28: =Grundkarakterer!W33 -> 0 | O28: =Grundkarakterer!X33 -> 3 | P28: =IF(OR($C$4=1,$C$5=1),Grundkarakterer!N33,0) -> 0 | Q28: =IF(C$7=1,Grundkarakterer!O33,0) -> 0 | R28: =IF(OR(C$5=1,C$6=1),Grundkarakterer!P33,0) -> 0 | S28: =IF(OR(C$5=1,C$6=1),Grundkarakterer!Q33,0) -> 0 | T28: 0 | U28: =Grundkarakterer!AC33 -> 3 | V28: =Grundkarakterer!AG33 -> 1 | W28: 9 | X28: 0.2571428571 | Y28: 31 | Z28: Ja | AA28: Ja | AB28: Ja | AC28: Nej | AD28: Nej | AE28: 26 | AF28: Fodervikke
F29: Vintervikke | G29: 27 | H29: =Grundkarakterer!N34 -> 0 | I29: =Grundkarakterer!O34 -> 0 | J29: =Grundkarakterer!P34 -> 0 | K29: =Grundkarakterer!Q34 -> 1 | L29: =Grundkarakterer!U34 -> 0 | M29: =Grundkarakterer!V34 -> 0 | N29: =Grundkarakterer!W34 -> 0 | O29: =Grundkarakterer!X34 -> 3 | P29: =IF(OR($C$4=1,$C$5=1),Grundkarakterer!N34,0) -> 0 | Q29: =IF(C$7=1,Grundkarakterer!O34,0) -> 0 | R29: =IF(OR(C$5=1,C$6=1),Grundkarakterer!P34,0) -> 0 | S29: =IF(OR(C$5=1,C$6=1),Grundkarakterer!Q34,0) -> 0 | T29: 0 | U29: =Grundkarakterer!AC34 -> 3 | V29: =Grundkarakterer!AG34 -> 0 | W29: 8 | X29: 0.2285714286 | Y29: 32 | Z29: Ja | AA29: Ja | AB29: Ja | AC29: Nej | AD29: Nej | AE29: 27 | AF29: Vintervikke
A30: Obligatoriske valg foretaget? | F30: Alexandrinekløver | G30: 28 | H30: =Grundkarakterer!N35 -> 0 | I30: =Grundkarakterer!O35 -> 0 | J30: =Grundkarakterer!P35 -> 0 | K30: =Grundkarakterer!Q35 -> 1 | L30: =Grundkarakterer!U35 -> 0 | M30: =Grundkarakterer!V35 -> 2 | N30: =Grundkarakterer!W35 -> 1 | O30: =Grundkarakterer!X35 -> 2 | P30: =IF(OR($C$4=1,$C$5=1),Grundkarakterer!N35,0) -> 0 | Q30: =IF(C$7=1,Grundkarakterer!O35,0) -> 0 | R30: =IF(OR(C$5=1,C$6=1),Grundkarakterer!P35,0) -> 0 | S30: =IF(OR(C$5=1,C$6=1),Grundkarakterer!Q35,0) -> 0 | T30: 0 | U30: =Grundkarakterer!AC35 -> 3 | V30: =Grundkarakterer!AG35 -> 1 | W30: 7 | X30: 0.2 | Y30: 33 | Z30: Ja | AA30: Ja | AB30: Ja | AC30: Nej | AD30: Nej | AE30: 28 | AF30: Alexandrinekløver
A31: =IF(AND('Efterafgrøde beslutningsstøtte'!A7<>"Vælg funktion",'Efterafgrøde beslutningsstøtte'!A10<>"Vælg afgrøde",'Efterafgrøde beslutningsstøtte'!A13<>"Vælg etableringstidspunkt",'Efterafgrøde beslutningsstøtte'!A16<>"Vælg jordtype",'Efterafgrøde beslutningsstøtte'!A19<>"Vælg afgrøde"),"Ja","Nej") -> Ja | F31: Hvidkløver | G31: 29 | H31: =Grundkarakterer!N36 -> 0 | I31: =Grundkarakterer!O36 -> 0 | J31: =Grundkarakterer!P36 -> 0 | K31: =Grundkarakterer!Q36 -> 1 | L31: =Grundkarakterer!U36 -> 0 | M31: =Grundkarakterer!V36 -> 3 | N31: =Grundkarakterer!W36 -> 3 | O31: =Grundkarakterer!X36 -> 1 | P31: =IF(OR($C$4=1,$C$5=1),Grundkarakterer!N36,0) -> 0 | Q31: =IF(C$7=1,Grundkarakterer!O36,0) -> 0 | R31: =IF(OR(C$5=1,C$6=1),Grundkarakterer!P36,0) -> 0 | S31: =IF(OR(C$5=1,C$6=1),Grundkarakterer!Q36,0) -> 0 | T31: 0 | U31: =Grundkarakterer!AC36 -> 3 | V31: =Grundkarakterer!AG36 -> 0 | W31: 6 | X31: 0.1714285714 | Y31: 34 | Z31: Ja | AA31: Ja | AB31: Ja | AC31: Nej | AD31: Nej | AE31: 29 | AF31: Hvidkløver
F32: Olieræddike og vintervikke | G32: 30 | H32: =Grundkarakterer!N37 -> 1 | I32: =Grundkarakterer!O37 -> 0 | J32: =Grundkarakterer!P37 -> 0 | K32: =Grundkarakterer!Q37 -> 0 | L32: =Grundkarakterer!U37 -> 0 | M32: =Grundkarakterer!V37 -> 0 | N32: =Grundkarakterer!W37 -> 0 | O32: =Grundkarakterer!X37 -> 3 | P32: =IF(OR($C$4=1,$C$5=1),Grundkarakterer!N37,0) -> 1 | Q32: =IF(C$7=1,Grundkarakterer!O37,0) -> 0 | R32: =IF(OR(C$5=1,C$6=1),Grundkarakterer!P37,0) -> 0 | S32: =IF(OR(C$5=1,C$6=1),Grundkarakterer!Q37,0) -> 0 | T32: 0 | U32: =Grundkarakterer!AC37 -> 2 | V32: =Grundkarakterer!AG37 -> 0 | W32: 5 | X32: 1.142857143 | Y32: 16 | Z32: Ja | AA32: Ja | AB32: Ja | AC32: Ja | AD32: Ja | AE32: 30 | AF32: Blanding af olieræddike og fodervikke
F33: Hvidkløver/alm. rajgræs | G33: 31 | H33: =Grundkarakterer!N38 -> 1 | I33: =Grundkarakterer!O38 -> 0 | J33: =Grundkarakterer!P38 -> 0 | K33: =Grundkarakterer!Q38 -> 1 | L33: =Grundkarakterer!U38 -> 0 | M33: =Grundkarakterer!V38 -> 3 | N33: =Grundkarakterer!W38 -> 3 | O33: =Grundkarakterer!X38 -> 2 | P33: =IF(OR($C$4=1,$C$5=1),Grundkarakterer!N38,0) -> 1 | Q33: =IF(C$7=1,Grundkarakterer!O38,0) -> 0 | R33: =IF(OR(C$5=1,C$6=1),Grundkarakterer!P38,0) -> 0 | S33: =IF(OR(C$5=1,C$6=1),Grundkarakterer!Q38,0) -> 0 | T33: 0 | U33: =Grundkarakterer!AC38 -> 3 | V33: =Grundkarakterer!AG38 -> 0 | W33: 4 | X33: 1.114285714 | Y33: 17 | Z33: Ja | AA33: Ja | AB33: Ja | AC33: Ja | AD33: Ja | AE33: 31 | AF33: Hvidkløver/alm. rajgræs
F34: Rødkløver/strandsvingel | G34: 32 | H34: =Grundkarakterer!N39 -> 1 | I34: =Grundkarakterer!O39 -> 0 | J34: =Grundkarakterer!P39 -> 0 | K34: =Grundkarakterer!Q39 -> 1 | L34: =Grundkarakterer!U39 -> 0 | M34: =Grundkarakterer!V39 -> 1 | N34: =Grundkarakterer!W39 -> 3 | O34: =Grundkarakterer!X39 -> 1 | P34: =IF(OR($C$4=1,$C$5=1),Grundkarakterer!N39,0) -> 1 | Q34: =IF(C$7=1,Grundkarakterer!O39,0) -> 0 | R34: =IF(OR(C$5=1,C$6=1),Grundkarakterer!P39,0) -> 0 | S34: =IF(OR(C$5=1,C$6=1),Grundkarakterer!Q39,0) -> 0 | T34: 0 | U34: =Grundkarakterer!AC39 -> 3 | V34: =Grundkarakterer!AG39 -> 0 | W34: 3 | X34: 1.085714286 | Y34: 18 | Z34: Ja | AA34: Ja | AB34: Ja | AC34: Ja | AD34: Ja | AE34: 32 | AF34: Rødkløver/strandsvingel
F35: Vintervikke/vinterrug | G35: 33 | H35: =Grundkarakterer!N40 -> 1 | I35: =Grundkarakterer!O40 -> 0 | J35: =Grundkarakterer!P40 -> 0 | K35: =Grundkarakterer!Q40 -> 1 | L35: =Grundkarakterer!U40 -> 0 | M35: =Grundkarakterer!V40 -> 0 | N35: =Grundkarakterer!W40 -> 0 | O35: =Grundkarakterer!X40 -> 3 | P35: =IF(OR($C$4=1,$C$5=1),Grundkarakterer!N40,0) -> 1 | Q35: =IF(C$7=1,Grundkarakterer!O40,0) -> 0 | R35: =IF(OR(C$5=1,C$6=1),Grundkarakterer!P40,0) -> 0 | S35: =IF(OR(C$5=1,C$6=1),Grundkarakterer!Q40,0) -> 0 | T35: 0 | U35: =Grundkarakterer!AC40 -> 3 | V35: =Grundkarakterer!AG40 -> 0 | W35: 2 | X35: 1.057142857 | Y35: 19 | Z35: Ja | AA35: Ja | AB35: Ja | AC35: Ja | AD35: Ja | AE35: 33 | AF35: Vintervikke/vinterrug
F36: Kløvergræs (blanding) | G36: 34 | H36: =Grundkarakterer!N41 -> 1 | I36: =Grundkarakterer!O41 -> 0 | J36: =Grundkarakterer!P41 -> 0 | K36: =Grundkarakterer!Q41 -> 1 | L36: =Grundkarakterer!U41 -> 0 | M36: =Grundkarakterer!V41 -> 3 | N36: =Grundkarakterer!W41 -> 3 | O36: =Grundkarakterer!X41 -> 3 | P36: =IF(OR($C$4=1,$C$5=1),Grundkarakterer!N41,0) -> 1 | Q36: =IF(C$7=1,Grundkarakterer!O41,0) -> 0 | R36: =IF(OR(C$5=1,C$6=1),Grundkarakterer!P41,0) -> 0 | S36: =IF(OR(C$5=1,C$6=1),Grundkarakterer!Q41,0) -> 0 | T36: 0 | U36: =Grundkarakterer!AC41 -> 3 | V36: =Grundkarakterer!AG41 -> 0 | W36: 1 | X36: 1.028571429 | Y36: 20 | Z36: Ja | AA36: Ja | AB36: Ja | AC36: Ja | AD36: Ja | AE36: 34 | AF36: Kløvergræs
AD37: =COUNTIF(AD3:AD36,"Ja") -> 17
H38: 7 | I38: 8 | J38: 9 | K38: 10 | L38: 11 | M38: 12 | N38: 13 | O38: 14 | P38: 15 | Q38: 16 | R38: 17 | S38: 18 | T38: 19 | U38: 20 | V38: 21 | W38: 22 | X38: 23 | Y38: 24 | Z38: 25 | AA38: 26 | AB38: 27 | AC38: 28 | AD38: 29 | AE38: 30 | AF38: 31
B39: Index | C39: Med | D39: Efterafgrøde | E39: Afgrøde | F39: Tidspunkt | G39: Link | H39: Seneste såtidspunkt | I39: Omkostninger | J39: Pligtig efterafgrøde | K39: Pligtig mellemafgrøde | L39: MFO-efterafgrøde i blanding2) | M39: MFO-udlæg3) | N39: Miljø-efterafgrøder | O39: Frivillig efterafgrøde | P39: Grønne marker (2,3 DE-brug) | Q39: Egnet til udlæg efterår i vinterkorn | R39: Egnet til udlæg forår | S39: Egnet til udsåning ved sidste radrensning | T39: Egnet til udsåning efter tidlig høst (10. august) | U39: Kvælstoffikserende | V39: Stor kvælstof-eftervirkning | W39: Hurtig og dyb rodvækst på lerjord | X39: Er afgrøden robust mod ukrudtsmidler? | Y39: Der findes sorter, der ikke opformerer kålbrok | Z39: Der findes sorter, der er sanerende for roecystenematoder | AA39: Kan anvendes i sædskifter med kartofler (opformerer ikke fritlevende nematoder og rodfiltsvamp | AB39: Vinterfast | AC39: Egen udsæd kan anvendes4) | AD39: Tiebreak | AE39: Kommentare ang. ukrudt | AF39: Nettoomkostninger
A40: 1 | B40: =INDEX(Grundkarakterer!A$8:A$41,AE3) -> 1 | C40: =IF(AND(VLOOKUP(B40,$G$3:$AE$36,24,FALSE)="Ja",A$31="Ja"),"Ja","Nej") -> Ja | D40: =IF(C40="Ja",INDEX(Grundkarakterer!B$8:B$41,AE3),"xx") -> Alm. rajgræs, dipl. | E40: =IF(C40="Ja",INDEX(Grundkarakterer!C$8:C$41,$AE3),"xx") -> 1. Vintersæd | F40: =IF(C40="Ja",INDEX(Grundkarakterer!D$8:D$41,$AE3),"xx") -> 1. Ved etablering af primærafgrøde | G40: =IF(C40="Ja",INDEX(Grundkarakterer!#REF!,$AE3),"xx") ->  | H40: =IF($C40="Ja",IF($D$9=1,INDEX(Grundkarakterer!E$8:E$41,$AE3),IF(AND($D$9=2,$D$20=1),INDEX(Grundkarakterer!H$8:H$41,$AE3),IF(AND($D$9=2,$D$20<>1),INDEX(Grundkarakterer!F$8:F$41,$AE3),IF(AND($D$9=3,$D$20=1),INDEX(Grundkarakterer!I$8:I$41,$AE3),IF(AND($D$9=3,$D$20<>1),INDEX(Grundkarakterer!G$8:G$41,$AE3),IF($D$9=4,INDEX(Grundkarakterer!J$8:J$41,$AE3),IF($D$9=5,INDEX(Grundkarakterer!K$8:K$41,$AE3),"Fejl"))))))),"xx") -> 1.august | I40: =IF($C40="Ja",INDEX(Grundkarakterer!L$8:L$41,$AE3),"xx") -> -185 | J40: =IF($C40="Ja",INDEX(Grundkarakterer!N$8:N$41,$AE3),"xx") -> 1 | K40: =IF($C40="Ja",INDEX(Grundkarakterer!O$8:O$41,$AE3),"xx") -> 0 | L40: =IF($C40="Ja",INDEX(Grundkarakterer!P$8:P$41,$AE3),"xx") -> 1 | M40: =IF($C40="Ja",INDEX(Grundkarakterer!Q$8:Q$41,$AE3),"xx") -> 1 | N40: =IF($C40="Ja",INDEX(Grundkarakterer!R$8:R$41,$AE3),"xx") -> 1 | O40: =IF($C40="Ja",INDEX(Grundkarakterer!S$8:S$41,$AE3),"xx") -> 1 | P40: =IF($C40="Ja",INDEX(Grundkarakterer!T$8:T$41,$AE3),"xx") -> 1 | Q40: =IF($C40="Ja",INDEX(Grundkarakterer!U$8:U$41,$AE3),"xx") -> 0 | R40: =IF($C40="Ja",INDEX(Grundkarakterer!V$8:V$41,$AE3),"xx") -> 3 | S40: =IF($C40="Ja",INDEX(Grundkarakterer!W$8:W$41,$AE3),"xx") -> 3 | T40: =IF($C40="Ja",INDEX(Grundkarakterer!X$8:X$41,$AE3),"xx") -> 2 | U40: =IF($C40="Ja",INDEX(Grundkarakterer!Y$8:Y$41,$AE3),"xx") -> 0 | V40: =IF($C40="Ja",INDEX(Grundkarakterer!Z$8:Z$41,$AE3),"xx") -> 1 | W40: =IF($C40="Ja",INDEX(Grundkarakterer!AA$8:AA$41,$AE3),"xx") -> 0 | X40: =IF($C40="Ja",INDEX(Grundkarakterer!AB$8:AB$41,$AE3),"xx") -> 2 | Y40: =IF($C40="Ja",INDEX(Grundkarakterer!AC$8:AC$41,$AE3),"xx") -> 3 | Z40: =IF($C40="Ja",INDEX(Grundkarakterer!AD$8:AD$41,$AE3),"xx") -> 0 | AA40: =IF($C40="Ja",INDEX(Grundkarakterer!AE$8:AE$41,$AE3),"xx") -> 0 | AB40: =IF($C40="Ja",INDEX(Grundkarakterer!AF$8:AF$41,$AE3),"xx") -> 3 | AC40: =IF($C40="Ja",INDEX(Grundkarakterer!AG$8:AG$41,$AE3),"xx") -> 0 | AD40: =IF($C40="Ja",INDEX(Grundkarakterer!AH$8:AH$41,$AE3),"xx") -> 1 | AE40: =IF($C40="Ja",INDEX(Grundkarakterer!AI$8:AI$41,$AE3),"xx") -> 0 | AF40: =IF($C40="Ja",INDEX(Grundkarakterer!M$8:M$41,$AE3),"xx") -> -
A41: 2 | B41: =INDEX(Grundkarakterer!A$8:A$41,AE4) -> 2 | C41: Nej | D41: =IF(C41="Ja",INDEX(Grundkarakterer!B$8:B$41,AE4),"xx") -> xx | E41: =IF(C41="Ja",INDEX(Grundkarakterer!C$8:C$41,$AE4),"xx") -> xx | F41: =IF(C41="Ja",INDEX(Grundkarakterer!D$8:D$41,$AE4),"xx") -> xx | G41: =IF(C41="Ja",INDEX(Grundkarakterer!#REF!,$AE4),"xx") -> xx | H41: =IF($C41="Ja",IF($D$9=1,INDEX(Grundkarakterer!E$8:E$41,$AE4),IF(AND($D$9=2,$D$20=1),INDEX(Grundkarakterer!H$8:H$41,$AE4),IF(AND($D$9=2,$D$20<>1),INDEX(Grundkarakterer!F$8:F$41,$AE4),IF(AND($D$9=3,$D$20=1),INDEX(Grundkarakterer!I$8:I$41,$AE4),IF(AND($D$9=3,$D$20<>1),INDEX(Grundkarakterer!G$8:G$41,$AE4),IF($D$9=4,INDEX(Grundkarakterer!J$8:J$41,$AE4),IF($D$9=5,INDEX(Grundkarakterer!K$8:K$41,$AE4),"Fejl"))))))),"xx") -> xx | I41: =IF($C41="Ja",INDEX(Grundkarakterer!L$8:L$41,$AE4),"xx") -> xx | J41: =IF($C41="Ja",INDEX(Grundkarakterer!N$8:N$41,$AE4),"xx") -> xx | K41: =IF($C41="Ja",INDEX(Grundkarakterer!O$8:O$41,$AE4),"xx") -> xx | L41: =IF($C41="Ja",INDEX(Grundkarakterer!P$8:P$41,$AE4),"xx") -> xx | M41: =IF($C41="Ja",INDEX(Grundkarakterer!Q$8:Q$41,$AE4),"xx") -> xx | N41: =IF($C41="Ja",INDEX(Grundkarakterer!R$8:R$41,$AE4),"xx") -> xx | O41: =IF($C41="Ja",INDEX(Grundkarakterer!S$8:S$41,$AE4),"xx") -> xx | P41: =IF($C41="Ja",INDEX(Grundkarakterer!T$8:T$41,$AE4),"xx") -> xx | Q41: =IF($C41="Ja",INDEX(Grundkarakterer!U$8:U$41,$AE4),"xx") -> xx | R41: =IF($C41="Ja",INDEX(Grundkarakterer!V$8:V$41,$AE4),"xx") -> xx | S41: =IF($C41="Ja",INDEX(Grundkarakterer!W$8:W$41,$AE4),"xx") -> xx | T41: =IF($C41="Ja",INDEX(Grundkarakterer!X$8:X$41,$AE4),"xx") -> xx | U41: =IF($C41="Ja",INDEX(Grundkarakterer!Y$8:Y$41,$AE4),"xx") -> xx | V41: =IF($C41="Ja",INDEX(Grundkarakterer!Z$8:Z$41,$AE4),"xx") -> xx | W41: =IF($C41="Ja",INDEX(Grundkarakterer!AA$8:AA$41,$AE4),"xx") -> xx | X41: =IF($C41="Ja",INDEX(Grundkarakterer!AB$8:AB$41,$AE4),"xx") -> xx | Y41: =IF($C41="Ja",INDEX(Grundkarakterer!AC$8:AC$41,$AE4),"xx") -> xx | Z41: =IF($C41="Ja",INDEX(Grundkarakterer!AD$8:AD$41,$AE4),"xx") -> xx | AA41: =IF($C41="Ja",INDEX(Grundkarakterer!AE$8:AE$41,$AE4),"xx") -> xx | AB41: =IF($C41="Ja",INDEX(Grundkarakterer!AF$8:AF$41,$AE4),"xx") -> xx | AC41: =IF($C41="Ja",INDEX(Grundkarakterer!AG$8:AG$41,$AE4),"xx") -> xx | AD41: =IF($C41="Ja",INDEX(Grundkarakterer!AH$8:AH$41,$AE4),"xx") -> xx | AE41: =IF($C41="Ja",INDEX(Grundkarakterer!AI$8:AI$41,$AE4),"xx") -> xx | AF41: =IF($C41="Ja",INDEX(Grundkarakterer!M$8:M$41,$AE4),"xx") -> xx
A42: 3 | B42: =INDEX(Grundkarakterer!A$8:A$41,AE5) -> 3 | C42: Ja | D42: =IF(C42="Ja",INDEX(Grundkarakterer!B$8:B$41,AE5),"xx") -> Vårbyg /Vikke /Gul Sennep | E42: =IF(C42="Ja",INDEX(Grundkarakterer!C$8:C$41,$AE5),"xx") -> 0 | F42: =IF(C42="Ja",INDEX(Grundkarakterer!D$8:D$41,$AE5),"xx") -> 0 | G42: =IF(C42="Ja",INDEX(Grundkarakterer!#REF!,$AE5),"xx") ->  | H42: =IF($C42="Ja",IF($D$9=1,INDEX(Grundkarakterer!E$8:E$41,$AE5),IF(AND($D$9=2,$D$20=1),INDEX(Grundkarakterer!H$8:H$41,$AE5),IF(AND($D$9=2,$D$20<>1),INDEX(Grundkarakterer!F$8:F$41,$AE5),IF(AND($D$9=3,$D$20=1),INDEX(Grundkarakterer!I$8:I$41,$AE5),IF(AND($D$9=3,$D$20<>1),INDEX(Grundkarakterer!G$8:G$41,$AE5),IF($D$9=4,INDEX(Grundkarakterer!J$8:J$41,$AE5),IF($D$9=5,INDEX(Grundkarakterer!K$8:K$41,$AE5),"Fejl"))))))),"xx") -> 20. august | I42: =IF($C42="Ja",INDEX(Grundkarakterer!L$8:L$41,$AE5),"xx") -> -788.5 | J42: =IF($C42="Ja",INDEX(Grundkarakterer!N$8:N$41,$AE5),"xx") -> 1 | K42: =IF($C42="Ja",INDEX(Grundkarakterer!O$8:O$41,$AE5),"xx") -> 0 | L42: =IF($C42="Ja",INDEX(Grundkarakterer!P$8:P$41,$AE5),"xx") -> 0 | M42: =IF($C42="Ja",INDEX(Grundkarakterer!Q$8:Q$41,$AE5),"xx") -> 0 | N42: =IF($C42="Ja",INDEX(Grundkarakterer!R$8:R$41,$AE5),"xx") -> 1 | O42: =IF($C42="Ja",INDEX(Grundkarakterer!S$8:S$41,$AE5),"xx") -> 1 | P42: =IF($C42="Ja",INDEX(Grundkarakterer!T$8:T$41,$AE5),"xx") -> 1 | Q42: =IF($C42="Ja",INDEX(Grundkarakterer!U$8:U$41,$AE5),"xx") -> 0 | R42: =IF($C42="Ja",INDEX(Grundkarakterer!V$8:V$41,$AE5),"xx") -> 0 | S42: =IF($C42="Ja",INDEX(Grundkarakterer!W$8:W$41,$AE5),"xx") -> 0 | T42: =IF($C42="Ja",INDEX(Grundkarakterer!X$8:X$41,$AE5),"xx") -> 3 | U42: =IF($C42="Ja",INDEX(Grundkarakterer!Y$8:Y$41,$AE5),"xx") -> 1 | V42: =IF($C42="Ja",INDEX(Grundkarakterer!Z$8:Z$41,$AE5),"xx") -> 2 | W42: =IF($C42="Ja",INDEX(Grundkarakterer!AA$8:AA$41,$AE5),"xx") -> 1 | X42: =IF($C42="Ja",INDEX(Grundkarakterer!AB$8:AB$41,$AE5),"xx") -> 0 | Y42: =IF($C42="Ja",INDEX(Grundkarakterer!AC$8:AC$41,$AE5),"xx") -> 3 | Z42: =IF($C42="Ja",INDEX(Grundkarakterer!AD$8:AD$41,$AE5),"xx") -> 0 | AA42: =IF($C42="Ja",INDEX(Grundkarakterer!AE$8:AE$41,$AE5),"xx") -> 0 | AB42: =IF($C42="Ja",INDEX(Grundkarakterer!AF$8:AF$41,$AE5),"xx") -> 1 | AC42: =IF($C42="Ja",INDEX(Grundkarakterer!AG$8:AG$41,$AE5),"xx") -> 0 | AD42: =IF($C42="Ja",INDEX(Grundkarakterer!AH$8:AH$41,$AE5),"xx") -> 3 | AE42: =IF($C42="Ja",INDEX(Grundkarakterer!AI$8:AI$41,$AE5),"xx") -> 0 | AF42: =IF($C42="Ja",INDEX(Grundkarakterer!M$8:M$41,$AE5),"xx") -> -348.5
A43: 4 | B43: =INDEX(Grundkarakterer!A$8:A$41,AE6) -> 4 | C43: Nej | D43: =IF(C43="Ja",INDEX(Grundkarakterer!B$8:B$41,AE6),"xx") -> xx | E43: =IF(C43="Ja",INDEX(Grundkarakterer!C$8:C$41,$AE6),"xx") -> xx | F43: =IF(C43="Ja",INDEX(Grundkarakterer!D$8:D$41,$AE6),"xx") -> xx | G43: =IF(C43="Ja",INDEX(Grundkarakterer!#REF!,$AE6),"xx") -> xx | H43: =IF($C43="Ja",IF($D$9=1,INDEX(Grundkarakterer!E$8:E$41,$AE6),IF(AND($D$9=2,$D$20=1),INDEX(Grundkarakterer!H$8:H$41,$AE6),IF(AND($D$9=2,$D$20<>1),INDEX(Grundkarakterer!F$8:F$41,$AE6),IF(AND($D$9=3,$D$20=1),INDEX(Grundkarakterer!I$8:I$41,$AE6),IF(AND($D$9=3,$D$20<>1),INDEX(Grundkarakterer!G$8:G$41,$AE6),IF($D$9=4,INDEX(Grundkarakterer!J$8:J$41,$AE6),IF($D$9=5,INDEX(Grundkarakterer!K$8:K$41,$AE6),"Fejl"))))))),"xx") -> xx | I43: =IF($C43="Ja",INDEX(Grundkarakterer!L$8:L$41,$AE6),"xx") -> xx | J43: =IF($C43="Ja",INDEX(Grundkarakterer!N$8:N$41,$AE6),"xx") -> xx | K43: =IF($C43="Ja",INDEX(Grundkarakterer!O$8:O$41,$AE6),"xx") -> xx | L43: =IF($C43="Ja",INDEX(Grundkarakterer!P$8:P$41,$AE6),"xx") -> xx | M43: =IF($C43="Ja",INDEX(Grundkarakterer!Q$8:Q$41,$AE6),"xx") -> xx | N43: =IF($C43="Ja",INDEX(Grundkarakterer!R$8:R$41,$AE6),"xx") -> xx | O43: =IF($C43="Ja",INDEX(Grundkarakterer!S$8:S$41,$AE6),"xx") -> xx | P43: =IF($C43="Ja",INDEX(Grundkarakterer!T$8:T$41,$AE6),"xx") -> xx | Q43: =IF($C43="Ja",INDEX(Grundkarakterer!U$8:U$41,$AE6),"xx") -> xx | R43: =IF($C43="Ja",INDEX(Grundkarakterer!V$8:V$41,$AE6),"xx") -> xx | S43: =IF($C43="Ja",INDEX(Grundkarakterer!W$8:W$41,$AE6),"xx") -> xx | T43: =IF($C43="Ja",INDEX(Grundkarakterer!X$8:X$41,$AE6),"xx") -> xx | U43: =IF($C43="Ja",INDEX(Grundkarakterer!Y$8:Y$41,$AE6),"xx") -> xx | V43: =IF($C43="Ja",INDEX(Grundkarakterer!Z$8:Z$41,$AE6),"xx") -> xx | W43: =IF($C43="Ja",INDEX(Grundkarakterer!AA$8:AA$41,$AE6),"xx") -> xx | X43: =IF($C43="Ja",INDEX(Grundkarakterer!AB$8:AB$41,$AE6),"xx") -> xx | Y43: =IF($C43="Ja",INDEX(Grundkarakterer!AC$8:AC$41,$AE6),"xx") -> xx | Z43: =IF($C43="Ja",INDEX(Grundkarakterer!AD$8:AD$41,$AE6),"xx") -> xx | AA43: =IF($C43="Ja",INDEX(Grundkarakterer!AE$8:AE$41,$AE6),"xx") -> xx | AB43: =IF($C43="Ja",INDEX(Grundkarakterer!AF$8:AF$41,$AE6),"xx") -> xx | AC43: =IF($C43="Ja",INDEX(Grundkarakterer!AG$8:AG$41,$AE6),"xx") -> xx | AD43: =IF($C43="Ja",INDEX(Grundkarakterer!AH$8:AH$41,$AE6),"xx") -> xx | AE43: =IF($C43="Ja",INDEX(Grundkarakterer!AI$8:AI$41,$AE6),"xx") -> xx | AF43: =IF($C43="Ja",INDEX(Grundkarakterer!M$8:M$41,$AE6),"xx") -> xx
A44: 5 | B44: =INDEX(Grundkarakterer!A$8:A$41,AE7) -> 5 | C44: Nej | D44: =IF(C44="Ja",INDEX(Grundkarakterer!B$8:B$41,AE7),"xx") -> xx | E44: =IF(C44="Ja",INDEX(Grundkarakterer!C$8:C$41,$AE7),"xx") -> xx | F44: =IF(C44="Ja",INDEX(Grundkarakterer!D$8:D$41,$AE7),"xx") -> xx | G44: =IF(C44="Ja",INDEX(Grundkarakterer!#REF!,$AE7),"xx") -> xx | H44: =IF($C44="Ja",IF($D$9=1,INDEX(Grundkarakterer!E$8:E$41,$AE7),IF(AND($D$9=2,$D$20=1),INDEX(Grundkarakterer!H$8:H$41,$AE7),IF(AND($D$9=2,$D$20<>1),INDEX(Grundkarakterer!F$8:F$41,$AE7),IF(AND($D$9=3,$D$20=1),INDEX(Grundkarakterer!I$8:I$41,$AE7),IF(AND($D$9=3,$D$20<>1),INDEX(Grundkarakterer!G$8:G$41,$AE7),IF($D$9=4,INDEX(Grundkarakterer!J$8:J$41,$AE7),IF($D$9=5,INDEX(Grundkarakterer!K$8:K$41,$AE7),"Fejl"))))))),"xx") -> xx | I44: =IF($C44="Ja",INDEX(Grundkarakterer!L$8:L$41,$AE7),"xx") -> xx | J44: =IF($C44="Ja",INDEX(Grundkarakterer!N$8:N$41,$AE7),"xx") -> xx | K44: =IF($C44="Ja",INDEX(Grundkarakterer!O$8:O$41,$AE7),"xx") -> xx | L44: =IF($C44="Ja",INDEX(Grundkarakterer!P$8:P$41,$AE7),"xx") -> xx | M44: =IF($C44="Ja",INDEX(Grundkarakterer!Q$8:Q$41,$AE7),"xx") -> xx | N44: =IF($C44="Ja",INDEX(Grundkarakterer!R$8:R$41,$AE7),"xx") -> xx | O44: =IF($C44="Ja",INDEX(Grundkarakterer!S$8:S$41,$AE7),"xx") -> xx | P44: =IF($C44="Ja",INDEX(Grundkarakterer!T$8:T$41,$AE7),"xx") -> xx | Q44: =IF($C44="Ja",INDEX(Grundkarakterer!U$8:U$41,$AE7),"xx") -> xx | R44: =IF($C44="Ja",INDEX(Grundkarakterer!V$8:V$41,$AE7),"xx") -> xx | S44: =IF($C44="Ja",INDEX(Grundkarakterer!W$8:W$41,$AE7),"xx") -> xx | T44: =IF($C44="Ja",INDEX(Grundkarakterer!X$8:X$41,$AE7),"xx") -> xx | U44: =IF($C44="Ja",INDEX(Grundkarakterer!Y$8:Y$41,$AE7),"xx") -> xx | V44: =IF($C44="Ja",INDEX(Grundkarakterer!Z$8:Z$41,$AE7),"xx") -> xx | W44: =IF($C44="Ja",INDEX(Grundkarakterer!AA$8:AA$41,$AE7),"xx") -> xx | X44: =IF($C44="Ja",INDEX(Grundkarakterer!AB$8:AB$41,$AE7),"xx") -> xx | Y44: =IF($C44="Ja",INDEX(Grundkarakterer!AC$8:AC$41,$AE7),"xx") -> xx | Z44: =IF($C44="Ja",INDEX(Grundkarakterer!AD$8:AD$41,$AE7),"xx") -> xx | AA44: =IF($C44="Ja",INDEX(Grundkarakterer!AE$8:AE$41,$AE7),"xx") -> xx | AB44: =IF($C44="Ja",INDEX(Grundkarakterer!AF$8:AF$41,$AE7),"xx") -> xx | AC44: =IF($C44="Ja",INDEX(Grundkarakterer!AG$8:AG$41,$AE7),"xx") -> xx | AD44: =IF($C44="Ja",INDEX(Grundkarakterer!AH$8:AH$41,$AE7),"xx") -> xx | AE44: =IF($C44="Ja",INDEX(Grundkarakterer!AI$8:AI$41,$AE7),"xx") -> xx | AF44: =IF($C44="Ja",INDEX(Grundkarakterer!M$8:M$41,$AE7),"xx") -> xx
A45: 6 | B45: =INDEX(Grundkarakterer!A$8:A$41,AE8) -> 6 | C45: Nej | D45: =IF(C45="Ja",INDEX(Grundkarakterer!B$8:B$41,AE8),"xx") -> xx | E45: =IF(C45="Ja",INDEX(Grundkarakterer!C$8:C$41,$AE8),"xx") -> xx | F45: =IF(C45="Ja",INDEX(Grundkarakterer!D$8:D$41,$AE8),"xx") -> xx | G45: =IF(C45="Ja",INDEX(Grundkarakterer!#REF!,$AE8),"xx") -> xx | H45: =IF($C45="Ja",IF($D$9=1,INDEX(Grundkarakterer!E$8:E$41,$AE8),IF(AND($D$9=2,$D$20=1),INDEX(Grundkarakterer!H$8:H$41,$AE8),IF(AND($D$9=2,$D$20<>1),INDEX(Grundkarakterer!F$8:F$41,$AE8),IF(AND($D$9=3,$D$20=1),INDEX(Grundkarakterer!I$8:I$41,$AE8),IF(AND($D$9=3,$D$20<>1),INDEX(Grundkarakterer!G$8:G$41,$AE8),IF($D$9=4,INDEX(Grundkarakterer!J$8:J$41,$AE8),IF($D$9=5,INDEX(Grundkarakterer!K$8:K$41,$AE8),"Fejl"))))))),"xx") -> xx | I45: =IF($C45="Ja",INDEX(Grundkarakterer!L$8:L$41,$AE8),"xx") -> xx | J45: =IF($C45="Ja",INDEX(Grundkarakterer!N$8:N$41,$AE8),"xx") -> xx | K45: =IF($C45="Ja",INDEX(Grundkarakterer!O$8:O$41,$AE8),"xx") -> xx | L45: =IF($C45="Ja",INDEX(Grundkarakterer!P$8:P$41,$AE8),"xx") -> xx | M45: =IF($C45="Ja",INDEX(Grundkarakterer!Q$8:Q$41,$AE8),"xx") -> xx | N45: =IF($C45="Ja",INDEX(Grundkarakterer!R$8:R$41,$AE8),"xx") -> xx | O45: =IF($C45="Ja",INDEX(Grundkarakterer!S$8:S$41,$AE8),"xx") -> xx | P45: =IF($C45="Ja",INDEX(Grundkarakterer!T$8:T$41,$AE8),"xx") -> xx | Q45: =IF($C45="Ja",INDEX(Grundkarakterer!U$8:U$41,$AE8),"xx") -> xx | R45: =IF($C45="Ja",INDEX(Grundkarakterer!V$8:V$41,$AE8),"xx") -> xx | S45: =IF($C45="Ja",INDEX(Grundkarakterer!W$8:W$41,$AE8),"xx") -> xx | T45: =IF($C45="Ja",INDEX(Grundkarakterer!X$8:X$41,$AE8),"xx") -> xx | U45: =IF($C45="Ja",INDEX(Grundkarakterer!Y$8:Y$41,$AE8),"xx") -> xx | V45: =IF($C45="Ja",INDEX(Grundkarakterer!Z$8:Z$41,$AE8),"xx") -> xx | W45: =IF($C45="Ja",INDEX(Grundkarakterer!AA$8:AA$41,$AE8),"xx") -> xx | X45: =IF($C45="Ja",INDEX(Grundkarakterer!AB$8:AB$41,$AE8),"xx") -> xx | Y45: =IF($C45="Ja",INDEX(Grundkarakterer!AC$8:AC$41,$AE8),"xx") -> xx | Z45: =IF($C45="Ja",INDEX(Grundkarakterer!AD$8:AD$41,$AE8),"xx") -> xx | AA45: =IF($C45="Ja",INDEX(Grundkarakterer!AE$8:AE$41,$AE8),"xx") -> xx | AB45: =IF($C45="Ja",INDEX(Grundkarakterer!AF$8:AF$41,$AE8),"xx") -> xx | AC45: =IF($C45="Ja",INDEX(Grundkarakterer!AG$8:AG$41,$AE8),"xx") -> xx | AD45: =IF($C45="Ja",INDEX(Grundkarakterer!AH$8:AH$41,$AE8),"xx") -> xx | AE45: =IF($C45="Ja",INDEX(Grundkarakterer!AI$8:AI$41,$AE8),"xx") -> xx | AF45: =IF($C45="Ja",INDEX(Grundkarakterer!M$8:M$41,$AE8),"xx") -> xx
A46: 7 | B46: =INDEX(Grundkarakterer!A$8:A$41,AE9) -> 7 | C46: Ja | D46: =IF(C46="Ja",INDEX(Grundkarakterer!B$8:B$41,AE9),"xx") -> Triticale/Gul Sennep | E46: =IF(C46="Ja",INDEX(Grundkarakterer!C$8:C$41,$AE9),"xx") -> 1. Vintersæd | F46: =IF(C46="Ja",INDEX(Grundkarakterer!D$8:D$41,$AE9),"xx") -> 1. Ved etablering af primærafgrøde | G46: =IF(C46="Ja",INDEX(Grundkarakterer!#REF!,$AE9),"xx") ->  | H46: =IF($C46="Ja",IF($D$9=1,INDEX(Grundkarakterer!E$8:E$41,$AE9),IF(AND($D$9=2,$D$20=1),INDEX(Grundkarakterer!H$8:H$41,$AE9),IF(AND($D$9=2,$D$20<>1),INDEX(Grundkarakterer!F$8:F$41,$AE9),IF(AND($D$9=3,$D$20=1),INDEX(Grundkarakterer!I$8:I$41,$AE9),IF(AND($D$9=3,$D$20<>1),INDEX(Grundkarakterer!G$8:G$41,$AE9),IF($D$9=4,INDEX(Grundkarakterer!J$8:J$41,$AE9),IF($D$9=5,INDEX(Grundkarakterer!K$8:K$41,$AE9),"Fejl"))))))),"xx") -> 1. august | I46: =IF($C46="Ja",INDEX(Grundkarakterer!L$8:L$41,$AE9),"xx") -> -647 | J46: =IF($C46="Ja",INDEX(Grundkarakterer!N$8:N$41,$AE9),"xx") -> 1 | K46: =IF($C46="Ja",INDEX(Grundkarakterer!O$8:O$41,$AE9),"xx") -> 0 | L46: =IF($C46="Ja",INDEX(Grundkarakterer!P$8:P$41,$AE9),"xx") -> 0 | M46: =IF($C46="Ja",INDEX(Grundkarakterer!Q$8:Q$41,$AE9),"xx") -> 0 | N46: =IF($C46="Ja",INDEX(Grundkarakterer!R$8:R$41,$AE9),"xx") -> 1 | O46: =IF($C46="Ja",INDEX(Grundkarakterer!S$8:S$41,$AE9),"xx") -> 1 | P46: =IF($C46="Ja",INDEX(Grundkarakterer!T$8:T$41,$AE9),"xx") -> 1 | Q46: =IF($C46="Ja",INDEX(Grundkarakterer!U$8:U$41,$AE9),"xx") -> 0 | R46: =IF($C46="Ja",INDEX(Grundkarakterer!V$8:V$41,$AE9),"xx") -> 3 | S46: =IF($C46="Ja",INDEX(Grundkarakterer!W$8:W$41,$AE9),"xx") -> 1 | T46: =IF($C46="Ja",INDEX(Grundkarakterer!X$8:X$41,$AE9),"xx") -> 1 | U46: =IF($C46="Ja",INDEX(Grundkarakterer!Y$8:Y$41,$AE9),"xx") -> 0 | V46: =IF($C46="Ja",INDEX(Grundkarakterer!Z$8:Z$41,$AE9),"xx") -> 1 | W46: =IF($C46="Ja",INDEX(Grundkarakterer!AA$8:AA$41,$AE9),"xx") -> 0 | X46: =IF($C46="Ja",INDEX(Grundkarakterer!AB$8:AB$41,$AE9),"xx") -> 0 | Y46: =IF($C46="Ja",INDEX(Grundkarakterer!AC$8:AC$41,$AE9),"xx") -> 3 | Z46: =IF($C46="Ja",INDEX(Grundkarakterer!AD$8:AD$41,$AE9),"xx") -> 0 | AA46: =IF($C46="Ja",INDEX(Grundkarakterer!AE$8:AE$41,$AE9),"xx") -> 0 | AB46: =IF($C46="Ja",INDEX(Grundkarakterer!AF$8:AF$41,$AE9),"xx") -> 0 | AC46: =IF($C46="Ja",INDEX(Grundkarakterer!AG$8:AG$41,$AE9),"xx") -> 0 | AD46: =IF($C46="Ja",INDEX(Grundkarakterer!AH$8:AH$41,$AE9),"xx") -> 7 | AE46: =IF($C46="Ja",INDEX(Grundkarakterer!AI$8:AI$41,$AE9),"xx") -> 0 | AF46: =IF($C46="Ja",INDEX(Grundkarakterer!M$8:M$41,$AE9),"xx") -> -
A47: 8 | B47: =INDEX(Grundkarakterer!A$8:A$41,AE10) -> 8 | C47: Nej | D47: =IF(C47="Ja",INDEX(Grundkarakterer!B$8:B$41,AE10),"xx") -> xx | E47: =IF(C47="Ja",INDEX(Grundkarakterer!C$8:C$41,$AE10),"xx") -> xx | F47: =IF(C47="Ja",INDEX(Grundkarakterer!D$8:D$41,$AE10),"xx") -> xx | G47: =IF(C47="Ja",INDEX(Grundkarakterer!#REF!,$AE10),"xx") -> xx | H47: =IF($C47="Ja",IF($D$9=1,INDEX(Grundkarakterer!E$8:E$41,$AE10),IF(AND($D$9=2,$D$20=1),INDEX(Grundkarakterer!H$8:H$41,$AE10),IF(AND($D$9=2,$D$20<>1),INDEX(Grundkarakterer!F$8:F$41,$AE10),IF(AND($D$9=3,$D$20=1),INDEX(Grundkarakterer!I$8:I$41,$AE10),IF(AND($D$9=3,$D$20<>1),INDEX(Grundkarakterer!G$8:G$41,$AE10),IF($D$9=4,INDEX(Grundkarakterer!J$8:J$41,$AE10),IF($D$9=5,INDEX(Grundkarakterer!K$8:K$41,$AE10),"Fejl"))))))),"xx") -> xx | I47: =IF($C47="Ja",INDEX(Grundkarakterer!L$8:L$41,$AE10),"xx") -> xx | J47: =IF($C47="Ja",INDEX(Grundkarakterer!N$8:N$41,$AE10),"xx") -> xx | K47: =IF($C47="Ja",INDEX(Grundkarakterer!O$8:O$41,$AE10),"xx") -> xx | L47: =IF($C47="Ja",INDEX(Grundkarakterer!P$8:P$41,$AE10),"xx") -> xx | M47: =IF($C47="Ja",INDEX(Grundkarakterer!Q$8:Q$41,$AE10),"xx") -> xx | N47: =IF($C47="Ja",INDEX(Grundkarakterer!R$8:R$41,$AE10),"xx") -> xx | O47: =IF($C47="Ja",INDEX(Grundkarakterer!S$8:S$41,$AE10),"xx") -> xx | P47: =IF($C47="Ja",INDEX(Grundkarakterer!T$8:T$41,$AE10),"xx") -> xx | Q47: =IF($C47="Ja",INDEX(Grundkarakterer!U$8:U$41,$AE10),"xx") -> xx | R47: =IF($C47="Ja",INDEX(Grundkarakterer!V$8:V$41,$AE10),"xx") -> xx | S47: =IF($C47="Ja",INDEX(Grundkarakterer!W$8:W$41,$AE10),"xx") -> xx | T47: =IF($C47="Ja",INDEX(Grundkarakterer!X$8:X$41,$AE10),"xx") -> xx | U47: =IF($C47="Ja",INDEX(Grundkarakterer!Y$8:Y$41,$AE10),"xx") -> xx | V47: =IF($C47="Ja",INDEX(Grundkarakterer!Z$8:Z$41,$AE10),"xx") -> xx | W47: =IF($C47="Ja",INDEX(Grundkarakterer!AA$8:AA$41,$AE10),"xx") -> xx | X47: =IF($C47="Ja",INDEX(Grundkarakterer!AB$8:AB$41,$AE10),"xx") -> xx | Y47: =IF($C47="Ja",INDEX(Grundkarakterer!AC$8:AC$41,$AE10),"xx") -> xx | Z47: =IF($C47="Ja",INDEX(Grundkarakterer!AD$8:AD$41,$AE10),"xx") -> xx | AA47: =IF($C47="Ja",INDEX(Grundkarakterer!AE$8:AE$41,$AE10),"xx") -> xx | AB47: =IF($C47="Ja",INDEX(Grundkarakterer!AF$8:AF$41,$AE10),"xx") -> xx | AC47: =IF($C47="Ja",INDEX(Grundkarakterer!AG$8:AG$41,$AE10),"xx") -> xx | AD47: =IF($C47="Ja",INDEX(Grundkarakterer!AH$8:AH$41,$AE10),"xx") -> xx | AE47: =IF($C47="Ja",INDEX(Grundkarakterer!AI$8:AI$41,$AE10),"xx") -> xx | AF47: =IF($C47="Ja",INDEX(Grundkarakterer!M$8:M$41,$AE10),"xx") -> xx
A48: 9 | B48: =INDEX(Grundkarakterer!A$8:A$41,AE11) -> 9 | C48: Ja | D48: =IF(C48="Ja",INDEX(Grundkarakterer!B$8:B$41,AE11),"xx") -> Gul sennep | E48: =IF(C48="Ja",INDEX(Grundkarakterer!C$8:C$41,$AE11),"xx") -> 1. Vintersæd | F48: =IF(C48="Ja",INDEX(Grundkarakterer!D$8:D$41,$AE11),"xx") -> 1. Ved etablering af primærafgrøde | G48: =IF(C48="Ja",INDEX(Grundkarakterer!#REF!,$AE11),"xx") ->  | H48: =IF($C48="Ja",IF($D$9=1,INDEX(Grundkarakterer!E$8:E$41,$AE11),IF(AND($D$9=2,$D$20=1),INDEX(Grundkarakterer!H$8:H$41,$AE11),IF(AND($D$9=2,$D$20<>1),INDEX(Grundkarakterer!F$8:F$41,$AE11),IF(AND($D$9=3,$D$20=1),INDEX(Grundkarakterer!I$8:I$41,$AE11),IF(AND($D$9=3,$D$20<>1),INDEX(Grundkarakterer!G$8:G$41,$AE11),IF($D$9=4,INDEX(Grundkarakterer!J$8:J$41,$AE11),IF($D$9=5,INDEX(Grundkarakterer!K$8:K$41,$AE11),"Fejl"))))))),"xx") -> 20. august | I48: =IF($C48="Ja",INDEX(Grundkarakterer!L$8:L$41,$AE11),"xx") -> -503 | J48: =IF($C48="Ja",INDEX(Grundkarakterer!N$8:N$41,$AE11),"xx") -> 1 | K48: =IF($C48="Ja",INDEX(Grundkarakterer!O$8:O$41,$AE11),"xx") -> 1 | L48: =IF($C48="Ja",INDEX(Grundkarakterer!P$8:P$41,$AE11),"xx") -> 1 | M48: =IF($C48="Ja",INDEX(Grundkarakterer!Q$8:Q$41,$AE11),"xx") -> 0 | N48: =IF($C48="Ja",INDEX(Grundkarakterer!R$8:R$41,$AE11),"xx") -> 1 | O48: =IF($C48="Ja",INDEX(Grundkarakterer!S$8:S$41,$AE11),"xx") -> 1 | P48: =IF($C48="Ja",INDEX(Grundkarakterer!T$8:T$41,$AE11),"xx") -> 1 | Q48: =IF($C48="Ja",INDEX(Grundkarakterer!U$8:U$41,$AE11),"xx") -> 0 | R48: =IF($C48="Ja",INDEX(Grundkarakterer!V$8:V$41,$AE11),"xx") -> 0 | S48: =IF($C48="Ja",INDEX(Grundkarakterer!W$8:W$41,$AE11),"xx") -> 0 | T48: =IF($C48="Ja",INDEX(Grundkarakterer!X$8:X$41,$AE11),"xx") -> 3 | U48: =IF($C48="Ja",INDEX(Grundkarakterer!Y$8:Y$41,$AE11),"xx") -> 0 | V48: =IF($C48="Ja",INDEX(Grundkarakterer!Z$8:Z$41,$AE11),"xx") -> 2 | W48: =IF($C48="Ja",INDEX(Grundkarakterer!AA$8:AA$41,$AE11),"xx") -> 2 | X48: =IF($C48="Ja",INDEX(Grundkarakterer!AB$8:AB$41,$AE11),"xx") -> 3 | Y48: =IF($C48="Ja",INDEX(Grundkarakterer!AC$8:AC$41,$AE11),"xx") -> 0 | Z48: =IF($C48="Ja",INDEX(Grundkarakterer!AD$8:AD$41,$AE11),"xx") -> 3 | AA48: =IF($C48="Ja",INDEX(Grundkarakterer!AE$8:AE$41,$AE11),"xx") -> 0 | AB48: =IF($C48="Ja",INDEX(Grundkarakterer!AF$8:AF$41,$AE11),"xx") -> 0 | AC48: =IF($C48="Ja",INDEX(Grundkarakterer!AG$8:AG$41,$AE11),"xx") -> 0 | AD48: =IF($C48="Ja",INDEX(Grundkarakterer!AH$8:AH$41,$AE11),"xx") -> 9 | AE48: =IF($C48="Ja",INDEX(Grundkarakterer!AI$8:AI$41,$AE11),"xx") -> 0 | AF48: =IF($C48="Ja",INDEX(Grundkarakterer!M$8:M$41,$AE11),"xx") -> 377
A49: 10 | B49: =INDEX(Grundkarakterer!A$8:A$41,AE12) -> 10 | C49: Ja | D49: =IF(C49="Ja",INDEX(Grundkarakterer!B$8:B$41,AE12),"xx") -> Olieræddike | E49: =IF(C49="Ja",INDEX(Grundkarakterer!C$8:C$41,$AE12),"xx") -> 1. Vintersæd | F49: =IF(C49="Ja",INDEX(Grundkarakterer!D$8:D$41,$AE12),"xx") -> 1. Ved etablering af primærafgrøde | G49: =IF(C49="Ja",INDEX(Grundkarakterer!#REF!,$AE12),"xx") ->  | H49: =IF($C49="Ja",IF($D$9=1,INDEX(Grundkarakterer!E$8:E$41,$AE12),IF(AND($D$9=2,$D$20=1),INDEX(Grundkarakterer!H$8:H$41,$AE12),IF(AND($D$9=2,$D$20<>1),INDEX(Grundkarakterer!F$8:F$41,$AE12),IF(AND($D$9=3,$D$20=1),INDEX(Grundkarakterer!I$8:I$41,$AE12),IF(AND($D$9=3,$D$20<>1),INDEX(Grundkarakterer!G$8:G$41,$AE12),IF($D$9=4,INDEX(Grundkarakterer!J$8:J$41,$AE12),IF($D$9=5,INDEX(Grundkarakterer!K$8:K$41,$AE12),"Fejl"))))))),"xx") -> 20. august | I49: =IF($C49="Ja",INDEX(Grundkarakterer!L$8:L$41,$AE12),"xx") -> -649 | J49: =IF($C49="Ja",INDEX(Grundkarakterer!N$8:N$41,$AE12),"xx") -> 1 | K49: =IF($C49="Ja",INDEX(Grundkarakterer!O$8:O$41,$AE12),"xx") -> 1 | L49: =IF($C49="Ja",INDEX(Grundkarakterer!P$8:P$41,$AE12),"xx") -> 1 | M49: =IF($C49="Ja",INDEX(Grundkarakterer!Q$8:Q$41,$AE12),"xx") -> 0 | N49: =IF($C49="Ja",INDEX(Grundkarakterer!R$8:R$41,$AE12),"xx") -> 1 | O49: =IF($C49="Ja",INDEX(Grundkarakterer!S$8:S$41,$AE12),"xx") -> 1 | P49: =IF($C49="Ja",INDEX(Grundkarakterer!T$8:T$41,$AE12),"xx") -> 1 | Q49: =IF($C49="Ja",INDEX(Grundkarakterer!U$8:U$41,$AE12),"xx") -> 0 | R49: =IF($C49="Ja",INDEX(Grundkarakterer!V$8:V$41,$AE12),"xx") -> 0 | S49: =IF($C49="Ja",INDEX(Grundkarakterer!W$8:W$41,$AE12),"xx") -> 0 | T49: =IF($C49="Ja",INDEX(Grundkarakterer!X$8:X$41,$AE12),"xx") -> 3 | U49: =IF($C49="Ja",INDEX(Grundkarakterer!Y$8:Y$41,$AE12),"xx") -> 0 | V49: =IF($C49="Ja",INDEX(Grundkarakterer!Z$8:Z$41,$AE12),"xx") -> 2 | W49: =IF($C49="Ja",INDEX(Grundkarakterer!AA$8:AA$41,$AE12),"xx") -> 3 | X49: =IF($C49="Ja",INDEX(Grundkarakterer!AB$8:AB$41,$AE12),"xx") -> 3 | Y49: =IF($C49="Ja",INDEX(Grundkarakterer!AC$8:AC$41,$AE12),"xx") -> 2 | Z49: =IF($C49="Ja",INDEX(Grundkarakterer!AD$8:AD$41,$AE12),"xx") -> 3 | AA49: =IF($C49="Ja",INDEX(Grundkarakterer!AE$8:AE$41,$AE12),"xx") -> 0 | AB49: =IF($C49="Ja",INDEX(Grundkarakterer!AF$8:AF$41,$AE12),"xx") -> 0 | AC49: =IF($C49="Ja",INDEX(Grundkarakterer!AG$8:AG$41,$AE12),"xx") -> 0 | AD49: =IF($C49="Ja",INDEX(Grundkarakterer!AH$8:AH$41,$AE12),"xx") -> 10 | AE49: =IF($C49="Ja",INDEX(Grundkarakterer!AI$8:AI$41,$AE12),"xx") -> 0 | AF49: =IF($C49="Ja",INDEX(Grundkarakterer!M$8:M$41,$AE12),"xx") -> 231
A50: 11 | B50: =INDEX(Grundkarakterer!A$8:A$41,AE13) -> 11 | C50: Nej | D50: =IF(C50="Ja",INDEX(Grundkarakterer!B$8:B$41,AE13),"xx") -> xx | E50: =IF(C50="Ja",INDEX(Grundkarakterer!C$8:C$41,$AE13),"xx") -> xx | F50: =IF(C50="Ja",INDEX(Grundkarakterer!D$8:D$41,$AE13),"xx") -> xx | G50: =IF(C50="Ja",INDEX(Grundkarakterer!#REF!,$AE13),"xx") -> xx | H50: =IF($C50="Ja",IF($D$9=1,INDEX(Grundkarakterer!E$8:E$41,$AE13),IF(AND($D$9=2,$D$20=1),INDEX(Grundkarakterer!H$8:H$41,$AE13),IF(AND($D$9=2,$D$20<>1),INDEX(Grundkarakterer!F$8:F$41,$AE13),IF(AND($D$9=3,$D$20=1),INDEX(Grundkarakterer!I$8:I$41,$AE13),IF(AND($D$9=3,$D$20<>1),INDEX(Grundkarakterer!G$8:G$41,$AE13),IF($D$9=4,INDEX(Grundkarakterer!J$8:J$41,$AE13),IF($D$9=5,INDEX(Grundkarakterer!K$8:K$41,$AE13),"Fejl"))))))),"xx") -> xx | I50: =IF($C50="Ja",INDEX(Grundkarakterer!L$8:L$41,$AE13),"xx") -> xx | J50: =IF($C50="Ja",INDEX(Grundkarakterer!N$8:N$41,$AE13),"xx") -> xx | K50: =IF($C50="Ja",INDEX(Grundkarakterer!O$8:O$41,$AE13),"xx") -> xx | L50: =IF($C50="Ja",INDEX(Grundkarakterer!P$8:P$41,$AE13),"xx") -> xx | M50: =IF($C50="Ja",INDEX(Grundkarakterer!Q$8:Q$41,$AE13),"xx") -> xx | N50: =IF($C50="Ja",INDEX(Grundkarakterer!R$8:R$41,$AE13),"xx") -> xx | O50: =IF($C50="Ja",INDEX(Grundkarakterer!S$8:S$41,$AE13),"xx") -> xx | P50: =IF($C50="Ja",INDEX(Grundkarakterer!T$8:T$41,$AE13),"xx") -> xx | Q50: =IF($C50="Ja",INDEX(Grundkarakterer!U$8:U$41,$AE13),"xx") -> xx | R50: =IF($C50="Ja",INDEX(Grundkarakterer!V$8:V$41,$AE13),"xx") -> xx | S50: =IF($C50="Ja",INDEX(Grundkarakterer!W$8:W$41,$AE13),"xx") -> xx | T50: =IF($C50="Ja",INDEX(Grundkarakterer!X$8:X$41,$AE13),"xx") -> xx | U50: =IF($C50="Ja",INDEX(Grundkarakterer!Y$8:Y$41,$AE13),"xx") -> xx | V50: =IF($C50="Ja",INDEX(Grundkarakterer!Z$8:Z$41,$AE13),"xx") -> xx | W50: =IF($C50="Ja",INDEX(Grundkarakterer!AA$8:AA$41,$AE13),"xx") -> xx | X50: =IF($C50="Ja",INDEX(Grundkarakterer!AB$8:AB$41,$AE13),"xx") -> xx | Y50: =IF($C50="Ja",INDEX(Grundkarakterer!AC$8:AC$41,$AE13),"xx") -> xx | Z50: =IF($C50="Ja",INDEX(Grundkarakterer!AD$8:AD$41,$AE13),"xx") -> xx | AA50: =IF($C50="Ja",INDEX(Grundkarakterer!AE$8:AE$41,$AE13),"xx") -> xx | AB50: =IF($C50="Ja",INDEX(Grundkarakterer!AF$8:AF$41,$AE13),"xx") -> xx | AC50: =IF($C50="Ja",INDEX(Grundkarakterer!AG$8:AG$41,$AE13),"xx") -> xx | AD50: =IF($C50="Ja",INDEX(Grundkarakterer!AH$8:AH$41,$AE13),"xx") -> xx | AE50: =IF($C50="Ja",INDEX(Grundkarakterer!AI$8:AI$41,$AE13),"xx") -> xx | AF50: =IF($C50="Ja",INDEX(Grundkarakterer!M$8:M$41,$AE13),"xx") -> xx
A51: 12 | B51: =INDEX(Grundkarakterer!A$8:A$41,AE14) -> 12 | C51: Ja | D51: =IF(C51="Ja",INDEX(Grundkarakterer!B$8:B$41,AE14),"xx") -> Vinterraps , linie | E51: =IF(C51="Ja",INDEX(Grundkarakterer!C$8:C$41,$AE14),"xx") -> 1. Vintersæd | F51: =IF(C51="Ja",INDEX(Grundkarakterer!D$8:D$41,$AE14),"xx") -> 1. Ved etablering af primærafgrøde | G51: =IF(C51="Ja",INDEX(Grundkarakterer!#REF!,$AE14),"xx") ->  | H51: =IF($C51="Ja",IF($D$9=1,INDEX(Grundkarakterer!E$8:E$41,$AE14),IF(AND($D$9=2,$D$20=1),INDEX(Grundkarakterer!H$8:H$41,$AE14),IF(AND($D$9=2,$D$20<>1),INDEX(Grundkarakterer!F$8:F$41,$AE14),IF(AND($D$9=3,$D$20=1),INDEX(Grundkarakterer!I$8:I$41,$AE14),IF(AND($D$9=3,$D$20<>1),INDEX(Grundkarakterer!G$8:G$41,$AE14),IF($D$9=4,INDEX(Grundkarakterer!J$8:J$41,$AE14),IF($D$9=5,INDEX(Grundkarakterer!K$8:K$41,$AE14),"Fejl"))))))),"xx") -> 20. august | I51: =IF($C51="Ja",INDEX(Grundkarakterer!L$8:L$41,$AE14),"xx") -> -1136 | J51: =IF($C51="Ja",INDEX(Grundkarakterer!N$8:N$41,$AE14),"xx") -> 1 | K51: =IF($C51="Ja",INDEX(Grundkarakterer!O$8:O$41,$AE14),"xx") -> 0 | L51: =IF($C51="Ja",INDEX(Grundkarakterer!P$8:P$41,$AE14),"xx") -> 1 | M51: =IF($C51="Ja",INDEX(Grundkarakterer!Q$8:Q$41,$AE14),"xx") -> 0 | N51: =IF($C51="Ja",INDEX(Grundkarakterer!R$8:R$41,$AE14),"xx") -> 1 | O51: =IF($C51="Ja",INDEX(Grundkarakterer!S$8:S$41,$AE14),"xx") -> 1 | P51: =IF($C51="Ja",INDEX(Grundkarakterer!T$8:T$41,$AE14),"xx") -> 1 | Q51: =IF($C51="Ja",INDEX(Grundkarakterer!U$8:U$41,$AE14),"xx") -> 0 | R51: =IF($C51="Ja",INDEX(Grundkarakterer!V$8:V$41,$AE14),"xx") -> 0 | S51: =IF($C51="Ja",INDEX(Grundkarakterer!W$8:W$41,$AE14),"xx") -> 1 | T51: =IF($C51="Ja",INDEX(Grundkarakterer!X$8:X$41,$AE14),"xx") -> 2 | U51: =IF($C51="Ja",INDEX(Grundkarakterer!Y$8:Y$41,$AE14),"xx") -> 0 | V51: =IF($C51="Ja",INDEX(Grundkarakterer!Z$8:Z$41,$AE14),"xx") -> 2 | W51: =IF($C51="Ja",INDEX(Grundkarakterer!AA$8:AA$41,$AE14),"xx") -> 3 | X51: =IF($C51="Ja",INDEX(Grundkarakterer!AB$8:AB$41,$AE14),"xx") -> 3 | Y51: =IF($C51="Ja",INDEX(Grundkarakterer!AC$8:AC$41,$AE14),"xx") -> 0 | Z51: =IF($C51="Ja",INDEX(Grundkarakterer!AD$8:AD$41,$AE14),"xx") -> 0 | AA51: =IF($C51="Ja",INDEX(Grundkarakterer!AE$8:AE$41,$AE14),"xx") -> 0 | AB51: =IF($C51="Ja",INDEX(Grundkarakterer!AF$8:AF$41,$AE14),"xx") -> 3 | AC51: =IF($C51="Ja",INDEX(Grundkarakterer!AG$8:AG$41,$AE14),"xx") -> 1 | AD51: =IF($C51="Ja",INDEX(Grundkarakterer!AH$8:AH$41,$AE14),"xx") -> 12 | AE51: =IF($C51="Ja",INDEX(Grundkarakterer!AI$8:AI$41,$AE14),"xx") -> 0 | AF51: =IF($C51="Ja",INDEX(Grundkarakterer!M$8:M$41,$AE14),"xx") -> -476
A52: 13 | B52: =INDEX(Grundkarakterer!A$8:A$41,AE15) -> 13 | C52: Ja | D52: =IF(C52="Ja",INDEX(Grundkarakterer!B$8:B$41,AE15),"xx") -> Foderradise (Strukturator) | E52: =IF(C52="Ja",INDEX(Grundkarakterer!C$8:C$41,$AE15),"xx") -> 0 | F52: =IF(C52="Ja",INDEX(Grundkarakterer!D$8:D$41,$AE15),"xx") -> 0 | G52: =IF(C52="Ja",INDEX(Grundkarakterer!#REF!,$AE15),"xx") ->  | H52: =IF($C52="Ja",IF($D$9=1,INDEX(Grundkarakterer!E$8:E$41,$AE15),IF(AND($D$9=2,$D$20=1),INDEX(Grundkarakterer!H$8:H$41,$AE15),IF(AND($D$9=2,$D$20<>1),INDEX(Grundkarakterer!F$8:F$41,$AE15),IF(AND($D$9=3,$D$20=1),INDEX(Grundkarakterer!I$8:I$41,$AE15),IF(AND($D$9=3,$D$20<>1),INDEX(Grundkarakterer!G$8:G$41,$AE15),IF($D$9=4,INDEX(Grundkarakterer!J$8:J$41,$AE15),IF($D$9=5,INDEX(Grundkarakterer!K$8:K$41,$AE15),"Fejl"))))))),"xx") -> 20. august | I52: =IF($C52="Ja",INDEX(Grundkarakterer!L$8:L$41,$AE15),"xx") -> -913 | J52: =IF($C52="Ja",INDEX(Grundkarakterer!N$8:N$41,$AE15),"xx") -> 1 | K52: =IF($C52="Ja",INDEX(Grundkarakterer!O$8:O$41,$AE15),"xx") -> 0 | L52: =IF($C52="Ja",INDEX(Grundkarakterer!P$8:P$41,$AE15),"xx") -> 1 | M52: =IF($C52="Ja",INDEX(Grundkarakterer!Q$8:Q$41,$AE15),"xx") -> 0 | N52: =IF($C52="Ja",INDEX(Grundkarakterer!R$8:R$41,$AE15),"xx") -> 1 | O52: =IF($C52="Ja",INDEX(Grundkarakterer!S$8:S$41,$AE15),"xx") -> 1 | P52: =IF($C52="Ja",INDEX(Grundkarakterer!T$8:T$41,$AE15),"xx") -> 1 | Q52: =IF($C52="Ja",INDEX(Grundkarakterer!U$8:U$41,$AE15),"xx") -> 0 | R52: =IF($C52="Ja",INDEX(Grundkarakterer!V$8:V$41,$AE15),"xx") -> 0 | S52: =IF($C52="Ja",INDEX(Grundkarakterer!W$8:W$41,$AE15),"xx") -> 1 | T52: =IF($C52="Ja",INDEX(Grundkarakterer!X$8:X$41,$AE15),"xx") -> 3 | U52: =IF($C52="Ja",INDEX(Grundkarakterer!Y$8:Y$41,$AE15),"xx") -> 0 | V52: =IF($C52="Ja",INDEX(Grundkarakterer!Z$8:Z$41,$AE15),"xx") -> 2 | W52: =IF($C52="Ja",INDEX(Grundkarakterer!AA$8:AA$41,$AE15),"xx") -> 3 | X52: =IF($C52="Ja",INDEX(Grundkarakterer!AB$8:AB$41,$AE15),"xx") -> 3 | Y52: =IF($C52="Ja",INDEX(Grundkarakterer!AC$8:AC$41,$AE15),"xx") -> 2 | Z52: =IF($C52="Ja",INDEX(Grundkarakterer!AD$8:AD$41,$AE15),"xx") -> 0 | AA52: =IF($C52="Ja",INDEX(Grundkarakterer!AE$8:AE$41,$AE15),"xx") -> 0 | AB52: =IF($C52="Ja",INDEX(Grundkarakterer!AF$8:AF$41,$AE15),"xx") -> 0 | AC52: =IF($C52="Ja",INDEX(Grundkarakterer!AG$8:AG$41,$AE15),"xx") -> 0 | AD52: =IF($C52="Ja",INDEX(Grundkarakterer!AH$8:AH$41,$AE15),"xx") -> 13 | AE52: =IF($C52="Ja",INDEX(Grundkarakterer!AI$8:AI$41,$AE15),"xx") -> 0 | AF52: =IF($C52="Ja",INDEX(Grundkarakterer!M$8:M$41,$AE15),"xx") -> -33
A53: 14 | B53: =INDEX(Grundkarakterer!A$8:A$41,AE16) -> 14 | C53: Ja | D53: =IF(C53="Ja",INDEX(Grundkarakterer!B$8:B$41,AE16),"xx") -> Havre | E53: =IF(C53="Ja",INDEX(Grundkarakterer!C$8:C$41,$AE16),"xx") -> 1. Vintersæd | F53: =IF(C53="Ja",INDEX(Grundkarakterer!D$8:D$41,$AE16),"xx") -> 1. Ved etablering af primærafgrøde | G53: =IF(C53="Ja",INDEX(Grundkarakterer!#REF!,$AE16),"xx") ->  | H53: =IF($C53="Ja",IF($D$9=1,INDEX(Grundkarakterer!E$8:E$41,$AE16),IF(AND($D$9=2,$D$20=1),INDEX(Grundkarakterer!H$8:H$41,$AE16),IF(AND($D$9=2,$D$20<>1),INDEX(Grundkarakterer!F$8:F$41,$AE16),IF(AND($D$9=3,$D$20=1),INDEX(Grundkarakterer!I$8:I$41,$AE16),IF(AND($D$9=3,$D$20<>1),INDEX(Grundkarakterer!G$8:G$41,$AE16),IF($D$9=4,INDEX(Grundkarakterer!J$8:J$41,$AE16),IF($D$9=5,INDEX(Grundkarakterer!K$8:K$41,$AE16),"Fejl"))))))),"xx") -> 20. august | I53: =IF($C53="Ja",INDEX(Grundkarakterer!L$8:L$41,$AE16),"xx") -> -877 | J53: =IF($C53="Ja",INDEX(Grundkarakterer!N$8:N$41,$AE16),"xx") -> 1 | K53: =IF($C53="Ja",INDEX(Grundkarakterer!O$8:O$41,$AE16),"xx") -> 0 | L53: =IF($C53="Ja",INDEX(Grundkarakterer!P$8:P$41,$AE16),"xx") -> 1 | M53: =IF($C53="Ja",INDEX(Grundkarakterer!Q$8:Q$41,$AE16),"xx") -> 0 | N53: =IF($C53="Ja",INDEX(Grundkarakterer!R$8:R$41,$AE16),"xx") -> 1 | O53: =IF($C53="Ja",INDEX(Grundkarakterer!S$8:S$41,$AE16),"xx") -> 1 | P53: =IF($C53="Ja",INDEX(Grundkarakterer!T$8:T$41,$AE16),"xx") -> 1 | Q53: =IF($C53="Ja",INDEX(Grundkarakterer!U$8:U$41,$AE16),"xx") -> 0 | R53: =IF($C53="Ja",INDEX(Grundkarakterer!V$8:V$41,$AE16),"xx") -> 0 | S53: =IF($C53="Ja",INDEX(Grundkarakterer!W$8:W$41,$AE16),"xx") -> 1 | T53: =IF($C53="Ja",INDEX(Grundkarakterer!X$8:X$41,$AE16),"xx") -> 3 | U53: =IF($C53="Ja",INDEX(Grundkarakterer!Y$8:Y$41,$AE16),"xx") -> 0 | V53: =IF($C53="Ja",INDEX(Grundkarakterer!Z$8:Z$41,$AE16),"xx") -> 1 | W53: =IF($C53="Ja",INDEX(Grundkarakterer!AA$8:AA$41,$AE16),"xx") -> 1 | X53: =IF($C53="Ja",INDEX(Grundkarakterer!AB$8:AB$41,$AE16),"xx") -> 3 | Y53: =IF($C53="Ja",INDEX(Grundkarakterer!AC$8:AC$41,$AE16),"xx") -> 3 | Z53: =IF($C53="Ja",INDEX(Grundkarakterer!AD$8:AD$41,$AE16),"xx") -> 0 | AA53: =IF($C53="Ja",INDEX(Grundkarakterer!AE$8:AE$41,$AE16),"xx") -> 0 | AB53: =IF($C53="Ja",INDEX(Grundkarakterer!AF$8:AF$41,$AE16),"xx") -> 1 | AC53: =IF($C53="Ja",INDEX(Grundkarakterer!AG$8:AG$41,$AE16),"xx") -> 1 | AD53: =IF($C53="Ja",INDEX(Grundkarakterer!AH$8:AH$41,$AE16),"xx") -> 14 | AE53: =IF($C53="Ja",INDEX(Grundkarakterer!AI$8:AI$41,$AE16),"xx") -> 0 | AF53: =IF($C53="Ja",INDEX(Grundkarakterer!M$8:M$41,$AE16),"xx") -> -657
A54: 15 | B54: =INDEX(Grundkarakterer!A$8:A$41,AE17) -> 15 | C54: Nej | D54: =IF(C54="Ja",INDEX(Grundkarakterer!B$8:B$41,AE17),"xx") -> xx | E54: =IF(C54="Ja",INDEX(Grundkarakterer!C$8:C$41,$AE17),"xx") -> xx | F54: =IF(C54="Ja",INDEX(Grundkarakterer!D$8:D$41,$AE17),"xx") -> xx | G54: =IF(C54="Ja",INDEX(Grundkarakterer!#REF!,$AE17),"xx") -> xx | H54: =IF($C54="Ja",IF($D$9=1,INDEX(Grundkarakterer!E$8:E$41,$AE17),IF(AND($D$9=2,$D$20=1),INDEX(Grundkarakterer!H$8:H$41,$AE17),IF(AND($D$9=2,$D$20<>1),INDEX(Grundkarakterer!F$8:F$41,$AE17),IF(AND($D$9=3,$D$20=1),INDEX(Grundkarakterer!I$8:I$41,$AE17),IF(AND($D$9=3,$D$20<>1),INDEX(Grundkarakterer!G$8:G$41,$AE17),IF($D$9=4,INDEX(Grundkarakterer!J$8:J$41,$AE17),IF($D$9=5,INDEX(Grundkarakterer!K$8:K$41,$AE17),"Fejl"))))))),"xx") -> xx | I54: =IF($C54="Ja",INDEX(Grundkarakterer!L$8:L$41,$AE17),"xx") -> xx | J54: =IF($C54="Ja",INDEX(Grundkarakterer!N$8:N$41,$AE17),"xx") -> xx | K54: =IF($C54="Ja",INDEX(Grundkarakterer!O$8:O$41,$AE17),"xx") -> xx | L54: =IF($C54="Ja",INDEX(Grundkarakterer!P$8:P$41,$AE17),"xx") -> xx | M54: =IF($C54="Ja",INDEX(Grundkarakterer!Q$8:Q$41,$AE17),"xx") -> xx | N54: =IF($C54="Ja",INDEX(Grundkarakterer!R$8:R$41,$AE17),"xx") -> xx | O54: =IF($C54="Ja",INDEX(Grundkarakterer!S$8:S$41,$AE17),"xx") -> xx | P54: =IF($C54="Ja",INDEX(Grundkarakterer!T$8:T$41,$AE17),"xx") -> xx | Q54: =IF($C54="Ja",INDEX(Grundkarakterer!U$8:U$41,$AE17),"xx") -> xx | R54: =IF($C54="Ja",INDEX(Grundkarakterer!V$8:V$41,$AE17),"xx") -> xx | S54: =IF($C54="Ja",INDEX(Grundkarakterer!W$8:W$41,$AE17),"xx") -> xx | T54: =IF($C54="Ja",INDEX(Grundkarakterer!X$8:X$41,$AE17),"xx") -> xx | U54: =IF($C54="Ja",INDEX(Grundkarakterer!Y$8:Y$41,$AE17),"xx") -> xx | V54: =IF($C54="Ja",INDEX(Grundkarakterer!Z$8:Z$41,$AE17),"xx") -> xx | W54: =IF($C54="Ja",INDEX(Grundkarakterer!AA$8:AA$41,$AE17),"xx") -> xx | X54: =IF($C54="Ja",INDEX(Grundkarakterer!AB$8:AB$41,$AE17),"xx") -> xx | Y54: =IF($C54="Ja",INDEX(Grundkarakterer!AC$8:AC$41,$AE17),"xx") -> xx | Z54: =IF($C54="Ja",INDEX(Grundkarakterer!AD$8:AD$41,$AE17),"xx") -> xx | AA54: =IF($C54="Ja",INDEX(Grundkarakterer!AE$8:AE$41,$AE17),"xx") -> xx | AB54: =IF($C54="Ja",INDEX(Grundkarakterer!AF$8:AF$41,$AE17),"xx") -> xx | AC54: =IF($C54="Ja",INDEX(Grundkarakterer!AG$8:AG$41,$AE17),"xx") -> xx | AD54: =IF($C54="Ja",INDEX(Grundkarakterer!AH$8:AH$41,$AE17),"xx") -> xx | AE54: =IF($C54="Ja",INDEX(Grundkarakterer!AI$8:AI$41,$AE17),"xx") -> xx | AF54: =IF($C54="Ja",INDEX(Grundkarakterer!M$8:M$41,$AE17),"xx") -> xx
A55: 16 | B55: =INDEX(Grundkarakterer!A$8:A$41,AE18) -> 16 | C55: Ja | D55: =IF(C55="Ja",INDEX(Grundkarakterer!B$8:B$41,AE18),"xx") -> Vinterrybs | E55: =IF(C55="Ja",INDEX(Grundkarakterer!C$8:C$41,$AE18),"xx") -> 1. Vintersæd | F55: =IF(C55="Ja",INDEX(Grundkarakterer!D$8:D$41,$AE18),"xx") -> 1. Ved etablering af primærafgrøde | G55: =IF(C55="Ja",INDEX(Grundkarakterer!#REF!,$AE18),"xx") ->  | H55: =IF($C55="Ja",IF($D$9=1,INDEX(Grundkarakterer!E$8:E$41,$AE18),IF(AND($D$9=2,$D$20=1),INDEX(Grundkarakterer!H$8:H$41,$AE18),IF(AND($D$9=2,$D$20<>1),INDEX(Grundkarakterer!F$8:F$41,$AE18),IF(AND($D$9=3,$D$20=1),INDEX(Grundkarakterer!I$8:I$41,$AE18),IF(AND($D$9=3,$D$20<>1),INDEX(Grundkarakterer!G$8:G$41,$AE18),IF($D$9=4,INDEX(Grundkarakterer!J$8:J$41,$AE18),IF($D$9=5,INDEX(Grundkarakterer!K$8:K$41,$AE18),"Fejl"))))))),"xx") -> 20. august | I55: =IF($C55="Ja",INDEX(Grundkarakterer!L$8:L$41,$AE18),"xx") -> -1513 | J55: =IF($C55="Ja",INDEX(Grundkarakterer!N$8:N$41,$AE18),"xx") -> 1 | K55: =IF($C55="Ja",INDEX(Grundkarakterer!O$8:O$41,$AE18),"xx") -> 0 | L55: =IF($C55="Ja",INDEX(Grundkarakterer!P$8:P$41,$AE18),"xx") -> 1 | M55: =IF($C55="Ja",INDEX(Grundkarakterer!Q$8:Q$41,$AE18),"xx") -> 0 | N55: =IF($C55="Ja",INDEX(Grundkarakterer!R$8:R$41,$AE18),"xx") -> 1 | O55: =IF($C55="Ja",INDEX(Grundkarakterer!S$8:S$41,$AE18),"xx") -> 1 | P55: =IF($C55="Ja",INDEX(Grundkarakterer!T$8:T$41,$AE18),"xx") -> 1 | Q55: =IF($C55="Ja",INDEX(Grundkarakterer!U$8:U$41,$AE18),"xx") -> 0 | R55: =IF($C55="Ja",INDEX(Grundkarakterer!V$8:V$41,$AE18),"xx") -> 0 | S55: =IF($C55="Ja",INDEX(Grundkarakterer!W$8:W$41,$AE18),"xx") -> 1 | T55: =IF($C55="Ja",INDEX(Grundkarakterer!X$8:X$41,$AE18),"xx") -> 3 | U55: =IF($C55="Ja",INDEX(Grundkarakterer!Y$8:Y$41,$AE18),"xx") -> 0 | V55: =IF($C55="Ja",INDEX(Grundkarakterer!Z$8:Z$41,$AE18),"xx") -> 1 | W55: =IF($C55="Ja",INDEX(Grundkarakterer!AA$8:AA$41,$AE18),"xx") -> 2 | X55: =IF($C55="Ja",INDEX(Grundkarakterer!AB$8:AB$41,$AE18),"xx") -> 0 | Y55: =IF($C55="Ja",INDEX(Grundkarakterer!AC$8:AC$41,$AE18),"xx") -> 3 | Z55: =IF($C55="Ja",INDEX(Grundkarakterer!AD$8:AD$41,$AE18),"xx") -> 0 | AA55: =IF($C55="Ja",INDEX(Grundkarakterer!AE$8:AE$41,$AE18),"xx") -> 0 | AB55: =IF($C55="Ja",INDEX(Grundkarakterer!AF$8:AF$41,$AE18),"xx") -> 3 | AC55: =IF($C55="Ja",INDEX(Grundkarakterer!AG$8:AG$41,$AE18),"xx") -> 1 | AD55: =IF($C55="Ja",INDEX(Grundkarakterer!AH$8:AH$41,$AE18),"xx") -> 16 | AE55: =IF($C55="Ja",INDEX(Grundkarakterer!AI$8:AI$41,$AE18),"xx") -> 0 | AF55: =IF($C55="Ja",INDEX(Grundkarakterer!M$8:M$41,$AE18),"xx") -> -633
A56: 17 | B56: =INDEX(Grundkarakterer!A$8:A$41,AE19) -> 17 | C56: Nej | D56: =IF(C56="Ja",INDEX(Grundkarakterer!B$8:B$41,AE19),"xx") -> xx | E56: =IF(C56="Ja",INDEX(Grundkarakterer!C$8:C$41,$AE19),"xx") -> xx | F56: =IF(C56="Ja",INDEX(Grundkarakterer!D$8:D$41,$AE19),"xx") -> xx | G56: =IF(C56="Ja",INDEX(Grundkarakterer!#REF!,$AE19),"xx") -> xx | H56: =IF($C56="Ja",IF($D$9=1,INDEX(Grundkarakterer!E$8:E$41,$AE19),IF(AND($D$9=2,$D$20=1),INDEX(Grundkarakterer!H$8:H$41,$AE19),IF(AND($D$9=2,$D$20<>1),INDEX(Grundkarakterer!F$8:F$41,$AE19),IF(AND($D$9=3,$D$20=1),INDEX(Grundkarakterer!I$8:I$41,$AE19),IF(AND($D$9=3,$D$20<>1),INDEX(Grundkarakterer!G$8:G$41,$AE19),IF($D$9=4,INDEX(Grundkarakterer!J$8:J$41,$AE19),IF($D$9=5,INDEX(Grundkarakterer!K$8:K$41,$AE19),"Fejl"))))))),"xx") -> xx | I56: =IF($C56="Ja",INDEX(Grundkarakterer!L$8:L$41,$AE19),"xx") -> xx | J56: =IF($C56="Ja",INDEX(Grundkarakterer!N$8:N$41,$AE19),"xx") -> xx | K56: =IF($C56="Ja",INDEX(Grundkarakterer!O$8:O$41,$AE19),"xx") -> xx | L56: =IF($C56="Ja",INDEX(Grundkarakterer!P$8:P$41,$AE19),"xx") -> xx | M56: =IF($C56="Ja",INDEX(Grundkarakterer!Q$8:Q$41,$AE19),"xx") -> xx | N56: =IF($C56="Ja",INDEX(Grundkarakterer!R$8:R$41,$AE19),"xx") -> xx | O56: =IF($C56="Ja",INDEX(Grundkarakterer!S$8:S$41,$AE19),"xx") -> xx | P56: =IF($C56="Ja",INDEX(Grundkarakterer!T$8:T$41,$AE19),"xx") -> xx | Q56: =IF($C56="Ja",INDEX(Grundkarakterer!U$8:U$41,$AE19),"xx") -> xx | R56: =IF($C56="Ja",INDEX(Grundkarakterer!V$8:V$41,$AE19),"xx") -> xx | S56: =IF($C56="Ja",INDEX(Grundkarakterer!W$8:W$41,$AE19),"xx") -> xx | T56: =IF($C56="Ja",INDEX(Grundkarakterer!X$8:X$41,$AE19),"xx") -> xx | U56: =IF($C56="Ja",INDEX(Grundkarakterer!Y$8:Y$41,$AE19),"xx") -> xx | V56: =IF($C56="Ja",INDEX(Grundkarakterer!Z$8:Z$41,$AE19),"xx") -> xx | W56: =IF($C56="Ja",INDEX(Grundkarakterer!AA$8:AA$41,$AE19),"xx") -> xx | X56: =IF($C56="Ja",INDEX(Grundkarakterer!AB$8:AB$41,$AE19),"xx") -> xx | Y56: =IF($C56="Ja",INDEX(Grundkarakterer!AC$8:AC$41,$AE19),"xx") -> xx | Z56: =IF($C56="Ja",INDEX(Grundkarakterer!AD$8:AD$41,$AE19),"xx") -> xx | AA56: =IF($C56="Ja",INDEX(Grundkarakterer!AE$8:AE$41,$AE19),"xx") -> xx | AB56: =IF($C56="Ja",INDEX(Grundkarakterer!AF$8:AF$41,$AE19),"xx") -> xx | AC56: =IF($C56="Ja",INDEX(Grundkarakterer!AG$8:AG$41,$AE19),"xx") -> xx | AD56: =IF($C56="Ja",INDEX(Grundkarakterer!AH$8:AH$41,$AE19),"xx") -> xx | AE56: =IF($C56="Ja",INDEX(Grundkarakterer!AI$8:AI$41,$AE19),"xx") -> xx | AF56: =IF($C56="Ja",INDEX(Grundkarakterer!M$8:M$41,$AE19),"xx") -> xx
A57: 18 | B57: =INDEX(Grundkarakterer!A$8:A$41,AE20) -> 18 | C57: Ja | D57: =IF(C57="Ja",INDEX(Grundkarakterer!B$8:B$41,AE20),"xx") -> Vårbyg | E57: =IF(C57="Ja",INDEX(Grundkarakterer!C$8:C$41,$AE20),"xx") -> 1. Vintersæd | F57: =IF(C57="Ja",INDEX(Grundkarakterer!D$8:D$41,$AE20),"xx") -> 1. Ved etablering af primærafgrøde | G57: =IF(C57="Ja",INDEX(Grundkarakterer!#REF!,$AE20),"xx") ->  | H57: =IF($C57="Ja",IF($D$9=1,INDEX(Grundkarakterer!E$8:E$41,$AE20),IF(AND($D$9=2,$D$20=1),INDEX(Grundkarakterer!H$8:H$41,$AE20),IF(AND($D$9=2,$D$20<>1),INDEX(Grundkarakterer!F$8:F$41,$AE20),IF(AND($D$9=3,$D$20=1),INDEX(Grundkarakterer!I$8:I$41,$AE20),IF(AND($D$9=3,$D$20<>1),INDEX(Grundkarakterer!G$8:G$41,$AE20),IF($D$9=4,INDEX(Grundkarakterer!J$8:J$41,$AE20),IF($D$9=5,INDEX(Grundkarakterer!K$8:K$41,$AE20),"Fejl"))))))),"xx") -> 20. august | I57: =IF($C57="Ja",INDEX(Grundkarakterer!L$8:L$41,$AE20),"xx") -> -877 | J57: =IF($C57="Ja",INDEX(Grundkarakterer!N$8:N$41,$AE20),"xx") -> 1 | K57: =IF($C57="Ja",INDEX(Grundkarakterer!O$8:O$41,$AE20),"xx") -> 0 | L57: =IF($C57="Ja",INDEX(Grundkarakterer!P$8:P$41,$AE20),"xx") -> 1 | M57: =IF($C57="Ja",INDEX(Grundkarakterer!Q$8:Q$41,$AE20),"xx") -> 0 | N57: =IF($C57="Ja",INDEX(Grundkarakterer!R$8:R$41,$AE20),"xx") -> 1 | O57: =IF($C57="Ja",INDEX(Grundkarakterer!S$8:S$41,$AE20),"xx") -> 1 | P57: =IF($C57="Ja",INDEX(Grundkarakterer!T$8:T$41,$AE20),"xx") -> 1 | Q57: =IF($C57="Ja",INDEX(Grundkarakterer!U$8:U$41,$AE20),"xx") -> 0 | R57: =IF($C57="Ja",INDEX(Grundkarakterer!V$8:V$41,$AE20),"xx") -> 0 | S57: =IF($C57="Ja",INDEX(Grundkarakterer!W$8:W$41,$AE20),"xx") -> 0 | T57: =IF($C57="Ja",INDEX(Grundkarakterer!X$8:X$41,$AE20),"xx") -> 3 | U57: =IF($C57="Ja",INDEX(Grundkarakterer!Y$8:Y$41,$AE20),"xx") -> 0 | V57: =IF($C57="Ja",INDEX(Grundkarakterer!Z$8:Z$41,$AE20),"xx") -> 1 | W57: =IF($C57="Ja",INDEX(Grundkarakterer!AA$8:AA$41,$AE20),"xx") -> 0 | X57: =IF($C57="Ja",INDEX(Grundkarakterer!AB$8:AB$41,$AE20),"xx") -> 3 | Y57: =IF($C57="Ja",INDEX(Grundkarakterer!AC$8:AC$41,$AE20),"xx") -> 3 | Z57: =IF($C57="Ja",INDEX(Grundkarakterer!AD$8:AD$41,$AE20),"xx") -> 0 | AA57: =IF($C57="Ja",INDEX(Grundkarakterer!AE$8:AE$41,$AE20),"xx") -> 0 | AB57: =IF($C57="Ja",INDEX(Grundkarakterer!AF$8:AF$41,$AE20),"xx") -> 1 | AC57: =IF($C57="Ja",INDEX(Grundkarakterer!AG$8:AG$41,$AE20),"xx") -> 1 | AD57: =IF($C57="Ja",INDEX(Grundkarakterer!AH$8:AH$41,$AE20),"xx") -> 18 | AE57: =IF($C57="Ja",INDEX(Grundkarakterer!AI$8:AI$41,$AE20),"xx") -> 0 | AF57: =IF($C57="Ja",INDEX(Grundkarakterer!M$8:M$41,$AE20),"xx") -> -657
A58: 19 | B58: =INDEX(Grundkarakterer!A$8:A$41,AE21) -> 19 | C58: Nej | D58: =IF(C58="Ja",INDEX(Grundkarakterer!B$8:B$41,AE21),"xx") -> xx | E58: =IF(C58="Ja",INDEX(Grundkarakterer!C$8:C$41,$AE21),"xx") -> xx | F58: =IF(C58="Ja",INDEX(Grundkarakterer!D$8:D$41,$AE21),"xx") -> xx | G58: =IF(C58="Ja",INDEX(Grundkarakterer!#REF!,$AE21),"xx") -> xx | H58: =IF($C58="Ja",IF($D$9=1,INDEX(Grundkarakterer!E$8:E$41,$AE21),IF(AND($D$9=2,$D$20=1),INDEX(Grundkarakterer!H$8:H$41,$AE21),IF(AND($D$9=2,$D$20<>1),INDEX(Grundkarakterer!F$8:F$41,$AE21),IF(AND($D$9=3,$D$20=1),INDEX(Grundkarakterer!I$8:I$41,$AE21),IF(AND($D$9=3,$D$20<>1),INDEX(Grundkarakterer!G$8:G$41,$AE21),IF($D$9=4,INDEX(Grundkarakterer!J$8:J$41,$AE21),IF($D$9=5,INDEX(Grundkarakterer!K$8:K$41,$AE21),"Fejl"))))))),"xx") -> xx | I58: =IF($C58="Ja",INDEX(Grundkarakterer!L$8:L$41,$AE21),"xx") -> xx | J58: =IF($C58="Ja",INDEX(Grundkarakterer!N$8:N$41,$AE21),"xx") -> xx | K58: =IF($C58="Ja",INDEX(Grundkarakterer!O$8:O$41,$AE21),"xx") -> xx | L58: =IF($C58="Ja",INDEX(Grundkarakterer!P$8:P$41,$AE21),"xx") -> xx | M58: =IF($C58="Ja",INDEX(Grundkarakterer!Q$8:Q$41,$AE21),"xx") -> xx | N58: =IF($C58="Ja",INDEX(Grundkarakterer!R$8:R$41,$AE21),"xx") -> xx | O58: =IF($C58="Ja",INDEX(Grundkarakterer!S$8:S$41,$AE21),"xx") -> xx | P58: =IF($C58="Ja",INDEX(Grundkarakterer!T$8:T$41,$AE21),"xx") -> xx | Q58: =IF($C58="Ja",INDEX(Grundkarakterer!U$8:U$41,$AE21),"xx") -> xx | R58: =IF($C58="Ja",INDEX(Grundkarakterer!V$8:V$41,$AE21),"xx") -> xx | S58: =IF($C58="Ja",INDEX(Grundkarakterer!W$8:W$41,$AE21),"xx") -> xx | T58: =IF($C58="Ja",INDEX(Grundkarakterer!X$8:X$41,$AE21),"xx") -> xx | U58: =IF($C58="Ja",INDEX(Grundkarakterer!Y$8:Y$41,$AE21),"xx") -> xx | V58: =IF($C58="Ja",INDEX(Grundkarakterer!Z$8:Z$41,$AE21),"xx") -> xx | W58: =IF($C58="Ja",INDEX(Grundkarakterer!AA$8:AA$41,$AE21),"xx") -> xx | X58: =IF($C58="Ja",INDEX(Grundkarakterer!AB$8:AB$41,$AE21),"xx") -> xx | Y58: =IF($C58="Ja",INDEX(Grundkarakterer!AC$8:AC$41,$AE21),"xx") -> xx | Z58: =IF($C58="Ja",INDEX(Grundkarakterer!AD$8:AD$41,$AE21),"xx") -> xx | AA58: =IF($C58="Ja",INDEX(Grundkarakterer!AE$8:AE$41,$AE21),"xx") -> xx | AB58: =IF($C58="Ja",INDEX(Grundkarakterer!AF$8:AF$41,$AE21),"xx") -> xx | AC58: =IF($C58="Ja",INDEX(Grundkarakterer!AG$8:AG$41,$AE21),"xx") -> xx | AD58: =IF($C58="Ja",INDEX(Grundkarakterer!AH$8:AH$41,$AE21),"xx") -> xx | AE58: =IF($C58="Ja",INDEX(Grundkarakterer!AI$8:AI$41,$AE21),"xx") -> xx | AF58: =IF($C58="Ja",INDEX(Grundkarakterer!M$8:M$41,$AE21),"xx") -> xx
A59: 20 | B59: =INDEX(Grundkarakterer!A$8:A$41,AE22) -> 20 | C59: Ja | D59: =IF(C59="Ja",INDEX(Grundkarakterer!B$8:B$41,AE22),"xx") -> Vinterrug | E59: =IF(C59="Ja",INDEX(Grundkarakterer!C$8:C$41,$AE22),"xx") -> 0 | F59: =IF(C59="Ja",INDEX(Grundkarakterer!D$8:D$41,$AE22),"xx") -> 0 | G59: =IF(C59="Ja",INDEX(Grundkarakterer!#REF!,$AE22),"xx") ->  | H59: =IF($C59="Ja",IF($D$9=1,INDEX(Grundkarakterer!E$8:E$41,$AE22),IF(AND($D$9=2,$D$20=1),INDEX(Grundkarakterer!H$8:H$41,$AE22),IF(AND($D$9=2,$D$20<>1),INDEX(Grundkarakterer!F$8:F$41,$AE22),IF(AND($D$9=3,$D$20=1),INDEX(Grundkarakterer!I$8:I$41,$AE22),IF(AND($D$9=3,$D$20<>1),INDEX(Grundkarakterer!G$8:G$41,$AE22),IF($D$9=4,INDEX(Grundkarakterer!J$8:J$41,$AE22),IF($D$9=5,INDEX(Grundkarakterer!K$8:K$41,$AE22),"Fejl"))))))),"xx") -> 20. august | I59: =IF($C59="Ja",INDEX(Grundkarakterer!L$8:L$41,$AE22),"xx") -> -849 | J59: =IF($C59="Ja",INDEX(Grundkarakterer!N$8:N$41,$AE22),"xx") -> 1 | K59: =IF($C59="Ja",INDEX(Grundkarakterer!O$8:O$41,$AE22),"xx") -> 0 | L59: =IF($C59="Ja",INDEX(Grundkarakterer!P$8:P$41,$AE22),"xx") -> 1 | M59: =IF($C59="Ja",INDEX(Grundkarakterer!Q$8:Q$41,$AE22),"xx") -> 0 | N59: =IF($C59="Ja",INDEX(Grundkarakterer!R$8:R$41,$AE22),"xx") -> 1 | O59: =IF($C59="Ja",INDEX(Grundkarakterer!S$8:S$41,$AE22),"xx") -> 1 | P59: =IF($C59="Ja",INDEX(Grundkarakterer!T$8:T$41,$AE22),"xx") -> 1 | Q59: =IF($C59="Ja",INDEX(Grundkarakterer!U$8:U$41,$AE22),"xx") -> 0 | R59: =IF($C59="Ja",INDEX(Grundkarakterer!V$8:V$41,$AE22),"xx") -> 0 | S59: =IF($C59="Ja",INDEX(Grundkarakterer!W$8:W$41,$AE22),"xx") -> 1 | T59: =IF($C59="Ja",INDEX(Grundkarakterer!X$8:X$41,$AE22),"xx") -> 3 | U59: =IF($C59="Ja",INDEX(Grundkarakterer!Y$8:Y$41,$AE22),"xx") -> 0 | V59: =IF($C59="Ja",INDEX(Grundkarakterer!Z$8:Z$41,$AE22),"xx") -> 1 | W59: =IF($C59="Ja",INDEX(Grundkarakterer!AA$8:AA$41,$AE22),"xx") -> 1 | X59: =IF($C59="Ja",INDEX(Grundkarakterer!AB$8:AB$41,$AE22),"xx") -> 3 | Y59: =IF($C59="Ja",INDEX(Grundkarakterer!AC$8:AC$41,$AE22),"xx") -> 3 | Z59: =IF($C59="Ja",INDEX(Grundkarakterer!AD$8:AD$41,$AE22),"xx") -> 0 | AA59: =IF($C59="Ja",INDEX(Grundkarakterer!AE$8:AE$41,$AE22),"xx") -> 0 | AB59: =IF($C59="Ja",INDEX(Grundkarakterer!AF$8:AF$41,$AE22),"xx") -> 3 | AC59: =IF($C59="Ja",INDEX(Grundkarakterer!AG$8:AG$41,$AE22),"xx") -> 1 | AD59: =IF($C59="Ja",INDEX(Grundkarakterer!AH$8:AH$41,$AE22),"xx") -> 20 | AE59: =IF($C59="Ja",INDEX(Grundkarakterer!AI$8:AI$41,$AE22),"xx") -> 0 | AF59: =IF($C59="Ja",INDEX(Grundkarakterer!M$8:M$41,$AE22),"xx") -> -409
A60: 21 | B60: =INDEX(Grundkarakterer!A$8:A$41,AE23) -> 21 | C60: Nej | D60: =IF(C60="Ja",INDEX(Grundkarakterer!B$8:B$41,AE23),"xx") -> xx | E60: =IF(C60="Ja",INDEX(Grundkarakterer!C$8:C$41,$AE23),"xx") -> xx | F60: =IF(C60="Ja",INDEX(Grundkarakterer!D$8:D$41,$AE23),"xx") -> xx | G60: =IF(C60="Ja",INDEX(Grundkarakterer!#REF!,$AE23),"xx") -> xx | H60: =IF($C60="Ja",IF($D$9=1,INDEX(Grundkarakterer!E$8:E$41,$AE23),IF(AND($D$9=2,$D$20=1),INDEX(Grundkarakterer!H$8:H$41,$AE23),IF(AND($D$9=2,$D$20<>1),INDEX(Grundkarakterer!F$8:F$41,$AE23),IF(AND($D$9=3,$D$20=1),INDEX(Grundkarakterer!I$8:I$41,$AE23),IF(AND($D$9=3,$D$20<>1),INDEX(Grundkarakterer!G$8:G$41,$AE23),IF($D$9=4,INDEX(Grundkarakterer!J$8:J$41,$AE23),IF($D$9=5,INDEX(Grundkarakterer!K$8:K$41,$AE23),"Fejl"))))))),"xx") -> xx | I60: =IF($C60="Ja",INDEX(Grundkarakterer!L$8:L$41,$AE23),"xx") -> xx | J60: =IF($C60="Ja",INDEX(Grundkarakterer!N$8:N$41,$AE23),"xx") -> xx | K60: =IF($C60="Ja",INDEX(Grundkarakterer!O$8:O$41,$AE23),"xx") -> xx | L60: =IF($C60="Ja",INDEX(Grundkarakterer!P$8:P$41,$AE23),"xx") -> xx | M60: =IF($C60="Ja",INDEX(Grundkarakterer!Q$8:Q$41,$AE23),"xx") -> xx | N60: =IF($C60="Ja",INDEX(Grundkarakterer!R$8:R$41,$AE23),"xx") -> xx | O60: =IF($C60="Ja",INDEX(Grundkarakterer!S$8:S$41,$AE23),"xx") -> xx | P60: =IF($C60="Ja",INDEX(Grundkarakterer!T$8:T$41,$AE23),"xx") -> xx | Q60: =IF($C60="Ja",INDEX(Grundkarakterer!U$8:U$41,$AE23),"xx") -> xx | R60: =IF($C60="Ja",INDEX(Grundkarakterer!V$8:V$41,$AE23),"xx") -> xx | S60: =IF($C60="Ja",INDEX(Grundkarakterer!W$8:W$41,$AE23),"xx") -> xx | T60: =IF($C60="Ja",INDEX(Grundkarakterer!X$8:X$41,$AE23),"xx") -> xx | U60: =IF($C60="Ja",INDEX(Grundkarakterer!Y$8:Y$41,$AE23),"xx") -> xx | V60: =IF($C60="Ja",INDEX(Grundkarakterer!Z$8:Z$41,$AE23),"xx") -> xx | W60: =IF($C60="Ja",INDEX(Grundkarakterer!AA$8:AA$41,$AE23),"xx") -> xx | X60: =IF($C60="Ja",INDEX(Grundkarakterer!AB$8:AB$41,$AE23),"xx") -> xx | Y60: =IF($C60="Ja",INDEX(Grundkarakterer!AC$8:AC$41,$AE23),"xx") -> xx | Z60: =IF($C60="Ja",INDEX(Grundkarakterer!AD$8:AD$41,$AE23),"xx") -> xx | AA60: =IF($C60="Ja",INDEX(Grundkarakterer!AE$8:AE$41,$AE23),"xx") -> xx | AB60: =IF($C60="Ja",INDEX(Grundkarakterer!AF$8:AF$41,$AE23),"xx") -> xx | AC60: =IF($C60="Ja",INDEX(Grundkarakterer!AG$8:AG$41,$AE23),"xx") -> xx | AD60: =IF($C60="Ja",INDEX(Grundkarakterer!AH$8:AH$41,$AE23),"xx") -> xx | AE60: =IF($C60="Ja",INDEX(Grundkarakterer!AI$8:AI$41,$AE23),"xx") -> xx | AF60: =IF($C60="Ja",INDEX(Grundkarakterer!M$8:M$41,$AE23),"xx") -> xx
A61: 22 | B61: =INDEX(Grundkarakterer!A$8:A$41,AE24) -> 22 | C61: Nej | D61: =IF(C61="Ja",INDEX(Grundkarakterer!B$8:B$41,AE24),"xx") -> xx | E61: =IF(C61="Ja",INDEX(Grundkarakterer!C$8:C$41,$AE24),"xx") -> xx | F61: =IF(C61="Ja",INDEX(Grundkarakterer!D$8:D$41,$AE24),"xx") -> xx | G61: =IF(C61="Ja",INDEX(Grundkarakterer!#REF!,$AE24),"xx") -> xx | H61: =IF($C61="Ja",IF($D$9=1,INDEX(Grundkarakterer!E$8:E$41,$AE24),IF(AND($D$9=2,$D$20=1),INDEX(Grundkarakterer!H$8:H$41,$AE24),IF(AND($D$9=2,$D$20<>1),INDEX(Grundkarakterer!F$8:F$41,$AE24),IF(AND($D$9=3,$D$20=1),INDEX(Grundkarakterer!I$8:I$41,$AE24),IF(AND($D$9=3,$D$20<>1),INDEX(Grundkarakterer!G$8:G$41,$AE24),IF($D$9=4,INDEX(Grundkarakterer!J$8:J$41,$AE24),IF($D$9=5,INDEX(Grundkarakterer!K$8:K$41,$AE24),"Fejl"))))))),"xx") -> xx | I61: =IF($C61="Ja",INDEX(Grundkarakterer!L$8:L$41,$AE24),"xx") -> xx | J61: =IF($C61="Ja",INDEX(Grundkarakterer!N$8:N$41,$AE24),"xx") -> xx | K61: =IF($C61="Ja",INDEX(Grundkarakterer!O$8:O$41,$AE24),"xx") -> xx | L61: =IF($C61="Ja",INDEX(Grundkarakterer!P$8:P$41,$AE24),"xx") -> xx | M61: =IF($C61="Ja",INDEX(Grundkarakterer!Q$8:Q$41,$AE24),"xx") -> xx | N61: =IF($C61="Ja",INDEX(Grundkarakterer!R$8:R$41,$AE24),"xx") -> xx | O61: =IF($C61="Ja",INDEX(Grundkarakterer!S$8:S$41,$AE24),"xx") -> xx | P61: =IF($C61="Ja",INDEX(Grundkarakterer!T$8:T$41,$AE24),"xx") -> xx | Q61: =IF($C61="Ja",INDEX(Grundkarakterer!U$8:U$41,$AE24),"xx") -> xx | R61: =IF($C61="Ja",INDEX(Grundkarakterer!V$8:V$41,$AE24),"xx") -> xx | S61: =IF($C61="Ja",INDEX(Grundkarakterer!W$8:W$41,$AE24),"xx") -> xx | T61: =IF($C61="Ja",INDEX(Grundkarakterer!X$8:X$41,$AE24),"xx") -> xx | U61: =IF($C61="Ja",INDEX(Grundkarakterer!Y$8:Y$41,$AE24),"xx") -> xx | V61: =IF($C61="Ja",INDEX(Grundkarakterer!Z$8:Z$41,$AE24),"xx") -> xx | W61: =IF($C61="Ja",INDEX(Grundkarakterer!AA$8:AA$41,$AE24),"xx") -> xx | X61: =IF($C61="Ja",INDEX(Grundkarakterer!AB$8:AB$41,$AE24),"xx") -> xx | Y61: =IF($C61="Ja",INDEX(Grundkarakterer!AC$8:AC$41,$AE24),"xx") -> xx | Z61: =IF($C61="Ja",INDEX(Grundkarakterer!AD$8:AD$41,$AE24),"xx") -> xx | AA61: =IF($C61="Ja",INDEX(Grundkarakterer!AE$8:AE$41,$AE24),"xx") -> xx | AB61: =IF($C61="Ja",INDEX(Grundkarakterer!AF$8:AF$41,$AE24),"xx") -> xx | AC61: =IF($C61="Ja",INDEX(Grundkarakterer!AG$8:AG$41,$AE24),"xx") -> xx | AD61: =IF($C61="Ja",INDEX(Grundkarakterer!AH$8:AH$41,$AE24),"xx") -> xx | AE61: =IF($C61="Ja",INDEX(Grundkarakterer!AI$8:AI$41,$AE24),"xx") -> xx | AF61: =IF($C61="Ja",INDEX(Grundkarakterer!M$8:M$41,$AE24),"xx") -> xx
A62: 23 | B62: =INDEX(Grundkarakterer!A$8:A$41,AE25) -> 23 | C62: Nej | D62: =IF(C62="Ja",INDEX(Grundkarakterer!B$8:B$41,AE25),"xx") -> xx | E62: =IF(C62="Ja",INDEX(Grundkarakterer!C$8:C$41,$AE25),"xx") -> xx | F62: =IF(C62="Ja",INDEX(Grundkarakterer!D$8:D$41,$AE25),"xx") -> xx | G62: =IF(C62="Ja",INDEX(Grundkarakterer!#REF!,$AE25),"xx") -> xx | H62: =IF($C62="Ja",IF($D$9=1,INDEX(Grundkarakterer!E$8:E$41,$AE25),IF(AND($D$9=2,$D$20=1),INDEX(Grundkarakterer!H$8:H$41,$AE25),IF(AND($D$9=2,$D$20<>1),INDEX(Grundkarakterer!F$8:F$41,$AE25),IF(AND($D$9=3,$D$20=1),INDEX(Grundkarakterer!I$8:I$41,$AE25),IF(AND($D$9=3,$D$20<>1),INDEX(Grundkarakterer!G$8:G$41,$AE25),IF($D$9=4,INDEX(Grundkarakterer!J$8:J$41,$AE25),IF($D$9=5,INDEX(Grundkarakterer!K$8:K$41,$AE25),"Fejl"))))))),"xx") -> xx | I62: =IF($C62="Ja",INDEX(Grundkarakterer!L$8:L$41,$AE25),"xx") -> xx | J62: =IF($C62="Ja",INDEX(Grundkarakterer!N$8:N$41,$AE25),"xx") -> xx | K62: =IF($C62="Ja",INDEX(Grundkarakterer!O$8:O$41,$AE25),"xx") -> xx | L62: =IF($C62="Ja",INDEX(Grundkarakterer!P$8:P$41,$AE25),"xx") -> xx | M62: =IF($C62="Ja",INDEX(Grundkarakterer!Q$8:Q$41,$AE25),"xx") -> xx | N62: =IF($C62="Ja",INDEX(Grundkarakterer!R$8:R$41,$AE25),"xx") -> xx | O62: =IF($C62="Ja",INDEX(Grundkarakterer!S$8:S$41,$AE25),"xx") -> xx | P62: =IF($C62="Ja",INDEX(Grundkarakterer!T$8:T$41,$AE25),"xx") -> xx | Q62: =IF($C62="Ja",INDEX(Grundkarakterer!U$8:U$41,$AE25),"xx") -> xx | R62: =IF($C62="Ja",INDEX(Grundkarakterer!V$8:V$41,$AE25),"xx") -> xx | S62: =IF($C62="Ja",INDEX(Grundkarakterer!W$8:W$41,$AE25),"xx") -> xx | T62: =IF($C62="Ja",INDEX(Grundkarakterer!X$8:X$41,$AE25),"xx") -> xx | U62: =IF($C62="Ja",INDEX(Grundkarakterer!Y$8:Y$41,$AE25),"xx") -> xx | V62: =IF($C62="Ja",INDEX(Grundkarakterer!Z$8:Z$41,$AE25),"xx") -> xx | W62: =IF($C62="Ja",INDEX(Grundkarakterer!AA$8:AA$41,$AE25),"xx") -> xx | X62: =IF($C62="Ja",INDEX(Grundkarakterer!AB$8:AB$41,$AE25),"xx") -> xx | Y62: =IF($C62="Ja",INDEX(Grundkarakterer!AC$8:AC$41,$AE25),"xx") -> xx | Z62: =IF($C62="Ja",INDEX(Grundkarakterer!AD$8:AD$41,$AE25),"xx") -> xx | AA62: =IF($C62="Ja",INDEX(Grundkarakterer!AE$8:AE$41,$AE25),"xx") -> xx | AB62: =IF($C62="Ja",INDEX(Grundkarakterer!AF$8:AF$41,$AE25),"xx") -> xx | AC62: =IF($C62="Ja",INDEX(Grundkarakterer!AG$8:AG$41,$AE25),"xx") -> xx | AD62: =IF($C62="Ja",INDEX(Grundkarakterer!AH$8:AH$41,$AE25),"xx") -> xx | AE62: =IF($C62="Ja",INDEX(Grundkarakterer!AI$8:AI$41,$AE25),"xx") -> xx | AF62: =IF($C62="Ja",INDEX(Grundkarakterer!M$8:M$41,$AE25),"xx") -> xx
A63: 24 | B63: =INDEX(Grundkarakterer!A$8:A$41,AE26) -> 24 | C63: Nej | D63: =IF(C63="Ja",INDEX(Grundkarakterer!B$8:B$41,AE26),"xx") -> xx | E63: =IF(C63="Ja",INDEX(Grundkarakterer!C$8:C$41,$AE26),"xx") -> xx | F63: =IF(C63="Ja",INDEX(Grundkarakterer!D$8:D$41,$AE26),"xx") -> xx | G63: =IF(C63="Ja",INDEX(Grundkarakterer!#REF!,$AE26),"xx") -> xx | H63: =IF($C63="Ja",IF($D$9=1,INDEX(Grundkarakterer!E$8:E$41,$AE26),IF(AND($D$9=2,$D$20=1),INDEX(Grundkarakterer!H$8:H$41,$AE26),IF(AND($D$9=2,$D$20<>1),INDEX(Grundkarakterer!F$8:F$41,$AE26),IF(AND($D$9=3,$D$20=1),INDEX(Grundkarakterer!I$8:I$41,$AE26),IF(AND($D$9=3,$D$20<>1),INDEX(Grundkarakterer!G$8:G$41,$AE26),IF($D$9=4,INDEX(Grundkarakterer!J$8:J$41,$AE26),IF($D$9=5,INDEX(Grundkarakterer!K$8:K$41,$AE26),"Fejl"))))))),"xx") -> xx | I63: =IF($C63="Ja",INDEX(Grundkarakterer!L$8:L$41,$AE26),"xx") -> xx | J63: =IF($C63="Ja",INDEX(Grundkarakterer!N$8:N$41,$AE26),"xx") -> xx | K63: =IF($C63="Ja",INDEX(Grundkarakterer!O$8:O$41,$AE26),"xx") -> xx | L63: =IF($C63="Ja",INDEX(Grundkarakterer!P$8:P$41,$AE26),"xx") -> xx | M63: =IF($C63="Ja",INDEX(Grundkarakterer!Q$8:Q$41,$AE26),"xx") -> xx | N63: =IF($C63="Ja",INDEX(Grundkarakterer!R$8:R$41,$AE26),"xx") -> xx | O63: =IF($C63="Ja",INDEX(Grundkarakterer!S$8:S$41,$AE26),"xx") -> xx | P63: =IF($C63="Ja",INDEX(Grundkarakterer!T$8:T$41,$AE26),"xx") -> xx | Q63: =IF($C63="Ja",INDEX(Grundkarakterer!U$8:U$41,$AE26),"xx") -> xx | R63: =IF($C63="Ja",INDEX(Grundkarakterer!V$8:V$41,$AE26),"xx") -> xx | S63: =IF($C63="Ja",INDEX(Grundkarakterer!W$8:W$41,$AE26),"xx") -> xx | T63: =IF($C63="Ja",INDEX(Grundkarakterer!X$8:X$41,$AE26),"xx") -> xx | U63: =IF($C63="Ja",INDEX(Grundkarakterer!Y$8:Y$41,$AE26),"xx") -> xx | V63: =IF($C63="Ja",INDEX(Grundkarakterer!Z$8:Z$41,$AE26),"xx") -> xx | W63: =IF($C63="Ja",INDEX(Grundkarakterer!AA$8:AA$41,$AE26),"xx") -> xx | X63: =IF($C63="Ja",INDEX(Grundkarakterer!AB$8:AB$41,$AE26),"xx") -> xx | Y63: =IF($C63="Ja",INDEX(Grundkarakterer!AC$8:AC$41,$AE26),"xx") -> xx | Z63: =IF($C63="Ja",INDEX(Grundkarakterer!AD$8:AD$41,$AE26),"xx") -> xx | AA63: =IF($C63="Ja",INDEX(Grundkarakterer!AE$8:AE$41,$AE26),"xx") -> xx | AB63: =IF($C63="Ja",INDEX(Grundkarakterer!AF$8:AF$41,$AE26),"xx") -> xx | AC63: =IF($C63="Ja",INDEX(Grundkarakterer!AG$8:AG$41,$AE26),"xx") -> xx | AD63: =IF($C63="Ja",INDEX(Grundkarakterer!AH$8:AH$41,$AE26),"xx") -> xx | AE63: =IF($C63="Ja",INDEX(Grundkarakterer!AI$8:AI$41,$AE26),"xx") -> xx | AF63: =IF($C63="Ja",INDEX(Grundkarakterer!M$8:M$41,$AE26),"xx") -> xx
A64: 25 | B64: =INDEX(Grundkarakterer!A$8:A$41,AE27) -> 25 | C64: Ja | D64: =IF(C64="Ja",INDEX(Grundkarakterer!B$8:B$41,AE27),"xx") -> Honningurt | E64: =IF(C64="Ja",INDEX(Grundkarakterer!C$8:C$41,$AE27),"xx") -> 1. Vintersæd | F64: =IF(C64="Ja",INDEX(Grundkarakterer!D$8:D$41,$AE27),"xx") -> 1. Ved etablering af primærafgrøde | G64: =IF(C64="Ja",INDEX(Grundkarakterer!#REF!,$AE27),"xx") ->  | H64: =IF($C64="Ja",IF($D$9=1,INDEX(Grundkarakterer!E$8:E$41,$AE27),IF(AND($D$9=2,$D$20=1),INDEX(Grundkarakterer!H$8:H$41,$AE27),IF(AND($D$9=2,$D$20<>1),INDEX(Grundkarakterer!F$8:F$41,$AE27),IF(AND($D$9=3,$D$20=1),INDEX(Grundkarakterer!I$8:I$41,$AE27),IF(AND($D$9=3,$D$20<>1),INDEX(Grundkarakterer!G$8:G$41,$AE27),IF($D$9=4,INDEX(Grundkarakterer!J$8:J$41,$AE27),IF($D$9=5,INDEX(Grundkarakterer!K$8:K$41,$AE27),"Fejl"))))))),"xx") -> 20. august | I64: =IF($C64="Ja",INDEX(Grundkarakterer!L$8:L$41,$AE27),"xx") -> -2302 | J64: =IF($C64="Ja",INDEX(Grundkarakterer!N$8:N$41,$AE27),"xx") -> 1 | K64: =IF($C64="Ja",INDEX(Grundkarakterer!O$8:O$41,$AE27),"xx") -> 0 | L64: =IF($C64="Ja",INDEX(Grundkarakterer!P$8:P$41,$AE27),"xx") -> 1 | M64: =IF($C64="Ja",INDEX(Grundkarakterer!Q$8:Q$41,$AE27),"xx") -> 0 | N64: =IF($C64="Ja",INDEX(Grundkarakterer!R$8:R$41,$AE27),"xx") -> 1 | O64: =IF($C64="Ja",INDEX(Grundkarakterer!S$8:S$41,$AE27),"xx") -> 1 | P64: =IF($C64="Ja",INDEX(Grundkarakterer!T$8:T$41,$AE27),"xx") -> 1 | Q64: =IF($C64="Ja",INDEX(Grundkarakterer!U$8:U$41,$AE27),"xx") -> 0 | R64: =IF($C64="Ja",INDEX(Grundkarakterer!V$8:V$41,$AE27),"xx") -> 0 | S64: =IF($C64="Ja",INDEX(Grundkarakterer!W$8:W$41,$AE27),"xx") -> 0 | T64: =IF($C64="Ja",INDEX(Grundkarakterer!X$8:X$41,$AE27),"xx") -> 3 | U64: =IF($C64="Ja",INDEX(Grundkarakterer!Y$8:Y$41,$AE27),"xx") -> 0 | V64: =IF($C64="Ja",INDEX(Grundkarakterer!Z$8:Z$41,$AE27),"xx") -> 2 | W64: =IF($C64="Ja",INDEX(Grundkarakterer!AA$8:AA$41,$AE27),"xx") -> 3 | X64: =IF($C64="Ja",INDEX(Grundkarakterer!AB$8:AB$41,$AE27),"xx") -> 3 | Y64: =IF($C64="Ja",INDEX(Grundkarakterer!AC$8:AC$41,$AE27),"xx") -> 3 | Z64: =IF($C64="Ja",INDEX(Grundkarakterer!AD$8:AD$41,$AE27),"xx") -> 0 | AA64: =IF($C64="Ja",INDEX(Grundkarakterer!AE$8:AE$41,$AE27),"xx") -> 0 | AB64: =IF($C64="Ja",INDEX(Grundkarakterer!AF$8:AF$41,$AE27),"xx") -> 0 | AC64: =IF($C64="Ja",INDEX(Grundkarakterer!AG$8:AG$41,$AE27),"xx") -> 0 | AD64: =IF($C64="Ja",INDEX(Grundkarakterer!AH$8:AH$41,$AE27),"xx") -> 25 | AE64: =IF($C64="Ja",INDEX(Grundkarakterer!AI$8:AI$41,$AE27),"xx") -> 0 | AF64: =IF($C64="Ja",INDEX(Grundkarakterer!M$8:M$41,$AE27),"xx") -> -2082
A65: 26 | B65: =INDEX(Grundkarakterer!A$8:A$41,AE28) -> 26 | C65: Nej | D65: =IF(C65="Ja",INDEX(Grundkarakterer!B$8:B$41,AE28),"xx") -> xx | E65: =IF(C65="Ja",INDEX(Grundkarakterer!C$8:C$41,$AE28),"xx") -> xx | F65: =IF(C65="Ja",INDEX(Grundkarakterer!D$8:D$41,$AE28),"xx") -> xx | G65: =IF(C65="Ja",INDEX(Grundkarakterer!#REF!,$AE28),"xx") -> xx | H65: =IF($C65="Ja",IF($D$9=1,INDEX(Grundkarakterer!E$8:E$41,$AE28),IF(AND($D$9=2,$D$20=1),INDEX(Grundkarakterer!H$8:H$41,$AE28),IF(AND($D$9=2,$D$20<>1),INDEX(Grundkarakterer!F$8:F$41,$AE28),IF(AND($D$9=3,$D$20=1),INDEX(Grundkarakterer!I$8:I$41,$AE28),IF(AND($D$9=3,$D$20<>1),INDEX(Grundkarakterer!G$8:G$41,$AE28),IF($D$9=4,INDEX(Grundkarakterer!J$8:J$41,$AE28),IF($D$9=5,INDEX(Grundkarakterer!K$8:K$41,$AE28),"Fejl"))))))),"xx") -> xx | I65: =IF($C65="Ja",INDEX(Grundkarakterer!L$8:L$41,$AE28),"xx") -> xx | J65: =IF($C65="Ja",INDEX(Grundkarakterer!N$8:N$41,$AE28),"xx") -> xx | K65: =IF($C65="Ja",INDEX(Grundkarakterer!O$8:O$41,$AE28),"xx") -> xx | L65: =IF($C65="Ja",INDEX(Grundkarakterer!P$8:P$41,$AE28),"xx") -> xx | M65: =IF($C65="Ja",INDEX(Grundkarakterer!Q$8:Q$41,$AE28),"xx") -> xx | N65: =IF($C65="Ja",INDEX(Grundkarakterer!R$8:R$41,$AE28),"xx") -> xx | O65: =IF($C65="Ja",INDEX(Grundkarakterer!S$8:S$41,$AE28),"xx") -> xx | P65: =IF($C65="Ja",INDEX(Grundkarakterer!T$8:T$41,$AE28),"xx") -> xx | Q65: =IF($C65="Ja",INDEX(Grundkarakterer!U$8:U$41,$AE28),"xx") -> xx | R65: =IF($C65="Ja",INDEX(Grundkarakterer!V$8:V$41,$AE28),"xx") -> xx | S65: =IF($C65="Ja",INDEX(Grundkarakterer!W$8:W$41,$AE28),"xx") -> xx | T65: =IF($C65="Ja",INDEX(Grundkarakterer!X$8:X$41,$AE28),"xx") -> xx | U65: =IF($C65="Ja",INDEX(Grundkarakterer!Y$8:Y$41,$AE28),"xx") -> xx | V65: =IF($C65="Ja",INDEX(Grundkarakterer!Z$8:Z$41,$AE28),"xx") -> xx | W65: =IF($C65="Ja",INDEX(Grundkarakterer!AA$8:AA$41,$AE28),"xx") -> xx | X65: =IF($C65="Ja",INDEX(Grundkarakterer!AB$8:AB$41,$AE28),"xx") -> xx | Y65: =IF($C65="Ja",INDEX(Grundkarakterer!AC$8:AC$41,$AE28),"xx") -> xx | Z65: =IF($C65="Ja",INDEX(Grundkarakterer!AD$8:AD$41,$AE28),"xx") -> xx | AA65: =IF($C65="Ja",INDEX(Grundkarakterer!AE$8:AE$41,$AE28),"xx") -> xx | AB65: =IF($C65="Ja",INDEX(Grundkarakterer!AF$8:AF$41,$AE28),"xx") -> xx | AC65: =IF($C65="Ja",INDEX(Grundkarakterer!AG$8:AG$41,$AE28),"xx") -> xx | AD65: =IF($C65="Ja",INDEX(Grundkarakterer!AH$8:AH$41,$AE28),"xx") -> xx | AE65: =IF($C65="Ja",INDEX(Grundkarakterer!AI$8:AI$41,$AE28),"xx") -> xx | AF65: =IF($C65="Ja",INDEX(Grundkarakterer!M$8:M$41,$AE28),"xx") -> xx
A66: 27 | B66: =INDEX(Grundkarakterer!A$8:A$41,AE29) -> 27 | C66: Nej | D66: =IF(C66="Ja",INDEX(Grundkarakterer!B$8:B$41,AE29),"xx") -> xx | E66: =IF(C66="Ja",INDEX(Grundkarakterer!C$8:C$41,$AE29),"xx") -> xx | F66: =IF(C66="Ja",INDEX(Grundkarakterer!D$8:D$41,$AE29),"xx") -> xx | G66: =IF(C66="Ja",INDEX(Grundkarakterer!#REF!,$AE29),"xx") -> xx | H66: =IF($C66="Ja",IF($D$9=1,INDEX(Grundkarakterer!E$8:E$41,$AE29),IF(AND($D$9=2,$D$20=1),INDEX(Grundkarakterer!H$8:H$41,$AE29),IF(AND($D$9=2,$D$20<>1),INDEX(Grundkarakterer!F$8:F$41,$AE29),IF(AND($D$9=3,$D$20=1),INDEX(Grundkarakterer!I$8:I$41,$AE29),IF(AND($D$9=3,$D$20<>1),INDEX(Grundkarakterer!G$8:G$41,$AE29),IF($D$9=4,INDEX(Grundkarakterer!J$8:J$41,$AE29),IF($D$9=5,INDEX(Grundkarakterer!K$8:K$41,$AE29),"Fejl"))))))),"xx") -> xx | I66: =IF($C66="Ja",INDEX(Grundkarakterer!L$8:L$41,$AE29),"xx") -> xx | J66: =IF($C66="Ja",INDEX(Grundkarakterer!N$8:N$41,$AE29),"xx") -> xx | K66: =IF($C66="Ja",INDEX(Grundkarakterer!O$8:O$41,$AE29),"xx") -> xx | L66: =IF($C66="Ja",INDEX(Grundkarakterer!P$8:P$41,$AE29),"xx") -> xx | M66: =IF($C66="Ja",INDEX(Grundkarakterer!Q$8:Q$41,$AE29),"xx") -> xx | N66: =IF($C66="Ja",INDEX(Grundkarakterer!R$8:R$41,$AE29),"xx") -> xx | O66: =IF($C66="Ja",INDEX(Grundkarakterer!S$8:S$41,$AE29),"xx") -> xx | P66: =IF($C66="Ja",INDEX(Grundkarakterer!T$8:T$41,$AE29),"xx") -> xx | Q66: =IF($C66="Ja",INDEX(Grundkarakterer!U$8:U$41,$AE29),"xx") -> xx | R66: =IF($C66="Ja",INDEX(Grundkarakterer!V$8:V$41,$AE29),"xx") -> xx | S66: =IF($C66="Ja",INDEX(Grundkarakterer!W$8:W$41,$AE29),"xx") -> xx | T66: =IF($C66="Ja",INDEX(Grundkarakterer!X$8:X$41,$AE29),"xx") -> xx | U66: =IF($C66="Ja",INDEX(Grundkarakterer!Y$8:Y$41,$AE29),"xx") -> xx | V66: =IF($C66="Ja",INDEX(Grundkarakterer!Z$8:Z$41,$AE29),"xx") -> xx | W66: =IF($C66="Ja",INDEX(Grundkarakterer!AA$8:AA$41,$AE29),"xx") -> xx | X66: =IF($C66="Ja",INDEX(Grundkarakterer!AB$8:AB$41,$AE29),"xx") -> xx | Y66: =IF($C66="Ja",INDEX(Grundkarakterer!AC$8:AC$41,$AE29),"xx") -> xx | Z66: =IF($C66="Ja",INDEX(Grundkarakterer!AD$8:AD$41,$AE29),"xx") -> xx | AA66: =IF($C66="Ja",INDEX(Grundkarakterer!AE$8:AE$41,$AE29),"xx") -> xx | AB66: =IF($C66="Ja",INDEX(Grundkarakterer!AF$8:AF$41,$AE29),"xx") -> xx | AC66: =IF($C66="Ja",INDEX(Grundkarakterer!AG$8:AG$41,$AE29),"xx") -> xx | AD66: =IF($C66="Ja",INDEX(Grundkarakterer!AH$8:AH$41,$AE29),"xx") -> xx | AE66: =IF($C66="Ja",INDEX(Grundkarakterer!AI$8:AI$41,$AE29),"xx") -> xx | AF66: =IF($C66="Ja",INDEX(Grundkarakterer!M$8:M$41,$AE29),"xx") -> xx
A67: 28 | B67: =INDEX(Grundkarakterer!A$8:A$41,AE30) -> 28 | C67: Nej | D67: =IF(C67="Ja",INDEX(Grundkarakterer!B$8:B$41,AE30),"xx") -> xx | E67: =IF(C67="Ja",INDEX(Grundkarakterer!C$8:C$41,$AE30),"xx") -> xx | F67: =IF(C67="Ja",INDEX(Grundkarakterer!D$8:D$41,$AE30),"xx") -> xx | G67: =IF(C67="Ja",INDEX(Grundkarakterer!#REF!,$AE30),"xx") -> xx | H67: =IF($C67="Ja",IF($D$9=1,INDEX(Grundkarakterer!E$8:E$41,$AE30),IF(AND($D$9=2,$D$20=1),INDEX(Grundkarakterer!H$8:H$41,$AE30),IF(AND($D$9=2,$D$20<>1),INDEX(Grundkarakterer!F$8:F$41,$AE30),IF(AND($D$9=3,$D$20=1),INDEX(Grundkarakterer!I$8:I$41,$AE30),IF(AND($D$9=3,$D$20<>1),INDEX(Grundkarakterer!G$8:G$41,$AE30),IF($D$9=4,INDEX(Grundkarakterer!J$8:J$41,$AE30),IF($D$9=5,INDEX(Grundkarakterer!K$8:K$41,$AE30),"Fejl"))))))),"xx") -> xx | I67: =IF($C67="Ja",INDEX(Grundkarakterer!L$8:L$41,$AE30),"xx") -> xx | J67: =IF($C67="Ja",INDEX(Grundkarakterer!N$8:N$41,$AE30),"xx") -> xx | K67: =IF($C67="Ja",INDEX(Grundkarakterer!O$8:O$41,$AE30),"xx") -> xx | L67: =IF($C67="Ja",INDEX(Grundkarakterer!P$8:P$41,$AE30),"xx") -> xx | M67: =IF($C67="Ja",INDEX(Grundkarakterer!Q$8:Q$41,$AE30),"xx") -> xx | N67: =IF($C67="Ja",INDEX(Grundkarakterer!R$8:R$41,$AE30),"xx") -> xx | O67: =IF($C67="Ja",INDEX(Grundkarakterer!S$8:S$41,$AE30),"xx") -> xx | P67: =IF($C67="Ja",INDEX(Grundkarakterer!T$8:T$41,$AE30),"xx") -> xx | Q67: =IF($C67="Ja",INDEX(Grundkarakterer!U$8:U$41,$AE30),"xx") -> xx | R67: =IF($C67="Ja",INDEX(Grundkarakterer!V$8:V$41,$AE30),"xx") -> xx | S67: =IF($C67="Ja",INDEX(Grundkarakterer!W$8:W$41,$AE30),"xx") -> xx | T67: =IF($C67="Ja",INDEX(Grundkarakterer!X$8:X$41,$AE30),"xx") -> xx | U67: =IF($C67="Ja",INDEX(Grundkarakterer!Y$8:Y$41,$AE30),"xx") -> xx | V67: =IF($C67="Ja",INDEX(Grundkarakterer!Z$8:Z$41,$AE30),"xx") -> xx | W67: =IF($C67="Ja",INDEX(Grundkarakterer!AA$8:AA$41,$AE30),"xx") -> xx | X67: =IF($C67="Ja",INDEX(Grundkarakterer!AB$8:AB$41,$AE30),"xx") -> xx | Y67: =IF($C67="Ja",INDEX(Grundkarakterer!AC$8:AC$41,$AE30),"xx") -> xx | Z67: =IF($C67="Ja",INDEX(Grundkarakterer!AD$8:AD$41,$AE30),"xx") -> xx | AA67: =IF($C67="Ja",INDEX(Grundkarakterer!AE$8:AE$41,$AE30),"xx") -> xx | AB67: =IF($C67="Ja",INDEX(Grundkarakterer!AF$8:AF$41,$AE30),"xx") -> xx | AC67: =IF($C67="Ja",INDEX(Grundkarakterer!AG$8:AG$41,$AE30),"xx") -> xx | AD67: =IF($C67="Ja",INDEX(Grundkarakterer!AH$8:AH$41,$AE30),"xx") -> xx | AE67: =IF($C67="Ja",INDEX(Grundkarakterer!AI$8:AI$41,$AE30),"xx") -> xx | AF67: =IF($C67="Ja",INDEX(Grundkarakterer!M$8:M$41,$AE30),"xx") -> xx
A68: 29 | B68: =INDEX(Grundkarakterer!A$8:A$41,AE31) -> 29 | C68: Nej | D68: =IF(C68="Ja",INDEX(Grundkarakterer!B$8:B$41,AE31),"xx") -> xx | E68: =IF(C68="Ja",INDEX(Grundkarakterer!C$8:C$41,$AE31),"xx") -> xx | F68: =IF(C68="Ja",INDEX(Grundkarakterer!D$8:D$41,$AE31),"xx") -> xx | G68: =IF(C68="Ja",INDEX(Grundkarakterer!#REF!,$AE31),"xx") -> xx | H68: =IF($C68="Ja",IF($D$9=1,INDEX(Grundkarakterer!E$8:E$41,$AE31),IF(AND($D$9=2,$D$20=1),INDEX(Grundkarakterer!H$8:H$41,$AE31),IF(AND($D$9=2,$D$20<>1),INDEX(Grundkarakterer!F$8:F$41,$AE31),IF(AND($D$9=3,$D$20=1),INDEX(Grundkarakterer!I$8:I$41,$AE31),IF(AND($D$9=3,$D$20<>1),INDEX(Grundkarakterer!G$8:G$41,$AE31),IF($D$9=4,INDEX(Grundkarakterer!J$8:J$41,$AE31),IF($D$9=5,INDEX(Grundkarakterer!K$8:K$41,$AE31),"Fejl"))))))),"xx") -> xx | I68: =IF($C68="Ja",INDEX(Grundkarakterer!L$8:L$41,$AE31),"xx") -> xx | J68: =IF($C68="Ja",INDEX(Grundkarakterer!N$8:N$41,$AE31),"xx") -> xx | K68: =IF($C68="Ja",INDEX(Grundkarakterer!O$8:O$41,$AE31),"xx") -> xx | L68: =IF($C68="Ja",INDEX(Grundkarakterer!P$8:P$41,$AE31),"xx") -> xx | M68: =IF($C68="Ja",INDEX(Grundkarakterer!Q$8:Q$41,$AE31),"xx") -> xx | N68: =IF($C68="Ja",INDEX(Grundkarakterer!R$8:R$41,$AE31),"xx") -> xx | O68: =IF($C68="Ja",INDEX(Grundkarakterer!S$8:S$41,$AE31),"xx") -> xx | P68: =IF($C68="Ja",INDEX(Grundkarakterer!T$8:T$41,$AE31),"xx") -> xx | Q68: =IF($C68="Ja",INDEX(Grundkarakterer!U$8:U$41,$AE31),"xx") -> xx | R68: =IF($C68="Ja",INDEX(Grundkarakterer!V$8:V$41,$AE31),"xx") -> xx | S68: =IF($C68="Ja",INDEX(Grundkarakterer!W$8:W$41,$AE31),"xx") -> xx | T68: =IF($C68="Ja",INDEX(Grundkarakterer!X$8:X$41,$AE31),"xx") -> xx | U68: =IF($C68="Ja",INDEX(Grundkarakterer!Y$8:Y$41,$AE31),"xx") -> xx | V68: =IF($C68="Ja",INDEX(Grundkarakterer!Z$8:Z$41,$AE31),"xx") -> xx | W68: =IF($C68="Ja",INDEX(Grundkarakterer!AA$8:AA$41,$AE31),"xx") -> xx | X68: =IF($C68="Ja",INDEX(Grundkarakterer!AB$8:AB$41,$AE31),"xx") -> xx | Y68: =IF($C68="Ja",INDEX(Grundkarakterer!AC$8:AC$41,$AE31),"xx") -> xx | Z68: =IF($C68="Ja",INDEX(Grundkarakterer!AD$8:AD$41,$AE31),"xx") -> xx | AA68: =IF($C68="Ja",INDEX(Grundkarakterer!AE$8:AE$41,$AE31),"xx") -> xx | AB68: =IF($C68="Ja",INDEX(Grundkarakterer!AF$8:AF$41,$AE31),"xx") -> xx | AC68: =IF($C68="Ja",INDEX(Grundkarakterer!AG$8:AG$41,$AE31),"xx") -> xx | AD68: =IF($C68="Ja",INDEX(Grundkarakterer!AH$8:AH$41,$AE31),"xx") -> xx | AE68: =IF($C68="Ja",INDEX(Grundkarakterer!AI$8:AI$41,$AE31),"xx") -> xx | AF68: =IF($C68="Ja",INDEX(Grundkarakterer!M$8:M$41,$AE31),"xx") -> xx
A69: 30 | B69: =INDEX(Grundkarakterer!A$8:A$41,AE32) -> 30 | C69: Ja | D69: =IF(C69="Ja",INDEX(Grundkarakterer!B$8:B$41,AE32),"xx") -> Olieræddike og vintervikke | E69: =IF(C69="Ja",INDEX(Grundkarakterer!C$8:C$41,$AE32),"xx") -> 1. Vintersæd | F69: =IF(C69="Ja",INDEX(Grundkarakterer!D$8:D$41,$AE32),"xx") -> 1. Ved etablering af primærafgrøde | G69: =IF(C69="Ja",INDEX(Grundkarakterer!#REF!,$AE32),"xx") ->  | H69: =IF($C69="Ja",IF($D$9=1,INDEX(Grundkarakterer!E$8:E$41,$AE32),IF(AND($D$9=2,$D$20=1),INDEX(Grundkarakterer!H$8:H$41,$AE32),IF(AND($D$9=2,$D$20<>1),INDEX(Grundkarakterer!F$8:F$41,$AE32),IF(AND($D$9=3,$D$20=1),INDEX(Grundkarakterer!I$8:I$41,$AE32),IF(AND($D$9=3,$D$20<>1),INDEX(Grundkarakterer!G$8:G$41,$AE32),IF($D$9=4,INDEX(Grundkarakterer!J$8:J$41,$AE32),IF($D$9=5,INDEX(Grundkarakterer!K$8:K$41,$AE32),"Fejl"))))))),"xx") -> 20. august | I69: =IF($C69="Ja",INDEX(Grundkarakterer!L$8:L$41,$AE32),"xx") -> -828 | J69: =IF($C69="Ja",INDEX(Grundkarakterer!N$8:N$41,$AE32),"xx") -> 1 | K69: =IF($C69="Ja",INDEX(Grundkarakterer!O$8:O$41,$AE32),"xx") -> 0 | L69: =IF($C69="Ja",INDEX(Grundkarakterer!P$8:P$41,$AE32),"xx") -> 0 | M69: =IF($C69="Ja",INDEX(Grundkarakterer!Q$8:Q$41,$AE32),"xx") -> 0 | N69: =IF($C69="Ja",INDEX(Grundkarakterer!R$8:R$41,$AE32),"xx") -> 1 | O69: =IF($C69="Ja",INDEX(Grundkarakterer!S$8:S$41,$AE32),"xx") -> 1 | P69: =IF($C69="Ja",INDEX(Grundkarakterer!T$8:T$41,$AE32),"xx") -> 1 | Q69: =IF($C69="Ja",INDEX(Grundkarakterer!U$8:U$41,$AE32),"xx") -> 0 | R69: =IF($C69="Ja",INDEX(Grundkarakterer!V$8:V$41,$AE32),"xx") -> 0 | S69: =IF($C69="Ja",INDEX(Grundkarakterer!W$8:W$41,$AE32),"xx") -> 0 | T69: =IF($C69="Ja",INDEX(Grundkarakterer!X$8:X$41,$AE32),"xx") -> 3 | U69: =IF($C69="Ja",INDEX(Grundkarakterer!Y$8:Y$41,$AE32),"xx") -> 1 | V69: =IF($C69="Ja",INDEX(Grundkarakterer!Z$8:Z$41,$AE32),"xx") -> 3 | W69: =IF($C69="Ja",INDEX(Grundkarakterer!AA$8:AA$41,$AE32),"xx") -> 3 | X69: =IF($C69="Ja",INDEX(Grundkarakterer!AB$8:AB$41,$AE32),"xx") -> 3 | Y69: =IF($C69="Ja",INDEX(Grundkarakterer!AC$8:AC$41,$AE32),"xx") -> 2 | Z69: =IF($C69="Ja",INDEX(Grundkarakterer!AD$8:AD$41,$AE32),"xx") -> 0 | AA69: =IF($C69="Ja",INDEX(Grundkarakterer!AE$8:AE$41,$AE32),"xx") -> 0 | AB69: =IF($C69="Ja",INDEX(Grundkarakterer!AF$8:AF$41,$AE32),"xx") -> 0 | AC69: =IF($C69="Ja",INDEX(Grundkarakterer!AG$8:AG$41,$AE32),"xx") -> 0 | AD69: =IF($C69="Ja",INDEX(Grundkarakterer!AH$8:AH$41,$AE32),"xx") -> 30 | AE69: =IF($C69="Ja",INDEX(Grundkarakterer!AI$8:AI$41,$AE32),"xx") -> 0 | AF69: =IF($C69="Ja",INDEX(Grundkarakterer!M$8:M$41,$AE32),"xx") -> 52
A70: 31 | B70: =INDEX(Grundkarakterer!A$8:A$41,AE33) -> 31 | C70: Ja | D70: =IF(C70="Ja",INDEX(Grundkarakterer!B$8:B$41,AE33),"xx") -> Hvidkløver/alm. rajgræs | E70: =IF(C70="Ja",INDEX(Grundkarakterer!C$8:C$41,$AE33),"xx") -> 1. Vintersæd | F70: =IF(C70="Ja",INDEX(Grundkarakterer!D$8:D$41,$AE33),"xx") -> 1. Ved etablering af primærafgrøde | G70: =IF(C70="Ja",INDEX(Grundkarakterer!#REF!,$AE33),"xx") ->  | H70: =IF($C70="Ja",IF($D$9=1,INDEX(Grundkarakterer!E$8:E$41,$AE33),IF(AND($D$9=2,$D$20=1),INDEX(Grundkarakterer!H$8:H$41,$AE33),IF(AND($D$9=2,$D$20<>1),INDEX(Grundkarakterer!F$8:F$41,$AE33),IF(AND($D$9=3,$D$20=1),INDEX(Grundkarakterer!I$8:I$41,$AE33),IF(AND($D$9=3,$D$20<>1),INDEX(Grundkarakterer!G$8:G$41,$AE33),IF($D$9=4,INDEX(Grundkarakterer!J$8:J$41,$AE33),IF($D$9=5,INDEX(Grundkarakterer!K$8:K$41,$AE33),"Fejl"))))))),"xx") -> 1. august | I70: =IF($C70="Ja",INDEX(Grundkarakterer!L$8:L$41,$AE33),"xx") -> -185 | J70: =IF($C70="Ja",INDEX(Grundkarakterer!N$8:N$41,$AE33),"xx") -> 1 | K70: =IF($C70="Ja",INDEX(Grundkarakterer!O$8:O$41,$AE33),"xx") -> 0 | L70: =IF($C70="Ja",INDEX(Grundkarakterer!P$8:P$41,$AE33),"xx") -> 0 | M70: =IF($C70="Ja",INDEX(Grundkarakterer!Q$8:Q$41,$AE33),"xx") -> 1 | N70: =IF($C70="Ja",INDEX(Grundkarakterer!R$8:R$41,$AE33),"xx") -> 1 | O70: =IF($C70="Ja",INDEX(Grundkarakterer!S$8:S$41,$AE33),"xx") -> 1 | P70: =IF($C70="Ja",INDEX(Grundkarakterer!T$8:T$41,$AE33),"xx") -> 1 | Q70: =IF($C70="Ja",INDEX(Grundkarakterer!U$8:U$41,$AE33),"xx") -> 0 | R70: =IF($C70="Ja",INDEX(Grundkarakterer!V$8:V$41,$AE33),"xx") -> 3 | S70: =IF($C70="Ja",INDEX(Grundkarakterer!W$8:W$41,$AE33),"xx") -> 3 | T70: =IF($C70="Ja",INDEX(Grundkarakterer!X$8:X$41,$AE33),"xx") -> 2 | U70: =IF($C70="Ja",INDEX(Grundkarakterer!Y$8:Y$41,$AE33),"xx") -> 1 | V70: =IF($C70="Ja",INDEX(Grundkarakterer!Z$8:Z$41,$AE33),"xx") -> 3 | W70: =IF($C70="Ja",INDEX(Grundkarakterer!AA$8:AA$41,$AE33),"xx") -> 0 | X70: =IF($C70="Ja",INDEX(Grundkarakterer!AB$8:AB$41,$AE33),"xx") -> 1 | Y70: =IF($C70="Ja",INDEX(Grundkarakterer!AC$8:AC$41,$AE33),"xx") -> 3 | Z70: =IF($C70="Ja",INDEX(Grundkarakterer!AD$8:AD$41,$AE33),"xx") -> 0 | AA70: =IF($C70="Ja",INDEX(Grundkarakterer!AE$8:AE$41,$AE33),"xx") -> 0 | AB70: =IF($C70="Ja",INDEX(Grundkarakterer!AF$8:AF$41,$AE33),"xx") -> 3 | AC70: =IF($C70="Ja",INDEX(Grundkarakterer!AG$8:AG$41,$AE33),"xx") -> 0 | AD70: =IF($C70="Ja",INDEX(Grundkarakterer!AH$8:AH$41,$AE33),"xx") -> 31 | AE70: =IF($C70="Ja",INDEX(Grundkarakterer!AI$8:AI$41,$AE33),"xx") -> 0 | AF70: =IF($C70="Ja",INDEX(Grundkarakterer!M$8:M$41,$AE33),"xx") -> -
A71: 32 | B71: =INDEX(Grundkarakterer!A$8:A$41,AE34) -> 32 | C71: Ja | D71: =IF(C71="Ja",INDEX(Grundkarakterer!B$8:B$41,AE34),"xx") -> Rødkløver/strandsvingel | E71: =IF(C71="Ja",INDEX(Grundkarakterer!C$8:C$41,$AE34),"xx") -> 1. Vintersæd | F71: =IF(C71="Ja",INDEX(Grundkarakterer!D$8:D$41,$AE34),"xx") -> 1. Ved etablering af primærafgrøde | G71: =IF(C71="Ja",INDEX(Grundkarakterer!#REF!,$AE34),"xx") ->  | H71: =IF($C71="Ja",IF($D$9=1,INDEX(Grundkarakterer!E$8:E$41,$AE34),IF(AND($D$9=2,$D$20=1),INDEX(Grundkarakterer!H$8:H$41,$AE34),IF(AND($D$9=2,$D$20<>1),INDEX(Grundkarakterer!F$8:F$41,$AE34),IF(AND($D$9=3,$D$20=1),INDEX(Grundkarakterer!I$8:I$41,$AE34),IF(AND($D$9=3,$D$20<>1),INDEX(Grundkarakterer!G$8:G$41,$AE34),IF($D$9=4,INDEX(Grundkarakterer!J$8:J$41,$AE34),IF($D$9=5,INDEX(Grundkarakterer!K$8:K$41,$AE34),"Fejl"))))))),"xx") -> 1. august | I71: =IF($C71="Ja",INDEX(Grundkarakterer!L$8:L$41,$AE34),"xx") -> -1355 | J71: =IF($C71="Ja",INDEX(Grundkarakterer!N$8:N$41,$AE34),"xx") -> 1 | K71: =IF($C71="Ja",INDEX(Grundkarakterer!O$8:O$41,$AE34),"xx") -> 0 | L71: =IF($C71="Ja",INDEX(Grundkarakterer!P$8:P$41,$AE34),"xx") -> 0 | M71: =IF($C71="Ja",INDEX(Grundkarakterer!Q$8:Q$41,$AE34),"xx") -> 1 | N71: =IF($C71="Ja",INDEX(Grundkarakterer!R$8:R$41,$AE34),"xx") -> 1 | O71: =IF($C71="Ja",INDEX(Grundkarakterer!S$8:S$41,$AE34),"xx") -> 1 | P71: =IF($C71="Ja",INDEX(Grundkarakterer!T$8:T$41,$AE34),"xx") -> 1 | Q71: =IF($C71="Ja",INDEX(Grundkarakterer!U$8:U$41,$AE34),"xx") -> 0 | R71: =IF($C71="Ja",INDEX(Grundkarakterer!V$8:V$41,$AE34),"xx") -> 1 | S71: =IF($C71="Ja",INDEX(Grundkarakterer!W$8:W$41,$AE34),"xx") -> 3 | T71: =IF($C71="Ja",INDEX(Grundkarakterer!X$8:X$41,$AE34),"xx") -> 1 | U71: =IF($C71="Ja",INDEX(Grundkarakterer!Y$8:Y$41,$AE34),"xx") -> 1 | V71: =IF($C71="Ja",INDEX(Grundkarakterer!Z$8:Z$41,$AE34),"xx") -> 3 | W71: =IF($C71="Ja",INDEX(Grundkarakterer!AA$8:AA$41,$AE34),"xx") -> 0 | X71: =IF($C71="Ja",INDEX(Grundkarakterer!AB$8:AB$41,$AE34),"xx") -> 1 | Y71: =IF($C71="Ja",INDEX(Grundkarakterer!AC$8:AC$41,$AE34),"xx") -> 3 | Z71: =IF($C71="Ja",INDEX(Grundkarakterer!AD$8:AD$41,$AE34),"xx") -> 0 | AA71: =IF($C71="Ja",INDEX(Grundkarakterer!AE$8:AE$41,$AE34),"xx") -> 0 | AB71: =IF($C71="Ja",INDEX(Grundkarakterer!AF$8:AF$41,$AE34),"xx") -> 3 | AC71: =IF($C71="Ja",INDEX(Grundkarakterer!AG$8:AG$41,$AE34),"xx") -> 0 | AD71: =IF($C71="Ja",INDEX(Grundkarakterer!AH$8:AH$41,$AE34),"xx") -> 32 | AE71: =IF($C71="Ja",INDEX(Grundkarakterer!AI$8:AI$41,$AE34),"xx") -> 0 | AF71: =IF($C71="Ja",INDEX(Grundkarakterer!M$8:M$41,$AE34),"xx") -> -
A72: 33 | B72: =INDEX(Grundkarakterer!A$8:A$41,AE35) -> 33 | C72: Ja | D72: =IF(C72="Ja",INDEX(Grundkarakterer!B$8:B$41,AE35),"xx") -> Vintervikke/vinterrug | E72: =IF(C72="Ja",INDEX(Grundkarakterer!C$8:C$41,$AE35),"xx") -> 1. Vintersæd | F72: =IF(C72="Ja",INDEX(Grundkarakterer!D$8:D$41,$AE35),"xx") -> 1. Ved etablering af primærafgrøde | G72: =IF(C72="Ja",INDEX(Grundkarakterer!#REF!,$AE35),"xx") ->  | H72: =IF($C72="Ja",IF($D$9=1,INDEX(Grundkarakterer!E$8:E$41,$AE35),IF(AND($D$9=2,$D$20=1),INDEX(Grundkarakterer!H$8:H$41,$AE35),IF(AND($D$9=2,$D$20<>1),INDEX(Grundkarakterer!F$8:F$41,$AE35),IF(AND($D$9=3,$D$20=1),INDEX(Grundkarakterer!I$8:I$41,$AE35),IF(AND($D$9=3,$D$20<>1),INDEX(Grundkarakterer!G$8:G$41,$AE35),IF($D$9=4,INDEX(Grundkarakterer!J$8:J$41,$AE35),IF($D$9=5,INDEX(Grundkarakterer!K$8:K$41,$AE35),"Fejl"))))))),"xx") -> 20. august | I72: =IF($C72="Ja",INDEX(Grundkarakterer!L$8:L$41,$AE35),"xx") -> -969 | J72: =IF($C72="Ja",INDEX(Grundkarakterer!N$8:N$41,$AE35),"xx") -> 1 | K72: =IF($C72="Ja",INDEX(Grundkarakterer!O$8:O$41,$AE35),"xx") -> 0 | L72: =IF($C72="Ja",INDEX(Grundkarakterer!P$8:P$41,$AE35),"xx") -> 0 | M72: =IF($C72="Ja",INDEX(Grundkarakterer!Q$8:Q$41,$AE35),"xx") -> 1 | N72: =IF($C72="Ja",INDEX(Grundkarakterer!R$8:R$41,$AE35),"xx") -> 1 | O72: =IF($C72="Ja",INDEX(Grundkarakterer!S$8:S$41,$AE35),"xx") -> 1 | P72: =IF($C72="Ja",INDEX(Grundkarakterer!T$8:T$41,$AE35),"xx") -> 1 | Q72: =IF($C72="Ja",INDEX(Grundkarakterer!U$8:U$41,$AE35),"xx") -> 0 | R72: =IF($C72="Ja",INDEX(Grundkarakterer!V$8:V$41,$AE35),"xx") -> 0 | S72: =IF($C72="Ja",INDEX(Grundkarakterer!W$8:W$41,$AE35),"xx") -> 0 | T72: =IF($C72="Ja",INDEX(Grundkarakterer!X$8:X$41,$AE35),"xx") -> 3 | U72: =IF($C72="Ja",INDEX(Grundkarakterer!Y$8:Y$41,$AE35),"xx") -> 1 | V72: =IF($C72="Ja",INDEX(Grundkarakterer!Z$8:Z$41,$AE35),"xx") -> 3 | W72: =IF($C72="Ja",INDEX(Grundkarakterer!AA$8:AA$41,$AE35),"xx") -> 0 | X72: =IF($C72="Ja",INDEX(Grundkarakterer!AB$8:AB$41,$AE35),"xx") -> 3 | Y72: =IF($C72="Ja",INDEX(Grundkarakterer!AC$8:AC$41,$AE35),"xx") -> 3 | Z72: =IF($C72="Ja",INDEX(Grundkarakterer!AD$8:AD$41,$AE35),"xx") -> 0 | AA72: =IF($C72="Ja",INDEX(Grundkarakterer!AE$8:AE$41,$AE35),"xx") -> 0 | AB72: =IF($C72="Ja",INDEX(Grundkarakterer!AF$8:AF$41,$AE35),"xx") -> 3 | AC72: =IF($C72="Ja",INDEX(Grundkarakterer!AG$8:AG$41,$AE35),"xx") -> 0 | AD72: =IF($C72="Ja",INDEX(Grundkarakterer!AH$8:AH$41,$AE35),"xx") -> 33 | AE72: =IF($C72="Ja",INDEX(Grundkarakterer!AI$8:AI$41,$AE35),"xx") -> 0 | AF72: =IF($C72="Ja",INDEX(Grundkarakterer!M$8:M$41,$AE35),"xx") -> -529
A73: 34 | B73: =INDEX(Grundkarakterer!A$8:A$41,AE36) -> 34 | C73: Ja | D73: =IF(C73="Ja",INDEX(Grundkarakterer!B$8:B$41,AE36),"xx") -> Kløvergræs (blanding) | E73: =IF(C73="Ja",INDEX(Grundkarakterer!C$8:C$41,$AE36),"xx") -> 1. Vintersæd | F73: =IF(C73="Ja",INDEX(Grundkarakterer!D$8:D$41,$AE36),"xx") -> 1. Ved etablering af primærafgrøde | G73: =IF(C73="Ja",INDEX(Grundkarakterer!#REF!,$AE36),"xx") ->  | H73: =IF($C73="Ja",IF($D$9=1,INDEX(Grundkarakterer!E$8:E$41,$AE36),IF(AND($D$9=2,$D$20=1),INDEX(Grundkarakterer!H$8:H$41,$AE36),IF(AND($D$9=2,$D$20<>1),INDEX(Grundkarakterer!F$8:F$41,$AE36),IF(AND($D$9=3,$D$20=1),INDEX(Grundkarakterer!I$8:I$41,$AE36),IF(AND($D$9=3,$D$20<>1),INDEX(Grundkarakterer!G$8:G$41,$AE36),IF($D$9=4,INDEX(Grundkarakterer!J$8:J$41,$AE36),IF($D$9=5,INDEX(Grundkarakterer!K$8:K$41,$AE36),"Fejl"))))))),"xx") -> 1. august | I73: =IF($C73="Ja",INDEX(Grundkarakterer!L$8:L$41,$AE36),"xx") -> -2145 | J73: =IF($C73="Ja",INDEX(Grundkarakterer!N$8:N$41,$AE36),"xx") -> 1 | K73: =IF($C73="Ja",INDEX(Grundkarakterer!O$8:O$41,$AE36),"xx") -> 0 | L73: =IF($C73="Ja",INDEX(Grundkarakterer!P$8:P$41,$AE36),"xx") -> 0 | M73: =IF($C73="Ja",INDEX(Grundkarakterer!Q$8:Q$41,$AE36),"xx") -> 1 | N73: =IF($C73="Ja",INDEX(Grundkarakterer!R$8:R$41,$AE36),"xx") -> 1 | O73: =IF($C73="Ja",INDEX(Grundkarakterer!S$8:S$41,$AE36),"xx") -> 1 | P73: =IF($C73="Ja",INDEX(Grundkarakterer!T$8:T$41,$AE36),"xx") -> 1 | Q73: =IF($C73="Ja",INDEX(Grundkarakterer!U$8:U$41,$AE36),"xx") -> 0 | R73: =IF($C73="Ja",INDEX(Grundkarakterer!V$8:V$41,$AE36),"xx") -> 3 | S73: =IF($C73="Ja",INDEX(Grundkarakterer!W$8:W$41,$AE36),"xx") -> 3 | T73: =IF($C73="Ja",INDEX(Grundkarakterer!X$8:X$41,$AE36),"xx") -> 3 | U73: =IF($C73="Ja",INDEX(Grundkarakterer!Y$8:Y$41,$AE36),"xx") -> 1 | V73: =IF($C73="Ja",INDEX(Grundkarakterer!Z$8:Z$41,$AE36),"xx") -> 3 | W73: =IF($C73="Ja",INDEX(Grundkarakterer!AA$8:AA$41,$AE36),"xx") -> 0 | X73: =IF($C73="Ja",INDEX(Grundkarakterer!AB$8:AB$41,$AE36),"xx") -> 1 | Y73: =IF($C73="Ja",INDEX(Grundkarakterer!AC$8:AC$41,$AE36),"xx") -> 3 | Z73: =IF($C73="Ja",INDEX(Grundkarakterer!AD$8:AD$41,$AE36),"xx") -> 0 | AA73: =IF($C73="Ja",INDEX(Grundkarakterer!AE$8:AE$41,$AE36),"xx") -> 0 | AB73: =IF($C73="Ja",INDEX(Grundkarakterer!AF$8:AF$41,$AE36),"xx") -> 3 | AC73: =IF($C73="Ja",INDEX(Grundkarakterer!AG$8:AG$41,$AE36),"xx") -> 0 | AD73: =IF($C73="Ja",INDEX(Grundkarakterer!AH$8:AH$41,$AE36),"xx") -> 34 | AE73: =IF($C73="Ja",INDEX(Grundkarakterer!AI$8:AI$41,$AE36),"xx") -> 0 | AF73: =IF($C73="Ja",INDEX(Grundkarakterer!M$8:M$41,$AE36),"xx") -> -

Sheet Grundkarakterer (hidden)
A1: Såtidspunkt | C1: 1=sammen med
C2: 2=før høst
C3: 3=efter høst
E6: Seneste såtidspunkt Pligtige efterafgrøder | F6: Seneste såtidspunkt Pligtige efterafgrøder og MFO | G6: Seneste såtidspunkt MFO blanding | H6: Seneste såtidspunkt Pligtige efterafgrøder og MFO som græsudlæg i renbestand | I6: Seneste såtidspunkt MFO græsudlæg i renbestand | J6: Seneste såtidspunkt Mellemafgrøder | K6: Seneste såtidspunkt Frivillige | L6: Omkostninger | M6: Nettoomkostninger | N6: Pligtig efterafgrøde | O6: Pligtig mellemafgrøde | P6: MFO-efterafgrøde i blanding | Q6: MFO-udlæg | R6: Miljø-efterafgrøder | S6: Frivillige efterafgrøder | T6: Grønne marker (2,3 DE-brug) | U6: Egnet til udlæg efterår i vinterkorn | V6: Egnet til udlæg forår | W6: Egnet til udsåning 2-3 uger før høst | X6: Egnet til udsåning efter tidlig høst (10. august) | Y6: Kvælstof-fikserende | Z6: Stor kvælstof-eftervirkning | AA6: Hurtig og dyb rodvækst på lerjord | AB6: Er afgrøden robust mod ukrudtsmidler? | AC6: Der findes sorter, der ikke opformerer kålbrok | AD6: Der findes sorter, der er sanerende for roecystenematoder
E7: Seneste såtidspunkt Pligtige efterafgrøder | F7: Seneste såtidspunkt Pligtige efterafgrøder og MFO | G7: Seneste såtidspunkt MFO blanding | H7: Seneste såtidspunkt Pligtige efterafgrøder og MFO som græsudlæg i renbestand | I7: Seneste såtidspunkt MFO græsudlæg i renbestand | J7: Seneste såtidspunkt Mellemafgrøder | K7: Seneste såtidspunkt Frivillige | L7: Omkostninger | M7: Nettoomkostninger | N7: Pligtig efterafgrøde | O7: Pligtig mellemafgrøde | P7: MFO-efterafgrøde i blanding | Q7: MFO-udlæg | R7: Miljø-efterafgrøder | S7: Frivillige efterafgrøder | T7: Grønne marker (2,3 DE-brug) | U7: Egnet til udlæg efterår i vinterkorn | V7: Egnet til udlæg forår | W7: Egnet til udsåning ved sidste radrensning | X7: Egnet til udsåning efter tidlig høst (10. august) | Y7: Kvælstof-fikserende | Z7: Stor kvælstof-eftervirkning | AA7: Hurtig og dyb rodvækst på lerjord | AB7: Er afgrøden robust mod ukrudtsmidler? | AC7: Der findes sorter, der ikke opformerer kålbrok | AD7: Der findes sorter, der er sanerende for roecystenematoder | AF7: Vinterfasthed | AG7: Anvendelse af egen udsæd | AH7: Tiebreak
A8: 1 | B8: Alm. rajgræs, dipl. | C8: 1. Vintersæd | D8: 1. Ved etablering af primærafgrøde | E8: 1.august | F8: 1.august | G8: 1. august | H8: 31. maj | I8: 31. maj | K8: 20.aug | L8: ='Hjælpe beregning'!AB12*-1 -> -185 | M8: ='Hjælpe beregning'!AC12 -> - | N8: 1 | O8: 0 | P8: 1 | Q8: 1 | R8: 1 | S8: 1 | T8: 1 | U8: 0 | V8: 3 | W8: 3 | X8: 2 | Y8: 0 | Z8: 1 | AA8: 0 | AB8: 2 | AC8: 3 | AD8: 0 | AF8: 3 | AG8: 0 | AH8: 1
A9: 2 | B9: Blanding uden bælgsæd overvintrene | C9: 1. Vintersæd | D9: 1. Ved etablering af primærafgrøde | E9: Ikke relevant | F9: Ikke relevant | G9: Ikke relevant | H9: Ikke relevant | I9: 31. maj | K9: 10. aug | L9: ='Hjælpe beregning'!AB13*-1 -> -1018.5 | M9: ='Hjælpe beregning'!AC13 -> -908.5 | N9: 0 | O9: 0 | P9: 0 | Q9: 1 | R9: 1 | S9: 1 | T9: 1 | U9: 0 | V9: 0 | W9: 2 | X9: 2 | Y9: 0 | Z9: 1 | AA9: 2 | AB9: 0 | AC9: 3 | AD9: 0 | AF9: 3 | AG9: 0 | AH9: 2
A10: 3 | B10: Vårbyg /Vikke /Gul Sennep | E10: 20. august | F10: 20. august | G10: Ikke relevant | H10: Ikke relevant | I10: Ikke relevant | K10: 10. aug | L10: ='Hjælpe beregning'!AB14*-1 -> -788.5 | M10: ='Hjælpe beregning'!AC14 -> -348.5 | N10: 1 | O10: 0 | P10: 0 | Q10: 0 | R10: 1 | S10: 1 | T10: 1 | U10: 0 | V10: 0 | W10: 0 | X10: 3 | Y10: 1 | Z10: 2 | AA10: 1 | AB10: 0 | AC10: 3 | AD10: 0 | AF10: 1 | AG10: 0 | AH10: 3
A11: 4 | B11: Rajgræs/Cichorie/hvidkløver | C11: 1. Vintersæd | D11: 1. Ved etablering af primærafgrøde | E11: Ikke relevant | F11: Ikke relevant | G11: Ikke relevant | H11: Ikke relevant | I11: 31. maj | K11: 30. maj | L11: ='Hjælpe beregning'!AB15*-1 -> -185 | M11: ='Hjælpe beregning'!AC15 -> - | N11: 0 | O11: 0 | P11: 0 | Q11: 1 | R11: 1 | S11: 1 | T11: 1 | U11: 1 | V11: 3 | W11: 2 | X11: 0 | Y11: 1 | Z11: 1 | AA11: 2 | AB11: 0 | AC11: 3 | AD11: 0 | AF11: 3 | AG11: 0 | AH11: 4
A12: 5 | B12: Rødkløver | C12: 1. Vintersæd | D12: 1. Ved etablering af primærafgrøde | E12: Ikke relevant | F12: Ikke relevant | G12: Ikke relevant | H12: Ikke relevant | I12: 31. maj | K12: 30. maj | L12: ='Hjælpe beregning'!AB16*-1 -> -185 | M12: ='Hjælpe beregning'!AC16 -> - | N12: 0 | O12: 0 | P12: 0 | Q12: 1 | R12: 1 | S12: 1 | T12: 1 | U12: 1 | V12: 3 | W12: 2 | X12: 0 | Y12: 1 | Z12: 1 | AA12: 0 | AB12: 0 | AC12: 3 | AD12: 0 | AF12: 3 | AG12: 0 | AH12: 5
A13: 6 | B13: Vinterrug/fodervikke/olieræddike | C13: 1. Vintersæd | D13: 1. Ved etablering af primærafgrøde | E13: Ikke relevant | F13: Ikke relevant | G13: Ikke relevant | H13: Ikke relevant | I13: Ikke relevant | K13: 10. aug | L13: ='Hjælpe beregning'!AB17*-1 -> -879 | M13: ='Hjælpe beregning'!AC17 -> -439 | N13: 0 | O13: 0 | P13: 0 | Q13: 0 | R13: 1 | S13: 1 | T13: 1 | U13: 0 | V13: 2 | W13: 2 | X13: 0 | Y13: 1 | Z13: 1 | AA13: 3 | AB13: 0 | AC13: 3 | AD13: 0 | AF13: 1 | AG13: 0 | AH13: 6
A14: 7 | B14: Triticale/Gul Sennep | C14: 1. Vintersæd | D14: 1. Ved etablering af primærafgrøde | E14: 1. august | F14: 1. august | G14: 1. august | H14: Ikke relevant | I14: Ikke relevant | K14: 10. aug | L14: ='Hjælpe beregning'!AB18*-1 -> -647 | M14: ='Hjælpe beregning'!AC18 -> - | N14: 1 | O14: 0 | P14: 0 | Q14: 0 | R14: 1 | S14: 1 | T14: 1 | U14: 0 | V14: 3 | W14: 1 | X14: 1 | Y14: 0 | Z14: 1 | AA14: 0 | AB14: 0 | AC14: 3 | AD14: 0 | AF14: 0 | AG14: 0 | AH14: 7
A15: 8 | B15: Frøgræs, udtjent | C15: 1. Vintersæd | D15: 1. Ved etablering af primærafgrøde | E15: relevant | F15: ikke relevant | G15: Ikke relevant | H15: Ikke relevant | I15: Ikke relevant | J15: Ikke relevant | K15: Valgfrit | L15: ='Hjælpe beregning'!AB19*-1 -> -185 | M15: ='Hjælpe beregning'!AC19 -> - | N15: 1 | O15: 1 | P15: 0 | Q15: 0 | R15: 1 | S15: 1 | T15: 1 | U15: 0 | V15: 0 | W15: 0 | X15: 0 | Y15: 0 | Z15: 1 | AA15: 0 | AB15: 3 | AC15: 3 | AD15: 0 | AF15: 3 | AG15: 0 | AH15: 8
A16: 9 | B16: Gul sennep | C16: 1. Vintersæd | D16: 1. Ved etablering af primærafgrøde | E16: 20. august | F16: 20. august | G16: 20. august | H16: Ikke relevant | I16: Ikke relevant | J16: 20. juli | K16: 10. aug | L16: ='Hjælpe beregning'!AB20*-1 -> -503 | M16: ='Hjælpe beregning'!AC20 -> 377 | N16: 1 | O16: 1 | P16: 1 | Q16: 0 | R16: 1 | S16: 1 | T16: 1 | U16: 0 | V16: 0 | W16: 0 | X16: 3 | Y16: 0 | Z16: 2 | AA16: 2 | AB16: 3 | AC16: 0 | AD16: 3 | AF16: 0 | AG16: 0 | AH16: 9
A17: 10 | B17: Olieræddike | C17: 1. Vintersæd | D17: 1. Ved etablering af primærafgrøde | E17: 20. august | F17: 20. august | G17: 20. august | H17: Ikke relevant | I17: Ikke relevant | J17: 20. juli | K17: 10. aug | L17: ='Hjælpe beregning'!AB21*-1 -> -649 | M17: ='Hjælpe beregning'!AC21 -> 231 | N17: 1 | O17: 1 | P17: 1 | Q17: 0 | R17: 1 | S17: 1 | T17: 1 | U17: 0 | V17: 0 | W17: 0 | X17: 3 | Y17: 0 | Z17: 2 | AA17: 3 | AB17: 3 | AC17: 2 | AD17: 3 | AF17: 0 | AG17: 0 | AH17: 10
A18: 11 | B18: Blanding med bælsæd udvintrene | E18: Ikke relevant | F18: Ikke relevant | G18: Ikke relevant | H18: Ikke relevant | I18: 31. maj | K18: 10. aug | L18: ='Hjælpe beregning'!AB22*-1 -> -3517 | M18: ='Hjælpe beregning'!AC22 -> -2637 | N18: 0 | O18: 0 | P18: 0 | Q18: 1 | R18: 1 | S18: 1 | T18: 1 | U18: 0 | V18: 0 | W18: 1 | X18: 2 | Y18: 1 | Z18: 2 | AA18: 3 | AB18: 0 | AC18: 0 | AD18: 0 | AF18: 0 | AG18: 0 | AH18: 11
A19: 12 | B19: Vinterraps , linie | C19: 1. Vintersæd | D19: 1. Ved etablering af primærafgrøde | E19: 20. august | F19: 20. august | G19: 20. august | H19: Ikke relevant | I19: Ikke relevant | K19: 10. aug | L19: ='Hjælpe beregning'!AB23*-1 -> -1136 | M19: ='Hjælpe beregning'!AC23 -> -476 | N19: 1 | O19: 0 | P19: 1 | Q19: 0 | R19: 1 | S19: 1 | T19: 1 | U19: 0 | V19: 0 | W19: 1 | X19: 2 | Y19: 0 | Z19: 2 | AA19: 3 | AB19: 3 | AC19: 0 | AD19: 0 | AF19: 3 | AG19: 1 | AH19: 12
A20: 13 | B20: Foderradise (Strukturator) | E20: 20. august | F20: 20. august | G20: 20. august | H20: Ikke relevant | I20: Ikke relevant | K20: 10. aug | L20: ='Hjælpe beregning'!AB24*-1 -> -913 | M20: ='Hjælpe beregning'!AC24 -> -33 | N20: 1 | O20: 0 | P20: 1 | Q20: 0 | R20: 1 | S20: 1 | T20: 1 | U20: 0 | V20: 0 | W20: 1 | X20: 3 | Y20: 0 | Z20: 2 | AA20: 3 | AB20: 3 | AC20: 2 | AD20: 0 | AF20: 0 | AG20: 0 | AH20: 13
A21: 14 | B21: Havre | C21: 1. Vintersæd | D21: 1. Ved etablering af primærafgrøde | E21: 20. august | F21: 20. august | G21: 20. august | H21: Ikke relevant | I21: Ikke relevant | K21: 20. aug | L21: ='Hjælpe beregning'!AB25*-1 -> -877 | M21: ='Hjælpe beregning'!AC25 -> -657 | N21: 1 | O21: 0 | P21: 1 | Q21: 0 | R21: 1 | S21: 1 | T21: 1 | U21: 0 | V21: 0 | W21: 1 | X21: 3 | Y21: 0 | Z21: 1 | AA21: 1 | AB21: 3 | AC21: 3 | AD21: 0 | AF21: 1 | AG21: 1 | AH21: 14
A22: 15 | B22: Boghvede | E22: Ikke relevant | F22: Ikke relevant | G22: Ikke relevant | H22: Ikke relevant | I22: Ikke relevant | K22: 10. aug | L22: ='Hjælpe beregning'!AB26*-1 -> -1952 | M22: ='Hjælpe beregning'!AC26 -> -1732 | N22: 0 | O22: 0 | P22: 0 | Q22: 0 | R22: 0 | S22: 0 | T22: 0 | U22: 0 | V22: 0 | W22: 0 | X22: 0 | Y22: 0 | Z22: 0 | AA22: 0 | AB22: 0 | AC22: 0 | AD22: 0 | AF22: 0 | AG22: 0 | AH22: 0
A23: 16 | B23: Vinterrybs | C23: 1. Vintersæd | D23: 1. Ved etablering af primærafgrøde | E23: 20. august | F23: 20. august | G23: 20. august | H23: Ikke relevant | I23: Ikke relevant | K23: 10. aug | L23: ='Hjælpe beregning'!AB27*-1 -> -1513 | M23: ='Hjælpe beregning'!AC27 -> -633 | N23: 1 | O23: 0 | P23: 1 | Q23: 0 | R23: 1 | S23: 1 | T23: 1 | U23: 0 | V23: 0 | W23: 1 | X23: 3 | Y23: 0 | Z23: 1 | AA23: 2 | AB23: 0 | AC23: 3 | AD23: 0 | AF23: 3 | AG23: 1 | AH23: 16
A24: 17 | B24: Gul Lupin | E24: Ikke relevant | F24: Ikke relevant | G24: Ikke relevant | H24: Ikke relevant | I24: Ikke relevant | K24: 10. aug | L24: ='Hjælpe beregning'!AB28*-1 -> -716 | M24: ='Hjælpe beregning'!AC28 -> -56 | N24: 0 | O24: 0 | P24: 0 | Q24: 0 | R24: 0 | S24: 0 | T24: 0 | U24: 0 | V24: 0 | W24: 0 | X24: 0 | Y24: 1 | Z24: 0 | AA24: 1 | AB24: 0 | AC24: 0 | AD24: 0 | AF24: 0 | AG24: 0 | AH24: 0
A25: 18 | B25: Vårbyg | C25: 1. Vintersæd | D25: 1. Ved etablering af primærafgrøde | E25: 20. august | F25: 20. august | G25: 20.august | H25: ikke relevant | I25: Ikke relevant | K25: 10. aug | L25: ='Hjælpe beregning'!AB29*-1 -> -877 | M25: ='Hjælpe beregning'!AC29 -> -657 | N25: 1 | O25: 0 | P25: 1 | Q25: 0 | R25: 1 | S25: 1 | T25: 1 | U25: 0 | V25: 0 | W25: 0 | X25: 3 | Y25: 0 | Z25: 1 | AA25: 0 | AB25: 3 | AC25: 3 | AD25: 0 | AF25: 1 | AG25: 1 | AH25: 18
A26: 19 | B26: vårbyg/fodervikke | E26: Ikke relevant | F26: Ikke relevant | G26: Ikke relevant | H26: Ikke relevant | I26: Ikke relevant | K26: 10. aug | L26: ='Hjælpe beregning'!AB30*-1 -> -1519 | M26: ='Hjælpe beregning'!AC30 -> -1079 | N26: 0 | O26: 0 | P26: 0 | Q26: 0 | R26: 0 | S26: 0 | T26: 0 | U26: 0 | V26: 0 | W26: 0 | X26: 0 | Y26: 1 | Z26: 0 | AA26: 0 | AB26: 0 | AC26: 0 | AD26: 0 | AF26: 0 | AG26: 1 | AH26: 0
A27: 20 | B27: Vinterrug | E27: 20. august | F27: 20. august | G27: 20. august | H27: Ikke relevant | I27: Ikke relevant | K27: 20. aug | L27: ='Hjælpe beregning'!AB31*-1 -> -849 | M27: ='Hjælpe beregning'!AC31 -> -409 | N27: 1 | O27: 0 | P27: 1 | Q27: 0 | R27: 1 | S27: 1 | T27: 1 | U27: 0 | V27: 0 | W27: 1 | X27: 3 | Y27: 0 | Z27: 1 | AA27: 1 | AB27: 3 | AC27: 3 | AD27: 0 | AF27: 3 | AG27: 1 | AH27: 20
A28: 21 | B28: Olierædikke/gul sennep | E28: 20. august | F28: 20. august | G28: 20. august | H28: Ikke relevant | I28: Ikke relevant | K28: 10. aug | L28: ='Hjælpe beregning'!AB32*-1 -> -395 | M28: ='Hjælpe beregning'!AC32 -> 45 | N28: 1 | O28: 0 | P28: 1 | Q28: 0 | R28: 0 | S28: 0 | T28: 0 | U28: 0 | V28: 0 | W28: 0 | X28: 0 | Y28: 0 | Z28: 0 | AA28: 0 | AB28: 0 | AC28: 0 | AD28: 0 | AF28: 0 | AG28: 0 | AH28: 0
A29: 22 | B29: Blanding med bælsæd overvintrene | C29: 1. Vintersæd | D29: 1. Ved etablering af primærafgrøde | E29: Ikke relevant | F29: Ikke relevant | G29: Ikke relevant | H29: Ikke relevant | I29: 31. maj | K29: 10. aug | L29: ='Hjælpe beregning'!AB33*-1 -> -1759 | M29: ='Hjælpe beregning'!AC33 -> -1319 | N29: 0 | O29: 0 | P29: 0 | Q29: 1 | R29: 1 | S29: 1 | T29: 1 | U29: 0 | V29: 0 | W29: 1 | X29: 2 | Y29: 1 | Z29: 1 | AA29: 1 | AB29: 0 | AC29: 3 | AD29: 0 | AF29: 3 | AG29: 0 | AH29: 22
A30: 23 | B30: Blanding uden bælgsæd udvintrene | E30: Ikke relevant | F30: Ikke relevant | G30: Ikke relevant | H30: Ikke relevant | I30: 31. maj | K30: 10. aug | L30: ='Hjælpe beregning'!AB34*-1 -> -1269 | M30: ='Hjælpe beregning'!AC34 -> -829 | N30: 0 | O30: 0 | P30: 0 | Q30: 1 | R30: 0 | S30: 0 | T30: 0 | U30: 0 | V30: 0 | W30: 0 | X30: 1 | Y30: 0 | Z30: 1 | AA30: 1 | AB30: 0 | AC30: 3 | AD30: 0 | AF30: 0 | AG30: 0 | AH30: 23
A31: 24 | B31: Cikorie | C31: 1. Vintersæd | D31: 1. Ved etablering af primærafgrøde | E31: 1. august | F31: 1. august | G31: 1. august | H31: 1. august | I31: 31. maj | K31: 1. maj | L31: ='Hjælpe beregning'!AB35*-1 -> -185 | M31: ='Hjælpe beregning'!AC35 -> - | N31: 1 | O31: 0 | P31: 1 | Q31: 1 | R31: 1 | S31: 1 | T31: 1 | U31: 0 | V31: 3 | W31: 2 | X31: 0 | Y31: 0 | Z31: 2 | AA31: 3 | AB31: 0 | AC31: 3 | AD31: 0 | AF31: 2 | AG31: 0 | AH31: 24
A32: 25 | B32: Honningurt | C32: 1. Vintersæd | D32: 1. Ved etablering af primærafgrøde | E32: 20. august | F32: 20. august | G32: 20. august | H32: Ikke relevant | I32: Ikke relevant | K32: 10. aug | L32: ='Hjælpe beregning'!AB36*-1 -> -2302 | M32: ='Hjælpe beregning'!AC36 -> -2082 | N32: 1 | O32: 0 | P32: 1 | Q32: 0 | R32: 1 | S32: 1 | T32: 1 | U32: 0 | V32: 0 | W32: 0 | X32: 3 | Y32: 0 | Z32: 2 | AA32: 3 | AB32: 3 | AC32: 3 | AD32: 0 | AF32: 0 | AG32: 0 | AH32: 25
A33: 26 | B33: Fodervikke | C33: 1. Vintersæd | D33: 1. Ved etablering af primærafgrøde | E33: Ikke relevant | F33: Ikke relevant | G33: Ikke relevant | H33: Ikke relevant | I33: 31. maj | K33: 10. aug | L33: ='Hjælpe beregning'!AB37*-1 -> -2413 | M33: ='Hjælpe beregning'!AC37 -> -1533 | N33: 0 | O33: 0 | P33: 0 | Q33: 1 | R33: 1 | S33: 1 | T33: 1 | U33: 0 | V33: 0 | W33: 0 | X33: 3 | Y33: 1 | Z33: 3 | AA33: 0 | AB33: 3 | AC33: 3 | AD33: 0 | AF33: 0 | AG33: 1 | AH33: 26
A34: 27 | B34: Vintervikke | C34: 1. Vintersæd | D34: 1. Ved etablering af primærafgrøde | E34: Ikke relevant | F34: Ikke relevant | G34: Ikke relevant | H34: Ikke relevant | I34: 31. maj | K34: 10. aug | L34: ='Hjælpe beregning'!AB38*-1 -> -1202 | M34: ='Hjælpe beregning'!AC38 -> -982 | N34: 0 | O34: 0 | P34: 0 | Q34: 1 | R34: 1 | S34: 1 | T34: 1 | U34: 0 | V34: 0 | W34: 0 | X34: 3 | Y34: 1 | Z34: 3 | AA34: 0 | AB34: 3 | AC34: 3 | AD34: 0 | AF34: 3 | AG34: 0 | AH34: 27
A35: 28 | B35: Alexandrinekløver | C35: 1. Vintersæd | D35: 1. Ved etablering af primærafgrøde | E35: Ikke relevant | F35: Ikke relevant | G35: Ikke relevant | H35: Ikke relevant | I35: 31. maj | K35: 10. aug | L35: ='Hjælpe beregning'!AB39*-1 -> -2002 | M35: ='Hjælpe beregning'!AC39 -> -1782 | N35: 0 | O35: 0 | P35: 0 | Q35: 1 | R35: 1 | S35: 1 | T35: 1 | U35: 0 | V35: 2 | W35: 1 | X35: 2 | Y35: 1 | Z35: 3 | AA35: 0 | AB35: 3 | AC35: 3 | AD35: 0 | AF35: 0 | AG35: 1 | AH35: 28
A36: 29 | B36: Hvidkløver | C36: 1. Vintersæd | D36: 1. Ved etablering af primærafgrøde | E36: Ikke relevant | F36: Ikke relevant | G36: Ikke relevant | H36: Ikke relevant | I36: 31. maj | K36: 30. maj | L36: ='Hjælpe beregning'!AB40*-1 -> -185 | M36: ='Hjælpe beregning'!AC40 -> - | N36: 0 | O36: 0 | P36: 0 | Q36: 1 | R36: 1 | S36: 1 | T36: 1 | U36: 0 | V36: 3 | W36: 3 | X36: 1 | Y36: 1 | Z36: 3 | AA36: 0 | AB36: 1 | AC36: 3 | AD36: 0 | AF36: 3 | AG36: 0 | AH36: 29
A37: 30 | B37: Olieræddike og vintervikke | C37: 1. Vintersæd | D37: 1. Ved etablering af primærafgrøde | E37: 20. august | F37: 20. august | G37: Ikke relevant | H37: Ikke relevant | I37: Ikke relevant | K37: 10.aug | L37: ='Hjælpe beregning'!AB41*-1 -> -828 | M37: ='Hjælpe beregning'!AC41 -> 52 | N37: 1 | O37: 0 | P37: 0 | Q37: 0 | R37: 1 | S37: 1 | T37: 1 | U37: 0 | V37: 0 | W37: 0 | X37: 3 | Y37: 1 | Z37: 3 | AA37: 3 | AB37: 3 | AC37: 2 | AD37: 0 | AF37: 0 | AG37: 0 | AH37: 30
A38: 31 | B38: Hvidkløver/alm. rajgræs | C38: 1. Vintersæd | D38: 1. Ved etablering af primærafgrøde | E38: 1. august | F38: 1. august | G38: Ikke relevant | H38: Ikke relevant | I38: 31. maj | K38: 30. maj | L38: ='Hjælpe beregning'!AB42*-1 -> -185 | M38: ='Hjælpe beregning'!AC42 -> - | N38: 1 | O38: 0 | P38: 0 | Q38: 1 | R38: 1 | S38: 1 | T38: 1 | U38: 0 | V38: 3 | W38: 3 | X38: 2 | Y38: 1 | Z38: 3 | AA38: 0 | AB38: 1 | AC38: 3 | AD38: 0 | AF38: 3 | AG38: 0 | AH38: 31
A39: 32 | B39: Rødkløver/strandsvingel | C39: 1. Vintersæd | D39: 1. Ved etablering af primærafgrøde | E39: 1. august | F39: 1. august | G39: Ikke relevant | H39: Ikke relevant | I39: 31. maj | K39: 30. maj | L39: ='Hjælpe beregning'!AB43*-1 -> -1355 | M39: ='Hjælpe beregning'!AC43 -> - | N39: 1 | O39: 0 | P39: 0 | Q39: 1 | R39: 1 | S39: 1 | T39: 1 | U39: 0 | V39: 1 | W39: 3 | X39: 1 | Y39: 1 | Z39: 3 | AA39: 0 | AB39: 1 | AC39: 3 | AD39: 0 | AF39: 3 | AG39: 0 | AH39: 32
A40: 33 | B40: Vintervikke/vinterrug | C40: 1. Vintersæd | D40: 1. Ved etablering af primærafgrøde | E40: 20. august | F40: 20. august | G40: Ikke relevant | H40: Ikke relevant | I40: 31. maj | K40: 10. aug | L40: ='Hjælpe beregning'!AB44*-1 -> -969 | M40: ='Hjælpe beregning'!AC44 -> -529 | N40: 1 | O40: 0 | P40: 0 | Q40: 1 | R40: 1 | S40: 1 | T40: 1 | U40: 0 | V40: 0 | W40: 0 | X40: 3 | Y40: 1 | Z40: 3 | AA40: 0 | AB40: 3 | AC40: 3 | AD40: 0 | AF40: 3 | AG40: 0 | AH40: 33
A41: 34 | B41: Kløvergræs (blanding) | C41: 1. Vintersæd | D41: 1. Ved etablering af primærafgrøde | E41: 1. august | F41: 1. august | G41: Ikke relevant | H41: Ikke relevant | I41: 31. maj | K41: 30. maj | L41: ='Hjælpe beregning'!AB45*-1 -> -2145 | M41: ='Hjælpe beregning'!AC45 -> - | N41: 1 | O41: 0 | P41: 0 | Q41: 1 | R41: 1 | S41: 1 | T41: 1 | U41: 0 | V41: 3 | W41: 3 | X41: 3 | Y41: 1 | Z41: 3 | AA41: 0 | AB41: 1 | AC41: 3 | AD41: 0 | AF41: 3 | AG41: 0 | AH41: 34

Sheet 1. Anders (hidden)
A1: Return
B2: Dyrkningsvejledning for efterafgrøde Anders
C4: I Vintersæd
D6: Etablering ved tidlig udlæg
E7: dgsdfh dfghdfhdfhdfghjdfgjfgjfghjfghdfhsdh dfh df hdfgh dfgh d
E8: dfh dfgh dfghjdfklghj fjhlkæsdfjhskldjg sdgj sdkfgj klsdjfgklsdj fgsd gkl
E9: fh dfh dfh fhdfgh dfghdfgh dfhdfghd fgh
E11: dfhdfghdfghfgh dfgh dfgh d
D13: Etablering før høst
E14: dgsdfh dfghdfhdfhdfghjdfgjfgjfghjfghdfhsdh dfh df hdfgh dfgh d
E15: dfh dfgh dfghjdfklghj fjhlkæsdfjhskldjg sdgj sdkfgj klsdjfgklsdj fgsd gkl
E16: fh dfh dfh fhdfgh dfghdfgh dfhdfghd fgh
E18: dfhdfghdfghfgh dfgh dfgh d
D20: Etablering efter høst
E21: dgsdfh dfghdfhdfhdfghjdfgjfgjfghjfghdfhsdh dfh df hdfgh dfgh d
E22: dfh dfgh dfghjdfklghj fjhlkæsdfjhskldjg sdgj sdkfgj klsdjfgklsdj fgsd gkl
E23: fh dfh dfh fhdfgh dfghdfgh dfhdfghd fgh
E25: dfhdfghdfghfgh dfgh dfgh d
C27: I Vårsæd
D29: Etablering ved tidlig udlæg
E30: dgsdfh dfghdfhdfhdfghjdfgjfgjfghjfghdfhsdh dfh df hdfgh dfgh d
E31: dfh dfgh dfghjdfklghj fjhlkæsdfjhskldjg sdgj sdkfgj klsdjfgklsdj fgsd gkl
E32: fh dfh dfh fhdfgh dfghdfgh dfhdfghd fgh
E34: dfhdfghdfghfgh dfgh dfgh d
D37: Etablering før høst
E38: dgsdfh dfghdfhdfhdfghjdfgjfgjfghjfghdfhsdh dfh df hdfgh dfgh d
E39: dfh dfgh dfghjdfklghj fjhlkæsdfjhskldjg sdgj sdkfgj klsdjfgklsdj fgsd gkl
E40: fh dfh dfh fhdfgh dfghdfgh dfhdfghd fgh
E42: dfhdfghdfghfgh dfgh dfgh d
D44: Etablering efter høst
E45: dgsdfh dfghdfhdfhdfghjdfgjfgjfghjfghdfhsdh dfh df hdfgh dfgh d
E46: dfh dfgh dfghjdfklghj fjhlkæsdfjhskldjg sdgj sdkfgj klsdjfgklsdj fgsd gkl
E47: fh dfh dfh fhdfgh dfghdfgh dfhdfghd fgh
E49: dfhdfghdfghfgh dfgh dfgh d
C51: I Majs
D53: Etablering ved tidlig udlæg
E54: dgsdfh dfghdfhdfhdfghjdfgjfgjfghjfghdfhsdh dfh df hdfgh dfgh d
E55: dfh dfgh dfghjdfklghj fjhlkæsdfjhskldjg sdgj sdkfgj klsdjfgklsdj fgsd gkl
E56: fh dfh dfh fhdfgh dfghdfgh dfhdfghd fgh
E58: dfhdfghdfghfgh dfgh dfgh d
D60: Etablering efter høst
E61: dgsdfh dfghdfhdfhdfghjdfgjfgjfghjfghdfhsdh dfh df hdfgh dfgh d
E62: dfh dfgh dfghjdfklghj fjhlkæsdfjhskldjg sdgj sdkfgj klsdjfgklsdj fgsd gkl
E63: fh dfh dfh fhdfgh dfghdfgh dfhdfghd fgh
E65: dfhdfghdfghfgh dfgh dfgh d

Sheet 99. Andre efterafgrøder (hidden)
A1: Return
B2: Dyrkningsvejledning for øvrige efterafgrøde
C4: I Vintersæd
D6: Etablering ved tidlig udlæg
E7: dgsdfh dfghdfhdfhdfghjdfgjfgjfghjfghdfhsdh dfh df hdfgh dfgh d
E8: dfh dfgh dfghjdfklghj fjhlkæsdfjhskldjg sdgj sdkfgj klsdjfgklsdj fgsd gkl
E9: fh dfh dfh fhdfgh dfghdfgh dfhdfghd fgh
E11: dfhdfghdfghfgh dfgh dfgh d
D13: Etablering før høst
E14: dgsdfh dfghdfhdfhdfghjdfgjfgjfghjfghdfhsdh dfh df hdfgh dfgh d
E15: dfh dfgh dfghjdfklghj fjhlkæsdfjhskldjg sdgj sdkfgj klsdjfgklsdj fgsd gkl
E16: fh dfh dfh fhdfgh dfghdfgh dfhdfghd fgh
E18: dfhdfghdfghfgh dfgh dfgh d
D20: Etablering efter høst
E21: dgsdfh dfghdfhdfhdfghjdfgjfgjfghjfghdfhsdh dfh df hdfgh dfgh d
E22: dfh dfgh dfghjdfklghj fjhlkæsdfjhskldjg sdgj sdkfgj klsdjfgklsdj fgsd gkl
E23: fh dfh dfh fhdfgh dfghdfgh dfhdfghd fgh
E25: dfhdfghdfghfgh dfgh dfgh d
C27: I Vårsæd
D29: Etablering ved tidlig udlæg
E30: dgsdfh dfghdfhdfhdfghjdfgjfgjfghjfghdfhsdh dfh df hdfgh dfgh d
E31: dfh dfgh dfghjdfklghj fjhlkæsdfjhskldjg sdgj sdkfgj klsdjfgklsdj fgsd gkl
E32: fh dfh dfh fhdfgh dfghdfgh dfhdfghd fgh
E34: dfhdfghdfghfgh dfgh dfgh d
D37: Etablering før høst
E38: dgsdfh dfghdfhdfhdfghjdfgjfgjfghjfghdfhsdh dfh df hdfgh dfgh d
E39: dfh dfgh dfghjdfklghj fjhlkæsdfjhskldjg sdgj sdkfgj klsdjfgklsdj fgsd gkl
E40: fh dfh dfh fhdfgh dfghdfgh dfhdfghd fgh
E42: dfhdfghdfghfgh dfgh dfgh d
D44: Etablering efter høst
E45: dgsdfh dfghdfhdfhdfghjdfgjfgjfghjfghdfhsdh dfh df hdfgh dfgh d
E46: dfh dfgh dfghjdfklghj fjhlkæsdfjhskldjg sdgj sdkfgj klsdjfgklsdj fgsd gkl
E47: fh dfh dfh fhdfgh dfghdfgh dfhdfghd fgh
E49: dfhdfghdfghfgh dfgh dfgh d
C51: I Majs
D53: Etablering ved tidlig udlæg
E54: dgsdfh dfghdfhdfhdfghjdfgjfgjfghjfghdfhsdh dfh df hdfgh dfgh d
E55: dfh dfgh dfghjdfklghj fjhlkæsdfjhskldjg sdgj sdkfgj klsdjfgklsdj fgsd gkl
E56: fh dfh dfh fhdfgh dfghdfgh dfhdfghd fgh
E58: dfhdfghdfghfgh dfgh dfgh d
D60: Etablering efter høst
E61: dgsdfh dfghdfhdfhdfghjdfgjfgjfghjfghdfhsdh dfh df hdfgh dfgh d
E62: dfh dfgh dfghjdfklghj fjhlkæsdfjhskldjg sdgj sdkfgj klsdjfgklsdj fgsd gkl
E63: fh dfh dfh fhdfgh dfghdfgh dfhdfghd fgh
E65: dfhdfghdfghfgh dfgh dfgh d

Sheet Lister
A3: Efterafgrødens funktion
A4: Vælg hvad afgrøden skal bruges som | F4: Karakterliste | K4: Basisvalg | P4: Afgrøde
A5: Pligtig efterafgrøde
A6: Pligtig efterafgrøde og MFO afgrøde | F6: Pris | G6: Ikke vigtigt | H6: Vigtigt | I6: Meget vigtigt | K6: Ja | L6: Nej | P6: Vælg afgrøde
A7: Kun MFO afgrøde | F7: Dyrkningssikkerhed | G7: Ikke vigtigt | H7: Vigtigt | I7: Meget vigtigt | P7: 1. Vintersæd
A8: Frivillig efterafgrøde (ingen statslig ordning) | F8: Stor eftervirkning | G8: Ikke vigtigt | H8: Vigtigt | I8: Meget vigtigt | P8: 2. Vårsæd
F9: Lovpligtig | G9: Ikke vigtigt | H9: Vigtigt | I9: Meget vigtigt
F10: Sygdomme | G10: Ikke vigtigt | H10: Nematoder | I10: Kålbrok | J10: Begge
F11: Tiebreak | G11: Ikke vigtigt | H11: Vigtigt | I11: Meget vigtigt | P11: Etableringstidspunkt
P12: Vælg tidspunkt | Q12: .
A13: Afgrøde type | P13: Ikke vigtigt | Q13: 0
A14: Vælg hovedafgrøde | P14: 1. Ved etablering af primærafgrøde | Q14: 500000
A15: Vintersæd | F15: Basis valg | P15: 2. Før høst | Q15: 500000
A16: Vårsæd | F16: Ja | G16: 1 | P16: 3. Efter høst | Q16: 500000
F17: Nej | G17: 0
A18: Etableringstidspunkt | F18: 0 | G18: 0
A19: Vælg etableringstidspunkt
A20: Ved såning af primærafgrøde | F20: Standard karaktere
A21: Egnet til udsåning ved sidste radrensning | F21: Ikke vigtigt | G21: 0
A22: Efter høst af primærafgrøde | F22: Vigtigt | G22: 2
F23: Meget vigtigt | G23: 6
A24: Jordtype
A25: Vælg jordtype | F25: Ikke vigtigt | G25: 0
A26: Sand | F26: Foretrækkes | G26: 3
A27: Ler | F27: Der må ikke opformeres kålbrok | G27: 9
F29: Ikke vigtigt | G29: 0
A30: Efterfølgende afgrøde | F30: Helst | G30: 3
F31: Egen udsæd skal anvendes | G31: 9
A32: Vårsæd
A33: =IF(OR('Efterafgrøde beslutningsstøtte'!A7="Pligtig mellemafgrøde"),"Vintersæd",IF('Efterafgrøde beslutningsstøtte'!A7="Kun MFO afgrøde","Fortsætter som græs - Kun MFO","")) -> 
A34: =IF(OR('Efterafgrøde beslutningsstøtte'!A7="Pligtig mellemafgrøde"),"Vintersæd","") -> 

Sheet Hjælpe beregning
B3: Søjle A= Løbenr
B4: I søjle B, =1 så er der forsøgsresultater mv ellers ikke | E4: Forsøgsresultat | H4: 0=findes ikke, 1=der er forsøgsresultater | K4: 1=Vintersæd
B5: Søjle C - nr. på afgrøden 1-34 | E5: Afgrøde efter efterafgrøde | H5: 1=vintersæd, 2=vårsæd el. fortsætter som græs
B6: Søjle E - kode for om den afgrøde der følger efter er vår- eller vintersæd | E6: Såtidspunkt | H6: 1=sammen med afgrøde, 2=før høst, 3=efter høst
B7: Søjle F - kode for såtidspunkt - med foregående afrøder, før eller efter høst | E7: Jordbund | H7: 1=sandjord, 2= lerjord
B8: Søjel G - kode for jordbund
B9: Søjle H - kode for hvor værdier skal findes i normer | E9: Efterfølgende afgrøde | G9: ='Efterafgrøde beslutningsstøtte'!A19 -> Vårsæd
I10: Udbytte | L10: Stykomkostninger | Q10: Maskin- og arbejdsomkostninger | AB10: Resultat
A11: Lbnr | B11: Forsøgsresultater | C11: Afgrødenr | E11: Afgrøde efter efterafgrøde | F11: Såtidspunkt | G11: Jordbund | H11: Kode for valg af tabel | I11: Merudbytte, hkg. pr. ha | J11: Pris merudbytte | K11: Værdi merudbytte | L11: Kg udsæd | M11: Pris udsæd | N11: Andre omk. | O11: Pris andre omk. | P11: I alt stykomkostninger | Q11: Såning antal | R11: Pris såning | S11: Høst, hkg. | T11: Pris mejetærskning | U11: Tørring | V11: Pris tørring | W11: Nedmuldning | X11: Pris nedmuldning | Y11: Andre kapa omk. | Z11: Pris andre kapa | AA11: I alt maskiner og arbejde | AB11: I alt omkostninger | AC11: Resultat
A12: 1 | B12: 0 | C12: 1 | D12: Alm. rajgræs, dipl. | E12: =IF('Efterafgrøde beslutningsstøtte'!A$19="Vintersæd",1,IF(OR('Efterafgrøde beslutningsstøtte'!A$19="Vårsæd",'Efterafgrøde beslutningsstøtte'!A$19="Fortsætter som græs - Kun MFO"),2,"Fejl")) -> 2 | F12: =IF('Efterafgrøde beslutningsstøtte'!A$13="Ved såning af primærafgrøde",1,IF('Efterafgrøde beslutningsstøtte'!A$13="Egnet til udsåning ved sidste radrensning",2,IF('Efterafgrøde beslutningsstøtte'!A$13="Efter høst af primærafgrøde",3,"Fejl"))) -> 3 | G12: =IF('Efterafgrøde beslutningsstøtte'!A$16="Sand",1,IF('Efterafgrøde beslutningsstøtte'!A$16="Ler",2,"Fejl")) -> 2 | H12: =(G12-1)*6+(E12-1)*3+F12+2 -> 14 | I12: =IF($G$9<>"Fortsætter som græs - Kun MFO",VLOOKUP(C12,Norm!$B$19:$Y$52,H12,FALSE),0) -> 0 | J12: =IF(E12=1,Norm!$D$9,Norm!$D$10) -> 220 | K12: =I12*J12 -> 0 | L12: =VLOOKUP(C12,Norm!$B$19:$Y$52,14+F12,FALSE) -> 0 | M12: =VLOOKUP($C12,Norm!$B$19:$Y$52,18) -> 60 | N12: =VLOOKUP($C12,Norm!$B$19:$Y$52,19) -> 0 | O12: =VLOOKUP($C12,Norm!$B$19:$Y$52,20) -> 0 | P12: =L12*M12+N12*O12 -> 0 | Q12: 1 | R12: =IF(F12=1,Norm!$D$3,IF(F12=2,Norm!$D$4,IF(F12=3,Norm!$D$5))) -> 185 | S12: =I12 -> 0 | T12: =Norm!$D$12 -> 7 | U12: =S12 -> 0 | V12: =Norm!$D$7 -> 10 | W12: =VLOOKUP($C12,Norm!$B$19:$Y$52,23) -> 0 | X12: =VLOOKUP($C12,Norm!$B$19:$Y$52,24) -> 0 | Y12: =VLOOKUP($C12,Norm!$B$19:$Y$52,21) -> 0 | Z12: =VLOOKUP($C12,Norm!$B$19:$Y$52,22) -> 0 | AA12: =Q12*R12+S12*T12+U12*V12+W12*X12+Y12*Z12 -> 185 | AB12: =P12+AA12 -> 185 | AC12: =IF(K12>0,K12-AB12,"-") -> -
A13: 2 | B13: 0 | C13: 2 | D13: Blanding uden bælgsæd overvintrene | E13: =IF('Efterafgrøde beslutningsstøtte'!A$19="Vintersæd",1,IF(OR('Efterafgrøde beslutningsstøtte'!A$19="Vårsæd",'Efterafgrøde beslutningsstøtte'!A$19="Fortsætter som græs - Kun MFO"),2,"Fejl")) -> 2 | F13: =IF('Efterafgrøde beslutningsstøtte'!A$13="Ved såning af primærafgrøde",1,IF('Efterafgrøde beslutningsstøtte'!A$13="Egnet til udsåning ved sidste radrensning",2,IF('Efterafgrøde beslutningsstøtte'!A$13="Efter høst af primærafgrøde",3,"Fejl"))) -> 3 | G13: =IF('Efterafgrøde beslutningsstøtte'!A$16="Sand",1,IF('Efterafgrøde beslutningsstøtte'!A$16="Ler",2,"Fejl")) -> 2 | H13: =(G13-1)*6+(E13-1)*3+F13+2 -> 14 | I13: =IF($G$9<>"Fortsætter som græs - Kun MFO",VLOOKUP(C13,Norm!$B$19:$Y$52,H13,FALSE),0) -> 0.5 | J13: =IF(E13=1,Norm!$D$9,Norm!$D$10) -> 220 | K13: =I13*J13 -> 110 | L13: =VLOOKUP(C13,Norm!$B$19:$Y$52,14+F13,FALSE) -> 55 | M13: =VLOOKUP($C13,Norm!$B$19:$Y$52,18) -> 15 | N13: =VLOOKUP($C13,Norm!$B$19:$Y$52,19) -> 0 | O13: =VLOOKUP($C13,Norm!$B$19:$Y$52,20) -> 0 | P13: =L13*M13+N13*O13 -> 825 | Q13: 1 | R13: =IF(F13=1,Norm!$D$3,IF(F13=2,Norm!$D$4,IF(F13=3,Norm!$D$5))) -> 185 | S13: =I13 -> 0.5 | T13: =Norm!$D$12 -> 7 | U13: =S13 -> 0.5 | V13: =Norm!$D$7 -> 10 | W13: =VLOOKUP($C13,Norm!$B$19:$Y$52,23) -> 0 | X13: =VLOOKUP($C13,Norm!$B$19:$Y$52,24) -> 0 | Y13: =VLOOKUP($C13,Norm!$B$19:$Y$52,21) -> 0 | Z13: =VLOOKUP($C13,Norm!$B$19:$Y$52,22) -> 0 | AA13: =Q13*R13+S13*T13+U13*V13+W13*X13+Y13*Z13 -> 193.5 | AB13: =P13+AA13 -> 1018.5 | AC13: =IF(K13>0,K13-AB13,"-") -> -908.5
A14: 3 | B14: 0 | C14: 3 | D14: Vårbyg /Vikke /Gul Sennep | E14: =IF('Efterafgrøde beslutningsstøtte'!A$19="Vintersæd",1,IF(OR('Efterafgrøde beslutningsstøtte'!A$19="Vårsæd",'Efterafgrøde beslutningsstøtte'!A$19="Fortsætter som græs - Kun MFO"),2,"Fejl")) -> 2 | F14: =IF('Efterafgrøde beslutningsstøtte'!A$13="Ved såning af primærafgrøde",1,IF('Efterafgrøde beslutningsstøtte'!A$13="Egnet til udsåning ved sidste radrensning",2,IF('Efterafgrøde beslutningsstøtte'!A$13="Efter høst af primærafgrøde",3,"Fejl"))) -> 3 | G14: =IF('Efterafgrøde beslutningsstøtte'!A$16="Sand",1,IF('Efterafgrøde beslutningsstøtte'!A$16="Ler",2,"Fejl")) -> 2 | H14: 14 | I14: =IF($G$9<>"Fortsætter som græs - Kun MFO",VLOOKUP(C14,Norm!$B$19:$Y$52,H14,FALSE),0) -> 2 | J14: =IF(E14=1,Norm!$D$9,Norm!$D$10) -> 220 | K14: 440 | L14: =VLOOKUP(C14,Norm!$B$19:$Y$52,14+F14,FALSE) -> 67 | M14: =VLOOKUP($C14,Norm!$B$19:$Y$52,18) -> 8.5 | N14: =VLOOKUP($C14,Norm!$B$19:$Y$52,19) -> 0 | O14: =VLOOKUP($C14,Norm!$B$19:$Y$52,20) -> 0 | P14: =L14*M14+N14*O14 -> 569.5 | Q14: 1 | R14: =IF(F14=1,Norm!$D$3,IF(F14=2,Norm!$D$4,IF(F14=3,Norm!$D$5))) -> 185 | S14: 2 | T14: =Norm!$D$12 -> 7 | U14: 2 | V14: =Norm!$D$7 -> 10 | W14: =VLOOKUP($C14,Norm!$B$19:$Y$52,23) -> 0 | X14: =VLOOKUP($C14,Norm!$B$19:$Y$52,24) -> 0 | Y14: =VLOOKUP($C14,Norm!$B$19:$Y$52,21) -> 0 | Z14: =VLOOKUP($C14,Norm!$B$19:$Y$52,22) -> 0 | AA14: 219 | AB14: 788.5 | AC14: -348.5
A15: 4 | B15: 0 | C15: 4 | D15: Rajgræs/Cichorie/hvidkløver | E15: =IF('Efterafgrøde beslutningsstøtte'!A$19="Vintersæd",1,IF(OR('Efterafgrøde beslutningsstøtte'!A$19="Vårsæd",'Efterafgrøde beslutningsstøtte'!A$19="Fortsætter som græs - Kun MFO"),2,"Fejl")) -> 2 | F15: =IF('Efterafgrøde beslutningsstøtte'!A$13="Ved såning af primærafgrøde",1,IF('Efterafgrøde beslutningsstøtte'!A$13="Egnet til udsåning ved sidste radrensning",2,IF('Efterafgrøde beslutningsstøtte'!A$13="Efter høst af primærafgrøde",3,"Fejl"))) -> 3 | G15: =IF('Efterafgrøde beslutningsstøtte'!A$16="Sand",1,IF('Efterafgrøde beslutningsstøtte'!A$16="Ler",2,"Fejl")) -> 2 | H15: 14 | I15: =IF($G$9<>"Fortsætter som græs - Kun MFO",VLOOKUP(C15,Norm!$B$19:$Y$52,H15,FALSE),0) -> 0 | J15: =IF(E15=1,Norm!$D$9,Norm!$D$10) -> 220 | K15: 0 | L15: =VLOOKUP(C15,Norm!$B$19:$Y$52,14+F15,FALSE) -> 0 | M15: =VLOOKUP($C15,Norm!$B$19:$Y$52,18) -> 100 | N15: =VLOOKUP($C15,Norm!$B$19:$Y$52,19) -> 0 | O15: =VLOOKUP($C15,Norm!$B$19:$Y$52,20) -> 0 | P15: 0 | Q15: 1 | R15: =IF(F15=1,Norm!$D$3,IF(F15=2,Norm!$D$4,IF(F15=3,Norm!$D$5))) -> 185 | S15: 0 | T15: =Norm!$D$12 -> 7 | U15: 0 | V15: =Norm!$D$7 -> 10 | W15: =VLOOKUP($C15,Norm!$B$19:$Y$52,23) -> 0 | X15: =VLOOKUP($C15,Norm!$B$19:$Y$52,24) -> 0 | Y15: =VLOOKUP($C15,Norm!$B$19:$Y$52,21) -> 0 | Z15: =VLOOKUP($C15,Norm!$B$19:$Y$52,22) -> 0 | AA15: 185 | AB15: 185 | AC15: -
A16: 5 | B16: 0 | C16: 5 | D16: Rødkløver | E16: =IF('Efterafgrøde beslutningsstøtte'!A$19="Vintersæd",1,IF(OR('Efterafgrøde beslutningsstøtte'!A$19="Vårsæd",'Efterafgrøde beslutningsstøtte'!A$19="Fortsætter som græs - Kun MFO"),2,"Fejl")) -> 2 | F16: =IF('Efterafgrøde beslutningsstøtte'!A$13="Ved såning af primærafgrøde",1,IF('Efterafgrøde beslutningsstøtte'!A$13="Egnet til udsåning ved sidste radrensning",2,IF('Efterafgrøde beslutningsstøtte'!A$13="Efter høst af primærafgrøde",3,"Fejl"))) -> 3 | G16: =IF('Efterafgrøde beslutningsstøtte'!A$16="Sand",1,IF('Efterafgrøde beslutningsstøtte'!A$16="Ler",2,"Fejl")) -> 2 | H16: =(G16-1)*6+(E16-1)*3+F16+2 -> 14 | I16: =IF($G$9<>"Fortsætter som græs - Kun MFO",VLOOKUP(C16,Norm!$B$19:$Y$52,H16,FALSE),0) -> 0 | J16: =IF(E16=1,Norm!$D$9,Norm!$D$10) -> 220 | K16: =I16*J16 -> 0 | L16: =VLOOKUP(C16,Norm!$B$19:$Y$52,14+F16,FALSE) -> 0 | M16: =VLOOKUP($C16,Norm!$B$19:$Y$52,18) -> 150 | N16: =VLOOKUP($C16,Norm!$B$19:$Y$52,19) -> 0 | O16: =VLOOKUP($C16,Norm!$B$19:$Y$52,20) -> 0 | P16: 0 | Q16: 1 | R16: =IF(F16=1,Norm!$D$3,IF(F16=2,Norm!$D$4,IF(F16=3,Norm!$D$5))) -> 185 | S16: 0 | T16: =Norm!$D$12 -> 7 | U16: 0 | V16: =Norm!$D$7 -> 10 | W16: =VLOOKUP($C16,Norm!$B$19:$Y$52,23) -> 0 | X16: =VLOOKUP($C16,Norm!$B$19:$Y$52,24) -> 0 | Y16: =VLOOKUP($C16,Norm!$B$19:$Y$52,21) -> 0 | Z16: =VLOOKUP($C16,Norm!$B$19:$Y$52,22) -> 0 | AA16: 185 | AB16: 185 | AC16: -
A17: 6 | B17: 0 | C17: 6 | D17: Vinterrug/fodervikke/olieræddike | E17: =IF('Efterafgrøde beslutningsstøtte'!A$19="Vintersæd",1,IF(OR('Efterafgrøde beslutningsstøtte'!A$19="Vårsæd",'Efterafgrøde beslutningsstøtte'!A$19="Fortsætter som græs - Kun MFO"),2,"Fejl")) -> 2 | F17: =IF('Efterafgrøde beslutningsstøtte'!A$13="Ved såning af primærafgrøde",1,IF('Efterafgrøde beslutningsstøtte'!A$13="Egnet til udsåning ved sidste radrensning",2,IF('Efterafgrøde beslutningsstøtte'!A$13="Efter høst af primærafgrøde",3,"Fejl"))) -> 3 | G17: =IF('Efterafgrøde beslutningsstøtte'!A$16="Sand",1,IF('Efterafgrøde beslutningsstøtte'!A$16="Ler",2,"Fejl")) -> 2 | H17: 14 | I17: =IF($G$9<>"Fortsætter som græs - Kun MFO",VLOOKUP(C17,Norm!$B$19:$Y$52,H17,FALSE),0) -> 2 | J17: =IF(E17=1,Norm!$D$9,Norm!$D$10) -> 220 | K17: 440 | L17: =VLOOKUP(C17,Norm!$B$19:$Y$52,14+F17,FALSE) -> 44 | M17: =VLOOKUP($C17,Norm!$B$19:$Y$52,18) -> 15 | N17: =VLOOKUP($C17,Norm!$B$19:$Y$52,19) -> 0 | O17: =VLOOKUP($C17,Norm!$B$19:$Y$52,20) -> 0 | P17: 660 | Q17: 1 | R17: =IF(F17=1,Norm!$D$3,IF(F17=2,Norm!$D$4,IF(F17=3,Norm!$D$5))) -> 185 | S17: 2 | T17: =Norm!$D$12 -> 7 | U17: 2 | V17: =Norm!$D$7 -> 10 | W17: =VLOOKUP($C17,Norm!$B$19:$Y$52,23) -> 0 | X17: =VLOOKUP($C17,Norm!$B$19:$Y$52,24) -> 0 | Y17: =VLOOKUP($C17,Norm!$B$19:$Y$52,21) -> 0 | Z17: =VLOOKUP($C17,Norm!$B$19:$Y$52,22) -> 0 | AA17: 219 | AB17: 879 | AC17: -439
A18: 7 | B18: 0 | C18: 7 | D18: Triticale/Gul Sennep | E18: =IF('Efterafgrøde beslutningsstøtte'!A$19="Vintersæd",1,IF(OR('Efterafgrøde beslutningsstøtte'!A$19="Vårsæd",'Efterafgrøde beslutningsstøtte'!A$19="Fortsætter som græs - Kun MFO"),2,"Fejl")) -> 2 | F18: =IF('Efterafgrøde beslutningsstøtte'!A$13="Ved såning af primærafgrøde",1,IF('Efterafgrøde beslutningsstøtte'!A$13="Egnet til udsåning ved sidste radrensning",2,IF('Efterafgrøde beslutningsstøtte'!A$13="Efter høst af primærafgrøde",3,"Fejl"))) -> 3 | G18: =IF('Efterafgrøde beslutningsstøtte'!A$16="Sand",1,IF('Efterafgrøde beslutningsstøtte'!A$16="Ler",2,"Fejl")) -> 2 | H18: 14 | I18: =IF($G$9<>"Fortsætter som græs - Kun MFO",VLOOKUP(C18,Norm!$B$19:$Y$52,H18,FALSE),0) -> 0 | J18: =IF(E18=1,Norm!$D$9,Norm!$D$10) -> 220 | K18: =I18*J18 -> 0 | L18: =VLOOKUP(C18,Norm!$B$19:$Y$52,14+F18,FALSE) -> 66 | M18: =VLOOKUP($C18,Norm!$B$19:$Y$52,18) -> 7 | N18: =VLOOKUP($C18,Norm!$B$19:$Y$52,19) -> 0 | O18: =VLOOKUP($C18,Norm!$B$19:$Y$52,20) -> 0 | P18: 462 | Q18: 1 | R18: =IF(F18=1,Norm!$D$3,IF(F18=2,Norm!$D$4,IF(F18=3,Norm!$D$5))) -> 185 | S18: =I18 -> 0 | T18: =Norm!$D$12 -> 7 | U18: =S18 -> 0 | V18: =Norm!$D$7 -> 10 | W18: =VLOOKUP($C18,Norm!$B$19:$Y$52,23) -> 0 | X18: =VLOOKUP($C18,Norm!$B$19:$Y$52,24) -> 0 | Y18: =VLOOKUP($C18,Norm!$B$19:$Y$52,21) -> 0 | Z18: =VLOOKUP($C18,Norm!$B$19:$Y$52,22) -> 0 | AA18: 185 | AB18: 647 | AC18: -
A19: 8 | B19: 0 | C19: 8 | D19: Frøgræs, udtjent | E19: =IF('Efterafgrøde beslutningsstøtte'!A$19="Vintersæd",1,IF(OR('Efterafgrøde beslutningsstøtte'!A$19="Vårsæd",'Efterafgrøde beslutningsstøtte'!A$19="Fortsætter som græs - Kun MFO"),2,"Fejl")) -> 2 | F19: =IF('Efterafgrøde beslutningsstøtte'!A$13="Ved såning af primærafgrøde",1,IF('Efterafgrøde beslutningsstøtte'!A$13="Egnet til udsåning ved sidste radrensning",2,IF('Efterafgrøde beslutningsstøtte'!A$13="Efter høst af primærafgrøde",3,"Fejl"))) -> 3 | G19: =IF('Efterafgrøde beslutningsstøtte'!A$16="Sand",1,IF('Efterafgrøde beslutningsstøtte'!A$16="Ler",2,"Fejl")) -> 2 | H19: 14 | I19: =IF($G$9<>"Fortsætter som græs - Kun MFO",VLOOKUP(C19,Norm!$B$19:$Y$52,H19,FALSE),0) -> 0 | J19: =IF(E19=1,Norm!$D$9,Norm!$D$10) -> 220 | K19: =I19*J19 -> 0 | L19: =VLOOKUP(C19,Norm!$B$19:$Y$52,14+F19,FALSE) -> 0 | M19: =VLOOKUP($C19,Norm!$B$19:$Y$52,18) -> 0 | N19: =VLOOKUP($C19,Norm!$B$19:$Y$52,19) -> 0 | O19: =VLOOKUP($C19,Norm!$B$19:$Y$52,20) -> 0 | P19: =L19*M19+N19*O19 -> 0 | Q19: 1 | R19: =IF(F19=1,Norm!$D$3,IF(F19=2,Norm!$D$4,IF(F19=3,Norm!$D$5))) -> 185 | S19: 0 | T19: =Norm!$D$12 -> 7 | U19: 0 | V19: =Norm!$D$7 -> 10 | W19: =VLOOKUP($C19,Norm!$B$19:$Y$52,23) -> 0 | X19: =VLOOKUP($C19,Norm!$B$19:$Y$52,24) -> 0 | Y19: =VLOOKUP($C19,Norm!$B$19:$Y$52,21) -> 0 | Z19: =VLOOKUP($C19,Norm!$B$19:$Y$52,22) -> 0 | AA19: 185 | AB19: 185 | AC19: -
A20: 9 | B20: 0 | C20: 9 | D20: Gul sennep | E20: =IF('Efterafgrøde beslutningsstøtte'!A$19="Vintersæd",1,IF(OR('Efterafgrøde beslutningsstøtte'!A$19="Vårsæd",'Efterafgrøde beslutningsstøtte'!A$19="Fortsætter som græs - Kun MFO"),2,"Fejl")) -> 2 | F20: =IF('Efterafgrøde beslutningsstøtte'!A$13="Ved såning af primærafgrøde",1,IF('Efterafgrøde beslutningsstøtte'!A$13="Egnet til udsåning ved sidste radrensning",2,IF('Efterafgrøde beslutningsstøtte'!A$13="Efter høst af primærafgrøde",3,"Fejl"))) -> 3 | G20: =IF('Efterafgrøde beslutningsstøtte'!A$16="Sand",1,IF('Efterafgrøde beslutningsstøtte'!A$16="Ler",2,"Fejl")) -> 2 | H20: 14 | I20: =IF($G$9<>"Fortsætter som græs - Kun MFO",VLOOKUP(C20,Norm!$B$19:$Y$52,H20,FALSE),0) -> 4 | J20: =IF(E20=1,Norm!$D$9,Norm!$D$10) -> 220 | K20: 880 | L20: =VLOOKUP(C20,Norm!$B$19:$Y$52,14+F20,FALSE) -> 10 | M20: =VLOOKUP($C20,Norm!$B$19:$Y$52,18) -> 25 | N20: =VLOOKUP($C20,Norm!$B$19:$Y$52,19) -> 0 | O20: =VLOOKUP($C20,Norm!$B$19:$Y$52,20) -> 0 | P20: 250 | Q20: 1 | R20: =IF(F20=1,Norm!$D$3,IF(F20=2,Norm!$D$4,IF(F20=3,Norm!$D$5))) -> 185 | S20: 4 | T20: =Norm!$D$12 -> 7 | U20: 4 | V20: =Norm!$D$7 -> 10 | W20: =VLOOKUP($C20,Norm!$B$19:$Y$52,23) -> 0 | X20: =VLOOKUP($C20,Norm!$B$19:$Y$52,24) -> 0 | Y20: =VLOOKUP($C20,Norm!$B$19:$Y$52,21) -> 0 | Z20: =VLOOKUP($C20,Norm!$B$19:$Y$52,22) -> 0 | AA20: 253 | AB20: 503 | AC20: 377
A21: 10 | B21: 0 | C21: 10 | D21: Olieræddike | E21: =IF('Efterafgrøde beslutningsstøtte'!A$19="Vintersæd",1,IF(OR('Efterafgrøde beslutningsstøtte'!A$19="Vårsæd",'Efterafgrøde beslutningsstøtte'!A$19="Fortsætter som græs - Kun MFO"),2,"Fejl")) -> 2 | F21: =IF('Efterafgrøde beslutningsstøtte'!A$13="Ved såning af primærafgrøde",1,IF('Efterafgrøde beslutningsstøtte'!A$13="Egnet til udsåning ved sidste radrensning",2,IF('Efterafgrøde beslutningsstøtte'!A$13="Efter høst af primærafgrøde",3,"Fejl"))) -> 3 | G21: =IF('Efterafgrøde beslutningsstøtte'!A$16="Sand",1,IF('Efterafgrøde beslutningsstøtte'!A$16="Ler",2,"Fejl")) -> 2 | H21: 14 | I21: =IF($G$9<>"Fortsætter som græs - Kun MFO",VLOOKUP(C21,Norm!$B$19:$Y$52,H21,FALSE),0) -> 4 | J21: =IF(E21=1,Norm!$D$9,Norm!$D$10) -> 220 | K21: 880 | L21: =VLOOKUP(C21,Norm!$B$19:$Y$52,14+F21,FALSE) -> 12 | M21: =VLOOKUP($C21,Norm!$B$19:$Y$52,18) -> 33 | N21: =VLOOKUP($C21,Norm!$B$19:$Y$52,19) -> 0 | O21: =VLOOKUP($C21,Norm!$B$19:$Y$52,20) -> 0 | P21: 396 | Q21: 1 | R21: =IF(F21=1,Norm!$D$3,IF(F21=2,Norm!$D$4,IF(F21=3,Norm!$D$5))) -> 185 | S21: 4 | T21: =Norm!$D$12 -> 7 | U21: 4 | V21: =Norm!$D$7 -> 10 | W21: =VLOOKUP($C21,Norm!$B$19:$Y$52,23) -> 0 | X21: =VLOOKUP($C21,Norm!$B$19:$Y$52,24) -> 0 | Y21: =VLOOKUP($C21,Norm!$B$19:$Y$52,21) -> 0 | Z21: =VLOOKUP($C21,Norm!$B$19:$Y$52,22) -> 0 | AA21: 253 | AB21: 649 | AC21: 231
A22: 11 | B22: 0 | C22: 11 | D22: Blanding med bælsæd udvintrene | E22: =IF('Efterafgrøde beslutningsstøtte'!A$19="Vintersæd",1,IF(OR('Efterafgrøde beslutningsstøtte'!A$19="Vårsæd",'Efterafgrøde beslutningsstøtte'!A$19="Fortsætter som græs - Kun MFO"),2,"Fejl")) -> 2 | F22: =IF('Efterafgrøde beslutningsstøtte'!A$13="Ved såning af primærafgrøde",1,IF('Efterafgrøde beslutningsstøtte'!A$13="Egnet til udsåning ved sidste radrensning",2,IF('Efterafgrøde beslutningsstøtte'!A$13="Efter høst af primærafgrøde",3,"Fejl"))) -> 3 | G22: =IF('Efterafgrøde beslutningsstøtte'!A$16="Sand",1,IF('Efterafgrøde beslutningsstøtte'!A$16="Ler",2,"Fejl")) -> 2 | H22: 14 | I22: =IF($G$9<>"Fortsætter som græs - Kun MFO",VLOOKUP(C22,Norm!$B$19:$Y$52,H22,FALSE),0) -> 4 | J22: =IF(E22=1,Norm!$D$9,Norm!$D$10) -> 220 | K22: 880 | L22: =VLOOKUP(C22,Norm!$B$19:$Y$52,14+F22,FALSE) -> 102 | M22: =VLOOKUP($C22,Norm!$B$19:$Y$52,18) -> 32 | N22: =VLOOKUP($C22,Norm!$B$19:$Y$52,19) -> 0 | O22: =VLOOKUP($C22,Norm!$B$19:$Y$52,20) -> 0 | P22: 3264 | Q22: 1 | R22: =IF(F22=1,Norm!$D$3,IF(F22=2,Norm!$D$4,IF(F22=3,Norm!$D$5))) -> 185 | S22: 4 | T22: =Norm!$D$12 -> 7 | U22: 4 | V22: =Norm!$D$7 -> 10 | W22: =VLOOKUP($C22,Norm!$B$19:$Y$52,23) -> 0 | X22: =VLOOKUP($C22,Norm!$B$19:$Y$52,24) -> 0 | Y22: =VLOOKUP($C22,Norm!$B$19:$Y$52,21) -> 0 | Z22: =VLOOKUP($C22,Norm!$B$19:$Y$52,22) -> 0 | AA22: 253 | AB22: 3517 | AC22: -2637
A23: 12 | B23: 0 | C23: 12 | D23: Vinterraps , linie | E23: =IF('Efterafgrøde beslutningsstøtte'!A$19="Vintersæd",1,IF(OR('Efterafgrøde beslutningsstøtte'!A$19="Vårsæd",'Efterafgrøde beslutningsstøtte'!A$19="Fortsætter som græs - Kun MFO"),2,"Fejl")) -> 2 | F23: =IF('Efterafgrøde beslutningsstøtte'!A$13="Ved såning af primærafgrøde",1,IF('Efterafgrøde beslutningsstøtte'!A$13="Egnet til udsåning ved sidste radrensning",2,IF('Efterafgrøde beslutningsstøtte'!A$13="Efter høst af primærafgrøde",3,"Fejl"))) -> 3 | G23: =IF('Efterafgrøde beslutningsstøtte'!A$16="Sand",1,IF('Efterafgrøde beslutningsstøtte'!A$16="Ler",2,"Fejl")) -> 2 | H23: 14 | I23: =IF($G$9<>"Fortsætter som græs - Kun MFO",VLOOKUP(C23,Norm!$B$19:$Y$52,H23,FALSE),0) -> 3 | J23: =IF(E23=1,Norm!$D$9,Norm!$D$10) -> 220 | K23: 660 | L23: =VLOOKUP(C23,Norm!$B$19:$Y$52,14+F23,FALSE) -> 5 | M23: =VLOOKUP($C23,Norm!$B$19:$Y$52,18) -> 180 | N23: =VLOOKUP($C23,Norm!$B$19:$Y$52,19) -> 0 | O23: =VLOOKUP($C23,Norm!$B$19:$Y$52,20) -> 0 | P23: 900 | Q23: 1 | R23: =IF(F23=1,Norm!$D$3,IF(F23=2,Norm!$D$4,IF(F23=3,Norm!$D$5))) -> 185 | S23: 3 | T23: =Norm!$D$12 -> 7 | U23: 3 | V23: =Norm!$D$7 -> 10 | W23: =VLOOKUP($C23,Norm!$B$19:$Y$52,23) -> 0 | X23: =VLOOKUP($C23,Norm!$B$19:$Y$52,24) -> 0 | Y23: =VLOOKUP($C23,Norm!$B$19:$Y$52,21) -> 0 | Z23: =VLOOKUP($C23,Norm!$B$19:$Y$52,22) -> 0 | AA23: 236 | AB23: 1136 | AC23: -476
A24: 13 | B24: 0 | C24: 13 | D24: Foderradise (Strukturator) | E24: =IF('Efterafgrøde beslutningsstøtte'!A$19="Vintersæd",1,IF(OR('Efterafgrøde beslutningsstøtte'!A$19="Vårsæd",'Efterafgrøde beslutningsstøtte'!A$19="Fortsætter som græs - Kun MFO"),2,"Fejl")) -> 2 | F24: =IF('Efterafgrøde beslutningsstøtte'!A$13="Ved såning af primærafgrøde",1,IF('Efterafgrøde beslutningsstøtte'!A$13="Egnet til udsåning ved sidste radrensning",2,IF('Efterafgrøde beslutningsstøtte'!A$13="Efter høst af primærafgrøde",3,"Fejl"))) -> 3 | G24: =IF('Efterafgrøde beslutningsstøtte'!A$16="Sand",1,IF('Efterafgrøde beslutningsstøtte'!A$16="Ler",2,"Fejl")) -> 2 | H24: 14 | I24: =IF($G$9<>"Fortsætter som græs - Kun MFO",VLOOKUP(C24,Norm!$B$19:$Y$52,H24,FALSE),0) -> 4 | J24: =IF(E24=1,Norm!$D$9,Norm!$D$10) -> 220 | K24: 880 | L24: =VLOOKUP(C24,Norm!$B$19:$Y$52,14+F24,FALSE) -> 12 | M24: =VLOOKUP($C24,Norm!$B$19:$Y$52,18) -> 55 | N24: =VLOOKUP($C24,Norm!$B$19:$Y$52,19) -> 0 | O24: =VLOOKUP($C24,Norm!$B$19:$Y$52,20) -> 0 | P24: 660 | Q24: 1 | R24: =IF(F24=1,Norm!$D$3,IF(F24=2,Norm!$D$4,IF(F24=3,Norm!$D$5))) -> 185 | S24: 4 | T24: =Norm!$D$12 -> 7 | U24: 4 | V24: =Norm!$D$7 -> 10 | W24: =VLOOKUP($C24,Norm!$B$19:$Y$52,23) -> 0 | X24: =VLOOKUP($C24,Norm!$B$19:$Y$52,24) -> 0 | Y24: =VLOOKUP($C24,Norm!$B$19:$Y$52,21) -> 0 | Z24: =VLOOKUP($C24,Norm!$B$19:$Y$52,22) -> 0 | AA24: 253 | AB24: 913 | AC24: -33
A25: 14 | B25: 0 | C25: 14 | D25: Havre | E25: =IF('Efterafgrøde beslutningsstøtte'!A$19="Vintersæd",1,IF(OR('Efterafgrøde beslutningsstøtte'!A$19="Vårsæd",'Efterafgrøde beslutningsstøtte'!A$19="Fortsætter som græs - Kun MFO"),2,"Fejl")) -> 2 | F25: =IF('Efterafgrøde beslutningsstøtte'!A$13="Ved såning af primærafgrøde",1,IF('Efterafgrøde beslutningsstøtte'!A$13="Egnet til udsåning ved sidste radrensning",2,IF('Efterafgrøde beslutningsstøtte'!A$13="Efter høst af primærafgrøde",3,"Fejl"))) -> 3 | G25: =IF('Efterafgrøde beslutningsstøtte'!A$16="Sand",1,IF('Efterafgrøde beslutningsstøtte'!A$16="Ler",2,"Fejl")) -> 2 | H25: 14 | I25: =IF($G$9<>"Fortsætter som græs - Kun MFO",VLOOKUP(C25,Norm!$B$19:$Y$52,H25,FALSE),0) -> 1 | J25: =IF(E25=1,Norm!$D$9,Norm!$D$10) -> 220 | K25: 220 | L25: =VLOOKUP(C25,Norm!$B$19:$Y$52,14+F25,FALSE) -> 150 | M25: =VLOOKUP($C25,Norm!$B$19:$Y$52,18) -> 4.5 | N25: =VLOOKUP($C25,Norm!$B$19:$Y$52,19) -> 0 | O25: =VLOOKUP($C25,Norm!$B$19:$Y$52,20) -> 0 | P25: 675 | Q25: 1 | R25: =IF(F25=1,Norm!$D$3,IF(F25=2,Norm!$D$4,IF(F25=3,Norm!$D$5))) -> 185 | S25: 1 | T25: =Norm!$D$12 -> 7 | U25: 1 | V25: =Norm!$D$7 -> 10 | W25: =VLOOKUP($C25,Norm!$B$19:$Y$52,23) -> 0 | X25: =VLOOKUP($C25,Norm!$B$19:$Y$52,24) -> 0 | Y25: =VLOOKUP($C25,Norm!$B$19:$Y$52,21) -> 0 | Z25: =VLOOKUP($C25,Norm!$B$19:$Y$52,22) -> 0 | AA25: 202 | AB25: 877 | AC25: -657
A26: 15 | B26: 0 | C26: 15 | D26: Boghvede | E26: =IF('Efterafgrøde beslutningsstøtte'!A$19="Vintersæd",1,IF(OR('Efterafgrøde beslutningsstøtte'!A$19="Vårsæd",'Efterafgrøde beslutningsstøtte'!A$19="Fortsætter som græs - Kun MFO"),2,"Fejl")) -> 2 | F26: =IF('Efterafgrøde beslutningsstøtte'!A$13="Ved såning af primærafgrøde",1,IF('Efterafgrøde beslutningsstøtte'!A$13="Egnet til udsåning ved sidste radrensning",2,IF('Efterafgrøde beslutningsstøtte'!A$13="Efter høst af primærafgrøde",3,"Fejl"))) -> 3 | G26: =IF('Efterafgrøde beslutningsstøtte'!A$16="Sand",1,IF('Efterafgrøde beslutningsstøtte'!A$16="Ler",2,"Fejl")) -> 2 | H26: 14 | I26: =IF($G$9<>"Fortsætter som græs - Kun MFO",VLOOKUP(C26,Norm!$B$19:$Y$52,H26,FALSE),0) -> 1 | J26: =IF(E26=1,Norm!$D$9,Norm!$D$10) -> 220 | K26: 220 | L26: =VLOOKUP(C26,Norm!$B$19:$Y$52,14+F26,FALSE) -> 50 | M26: =VLOOKUP($C26,Norm!$B$19:$Y$52,18) -> 35 | N26: =VLOOKUP($C26,Norm!$B$19:$Y$52,19) -> 0 | O26: =VLOOKUP($C26,Norm!$B$19:$Y$52,20) -> 0 | P26: 1750 | Q26: 1 | R26: =IF(F26=1,Norm!$D$3,IF(F26=2,Norm!$D$4,IF(F26=3,Norm!$D$5))) -> 185 | S26: 1 | T26: =Norm!$D$12 -> 7 | U26: 1 | V26: =Norm!$D$7 -> 10 | W26: =VLOOKUP($C26,Norm!$B$19:$Y$52,23) -> 0 | X26: =VLOOKUP($C26,Norm!$B$19:$Y$52,24) -> 0 | Y26: =VLOOKUP($C26,Norm!$B$19:$Y$52,21) -> 0 | Z26: =VLOOKUP($C26,Norm!$B$19:$Y$52,22) -> 0 | AA26: 202 | AB26: 1952 | AC26: -1732
A27: 16 | B27: 0 | C27: 16 | D27: Vinterrybs | E27: =IF('Efterafgrøde beslutningsstøtte'!A$19="Vintersæd",1,IF(OR('Efterafgrøde beslutningsstøtte'!A$19="Vårsæd",'Efterafgrøde beslutningsstøtte'!A$19="Fortsætter som græs - Kun MFO"),2,"Fejl")) -> 2 | F27: =IF('Efterafgrøde beslutningsstøtte'!A$13="Ved såning af primærafgrøde",1,IF('Efterafgrøde beslutningsstøtte'!A$13="Egnet til udsåning ved sidste radrensning",2,IF('Efterafgrøde beslutningsstøtte'!A$13="Efter høst af primærafgrøde",3,"Fejl"))) -> 3 | G27: =IF('Efterafgrøde beslutningsstøtte'!A$16="Sand",1,IF('Efterafgrøde beslutningsstøtte'!A$16="Ler",2,"Fejl")) -> 2 | H27: 14 | I27: =IF($G$9<>"Fortsætter som græs - Kun MFO",VLOOKUP(C27,Norm!$B$19:$Y$52,H27,FALSE),0) -> 4 | J27: =IF(E27=1,Norm!$D$9,Norm!$D$10) -> 220 | K27: 880 | L27: =VLOOKUP(C27,Norm!$B$19:$Y$52,14+F27,FALSE) -> 7 | M27: =VLOOKUP($C27,Norm!$B$19:$Y$52,18) -> 180 | N27: =VLOOKUP($C27,Norm!$B$19:$Y$52,19) -> 0 | O27: =VLOOKUP($C27,Norm!$B$19:$Y$52,20) -> 0 | P27: 1260 | Q27: 1 | R27: =IF(F27=1,Norm!$D$3,IF(F27=2,Norm!$D$4,IF(F27=3,Norm!$D$5))) -> 185 | S27: 4 | T27: =Norm!$D$12 -> 7 | U27: 4 | V27: =Norm!$D$7 -> 10 | W27: =VLOOKUP($C27,Norm!$B$19:$Y$52,23) -> 0 | X27: =VLOOKUP($C27,Norm!$B$19:$Y$52,24) -> 0 | Y27: =VLOOKUP($C27,Norm!$B$19:$Y$52,21) -> 0 | Z27: =VLOOKUP($C27,Norm!$B$19:$Y$52,22) -> 0 | AA27: 253 | AB27: 1513 | AC27: -633
A28: 17 | B28: 0 | C28: 17 | D28: Gul Lupin | E28: =IF('Efterafgrøde beslutningsstøtte'!A$19="Vintersæd",1,IF(OR('Efterafgrøde beslutningsstøtte'!A$19="Vårsæd",'Efterafgrøde beslutningsstøtte'!A$19="Fortsætter som græs - Kun MFO"),2,"Fejl")) -> 2 | F28: =IF('Efterafgrøde beslutningsstøtte'!A$13="Ved såning af primærafgrøde",1,IF('Efterafgrøde beslutningsstøtte'!A$13="Egnet til udsåning ved sidste radrensning",2,IF('Efterafgrøde beslutningsstøtte'!A$13="Efter høst af primærafgrøde",3,"Fejl"))) -> 3 | G28: =IF('Efterafgrøde beslutningsstøtte'!A$16="Sand",1,IF('Efterafgrøde beslutningsstøtte'!A$16="Ler",2,"Fejl")) -> 2 | H28: 14 | I28: =IF($G$9<>"Fortsætter som græs - Kun MFO",VLOOKUP(C28,Norm!$B$19:$Y$52,H28,FALSE),0) -> 3 | J28: =IF(E28=1,Norm!$D$9,Norm!$D$10) -> 220 | K28: 660 | L28: =VLOOKUP(C28,Norm!$B$19:$Y$52,14+F28,FALSE) -> 60 | M28: =VLOOKUP($C28,Norm!$B$19:$Y$52,18) -> 8 | N28: =VLOOKUP($C28,Norm!$B$19:$Y$52,19) -> 0 | O28: =VLOOKUP($C28,Norm!$B$19:$Y$52,20) -> 0 | P28: 480 | Q28: 1 | R28: =IF(F28=1,Norm!$D$3,IF(F28=2,Norm!$D$4,IF(F28=3,Norm!$D$5))) -> 185 | S28: 3 | T28: =Norm!$D$12 -> 7 | U28: 3 | V28: =Norm!$D$7 -> 10 | W28: =VLOOKUP($C28,Norm!$B$19:$Y$52,23) -> 0 | X28: =VLOOKUP($C28,Norm!$B$19:$Y$52,24) -> 0 | Y28: =VLOOKUP($C28,Norm!$B$19:$Y$52,21) -> 0 | Z28: =VLOOKUP($C28,Norm!$B$19:$Y$52,22) -> 0 | AA28: 236 | AB28: 716 | AC28: -56
A29: 18 | B29: 0 | C29: 18 | D29: Vårbyg | E29: =IF('Efterafgrøde beslutningsstøtte'!A$19="Vintersæd",1,IF(OR('Efterafgrøde beslutningsstøtte'!A$19="Vårsæd",'Efterafgrøde beslutningsstøtte'!A$19="Fortsætter som græs - Kun MFO"),2,"Fejl")) -> 2 | F29: =IF('Efterafgrøde beslutningsstøtte'!A$13="Ved såning af primærafgrøde",1,IF('Efterafgrøde beslutningsstøtte'!A$13="Egnet til udsåning ved sidste radrensning",2,IF('Efterafgrøde beslutningsstøtte'!A$13="Efter høst af primærafgrøde",3,"Fejl"))) -> 3 | G29: =IF('Efterafgrøde beslutningsstøtte'!A$16="Sand",1,IF('Efterafgrøde beslutningsstøtte'!A$16="Ler",2,"Fejl")) -> 2 | H29: 14 | I29: =IF($G$9<>"Fortsætter som græs - Kun MFO",VLOOKUP(C29,Norm!$B$19:$Y$52,H29,FALSE),0) -> 1 | J29: =IF(E29=1,Norm!$D$9,Norm!$D$10) -> 220 | K29: 220 | L29: =VLOOKUP(C29,Norm!$B$19:$Y$52,14+F29,FALSE) -> 150 | M29: =VLOOKUP($C29,Norm!$B$19:$Y$52,18) -> 4.5 | N29: =VLOOKUP($C29,Norm!$B$19:$Y$52,19) -> 0 | O29: =VLOOKUP($C29,Norm!$B$19:$Y$52,20) -> 0 | P29: 675 | Q29: 1 | R29: =IF(F29=1,Norm!$D$3,IF(F29=2,Norm!$D$4,IF(F29=3,Norm!$D$5))) -> 185 | S29: 1 | T29: =Norm!$D$12 -> 7 | U29: 1 | V29: =Norm!$D$7 -> 10 | W29: =VLOOKUP($C29,Norm!$B$19:$Y$52,23) -> 0 | X29: =VLOOKUP($C29,Norm!$B$19:$Y$52,24) -> 0 | Y29: =VLOOKUP($C29,Norm!$B$19:$Y$52,21) -> 0 | Z29: =VLOOKUP($C29,Norm!$B$19:$Y$52,22) -> 0 | AA29: 202 | AB29: 877 | AC29: -657
A30: 19 | B30: 0 | C30: 19 | D30: vårbyg/fodervikke | E30: =IF('Efterafgrøde beslutningsstøtte'!A$19="Vintersæd",1,IF(OR('Efterafgrøde beslutningsstøtte'!A$19="Vårsæd",'Efterafgrøde beslutningsstøtte'!A$19="Fortsætter som græs - Kun MFO"),2,"Fejl")) -> 2 | F30: =IF('Efterafgrøde beslutningsstøtte'!A$13="Ved såning af primærafgrøde",1,IF('Efterafgrøde beslutningsstøtte'!A$13="Egnet til udsåning ved sidste radrensning",2,IF('Efterafgrøde beslutningsstøtte'!A$13="Efter høst af primærafgrøde",3,"Fejl"))) -> 3 | G30: =IF('Efterafgrøde beslutningsstøtte'!A$16="Sand",1,IF('Efterafgrøde beslutningsstøtte'!A$16="Ler",2,"Fejl")) -> 2 | H30: 14 | I30: =IF($G$9<>"Fortsætter som græs - Kun MFO",VLOOKUP(C30,Norm!$B$19:$Y$52,H30,FALSE),0) -> 2 | J30: =IF(E30=1,Norm!$D$9,Norm!$D$10) -> 220 | K30: 440 | L30: =VLOOKUP(C30,Norm!$B$19:$Y$52,14+F30,FALSE) -> 130 | M30: =VLOOKUP($C30,Norm!$B$19:$Y$52,18) -> 10 | N30: =VLOOKUP($C30,Norm!$B$19:$Y$52,19) -> 0 | O30: =VLOOKUP($C30,Norm!$B$19:$Y$52,20) -> 0 | P30: 1300 | Q30: 1 | R30: =IF(F30=1,Norm!$D$3,IF(F30=2,Norm!$D$4,IF(F30=3,Norm!$D$5))) -> 185 | S30: 2 | T30: =Norm!$D$12 -> 7 | U30: 2 | V30: =Norm!$D$7 -> 10 | W30: =VLOOKUP($C30,Norm!$B$19:$Y$52,23) -> 0 | X30: =VLOOKUP($C30,Norm!$B$19:$Y$52,24) -> 0 | Y30: =VLOOKUP($C30,Norm!$B$19:$Y$52,21) -> 0 | Z30: =VLOOKUP($C30,Norm!$B$19:$Y$52,22) -> 0 | AA30: 219 | AB30: 1519 | AC30: -1079
